Workbook

Sheet START

Sheet Instructions
D2: 2020
X4: Yes
X5: No
W7: Type of Entities Range:
X8: Parent Municipality
X9: Consolidated Information
F14: START
F15: Instructions
F16: Template names
F17: Lookup and lists | W17: MTREF Range: | X17: 2013
F18: Org structure | X18: 2014
F19: Contacts | X19: 2015
F20: A1-Sum | X20: 2016
F21: A2-FinPerf SC | X21: 2017
F22: A2A | X22: 2018
F23: A3-FinPerf V | X23: 2019
F24: A3A | X24: 2020
F25: A4-FinPerf RE | X25: 2021
F26: A5-Capex | X26: 2022
F27: A5A | X27: 2023
F28: A6-FinPos | X28: 2024
F29: A7-CFlow | X29: 2025
F30: A8-ResRecon | X30: 2026
F31: A9-Asset | X31: 2027
F32: A10-SerDel
F33: SA1 | W33: MTREF Linked: | X33: 9
F34: SA2 | W34: MTREF: | X34: =INDEX(X17:X26,X33,1) -> 2021
F35: SA3
F36: SA4 | W36: Fin Year: | X36: =MTREF&"/"&RIGHT(MTREF,2)+1 -> 2021/22
F37: SA5
F38: SA6
F39: SA7
F40: SA8
F41: SA9
F42: SA10
F43: SA11
F44: SA12a
F45: SA12b
F46: SA13a
F47: SA13b
F48: SA14
F49: SA15
F50: SA16
F51: SA17
F52: SA18
F53: SA19
F54: SA20
F55: SA21
F56: SA22
F57: SA23
F58: SA24
F59: SA25
F60: SA26
F61: SA27
F62: SA28
F63: SA29
F64: SA30
F65: SA31
F66: SA32
F67: SA33
F68: SA34a
F69: SA34b
F70: SA34c
F71: SA34d
F72: SA34e
F73: SA35
F74: SA36
F75: SA37
F76: SA38
F77: LGDB_EXPORT

Sheet Template names (hidden)
A1: Common sheet headings
A2: Head1 | B2: =HLOOKUP(MTREF,Headings,2) -> 2019/20 | C2: Prior year -1
A3: Head1A | B3: =HLOOKUP(MTREF,Headings,3) -> 2018/19 | C3: Prior year -2
A4: Head1B | B4: =HLOOKUP(MTREF,Headings,4) -> 2017/18 | C4: Prior year -3
A5: Head2 | B5: =HLOOKUP(MTREF,Headings,5) -> Current Year 2020/21 | C5: Year in which budget is being prepared
A6: Head2A | B6: =HLOOKUP(MTREF,Headings,6) -> 2020/21 | C6: Year in which budget is being prepared
A7: Head3 | B7: =HLOOKUP(MTREF,Headings,7) -> 2021/22 Medium Term Revenue & Expenditure Framework | C7: MTREF name
A8: Head4 | B8: LTFS | C8: Long term financial strategy
A9: Head5 | B9: Audited Outcome
A10: Head5A | B10: Outcome
A11: Head5B | B11: Pre-audit outcome
A12: Head6 | B12: Original Budget
A13: Head7 | B13: Adjusted Budget
A14: Head8 | B14: Full Year Forecast
A15: Head9 | B15: =HLOOKUP(MTREF,Headings,8) -> Budget Year 2021/22 | C15: 1st year of MTREF | D15: Year1
A16: Head10 | B16: =HLOOKUP(MTREF,Headings,9) -> Budget Year +1 2022/23 | C16: 2nd year of MTREF | D16: Year2
A17: Head11 | B17: =HLOOKUP(MTREF,Headings,10) -> Budget Year +2 2023/24 | C17: 3rd year of MTREF | D17: Year3
A18: Head12 | B18: =HLOOKUP(MTREF,Headings,11) -> Forecast 2024/25 | C18: 1st yr of long term forecast | D18: Year4
A19: Head13 | B19: =HLOOKUP(MTREF,Headings,12) -> Forecast 2025/26 | C19: Next yr of long term forecast | D19: Year5
A20: Head14 | B20: =HLOOKUP(MTREF,Headings,13) -> Forecast 2026/27 | C20: Next yr of long term forecast | D20: Year6
A21: Head15 | B21: =HLOOKUP(MTREF,Headings,14) -> Forecast 2027/28 | C21: Next yr of long term forecast | D21: Year7
A22: Head16 | B22: =HLOOKUP(MTREF,Headings,15) -> Forecast 2028/29 | C22: Next yr of long term forecast | D22: Year8
A23: Head17 | B23: =HLOOKUP(MTREF,Headings,16) -> Forecast 2029/30 | C23: Next yr of long term forecast | D23: Year9
A24: Head18 | B24: =HLOOKUP(MTREF,Headings,17) -> Forecast 2030/31 | C24: Next yr of long term forecast | D24: Year10
A25: Head19 | B25: =HLOOKUP(MTREF,Headings,18) -> Forecast 2031/32 | C25: Next yr of long term forecast | D25: Year11
A26: Head20 | B26: =HLOOKUP(MTREF,Headings,19) -> Forecast 2032/33 | C26: Next yr of long term forecast | D26: Year12
A27: Head21 | B27: =HLOOKUP(MTREF,Headings,20) -> Forecast 2033/34 | C27: Next yr of long term forecast | D27: Year13
A28: Head22 | B28: =HLOOKUP(MTREF,Headings,21) -> Forecast 2034/35 | C28: Next yr of long term forecast | D28: Year14
A29: Head23 | B29: =HLOOKUP(MTREF,Headings,22) -> Forecast 2035/36 | C29: Next yr of long term forecast | D29: Year15
A30: Head24 | B30: Description
A31: Head25
A32: Head26 | B32: Vote Description
A33: Head27 | B33: Ref
A34: Head27a | B34: References
A35: Head28 | B35: Surplus/(Deficit) for the year | D35: Result
A36: Head29 | B36: =HLOOKUP(MTREF,Headings,23) -> Annual target 2021/22
A37: Head30 | B37: =HLOOKUP(MTREF,Headings,24) -> Revised target 2021/22
A38: Head31 | B38: Quarter ended 30 September
A39: Head32 | B39: Quarter ended 31 December
A40: Head33 | B40: Quarter ended 31 March
A41: Head34 | B41: Quarter ended 30 June
A42: Head35 | B42: Variance explanation
A43: Head36 | B43: YTD Actual 31 Dec
A44: Head37 | B44: YTD Budget 31 Dec
A45: Head38 | B45: Monthly actual
A46: Head39 | B46: YTD actual
A47: Head40 | B47: YTD budget
A48: Head41 | B48: YTD variance
A49: Head42 | B49: Surplus/ (Deficit) for the yr/period
A50: Head43 | B50: =Head3&" Summary" -> 2021/22 Medium Term Revenue & Expenditure Framework Summary
A51: Head44 | B51: 2001 Census
A52: Head45 | B52: 2011 Census
A53: Head46 | B53: - Adjustments Budget - January 2007
A54: Head47 | B54: Previous target year to complete
A55: Head48 | B55: Present value
A56: Head49
A57: Head50 | B57: Other Adjusts.
A58: Head51 | B58: Accum. Funds
A59: Head52 | B59: Multi-year capital
A60: Head53 | B60: Unfore. Unavoid.
A61: Head54 | B61: Prior Adjusted
A62: Head55 | B62: Nat. or Prov. Govt
A63: Head56 | B63: Total Adjusts.
A64: SFPerf1 | B64: Budgeted Financial Performance
A65: SFPerf2 | B65: Forecast Financial Performance
A66: SFPos1 | B66: Budgeted Financial Position
A67: SFPos2 | B67: Forecast Financial Position
A68: Cash1 | B68: Budget Cash Flow
A69: Cash2 | B69: Forecast Cash Flow
A70: RandM | B70: Expenditure includes repairs & maintenance of R'000
A71: Depart1 | B71: Department 1 - | D71: DEP1
A72: Depart2 | B72: Department 2 - | D72: DEP2
A73: Depart3 | B73: Department 3 - | D73: DEP3
A74: Depart4 | B74: Department 4 - | D74: DEP4
A75: Depart5 | B75: Department 5 - | D75: DEP5
A76: Depart6 | B76: Department 6 - | D76: DEP6
A77: Depart7 | B77: Department 7 - | D77: DEP7
A78: Depart8 | B78: Department 8 - | D78: DEP8
A79: Depart9 | B79: Department 9 - | D79: DEP9
A80: Depart10 | B80: Department 10 - | D80: DEP10
A81: Depart11 | B81: Department 11 - | D81: DEP11
A82: Depart12 | B82: Department 12 - | D82: DEP12
A83: Depart13 | B83: Department 13 - | D83: DEP13
A84: Depart14 | B84: Department 14 - | D84: DEP14
A87: Base year of forecast column selection names
A88: Choose | B88: ACT
B89: APP
B90: ADJ
A92: Standard nomenclature
A93: Muni | B93: ='Lookup and lists'!B28 -> MP326 City of Mbombela
A94: Municipal Entities | B94: 2 | C94: Type of report: | D94: 1
A95: =IF((MuniEntities=1)*(MuniType=2),"YES","NO") -> NO | B95: Does this municipality have entities (consolidated budget and entity budgets required)? YES/NO
A96: Entity 1 | B96: (Pty) Ltd Example 1 - Municipal entity - | D96: Ent1
A97: Entity 2 | B97: (Pty) Ltd Example 2 - Municipal entity - | D97: Ent2
A98: Entity 3 | B98: Municipal Entity Example 3 | D98: Ent3
A99: Budget approval tables | C99: Chart x-ref | D99: Sch/Tab/Ch | E99: Alternative for municipalities without entities | F99: Alternative for municipalities without entities
B100: =IF(Consolques="YES",E100,F100) -> Table A1 Budget Summary | D100: Table A1 | E100: =D100&"Consolidated Budget Summary" -> Table A1 Consolidated Budget Summary | F100: =D100&"Budget Summary" -> Table A1 Budget Summary
B101: Table A2 Budgeted Financial Performance (revenue and expenditure by functional classification) | C101: Charts 5, 6 | D101: Table A2 | E101: =D101&"Consolidated Budgeted Financial Performance (revenue and expenditure by functional classification)" -> Table A2 Consolidated Budgeted Financial Performance (revenue and expenditure by functional classification) | F101: =D101&"Budgeted Financial Performance (revenue and expenditure by functional classification)" -> Table A2 Budgeted Financial Performance (revenue and expenditure by functional classification)
B102: Table A3 Budgeted Financial Performance (revenue and expenditure by municipal vote) | D102: Table A3 | E102: =D102&"Consolidated Budgeted Financial Performance (revenue and expenditure by municipal vote)" -> Table A3 Consolidated Budgeted Financial Performance (revenue and expenditure by municipal vote) | F102: =D102&"Budgeted Financial Performance (revenue and expenditure by municipal vote)" -> Table A3 Budgeted Financial Performance (revenue and expenditure by municipal vote)
B103: Table A4 Budgeted Financial Performance (revenue and expenditure) | C103: Charts 1, 2, 3, 4 | D103: Table A4 | E103: =D103&"Consolidated Budgeted Financial Performance (revenue and expenditure)" -> Table A4 Consolidated Budgeted Financial Performance (revenue and expenditure) | F103: =D103&"Budgeted Financial Performance (revenue and expenditure)" -> Table A4 Budgeted Financial Performance (revenue and expenditure)
B104: Table A5 Budgeted Capital Expenditure by vote, functional classification and funding | C104: Charts 7, 8, 9, 10, 20 | D104: Table A5 | E104: =D104&"Consolidated Budgeted Capital Expenditure by vote, functional classification and funding" -> Table A5 Consolidated Budgeted Capital Expenditure by vote, functional classification and funding | F104: =D104&"Budgeted Capital Expenditure by vote, functional classification and funding" -> Table A5 Budgeted Capital Expenditure by vote, functional classification and funding
B105: Table A6 Budgeted Financial Position | D105: Table A6 | E105: =D105&"Consolidated Budgeted Financial Position" -> Table A6 Consolidated Budgeted Financial Position | F105: =D105&"Budgeted Financial Position" -> Table A6 Budgeted Financial Position
B106: Table A7 Budgeted Cash Flows | D106: Table A7 | E106: =D106&"Consolidated Budgeted Cash Flows" -> Table A7 Consolidated Budgeted Cash Flows | F106: =D106&"Budgeted Cash Flows" -> Table A7 Budgeted Cash Flows
B107: Table A8 Cash backed reserves/accumulated surplus reconciliation | D107: Table A8 | E107: =D107&"Consolidated Cash backed reserves/accumulated surplus reconciliation" -> Table A8 Consolidated Cash backed reserves/accumulated surplus reconciliation | F107: =D107&"Cash backed reserves/accumulated surplus reconciliation" -> Table A8 Cash backed reserves/accumulated surplus reconciliation
B108: Table A9 Asset Management | D108: Table A9 | E108: =D108&"Consolidated Asset Management" -> Table A9 Consolidated Asset Management | F108: =D108&"Asset Management" -> Table A9 Asset Management
B109: Table A10 Basic service delivery measurement | D109: Table A10 | E109: =D109&"Consolidated basic service delivery measurement" -> Table A10 Consolidated basic service delivery measurement | F109: =D109&"Basic service delivery measurement" -> Table A10 Basic service delivery measurement
A110: Supportinging Tables to the Budget Approval Tables | C110: =$C$99 -> Chart x-ref | D110: =$D$99 -> Sch/Tab/Ch
A111: Supporting Table SA1 | B111: =A111&" Supportinging detail to 'Budgeted Financial Performance'" -> Supporting Table SA1 Supportinging detail to 'Budgeted Financial Performance'
A112: Supporting Table SA2 | B112: =IF(Consolques="YES",E112,F112) -> Supporting Table SA2 Matrix Financial Performance Budget (revenue source/expenditure type and dept.) | E112: =A112&"Consolidated Matrix Financial Performance Budget (revenue source/expenditure type & dept.)" -> Supporting Table SA2 Consolidated Matrix Financial Performance Budget (revenue source/expenditure type & dept.) | F112: =A112&"Matrix Financial Performance Budget (revenue source/expenditure type and dept.)" -> Supporting Table SA2 Matrix Financial Performance Budget (revenue source/expenditure type and dept.)
A113: Supporting Table SA3 | B113: =A113&"Supportinging detail to 'Budgeted Financial Position'" -> Supporting Table SA3 Supportinging detail to 'Budgeted Financial Position'
A114: Supporting Table SA4 | B114: =A114&"Reconciliation of IDP strategic objectives and budget (revenue)" -> Supporting Table SA4 Reconciliation of IDP strategic objectives and budget (revenue) | C114: Chart 11
A115: Supporting Table SA5 | B115: =A115&"Reconciliation of IDP strategic objectives and budget (operating expenditure)" -> Supporting Table SA5 Reconciliation of IDP strategic objectives and budget (operating expenditure) | C115: Chart 12
A116: Supporting Table SA6 | B116: =A116&"Reconciliation of IDP strategic objectives and budget (capital expenditure)" -> Supporting Table SA6 Reconciliation of IDP strategic objectives and budget (capital expenditure) | C116: Chart 13
A117: Supporting Table SA7 | B117: =A117&" Measureable performance objectives" -> Supporting Table SA7 Measureable performance objectives
A118: Supporting Table SA8 | B118: =A118&" Performance indicators and benchmarks" -> Supporting Table SA8 Performance indicators and benchmarks | C118: Chts 15-19
A119: Supporting Table SA9 | B119: =A119&" Social, economic and demographic statistics and assumptions" -> Supporting Table SA9 Social, economic and demographic statistics and assumptions
A120: Supporting Table SA10 | B120: =A120&" Funding measurement" -> Supporting Table SA10 Funding measurement | C120: Chart 14
A121: Supporting Table SA11 | B121: =A121&" Property rates summary" -> Supporting Table SA11 Property rates summary
A122: Supporting Table SA12a | B122: =A122&" Property rates by category (current year)" -> Supporting Table SA12a Property rates by category (current year)
A123: Supporting Table SA12b | B123: =A123&" Property rates by category (budget year)" -> Supporting Table SA12b Property rates by category (budget year)
A124: Supporting Table SA13a | B124: =A124&" Service Tariffs by category" -> Supporting Table SA13a Service Tariffs by category
A125: Supporting Table SA13b | B125: =A125&" Service Tariffs by category - explanatory" -> Supporting Table SA13b Service Tariffs by category - explanatory
A126: Supporting Table SA14 | B126: =A126&" Household bills" -> Supporting Table SA14 Household bills
A127: Supporting Table SA15 | B127: =A127&" Investment particulars by type" -> Supporting Table SA15 Investment particulars by type
A128: Supporting Table SA16 | B128: =A128&" Investment particulars by maturity" -> Supporting Table SA16 Investment particulars by maturity
A129: Supporting Table SA17 | B129: =A129&" Borrowing" -> Supporting Table SA17 Borrowing
A130: Supporting Table SA18 | B130: =A130&" Transfers and grant receipts" -> Supporting Table SA18 Transfers and grant receipts
A131: Supporting Table SA19 | B131: =A131&" Expenditure on transfers and grant programme" -> Supporting Table SA19 Expenditure on transfers and grant programme
A132: Supporting Table SA20 | B132: =A132&" Reconciliation of transfers, grant receipts and unspent funds" -> Supporting Table SA20 Reconciliation of transfers, grant receipts and unspent funds
A133: Supporting Table SA21 | B133: =A133&" Transfers and grants made by the municipality" -> Supporting Table SA21 Transfers and grants made by the municipality
A134: Supporting Table SA22 | B134: =A134&" Summary councillor and staff benefits" -> Supporting Table SA22 Summary councillor and staff benefits
A135: Supporting Table SA23 | B135: =A135&" Salaries, allowances & benefits (political office bearers/councillors/senior managers)" -> Supporting Table SA23 Salaries, allowances & benefits (political office bearers/councillors/senior managers)
A136: Supporting Table SA24 | B136: =A136&" Summary of personnel numbers" -> Supporting Table SA24 Summary of personnel numbers
A137: Supporting Table SA25 | B137: =IF(Consolques="YES",E137,F137) -> Supporting Table SA25 Budgeted monthly revenue and expenditure | E137: =A137&" Consolidated budgeted monthly revenue and expenditure" -> Supporting Table SA25 Consolidated budgeted monthly revenue and expenditure | F137: =A137&" Budgeted monthly revenue and expenditure" -> Supporting Table SA25 Budgeted monthly revenue and expenditure
A138: Supporting Table SA26 | B138: Supporting Table SA26 Budgeted monthly revenue and expenditure (municipal vote) | E138: =A138&" Consolidated budgeted monthly revenue and expenditure (municipal vote)" -> Supporting Table SA26 Consolidated budgeted monthly revenue and expenditure (municipal vote) | F138: =A138&" Budgeted monthly revenue and expenditure (municipal vote)" -> Supporting Table SA26 Budgeted monthly revenue and expenditure (municipal vote)
A139: Supporting Table SA27 | B139: Supporting Table SA27 Budgeted monthly revenue and expenditure (functional classification) | E139: =A139&" Consolidated budgeted monthly revenue and expenditure (functional classification)" -> Supporting Table SA27 Consolidated budgeted monthly revenue and expenditure (functional classification) | F139: =A139&" Budgeted monthly revenue and expenditure (functional classification)" -> Supporting Table SA27 Budgeted monthly revenue and expenditure (functional classification)
A140: Supporting Table SA28 | B140: Supporting Table SA28 Budgeted monthly capital expenditure (municipal vote) | E140: =A140&" Consolidated budgeted monthly capital expenditure (municipal vote)" -> Supporting Table SA28 Consolidated budgeted monthly capital expenditure (municipal vote) | F140: =A140&" Budgeted monthly capital expenditure (municipal vote)" -> Supporting Table SA28 Budgeted monthly capital expenditure (municipal vote)
A141: Supporting Table SA29 | B141: Supporting Table SA29 Budgeted monthly capital expenditure (functional classification) | E141: =A141&" Consolidated budgeted monthly capital expenditure (functional classification)" -> Supporting Table SA29 Consolidated budgeted monthly capital expenditure (functional classification) | F141: =A141&" Budgeted monthly capital expenditure (functional classification)" -> Supporting Table SA29 Budgeted monthly capital expenditure (functional classification)
A142: Supporting Table SA30 | B142: Supporting Table SA30 Budgeted monthly cash flow | E142: =A142&" Consolidated budgeted monthly cash flow" -> Supporting Table SA30 Consolidated budgeted monthly cash flow | F142: =A142&" Budgeted monthly cash flow" -> Supporting Table SA30 Budgeted monthly cash flow
A143: Supporting Table SA31 | B143: NOT REQUIRED - municipality does not have entities | E143: =A143&" Aggregated entity budget" -> Supporting Table SA31 Aggregated entity budget | F143: NOT REQUIRED - municipality does not have entities
A144: Supporting Table SA32 | B144: =A144&" List of external mechanisms" -> Supporting Table SA32 List of external mechanisms
A145: Supporting Table SA33 | B145: =A145&" Contracts having future budgetary implications" -> Supporting Table SA33 Contracts having future budgetary implications
A146: Supporting Table SA34a | B146: =IF(Consolques="YES",E146,F146) -> Supporting Table SA34a Capital expenditure on new assets by asset class | E146: =A146&" Consolidated capital expenditure on new assets by asset class" -> Supporting Table SA34a Consolidated capital expenditure on new assets by asset class | F146: =A146&" Capital expenditure on new assets by asset class" -> Supporting Table SA34a Capital expenditure on new assets by asset class
A147: Supporting Table SA34b | B147: Supporting Table SA34b Capital expenditure on the renewal of existing assets by asset class | E147: =A147&" Consolidated capital expenditure on the renewal of existing assets by asset class" -> Supporting Table SA34b Consolidated capital expenditure on the renewal of existing assets by asset class | F147: =A147&" Capital expenditure on the renewal of existing assets by asset class" -> Supporting Table SA34b Capital expenditure on the renewal of existing assets by asset class
A148: Supporting Table SA34c | B148: Supporting Table SA34c Repairs and maintenance expenditure by asset class | E148: =A148&" Consolidated repairs and maintenance by asset class" -> Supporting Table SA34c Consolidated repairs and maintenance by asset class | F148: =A148&" Repairs and maintenance expenditure by asset class" -> Supporting Table SA34c Repairs and maintenance expenditure by asset class
A149: Supporting Table SA34d | B149: =IF(Consolques="YES",E149,F149) -> Supporting Table SA34d Depreciation by asset class | E149: =A149&" Consolidated Depreciation by asset class" -> Supporting Table SA34d Consolidated Depreciation by asset class | F149: =A149&" Depreciation by asset class" -> Supporting Table SA34d Depreciation by asset class
A150: Supporting Table SA34e | B150: =IF(Consolques="YES",E150,F150) -> Supporting Table SA34e Capital expenditure on the upgrading of existing assets by asset class | E150: =A150&" Consolidated capital expenditure on the upgrading of existing assets by asset class" -> Supporting Table SA34e Consolidated capital expenditure on the upgrading of existing assets by asset class | F150: =A150&" Capital expenditure on the upgrading of existing assets by asset class" -> Supporting Table SA34e Capital expenditure on the upgrading of existing assets by asset class
A151: Supporting Table SA35 | B151: Supporting Table SA35 Future financial implications of the capital budget | E151: =A151&" Consolidated future financial implications of the capital budget" -> Supporting Table SA35 Consolidated future financial implications of the capital budget | F151: =A151& " Future financial implications of the capital budget" -> Supporting Table SA35 Future financial implications of the capital budget
A152: Supporting Table SA36 | B152: Supporting Table SA36 Detailed capital budget | E152: =A152&" Consolidated detailed capital budget" -> Supporting Table SA36 Consolidated detailed capital budget | F152: =A152& " Detailed capital budget" -> Supporting Table SA36 Detailed capital budget
A153: Supporting Table SA37 | B153: Supporting Table SA37 Projects delayed from previous financial year/s | E153: =A153&" Consolidated projects delayed from previous financial year/s" -> Supporting Table SA37 Consolidated projects delayed from previous financial year/s | F153: =A153& " Projects delayed from previous financial year/s" -> Supporting Table SA37 Projects delayed from previous financial year/s
A154: Supporting Table SA38 | B154: =IF(Consolques="YES",E154,F154) -> Supporting Table SA38 Detailed operational projects | E154: =A154&" Consolidated detailed operational projects" -> Supporting Table SA38 Consolidated detailed operational projects | F154: =A154& " Detailed operational projects" -> Supporting Table SA38 Detailed operational projects
A156: Budget Charts | B156: Charts | C156: Cross reference
A157: Chart A1 | B157: =A157&"Revenue by Municipal Vote" -> Chart A1 Revenue by Municipal Vote
A158: Chart A2 | B158: =A158&"Expenditure by Municipal Vote" -> Chart A2 Expenditure by Municipal Vote
A159: Chart A3 | B159: =A159&"Revenue by Standard Classification" -> Chart A3 Revenue by Standard Classification | C159: A2
A160: Chart A4 | B160: =A160&"Expenditure by Standard Classification" -> Chart A4 Expenditure by Standard Classification | C160: A2
A161: Chart A5 | B161: =A161&"Revenue by Major Source (refer 'Minor' source for 'Other Revenue' allocation" -> Chart A5 Revenue by Major Source (refer 'Minor' source for 'Other Revenue' allocation | C161: A3
A162: Chart A6 | B162: =A162&"Revenue by Minor Source (Other)" -> Chart A6 Revenue by Minor Source (Other) | C162: A3
A163: Chart A7 | B163: =A163&"Expenditure by Major Type" -> Chart A7 Expenditure by Major Type | C163: A3
A164: Chart A8 | B164: =A164&"Expenditure by Minor Type (Other)" -> Chart A8 Expenditure by Minor Type (Other) | C164: A3
A165: Chart A9 | B165: =A165&"Capital Expenditure by Municipal Vote/Appropriation (Major)" -> Chart A9 Capital Expenditure by Municipal Vote/Appropriation (Major) | C165: A5
A166: Chart A10 | B166: =A166&"Capital Expenditure by Municipal Vote/Appropriation (Minor)" -> Chart A10 Capital Expenditure by Municipal Vote/Appropriation (Minor) | C166: A5
A167: Chart A11 | B167: =A166&"Capital Expenditure by Standard Classification" -> Chart A10 Capital Expenditure by Standard Classification | C167: A5
A168: Chart A12 | B168: =A168&"Capital expenditure performance trend" -> Chart A12 Capital expenditure performance trend | C168: A5
A169: Chart A13 | B169: =A169&"Capital funding by Source" -> Chart A13 Capital funding by Source | C169: A5
A170: Chart A14 | B170: =A170&"Cash flow trend" -> Chart A14 Cash flow trend | C170: A7
A171: Chart A15 | B171: =A171&"IDP Strategic Objective - Revenue" -> Chart A15 IDP Strategic Objective - Revenue | C171: Table A4
A172: Chart A16 | B172: =A172&"IDP Strategic Objective - Expenditure" -> Chart A16 IDP Strategic Objective - Expenditure | C172: Table A5
A173: Chart A17 | B173: =A173&"IDP Strategic Objective - Capital Expenditure" -> Chart A17 IDP Strategic Objective - Capital Expenditure | C173: Table A6
A174: Chart A18 | B174: =A174&"Debt (borrowing to Total Revenue)" -> Chart A18 Debt (borrowing to Total Revenue) | C174: Table A8
A175: Chart A19 | B175: =A175&"Debtors' trend analysis" -> Chart A19 Debtors' trend analysis | C175: Table A8
A176: Chart A20 | B176: =A176&"Distribution losses" -> Chart A20 Distribution losses | C176: Table A8
A177: Chart A21 | B177: =A177&"Borrowed funding of capital expenditure" -> Chart A21 Borrowed funding of capital expenditure | C177: Table A8
A178: Chart A22 | B178: =A178&"Expenditure analysis (% of Revenue)" -> Chart A22 Expenditure analysis (% of Revenue) | C178: Table A8
A179: Chart A23 | B179: =A179&"Increases in service charges" -> Chart A23 Increases in service charges | C179: Table A10

Sheet Lookup and lists (hidden)
A1: Description | B1: 2013 | C1: 2014 | D1: 2015 | E1: 2016 | F1: 2017 | G1: 2018 | H1: 2019 | I1: 2020 | J1: 2021 | K1: 2022 | L1: 2023 | M1: 2024 | N1: 2025 | O1: 2026 | Q1: Lists | Y1: Grants: | Z1: National - opex | AA1: Provincial - opex | AB1: National - capex | AC1: Provincial - capex
A2: ='Template names'!C2 -> Prior year -1 | B2: =B1-2&"/"&RIGHT(B1,2)-1 -> 2011/12 | C2: 2012/13 | D2: 2013/14 | E2: 2014/15 | F2: 2015/16 | G2: 2016/17 | H2: 2017/18 | I2: 2018/19 | J2: =J1-2&"/"&RIGHT(J1,2)-1 -> 2019/20 | K2: 2020/21 | L2: 2021/22 | M2: 2022/23 | N2: 2023/24 | O2: 2024/25 | Q2: Yes | R2: <1 | S2: <4 | T2: Market | U2: Land & impr. | V2: Yes | W2: Uniform | X2: Yrs | Z2: Local Government Equitable Share | AA2: Health subsidy | AB2: Municipal Infrastructure Grant (MIG) | AC2: Agriculture
A3: ='Template names'!C3 -> Prior year -2 | B3: =B1-3&"/"&RIGHT(B1,2)-2 -> 2010/11 | C3: 2011/12 | D3: 2012/13 | E3: 2013/14 | F3: 2014/15 | G3: 2015/16 | H3: 2016/17 | I3: 2017/18 | J3: =J1-3&"/"&RIGHT(J1,2)-2 -> 2018/19 | K3: 2019/20 | L3: 2020/21 | M3: 2021/22 | N3: 2022/23 | O3: 2023/24 | Q3: No | R3: 1 | S3: 4 | T3: Dep.Replace | U3: Land only | V3: No | W3: Variable | X3: Mths | Z3: RSC Levy Replacement | AA3: Ambulance subsidy | AB3: Public Transport and Systems | AC3: Education
A4: ='Template names'!C4 -> Prior year -3 | B4: =B1-4&"/"&RIGHT(B1,2)-3 -> 2009/10 | C4: 2010/11 | D4: 2011/12 | E4: 2012/13 | F4: 2013/14 | G4: 2014/15 | H4: 2015/16 | I4: 2016/17 | J4: =J1-4&"/"&RIGHT(J1,2)-3 -> 2017/18 | K4: 2018/19 | L4: 2019/20 | M4: 2020/21 | N4: 2021/22 | O4: 2022/23 | R4: 2 | S4: 5 | T4: Other | U4: Other | Z4: Finance Management | AA4: Housing | AB4: Rural Transport Services and Infrastructure | AC4: Health
A5: ='Template names'!C5 -> Year in which budget is being prepared | B5: ="Current Year "& B1-1&"/"&RIGHT(B1,2) -> Current Year 2012/13 | C5: Current Year 2013/14 | D5: Current Year 2014/15 | E5: Current Year 2015/16 | F5: Current Year 2016/17 | G5: Current Year 2017/18 | H5: Current Year 2018/19 | I5: Current Year 2019/20 | J5: ="Current Year "& J1-1&"/"&RIGHT(J1,2) -> Current Year 2020/21 | K5: Current Year 2021/22 | L5: Current Year 2022/23 | M5: Current Year 2023/24 | N5: Current Year 2024/25 | O5: Current Year 2025/26 | R5: 3 | S5: 6 | Z5: Municipal Systems Improvement | AA5: Sport and Recreation | AB5: Regional Bulk Infrastructure | AC5: Housing and Local Government
A6: ='Template names'!C6 -> Year in which budget is being prepared | B6: =B1-1&"/"&RIGHT(B1,2) -> 2012/13 | C6: 2013/14 | D6: 2014/15 | E6: 2015/16 | F6: 2016/17 | G6: 2017/18 | H6: 2018/19 | I6: 2019/20 | J6: =J1-1&"/"&RIGHT(J1,2) -> 2020/21 | K6: 2021/22 | L6: 2022/23 | M6: 2023/24 | N6: 2024/25 | O6: 2025/26 | R6: 4 | S6: 6-10 | Z6: Water Services Operating Subsidy | AB6: Rural Households Infrastructure | AC6: Other Departments
A7: ='Template names'!C7 -> MTREF name | B7: =B1&"/"&RIGHT(B1,2)+1&" Medium Term Revenue & Expenditure Framework" -> 2013/14 Medium Term Revenue & Expenditure Framework | C7: 2014/15 Medium Term Revenue & Expenditure Framework | D7: 2015/16 Medium Term Revenue & Expenditure Framework | E7: 2016/17 Medium Term Revenue & Expenditure Framework | F7: 2017/18 Medium Term Revenue & Expenditure Framework | G7: 2018/19 Medium Term Revenue & Expenditure Framework | H7: 2019/20 Medium Term Revenue & Expenditure Framework | I7: 2020/21 Medium Term Revenue & Expenditure Framework | J7: =J1&"/"&RIGHT(J1,2)+1&" Medium Term Revenue & Expenditure Framework" -> 2021/22 Medium Term Revenue & Expenditure Framework | K7: 2022/23 Medium Term Revenue & Expenditure Framework | L7: 2023/24 Medium Term Revenue & Expenditure Framework | M7: 2024/25 Medium Term Revenue & Expenditure Framework | N7: 2025/26 Medium Term Revenue & Expenditure Framework | O7: 2026/27 Medium Term Revenue & Expenditure Framework | R7: 5 | S7: >10 | Z7: Energy Efficiency and Demand Management | AB7: Neighbourhood Development Partnership | AC7: Public Works, Roads, Transport
A8: ='Template names'!C15 -> 1st year of MTREF | B8: ="Budget Year "&B1&"/"&RIGHT(B1,2)+1 -> Budget Year 2013/14 | C8: Budget Year 2014/15 | D8: Budget Year 2015/16 | E8: Budget Year 2016/17 | F8: Budget Year 2017/18 | G8: Budget Year 2018/19 | H8: Budget Year 2019/20 | I8: Budget Year 2020/21 | J8: ="Budget Year "&J1&"/"&RIGHT(J1,2)+1 -> Budget Year 2021/22 | K8: Budget Year 2022/23 | L8: Budget Year 2023/24 | M8: Budget Year 2024/25 | N8: Budget Year 2025/26 | O8: Budget Year 2026/27 | R8: >5 | Z8: Integrated National Electrification Programme | AB8: 2010 FIFA World Cup Stadiums Development | AC8: Sport and Recreation
A9: ='Template names'!C16 -> 2nd year of MTREF | B9: ="Budget Year +1 "&B1+1&"/"&RIGHT(B1,2)+2 -> Budget Year +1 2014/15 | C9: Budget Year +1 2015/16 | D9: Budget Year +1 2016/17 | E9: Budget Year +1 2017/18 | F9: Budget Year +1 2018/19 | G9: Budget Year +1 2019/20 | H9: Budget Year +1 2020/21 | I9: Budget Year +1 2021/22 | J9: ="Budget Year +1 "&J1+1&"/"&RIGHT(J1,2)+2 -> Budget Year +1 2022/23 | K9: Budget Year +1 2023/24 | L9: Budget Year +1 2024/25 | M9: Budget Year +1 2025/26 | N9: Budget Year +1 2026/27 | O9: Budget Year +1 2027/28 | Z9: Municipal Drought Relief
A10: ='Template names'!C17 -> 3rd year of MTREF | B10: ="Budget Year +2 "&B1+2&"/"&RIGHT(B1,2)+3 -> Budget Year +2 2015/16 | C10: Budget Year +2 2016/17 | D10: Budget Year +2 2017/18 | E10: Budget Year +2 2018/19 | F10: Budget Year +2 2019/20 | G10: Budget Year +2 2020/21 | H10: Budget Year +2 2021/22 | I10: Budget Year +2 2022/23 | J10: ="Budget Year +2 "&J1+2&"/"&RIGHT(J1,2)+3 -> Budget Year +2 2023/24 | K10: Budget Year +2 2024/25 | L10: Budget Year +2 2025/26 | M10: Budget Year +2 2026/27 | N10: Budget Year +2 2027/28 | O10: Budget Year +2 2028/29 | Z10: 2010 FIFA World Cup Operating
A11: ='Template names'!C18 -> 1st yr of long term forecast | B11: ="Forecast "&B1+3&"/"&RIGHT(B1,2)+4 -> Forecast 2016/17 | C11: Forecast 2017/18 | D11: Forecast 2018/19 | E11: Forecast 2019/20 | F11: Forecast 2020/21 | G11: Forecast 2021/22 | H11: Forecast 2022/23 | I11: Forecast 2023/24 | J11: ="Forecast "&J1+3&"/"&RIGHT(J1,2)+4 -> Forecast 2024/25 | K11: Forecast 2025/26 | L11: Forecast 2026/27 | M11: Forecast 2027/28 | N11: Forecast 2028/29 | O11: Forecast 2029/30 | Z11: Electricity Demand Side Management
A12: ='Template names'!C19 -> Next yr of long term forecast | B12: ="Forecast "&B1+4&"/"&RIGHT(B1,2)+5 -> Forecast 2017/18 | C12: Forecast 2018/19 | D12: Forecast 2019/20 | E12: Forecast 2020/21 | F12: Forecast 2021/22 | G12: Forecast 2022/23 | H12: Forecast 2023/24 | I12: Forecast 2024/25 | J12: ="Forecast "&J1+4&"/"&RIGHT(J1,2)+5 -> Forecast 2025/26 | K12: Forecast 2026/27 | L12: Forecast 2027/28 | M12: Forecast 2028/29 | N12: Forecast 2029/30 | O12: Forecast 2030/31 | Z12: EPWP Incentive
A13: ='Template names'!C20 -> Next yr of long term forecast | B13: ="Forecast "&B1+5&"/"&RIGHT(B1,2)+6 -> Forecast 2018/19 | C13: Forecast 2019/20 | D13: Forecast 2020/21 | E13: Forecast 2021/22 | F13: Forecast 2022/23 | G13: Forecast 2023/24 | H13: Forecast 2024/25 | I13: Forecast 2025/26 | J13: ="Forecast "&J1+5&"/"&RIGHT(J1,2)+6 -> Forecast 2026/27 | K13: Forecast 2027/28 | L13: Forecast 2028/29 | M13: Forecast 2029/30 | N13: Forecast 2030/31 | O13: Forecast 2031/32
A14: ='Template names'!C21 -> Next yr of long term forecast | B14: ="Forecast "&B1+6&"/"&RIGHT(B1,2)+7 -> Forecast 2019/20 | C14: Forecast 2020/21 | D14: Forecast 2021/22 | E14: Forecast 2022/23 | F14: Forecast 2023/24 | G14: Forecast 2024/25 | H14: Forecast 2025/26 | I14: Forecast 2026/27 | J14: ="Forecast "&J1+6&"/"&RIGHT(J1,2)+7 -> Forecast 2027/28 | K14: Forecast 2028/29 | L14: Forecast 2029/30 | M14: Forecast 2030/31 | N14: Forecast 2031/32 | O14: Forecast 2032/33 | Z14: Asset Class | AA14: Asset sub-class old | AB14: Asset sub-class | AC14: IUDF | AD14: MTSF
A15: ='Template names'!C22 -> Next yr of long term forecast | B15: ="Forecast "&B1+7&"/"&RIGHT(B1,2)+8 -> Forecast 2020/21 | C15: Forecast 2021/22 | D15: Forecast 2022/23 | E15: Forecast 2023/24 | F15: Forecast 2024/25 | G15: Forecast 2025/26 | H15: Forecast 2026/27 | I15: Forecast 2027/28 | J15: ="Forecast "&J1+7&"/"&RIGHT(J1,2)+8 -> Forecast 2028/29 | K15: Forecast 2029/30 | L15: Forecast 2030/31 | M15: Forecast 2031/32 | N15: Forecast 2032/33 | O15: Forecast 2033/34
A16: ='Template names'!C23 -> Next yr of long term forecast | B16: ="Forecast "&B1+8&"/"&RIGHT(B1,2)+9 -> Forecast 2021/22 | C16: Forecast 2022/23 | D16: Forecast 2023/24 | E16: Forecast 2024/25 | F16: Forecast 2025/26 | G16: Forecast 2026/27 | H16: Forecast 2027/28 | I16: Forecast 2028/29 | J16: ="Forecast "&J1+8&"/"&RIGHT(J1,2)+9 -> Forecast 2029/30 | K16: Forecast 2030/31 | L16: Forecast 2031/32 | M16: Forecast 2032/33 | N16: Forecast 2033/34 | O16: Forecast 2034/35 | Z16: Roads Infrastructure | AA16: Roads, Pavements & Bridges | AB16: Roads | AC16: Spatial integration | AD16: Quality basic education
A17: ='Template names'!C24 -> Next yr of long term forecast | B17: ="Forecast "&B1+9&"/"&RIGHT(B1,2)+10 -> Forecast 2022/23 | C17: Forecast 2023/24 | D17: Forecast 2024/25 | E17: Forecast 2025/26 | F17: Forecast 2026/27 | G17: Forecast 2027/28 | H17: Forecast 2028/29 | I17: Forecast 2029/30 | J17: ="Forecast "&J1+9&"/"&RIGHT(J1,2)+10 -> Forecast 2030/31 | K17: Forecast 2031/32 | L17: Forecast 2032/33 | M17: Forecast 2033/34 | N17: Forecast 2034/35 | O17: Forecast 2035/36 | Z17: Storm water Infrastructure | AA17: Storm water | AB17: Road Structures | AC17: Inclusion and access | AD17: A long and healthy life for all South Africans
A18: ='Template names'!C25 -> Next yr of long term forecast | B18: ="Forecast "&B1+10&"/"&RIGHT(B1,2)+11 -> Forecast 2023/24 | C18: Forecast 2024/25 | D18: Forecast 2025/26 | E18: Forecast 2026/27 | F18: Forecast 2027/28 | G18: Forecast 2028/29 | H18: Forecast 2029/30 | I18: Forecast 2030/31 | J18: ="Forecast "&J1+10&"/"&RIGHT(J1,2)+11 -> Forecast 2031/32 | K18: Forecast 2032/33 | L18: Forecast 2033/34 | M18: Forecast 2034/35 | N18: Forecast 2035/36 | O18: Forecast 2036/37 | Z18: Electrical Infrastructure | AA18: Generation | AB18: Road Furniture | AC18: Growth | AD18: All people in South Africa are and feel safe
A19: ='Template names'!C26 -> Next yr of long term forecast | B19: ="Forecast "&B1+11&"/"&RIGHT(B1,2)+12 -> Forecast 2024/25 | C19: Forecast 2025/26 | D19: Forecast 2026/27 | E19: Forecast 2027/28 | F19: Forecast 2028/29 | G19: Forecast 2029/30 | H19: Forecast 2030/31 | I19: Forecast 2031/32 | J19: ="Forecast "&J1+11&"/"&RIGHT(J1,2)+12 -> Forecast 2032/33 | K19: Forecast 2033/34 | L19: Forecast 2034/35 | M19: Forecast 2035/36 | N19: Forecast 2036/37 | O19: Forecast 2037/38 | Z19: Water Supply Infrastructure | AA19: Transmission & Reticulation | AB19: Capital Spares | AC19: Governance | AD19: Decent employment through inclusive growth
A20: ='Template names'!C27 -> Next yr of long term forecast | B20: ="Forecast "&B1+12&"/"&RIGHT(B1,2)+13 -> Forecast 2025/26 | C20: Forecast 2026/27 | D20: Forecast 2027/28 | E20: Forecast 2028/29 | F20: Forecast 2029/30 | G20: Forecast 2030/31 | H20: Forecast 2031/32 | I20: Forecast 2032/33 | J20: ="Forecast "&J1+12&"/"&RIGHT(J1,2)+13 -> Forecast 2033/34 | K20: Forecast 2034/35 | L20: Forecast 2035/36 | M20: Forecast 2036/37 | N20: Forecast 2037/38 | O20: Forecast 2038/39 | Z20: Sanitation Infrastructure | AA20: Street Lighting | AB20: Drainage Collection | AD20: A skilled and capable workforce to support an inclusive growth path
A21: ='Template names'!C28 -> Next yr of long term forecast | B21: ="Forecast "&B1+13&"/"&RIGHT(B1,2)+14 -> Forecast 2026/27 | C21: Forecast 2027/28 | D21: Forecast 2028/29 | E21: Forecast 2029/30 | F21: Forecast 2030/31 | G21: Forecast 2031/32 | H21: Forecast 2032/33 | I21: Forecast 2033/34 | J21: ="Forecast "&J1+13&"/"&RIGHT(J1,2)+14 -> Forecast 2034/35 | K21: Forecast 2035/36 | L21: Forecast 2036/37 | M21: Forecast 2037/38 | N21: Forecast 2038/39 | O21: Forecast 2039/40 | Z21: Solid Waste Infrastructure | AA21: Dams & Reservoirs | AB21: Storm water Conveyance | AD21: An efficient, competitive and responsive economic infrastructure network
A22: ='Template names'!C29 -> Next yr of long term forecast | B22: ="Forecast "&B1+14&"/"&RIGHT(B1,2)+15 -> Forecast 2027/28 | C22: Forecast 2028/29 | D22: Forecast 2029/30 | E22: Forecast 2030/31 | F22: Forecast 2031/32 | G22: Forecast 2032/33 | H22: Forecast 2033/34 | I22: Forecast 2034/35 | J22: ="Forecast "&J1+14&"/"&RIGHT(J1,2)+15 -> Forecast 2035/36 | K22: Forecast 2036/37 | L22: Forecast 2037/38 | M22: Forecast 2038/39 | N22: Forecast 2039/40 | O22: Forecast 2040/41 | Z22: Rail Infrastructure | AA22: Water purification | AB22: Attenuation | AD22: Vibrant, equitable, sustainable rural communities contributing towards food security for all
A23: Adjustments Budget | B23: ="Annual target " & B1&"/"&RIGHT(B1,2)+1 -> Annual target 2013/14 | C23: Annual target 2014/15 | D23: Annual target 2015/16 | E23: Annual target 2016/17 | F23: Annual target 2017/18 | G23: Annual target 2018/19 | H23: Annual target 2019/20 | I23: Annual target 2020/21 | J23: ="Annual target " & J1&"/"&RIGHT(J1,2)+1 -> Annual target 2021/22 | K23: Annual target 2022/23 | L23: Annual target 2023/24 | M23: Annual target 2024/25 | N23: Annual target 2025/26 | O23: Annual target 2026/27 | Z23: Coastal Infrastructure | AA23: Reticulation | AB23: Power Plants | AD23: Sustainable human settlements and improved quality of household life
A24: =A23 -> Adjustments Budget | B24: ="Revised target "& B1&"/"&RIGHT(B1,2)+1 -> Revised target 2013/14 | C24: Revised target 2014/15 | D24: Revised target 2015/16 | E24: Revised target 2016/17 | F24: Revised target 2017/18 | G24: Revised target 2018/19 | H24: Revised target 2019/20 | I24: Revised target 2020/21 | J24: ="Revised target "& J1&"/"&RIGHT(J1,2)+1 -> Revised target 2021/22 | K24: Revised target 2022/23 | L24: Revised target 2023/24 | M24: Revised target 2024/25 | N24: Revised target 2025/26 | O24: Revised target 2026/27 | Z24: Information and Communication Infrastructure | AA24: Sewerage purification | AB24: HV Substations | AD24: Responsive, accountable, effective and efficient local government
A25: NOTE: This sheet should not be directly amended - select headings from sheet 'S' | Z25: Community Facilities | AA25: Waste Management | AB25: HV Switching Station | AD25: Protect and enhance our environmental assets and natural resources
Z26: Sport and Recreation Facilities | AA26: Transportation | AB26: HV Transmission Conductors | AD26: Create a better South Africa and contribute to a better Africa and a better world
A27: Name link | B27: 174 | Z27: Heritage assets | AA27: Gas | AB27: MV Substations | AD27: An efficient, effective and development-oriented public service
A28: Name of Muni | B28: =INDEX(B29:B307,B27,1) -> MP326 City of Mbombela | Z28: Revenue Generating | AA28: Parks & gardens | AB28: MV Switching Stations | AD28: A comprehensive, responsive and sustainable social protection system
B29: Choose name from list | C29: Set name on 'Instructions' sheet | Z29: Non-revenue Generating | AA29: Sportsfields & stadia | AB29: MV Networks | AD29: A diverse, socially cohesive society with a common national identity
B30: BUF Buffalo City | C30: EC EASTERN CAPE | Z30: Operational Buildings | AA30: Swimming pools | AB30: LV Networks
B31: NMA Nelson Mandela Bay | C31: EC EASTERN CAPE | Z31: Housing | AA31: Community halls | AB31: Capital Spares
B32: EC101 Dr Beyers Naude | C32: EC EASTERN CAPE | Z32: Biological or Cultivated Assets | AA32: Libraries | AB32: Dams and Weirs
B33: EC102 Blue Crane Route | C33: EC EASTERN CAPE | Z33: Servitudes | AA33: Recreational facilities | AB33: Boreholes
B34: EC104 Makana | C34: EC EASTERN CAPE | Z34: Licences and Rights | AA34: Fire, safety & emergency | AB34: Reservoirs
B35: EC105 Ndlambe | C35: EC EASTERN CAPE | Z35: Computer Equipment | AA35: Security and policing | AB35: Pump Stations
B36: EC106 Sundays River Valley | C36: EC EASTERN CAPE | Z36: Furniture and Office Equipment | AA36: Buses | AB36: Water Treatment Works
B37: EC108 Kouga | C37: EC EASTERN CAPE | Z37: Machinery and Equipment | AA37: Clinics | AB37: Bulk Mains
B38: EC109 Kou-Kamma | C38: EC EASTERN CAPE | Z38: Transport Assets | AA38: Museums & Art Galleries | AB38: Distribution
B39: DC10 Sarah Baartman | C39: EC EASTERN CAPE | Z39: Land | AA39: Cemeteries | AB39: Distribution Points
B40: EC121 Mbhashe | C40: EC EASTERN CAPE | Z40: Zoo's, Marine and Non-biological Animals | AA40: Social rental housing | AB40: PRV Stations
B41: EC122 Mnquma | C41: EC EASTERN CAPE | AA41: Buildings | AB41: Capital Spares
B42: EC123 Great Kei | C42: EC EASTERN CAPE | AA42: Housing development | AB42: Pump Station
B43: EC124 Amahlathi | C43: EC EASTERN CAPE | AA43: General vehicles | AB43: Reticulation
B44: EC126 Ngqushwa | C44: EC EASTERN CAPE | AA44: Specialised vehicles - Refuse | AB44: Waste Water Treatment Works
B45: EC129 Raymond Mhlaba | C45: EC EASTERN CAPE | AA45: Specialised vehicles - Fire | AB45: Outfall Sewers
B46: DC12 Amathole | C46: EC EASTERN CAPE | AA46: Specialised vehicles - Conservancy | AB46: Toilet Facilities
B47: EC131 Inxuba Yethemba | C47: EC EASTERN CAPE | AA47: Specialised vehicles - Ambulances | AB47: Capital Spares
B48: EC135 Intsika Yethu | C48: EC EASTERN CAPE | AA48: Plant & equipment | AB48: Landfill Sites
B49: EC136 Emalahleni (Ec) | C49: EC EASTERN CAPE | AA49: Computers - hardware/equipment | AB49: Waste Transfer Stations
B50: EC137 Engcobo | C50: EC EASTERN CAPE | AA50: Furniture and other office equipment | AB50: Waste Processing Facilities
B51: EC138 Sakhisizwe | C51: EC EASTERN CAPE | AA51: Abattoirs | AB51: Waste Drop-off Points
B52: EC139 Enoch Mgijima | C52: EC EASTERN CAPE | AA52: Markets | AB52: Waste Separation Facilities
B53: DC13 Chris Hani | C53: EC EASTERN CAPE | AA53: Civic Land and Buildings | AB53: Electricity Generation Facilities
B54: EC141 Elundini | C54: EC EASTERN CAPE | AA54: Other Buildings | AB54: Capital Spares
B55: EC142 Senqu | C55: EC EASTERN CAPE | AA55: Other Land | AB55: Rail Lines
B56: EC145 Walter Sisulu | C56: EC EASTERN CAPE | AA56: Surplus Assets - (Investment or Inventory) | AB56: Rail Structures
B57: DC14 Joe Gqabi | C57: EC EASTERN CAPE | AA57: Computers - software & programming | AB57: Rail Furniture
B58: EC153 Ngquza Hills | C58: EC EASTERN CAPE | AA58: Other | AB58: Drainage Collection
B59: EC154 Port St Johns | C59: EC EASTERN CAPE | AB59: Storm water Conveyance
B60: EC155 Nyandeni | C60: EC EASTERN CAPE | Z60: SA16 - Investments | AB60: Attenuation
B61: EC156 Mhlontlo | C61: EC EASTERN CAPE | Z61: Security | AA61: Interest rate | AB61: MV Substations
B62: EC157 King Sabata Dalindyebo | C62: EC EASTERN CAPE | Z62: Yes | AA62: Fixed | AB62: LV Networks
B63: DC15 O .R. Tambo | C63: EC EASTERN CAPE | Z63: No | AA63: Variable | AB63: Capital Spares
B64: EC441 Matatiele | C64: EC EASTERN CAPE | AB64: Sand Pumps
B65: EC442 Umzimvubu | C65: EC EASTERN CAPE | AB65: Piers
B66: EC443 Mbizana | C66: EC EASTERN CAPE | Z66: SA36, SA37 - Capital projects | AB66: Revetments
B67: EC444 Ntabankulu | C67: EC EASTERN CAPE | Z67: Yes | AB67: Promenades
B68: DC44 Alfred Nzo | C68: EC EASTERN CAPE | Z68: No | AB68: Capital Spares
B69: MAN Mangaung | C69: FS FREE STATE | AB69: Data Centres
B70: FS161 Letsemeng | C70: FS FREE STATE | AB70: Core Layers
B71: FS162 Kopanong | C71: FS FREE STATE | AB71: Distribution Layers
B72: FS163 Mohokare | C72: FS FREE STATE | AB72: Capital Spares
B73: DC16 Xhariep | C73: FS FREE STATE | AB73: Halls
B74: FS181 Masilonyana | C74: FS FREE STATE | AB74: Centres
B75: FS182 Tokologo | C75: FS FREE STATE | AB75: Crèches
B76: FS183 Tswelopele | C76: FS FREE STATE | AB76: Clinics/Care Centres
B77: FS184 Matjhabeng | C77: FS FREE STATE | AB77: Fire/Ambulance Stations
B78: FS185 Nala | C78: FS FREE STATE | AB78: Testing Stations
B79: DC18 Lejweleputswa | C79: FS FREE STATE | AB79: Museums
B80: FS191 Setsoto | C80: FS FREE STATE | AB80: Galleries
B81: FS192 Dihlabeng | C81: FS FREE STATE | AB81: Theatres
B82: FS193 Nketoana | C82: FS FREE STATE | AB82: Libraries
B83: FS194 Maluti-a-Phofung | C83: FS FREE STATE | AB83: Cemeteries/Crematoria
B84: FS195 Phumelela | C84: FS FREE STATE | AB84: Police
B85: FS196 Mantsopa | C85: FS FREE STATE | AB85: Purls
B86: DC19 Thabo Mofutsanyana | C86: FS FREE STATE | AB86: Public Open Space
B87: FS201 Moqhaka | C87: FS FREE STATE | AB87: Nature Reserves
B88: FS203 Ngwathe | C88: FS FREE STATE | AB88: Public Ablution Facilities
B89: FS204 Metsimaholo | C89: FS FREE STATE | AB89: Markets
B90: FS205 Mafube | C90: FS FREE STATE | AB90: Stalls
B91: DC20 Fezile Dabi | C91: FS FREE STATE | AB91: Abattoirs
B92: EKU City of Ekurhuleni | C92: GT GAUTENG | AB92: Airports
B93: JHB City Of Johannesburg | C93: GT GAUTENG | AB93: Taxi Ranks/Bus Terminals
B94: TSH City Of Tshwane | C94: GT GAUTENG | AB94: Capital Spares
B95: GT421 Emfuleni | C95: GT GAUTENG | AB95: Indoor Facilities
B96: GT422 Midvaal | C96: GT GAUTENG | AB96: Outdoor Facilities
B97: GT423 Lesedi | C97: GT GAUTENG | AB97: Capital Spares
B98: DC42 Sedibeng | C98: GT GAUTENG | AB98: Monuments
B99: GT481 Mogale City | C99: GT GAUTENG | AB99: Historic Buildings
B100: GT484 Merafong City | C100: GT GAUTENG | AB100: Works of Art
B101: GT485 Rand West City | C101: GT GAUTENG | AB101: Conservation Areas
B102: DC48 West Rand | C102: GT GAUTENG | AB102: Other Heritage
B103: ETH eThekwini | C103: KZN KWAZULU-NATAL | AB103: Improved Property
B104: KZN212 Umdoni | C104: KZN KWAZULU-NATAL | AB104: Unimproved Property
B105: KZN213 Umzumbe | C105: KZN KWAZULU-NATAL | AB105: Municipal Offices
B106: KZN214 uMuziwabantu | C106: KZN KWAZULU-NATAL | AB106: Pay/Enquiry Points
B107: KZN216 Ray Nkonyeni | C107: KZN KWAZULU-NATAL | AB107: Building Plan Offices
B108: DC21 Ugu | C108: KZN KWAZULU-NATAL | AB108: Workshops
B109: KZN221 uMshwathi | C109: KZN KWAZULU-NATAL | AB109: Yards
B110: KZN222 uMngeni | C110: KZN KWAZULU-NATAL | AB110: Stores
B111: KZN223 Mpofana | C111: KZN KWAZULU-NATAL | AB111: Laboratories
B112: KZN224 Impendle | C112: KZN KWAZULU-NATAL | AB112: Training Centres
B113: KZN225 Msunduzi | C113: KZN KWAZULU-NATAL | AB113: Manufacturing Plant
B114: KZN226 Mkhambathini | C114: KZN KWAZULU-NATAL | AB114: Depots
B115: KZN227 Richmond | C115: KZN KWAZULU-NATAL | AB115: Capital Spares
B116: DC22 uMgungundlovu | C116: KZN KWAZULU-NATAL | AB116: Staff Housing
B117: KZN235 Okhahlamba | C117: KZN KWAZULU-NATAL | AB117: Social Housing
B118: KZN237 Inkosi Langalibalele | C118: KZN KWAZULU-NATAL | AB118: Capital Spares
B119: KZN238 Alfred Duma | C119: KZN KWAZULU-NATAL | AB119: Water Rights
B120: DC23 Uthukela | C120: KZN KWAZULU-NATAL | AB120: Effluent Licenses
B121: KZN241 Endumeni | C121: KZN KWAZULU-NATAL | AB121: Solid Waste Licenses
B122: KZN242 Nquthu | C122: KZN KWAZULU-NATAL | AB122: Computer Software and Applications
B123: KZN244 Msinga | C123: KZN KWAZULU-NATAL | AB123: Load Settlement Software Applications
B124: KZN245 Umvoti | C124: KZN KWAZULU-NATAL | AB124: Unspecified
B125: DC24 Umzinyathi | C125: KZN KWAZULU-NATAL
B126: KZN252 Newcastle | C126: KZN KWAZULU-NATAL
B127: KZN253 Emadlangeni | C127: KZN KWAZULU-NATAL
B128: KZN254 Dannhauser | C128: KZN KWAZULU-NATAL
B129: DC25 Amajuba | C129: KZN KWAZULU-NATAL
B130: KZN261 eDumbe | C130: KZN KWAZULU-NATAL
B131: KZN262 uPhongolo | C131: KZN KWAZULU-NATAL
B132: KZN263 Abaqulusi | C132: KZN KWAZULU-NATAL
B133: KZN265 Nongoma | C133: KZN KWAZULU-NATAL
B134: KZN266 Ulundi | C134: KZN KWAZULU-NATAL
B135: DC26 Zululand | C135: KZN KWAZULU-NATAL
B136: KZN271 Umhlabuyalingana | C136: KZN KWAZULU-NATAL
B137: KZN272 Jozini | C137: KZN KWAZULU-NATAL
B138: KZN275 Mtubatuba | C138: KZN KWAZULU-NATAL
B139: KZN276 Hlabisa Big Five | C139: KZN KWAZULU-NATAL
B140: DC27 Umkhanyakude | C140: KZN KWAZULU-NATAL
B141: KZN281 Mfolozi | C141: KZN KWAZULU-NATAL
B142: KZN282 uMhlathuze | C142: KZN KWAZULU-NATAL
B143: KZN284 uMlalazi | C143: KZN KWAZULU-NATAL
B144: KZN285 Mthonjaneni | C144: KZN KWAZULU-NATAL
B145: KZN286 Nkandla | C145: KZN KWAZULU-NATAL
B146: DC28 King Cetshwayo | C146: KZN KWAZULU-NATAL
B147: KZN291 Mandeni | C147: KZN KWAZULU-NATAL
B148: KZN292 KwaDukuza | C148: KZN KWAZULU-NATAL
B149: KZN293 Ndwedwe | C149: KZN KWAZULU-NATAL
B150: KZN294 Maphumulo | C150: KZN KWAZULU-NATAL
B151: DC29 iLembe | C151: KZN KWAZULU-NATAL
B152: KZN433 Greater Kokstad | C152: KZN KWAZULU-NATAL
B153: KZN434 Ubuhlebezwe | C153: KZN KWAZULU-NATAL
B154: KZN435 Umzimkhulu | C154: KZN KWAZULU-NATAL
B155: KZN436 Dr Nkosazana Dlamini Zuma | C155: KZN KWAZULU-NATAL
B156: DC43 Harry Gwala | C156: KZN KWAZULU-NATAL
B157: LIM331 Greater Giyani | C157: LIM LIMPOPO
B158: LIM332 Greater Letaba | C158: LIM LIMPOPO
B159: LIM333 Greater Tzaneen | C159: LIM LIMPOPO
B160: LIM334 Ba-Phalaborwa | C160: LIM LIMPOPO
B161: LIM335 Maruleng | C161: LIM LIMPOPO
B162: DC33 Mopani | C162: LIM LIMPOPO
B163: LIM341 Musina | C163: LIM LIMPOPO
B164: LIM343 Thulamela | C164: LIM LIMPOPO
B165: LIM344 Makhado | C165: LIM LIMPOPO
B166: LIM345 Collins Chabane | C166: LIM LIMPOPO
B167: DC34 Vhembe | C167: LIM LIMPOPO
B168: LIM351 Blouberg | C168: LIM LIMPOPO
B169: LIM353 Molemole | C169: LIM LIMPOPO
B170: LIM354 Polokwane | C170: LIM LIMPOPO
B171: LIM355 Lepelle-Nkumpi | C171: LIM LIMPOPO
B172: DC35 Capricorn | C172: LIM LIMPOPO
B173: LIM361 Thabazimbi | C173: LIM LIMPOPO
B174: LIM362 Lephalale | C174: LIM LIMPOPO
B175: LIM366 Bela Bela | C175: LIM LIMPOPO
B176: LIM367 Mogalakwena | C176: LIM LIMPOPO
B177: LIM368 Modimolle-Mookgopong | C177: LIM LIMPOPO
B178: DC36 Waterberg | C178: LIM LIMPOPO
B179: LIM471 Ephraim Mogale | C179: LIM LIMPOPO
B180: LIM472 Elias Motsoaledi | C180: LIM LIMPOPO
B181: LIM473 Makhuduthamaga | C181: LIM LIMPOPO
B182: LIM476 Tubatse Fetakgomo | C182: LIM LIMPOPO
B183: DC47 Sekhukhune | C183: LIM LIMPOPO
B184: MP301 Albert Luthuli | C184: MP MPUMALANGA
B185: MP302 Msukaligwa | C185: MP MPUMALANGA
B186: MP303 Mkhondo | C186: MP MPUMALANGA
B187: MP304 Pixley Ka Seme (MP) | C187: MP MPUMALANGA
B188: MP305 Lekwa | C188: MP MPUMALANGA
B189: MP306 Dipaleseng | C189: MP MPUMALANGA
B190: MP307 Govan Mbeki | C190: MP MPUMALANGA
B191: DC30 Gert Sibande | C191: MP MPUMALANGA
B192: MP311 Victor Khanye | C192: MP MPUMALANGA
B193: MP312 Emalahleni (Mp) | C193: MP MPUMALANGA
B194: MP313 Steve Tshwete | C194: MP MPUMALANGA
B195: MP314 Emakhazeni | C195: MP MPUMALANGA
B196: MP315 Thembisile Hani | C196: MP MPUMALANGA
B197: MP316 Dr J.S. Moroka | C197: MP MPUMALANGA
B198: DC31 Nkangala | C198: MP MPUMALANGA
B199: MP321 Thaba Chweu | C199: MP MPUMALANGA
B200: MP324 Nkomazi | C200: MP MPUMALANGA
... 87 more rows

Sheet Org structure
A1: Organisational Structure Votes | C1: Organisational Structure Sub-Votes | E1: Display Sub-Votes
A2: =B2&" - "&C2 -> Vote 01 - Council | B2: Vote 01 | C2: Council
A3: =B17&" - "&C17 -> Vote 02 - Office Of Council | B3: 01.1 | C3: Office Of The Mayor | D3: =CONCATENATE(B3, " - ", C3) -> 01.1 - Office Of The Mayor | E3: 01.1 - Office Of The Mayor
A4: =B21&" - "&C21 -> Vote 03 - Municipal Manager | B4: 01.2 | C4: Office Of The Chief Whip | D4: 01.2 - Office Of The Chief Whip | E4: 01.2 - Office Of The Chief Whip
A5: =B37&" - "&C37 -> Vote 04 - City Planning And Development Department | B5: 01.3 | C5: Office Of The Speaker | D5: 01.3 - Office Of The Speaker | E5: 01.3 - Office Of The Speaker
A6: =B46&" - "&C46 -> Vote 05 - Corporate Services Department | B6: 01.4 | C6: Mayoral Mmc - Budget & Treasury Servic | D6: 01.4 - Mayoral Mmc - Budget & Treasury Servic | E6: 01.4 - Mayoral Mmc - Budget & Treasury Servic
A7: =B53&" - "&C53 -> Vote 06 - Strategic Management Services | B7: 01.5 | C7: Mayoral Mmc - Corporate Services | D7: 01.5 - Mayoral Mmc - Corporate Services | E7: 01.5 - Mayoral Mmc - Corporate Services
A8: =B60&" - "&C60 -> Vote 07 - Financial Management | B8: 01.6 | C8: Mmc - City Planning & Development | D8: 01.6 - Mmc - City Planning & Development | E8: 01.6 - Mmc - City Planning & Development
A9: =B74&" - "&C74 -> Vote 08 - Legal Services | B9: 01.7 | C9: Mmc - Strategic Management | D9: 01.7 - Mmc - Strategic Management | E9: 01.7 - Mmc - Strategic Management
A10: =B76&" - "&C76 -> Vote 09 - Regional Centre Coordination | B10: 01.8 | C10: Mayoral Mmc - Community Services | D10: 01.8 - Mayoral Mmc - Community Services | E10: 01.8 - Mayoral Mmc - Community Services
A11: =B82&" - "&C82 -> Vote 10 - Community Services | B11: 01.9 | C11: Mmc - Energy | D11: 01.9 - Mmc - Energy | E11: 01.9 - Mmc - Energy
A12: =B94&" - "&C94 -> Vote 11 - Public Works, Roads And Transport | B12: 01.10 | C12: Mmc - Public Safety | D12: 01.10 - Mmc - Public Safety | E12: 01.10 - Mmc - Public Safety
A13: =B117&" - "&C117 -> Vote 12 - Public Safety | B13: 01.11 | C13: Mmc - Water & Sanitation | D13: 01.11 - Mmc - Water & Sanitation | E13: 01.11 - Mmc - Water & Sanitation
A14: =B128&" - "&C128 -> Vote 13 - Water And Sanitation | B14: 01.12 | C14: Mmc - Public Works & Transport | D14: 01.12 - Mmc - Public Works & Transport | E14: 01.12 - Mmc - Public Works & Transport
A15: =B142&" - "&C142 -> Vote 14 - Energy | B15: 01.13 | C15: Mayoral Mmc - Centre Coordination | D15: 01.13 - Mayoral Mmc - Centre Coordination | E15: 01.13 - Mayoral Mmc - Centre Coordination
A16: =B148&" - "&C148 -> Vote 15 - Other | B16: 01.14 | C16: Mpac (Section 79) | D16: 01.14 - Mpac (Section 79) | E16: 01.14 - Mpac (Section 79)
B17: Vote 02 | C17: Office Of Council
B18: 02.1 | C18: Office Of The Gm - Office Of Council | D18: =CONCATENATE(B18, " - ", C18) -> 02.1 - Office Of The Gm - Office Of Council | E18: 02.1 - Office Of The Gm - Office Of Council
B19: 02.2 | C19: Public Stakeholder Participtn Petitions | D19: =CONCATENATE(B19, " - ", C19) -> 02.2 - Public Stakeholder Participtn Petitions | E19: 02.2 - Public Stakeholder Participtn Petitions
B20: 02.3 | C20: Council Secretariat | D20: =CONCATENATE(B20, " - ", C20) -> 02.3 - Council Secretariat | E20: 02.3 - Council Secretariat
B21: Vote 03 | C21: Municipal Manager
B22: 03.1 | C22: Municipal Manager Administration | D22: =CONCATENATE(B22, " - ", C22) -> 03.1 - Municipal Manager Administration | E22: 03.1 - Municipal Manager Administration
B23: 03.2 | C23: Municipal Manager Admin (Waste Man) | D23: 03.2 - Municipal Manager Admin (Waste Man) | E23: 03.2 - Municipal Manager Admin (Waste Man)
B24: 03.3 | C24: Municipal Manager Admin (Electricity) | D24: 03.3 - Municipal Manager Admin (Electricity) | E24: 03.3 - Municipal Manager Admin (Electricity)
B25: 03.4 | C25: Municipal Manager Admin (Rural Dev) | D25: 03.4 - Municipal Manager Admin (Rural Dev) | E25: 03.4 - Municipal Manager Admin (Rural Dev)
B26: 03.5 | C26: Internal Audit | D26: 03.5 - Internal Audit | E26: 03.5 - Internal Audit
B27: 03.6 | C27: Office Of The Dmm - Aux | D27: 03.6 - Office Of The Dmm - Aux | E27: 03.6 - Office Of The Dmm - Aux
B28: 03.7 | C28: Performance And Monitoring | D28: 03.7 - Performance And Monitoring | E28: 03.7 - Performance And Monitoring
B29: 03.8 | C29: Enterprise Risk Management | D29: 03.8 - Enterprise Risk Management | E29: 03.8 - Enterprise Risk Management
B30: 03.9 | C30: Enviromental Management And Planning | D30: 03.9 - Enviromental Management And Planning | E30: 03.9 - Enviromental Management And Planning
B31: 03.10 | C31: Enviromental Man&Plan - Soil Conserv | D31: 03.10 - Enviromental Man&Plan - Soil Conserv | E31: 03.10 - Enviromental Man&Plan - Soil Conserv
B32: 03.11 | C32: Enviromental Man&Plan - Nature Cons | D32: 03.11 - Enviromental Man&Plan - Nature Cons | E32: 03.11 - Enviromental Man&Plan - Nature Cons
B33: 03.12 | C33: Transversal Services | D33: 03.12 - Transversal Services | E33: 03.12 - Transversal Services
B34: 03.13 | C34: Water Services Compliance Monitoring | D34: 03.13 - Water Services Compliance Monitoring | E34: 03.13 - Water Services Compliance Monitoring
B35: 03.14 | C35: Office Dmm - Core Service - Water | D35: 03.14 - Office Dmm - Core Service - Water | E35: 03.14 - Office Dmm - Core Service - Water
B36: 03.15 | C36: Office Dmm - Core Service - Waste Water | D36: 03.15 - Office Dmm - Core Service - Waste Water | E36: 03.15 - Office Dmm - Core Service - Waste Water
B37: Vote 04 | C37: City Planning And Development Department
B38: 04.1 | C38: Office Of The Gm - Planning | D38: =CONCATENATE(B38, " - ", C38) -> 04.1 - Office Of The Gm - Planning | E38: 04.1 - Office Of The Gm - Planning
B39: 04.2 | C39: Land Use Management | D39: 04.2 - Land Use Management | E39: 04.2 - Land Use Management
B40: 04.3 | C40: Local Economic Development | D40: 04.3 - Local Economic Development | E40: 04.3 - Local Economic Development
B41: 04.4 | C41: Rural Plan Traditional Affairs & Agric | D41: 04.4 - Rural Plan Traditional Affairs & Agric | E41: 04.4 - Rural Plan Traditional Affairs & Agric
B42: 04.5 | C42: Human Settlement | D42: 04.5 - Human Settlement | E42: 04.5 - Human Settlement
B43: 04.6 | C43: Tourism Business Regulations And Gov | D43: 04.6 - Tourism Business Regulations And Gov | E43: 04.6 - Tourism Business Regulations And Gov
B44: 04.7 | C44: Spatial Development Planning | D44: 04.7 - Spatial Development Planning | E44: 04.7 - Spatial Development Planning
B45: 04.8 | C45: Real Estate Management | D45: 04.8 - Real Estate Management | E45: 04.8 - Real Estate Management
B46: Vote 05 | C46: Corporate Services Department
B47: 05.1 | C47: Office Of The Gm - Corporate Services | D47: =CONCATENATE(B47, " - ", C47) -> 05.1 - Office Of The Gm - Corporate Services | E47: 05.1 - Office Of The Gm - Corporate Services
B48: 05.2 | C48: Hr Provision Organ Design & Empl Equity | D48: 05.2 - Hr Provision Organ Design & Empl Equity | E48: 05.2 - Hr Provision Organ Design & Empl Equity
B49: 05.3 | C49: Perform Management & Skills Development | D49: 05.3 - Perform Management & Skills Development | E49: 05.3 - Perform Management & Skills Development
B50: 05.4 | C50: Ohs; Wellness And Employment Relations | D50: 05.4 - Ohs; Wellness And Employment Relations | E50: 05.4 - Ohs; Wellness And Employment Relations
B51: 05.5 | C51: Facilities Management | D51: 05.5 - Facilities Management | E51: 05.5 - Facilities Management
B52: 05.6 | C52: Ict Records Management And Archives | D52: 05.6 - Ict Records Management And Archives | E52: 05.6 - Ict Records Management And Archives
B53: Vote 06 | C53: Strategic Management Services
B54: 06.1 | C54: Office Of The Gm - Strat Man Services | D54: =CONCATENATE(B54, " - ", C54) -> 06.1 - Office Of The Gm - Strat Man Services | E54: 06.1 - Office Of The Gm - Strat Man Services
B55: 06.2 | C55: Idp Coordinat And Policy Formulation | D55: 06.2 - Idp Coordinat And Policy Formulation | E55: 06.2 - Idp Coordinat And Policy Formulation
B56: 06.3 | C56: Idp Coordinat And Policy Form - Facilit | D56: 06.3 - Idp Coordinat And Policy Form - Facilit | E56: 06.3 - Idp Coordinat And Policy Form - Facilit
B57: 06.4 | C57: Corporate Communication | D57: 06.4 - Corporate Communication | E57: 06.4 - Corporate Communication
B58: 06.5 | C58: Mayoral Support | D58: 06.5 - Mayoral Support | E58: 06.5 - Mayoral Support
B59: 06.6 | C59: International & Intergovmental Relations | D59: 06.6 - International & Intergovmental Relations | E59: 06.6 - International & Intergovmental Relations
B60: Vote 07 | C60: Financial Management
B61: 07.1 | C61: Office Of The Cfo | D61: =CONCATENATE(B61, " - ", C61) -> 07.1 - Office Of The Cfo | E61: 07.1 - Office Of The Cfo
B62: 07.2 | C62: Deputy Cfo - Finance | D62: 07.2 - Deputy Cfo - Finance | E62: 07.2 - Deputy Cfo - Finance
B63: 07.3 | C63: Deputy Cfo - Marketing | D63: 07.3 - Deputy Cfo - Marketing | E63: 07.3 - Deputy Cfo - Marketing
B64: 07.4 | C64: Financial Planning & Budgeting- Finance | D64: 07.4 - Financial Planning & Budgeting- Finance | E64: 07.4 - Financial Planning & Budgeting- Finance
B65: 07.5 | C65: Financial Planning & Budgeting - Bud&Tre | D65: 07.5 - Financial Planning & Budgeting - Bud&Tre | E65: 07.5 - Financial Planning & Budgeting - Bud&Tre
B66: 07.6 | C66: Financial Planning & Budgeting - Bud&Tre | D66: 07.6 - Financial Planning & Budgeting - Bud&Tre | E66: 07.6 - Financial Planning & Budgeting - Bud&Tre
B67: 07.7 | C67: Financial Planning & Budgeting - Inform | D67: 07.7 - Financial Planning & Budgeting - Inform | E67: 07.7 - Financial Planning & Budgeting - Inform
B68: 07.8 | C68: Assets Management | D68: 07.8 - Assets Management | E68: 07.8 - Assets Management
B69: 07.9 | C69: Revenue Management | D69: 07.9 - Revenue Management | E69: 07.9 - Revenue Management
B70: 07.10 | C70: Municipal Valuation And Rating | D70: 07.10 - Municipal Valuation And Rating | E70: 07.10 - Municipal Valuation And Rating
B71: 07.11 | C71: Supply Chain Management | D71: 07.11 - Supply Chain Management | E71: 07.11 - Supply Chain Management
B72: 07.12 | C72: Accounting Services - Finance | D72: 07.12 - Accounting Services - Finance | E72: 07.12 - Accounting Services - Finance
B73: 07.13 | C73: Accounting Services - Human Resources | D73: 07.13 - Accounting Services - Human Resources | E73: 07.13 - Accounting Services - Human Resources
B74: Vote 08 | C74: Legal Services
B75: 08.1 | C75: Legal Services And Support | D75: =CONCATENATE(B75, " - ", C75) -> 08.1 - Legal Services And Support | E75: 08.1 - Legal Services And Support
B76: Vote 09 | C76: Regional Centre Coordination
B77: 09.1 | C77: Office Of The Gm - Regional Centre Coord | D77: =CONCATENATE(B77, " - ", C77) -> 09.1 - Office Of The Gm - Regional Centre Coord | E77: 09.1 - Office Of The Gm - Regional Centre Coord
B78: 09.2 | C78: Regional Centre - Central Region | D78: =CONCATENATE(B78, " - ", C78) -> 09.2 - Regional Centre - Central Region | E78: 09.2 - Regional Centre - Central Region
B79: 09.3 | C79: Regional Centre - Northern Region | D79: =CONCATENATE(B79, " - ", C79) -> 09.3 - Regional Centre - Northern Region | E79: 09.3 - Regional Centre - Northern Region
B80: 09.4 | C80: Regional Centre - Eastern Region | D80: =CONCATENATE(B80, " - ", C80) -> 09.4 - Regional Centre - Eastern Region | E80: 09.4 - Regional Centre - Eastern Region
B81: 09.5 | C81: Regional Centre - Southern Region | D81: =CONCATENATE(B81, " - ", C81) -> 09.5 - Regional Centre - Southern Region | E81: 09.5 - Regional Centre - Southern Region
B82: Vote 10 | C82: Community Services
B83: 10.1 | C83: Office Of The Gm - Communicty Services | D83: =CONCATENATE(B83, " - ", C83) -> 10.1 - Office Of The Gm - Communicty Services | E83: 10.1 - Office Of The Gm - Communicty Services
B84: 10.2 | C84: Solid Waste - Removal | D84: 10.2 - Solid Waste - Removal | E84: 10.2 - Solid Waste - Removal
B85: 10.3 | C85: Solid Waste - Landfill | D85: 10.3 - Solid Waste - Landfill | E85: 10.3 - Solid Waste - Landfill
B86: 10.4 | C86: Sports Recreation & Heritage - Sports | D86: 10.4 - Sports Recreation & Heritage - Sports | E86: 10.4 - Sports Recreation & Heritage - Sports
B87: 10.5 | C87: Sports Recreation & Heritage - Recrea | D87: 10.5 - Sports Recreation & Heritage - Recrea | E87: 10.5 - Sports Recreation & Heritage - Recrea
B88: 10.6 | C88: Sports Recreation & Heritage - Galary | D88: 10.6 - Sports Recreation & Heritage - Galary | E88: 10.6 - Sports Recreation & Heritage - Galary
B89: 10.7 | C89: Sports Recreation & Heritage - Halls | D89: 10.7 - Sports Recreation & Heritage - Halls | E89: 10.7 - Sports Recreation & Heritage - Halls
B90: 10.8 | C90: Sports Recreation & Heritage - Library | D90: 10.8 - Sports Recreation & Heritage - Library | E90: 10.8 - Sports Recreation & Heritage - Library
B91: 10.9 | C91: Sports Recreation & Heritage - Cultural | D91: 10.9 - Sports Recreation & Heritage - Cultural | E91: 10.9 - Sports Recreation & Heritage - Cultural
B92: 10.10 | C92: Parks And Cemetaries - Parks | D92: 10.10 - Parks And Cemetaries - Parks | E92: 10.10 - Parks And Cemetaries - Parks
B93: 10.11 | C93: Parks And Cemetaries - Cemetaries | D93: 10.11 - Parks And Cemetaries - Cemetaries | E93: 10.11 - Parks And Cemetaries - Cemetaries
B94: Vote 11 | C94: Public Works, Roads And Transport
B95: 11.1 | C95: Office Of The Gm - Roads | D95: =CONCATENATE(B95, " - ", C95) -> 11.1 - Office Of The Gm - Roads | E95: 11.1 - Office Of The Gm - Roads
B96: 11.2 | C96: Office Of The Gm - Stormwater | D96: 11.2 - Office Of The Gm - Stormwater | E96: 11.2 - Office Of The Gm - Stormwater
B97: 11.3 | C97: Roads And Stormwater - Roads | D97: 11.3 - Roads And Stormwater - Roads | E97: 11.3 - Roads And Stormwater - Roads
B98: 11.4 | C98: Roads And Stormwater - Stormwater | D98: 11.4 - Roads And Stormwater - Stormwater | E98: 11.4 - Roads And Stormwater - Stormwater
B99: 11.5 | C99: Roads And Stormwater - Signal | D99: 11.5 - Roads And Stormwater - Signal | E99: 11.5 - Roads And Stormwater - Signal
B100: 11.6 | C100: Public Transport Operations - Transport | D100: 11.6 - Public Transport Operations - Transport | E100: 11.6 - Public Transport Operations - Transport
B101: 11.7 | C101: Project Implementation Unit | D101: 11.7 - Project Implementation Unit | E101: 11.7 - Project Implementation Unit
B102: 11.8 | C102: Project Implementation Unit - Roads | D102: 11.8 - Project Implementation Unit - Roads | E102: 11.8 - Project Implementation Unit - Roads
B103: 11.9 | C103: Project Implementation Unit - S Water | D103: 11.9 - Project Implementation Unit - S Water | E103: 11.9 - Project Implementation Unit - S Water
B104: 11.10 | C104: Project Implementation Unit - P Transprt | D104: 11.10 - Project Implementation Unit - P Transprt | E104: 11.10 - Project Implementation Unit - P Transprt
B105: 11.11 | C105: Project Implementation Unit - Sports | D105: 11.11 - Project Implementation Unit - Sports | E105: 11.11 - Project Implementation Unit - Sports
B106: 11.12 | C106: Project Implementation Unit - Sewer | D106: 11.12 - Project Implementation Unit - Sewer | E106: 11.12 - Project Implementation Unit - Sewer
B107: 11.13 | C107: Project Implementation Unit - Halls | D107: 11.13 - Project Implementation Unit - Halls | E107: 11.13 - Project Implementation Unit - Halls
B108: 11.14 | C108: Project Implementation Unit - Landfill | D108: 11.14 - Project Implementation Unit - Landfill | E108: 11.14 - Project Implementation Unit - Landfill
B109: 11.15 | C109: Project Implementation Unit - Nc Roads | D109: 11.15 - Project Implementation Unit - Nc Roads | E109: 11.15 - Project Implementation Unit - Nc Roads
B110: 11.16 | C110: Project Implementation Unit - St Lights | D110: 11.16 - Project Implementation Unit - St Lights | E110: 11.16 - Project Implementation Unit - St Lights
B111: 11.17 | C111: Project Implementation Unit - Fleet | D111: 11.17 - Project Implementation Unit - Fleet | E111: 11.17 - Project Implementation Unit - Fleet
B112: 11.18 | C112: Project Implementation Unit - S Waste | D112: 11.18 - Project Implementation Unit - S Waste | E112: 11.18 - Project Implementation Unit - S Waste
B113: 11.19 | C113: Project Implementation Unit - Parks | D113: 11.19 - Project Implementation Unit - Parks | E113: 11.19 - Project Implementation Unit - Parks
B114: 11.20 | C114: Project Implementation Unit - Water Dist | D114: 11.20 - Project Implementation Unit - Water Dist | E114: 11.20 - Project Implementation Unit - Water Dist
B115: 11.21 | C115: Project Implementation Unit - Water Trt | D115: 11.21 - Project Implementation Unit - Water Trt | E115: 11.21 - Project Implementation Unit - Water Trt
B116: 11.22 | C116: Expanded Public Works Programme | D116: 11.22 - Expanded Public Works Programme | E116: 11.22 - Expanded Public Works Programme
B117: Vote 12 | C117: Public Safety
B118: 12.1 | C118: Office Of The Gm - Public Safety | D118: =CONCATENATE(B118, " - ", C118) -> 12.1 - Office Of The Gm - Public Safety | E118: 12.1 - Office Of The Gm - Public Safety
B119: 12.2 | C119: Law Enforce And Security Serv - Traffic | D119: 12.2 - Law Enforce And Security Serv - Traffic | E119: 12.2 - Law Enforce And Security Serv - Traffic
B120: 12.3 | C120: Law Enforce And Security Serv - Traffic | D120: 12.3 - Law Enforce And Security Serv - Traffic | E120: 12.3 - Law Enforce And Security Serv - Traffic
B121: 12.4 | C121: Law Enforce And Security Serv - Lic&Regu | D121: 12.4 - Law Enforce And Security Serv - Lic&Regu | E121: 12.4 - Law Enforce And Security Serv - Lic&Regu
B122: 12.5 | C122: Law Enforce And Security Serv - Security | D122: 12.5 - Law Enforce And Security Serv - Security | E122: 12.5 - Law Enforce And Security Serv - Security
B123: 12.6 | C123: Licencing And Traffic Services | D123: 12.6 - Licencing And Traffic Services | E123: 12.6 - Licencing And Traffic Services
B124: 12.7 | C124: Traffic Services | D124: 12.7 - Traffic Services | E124: 12.7 - Traffic Services
B125: 12.8 | C125: Traffic Services | D125: 12.8 - Traffic Services | E125: 12.8 - Traffic Services
B126: 12.9 | C126: Disaster Management - Fire And Protect | D126: 12.9 - Disaster Management - Fire And Protect | E126: 12.9 - Disaster Management - Fire And Protect
B127: 12.10 | C127: Disaster Management - Disaster Man | D127: 12.10 - Disaster Management - Disaster Man | E127: 12.10 - Disaster Management - Disaster Man
B128: Vote 13 | C128: Water And Sanitation
B129: 13.1 | C129: Office Of The Gm - Water | D129: =CONCATENATE(B129, " - ", C129) -> 13.1 - Office Of The Gm - Water | E129: 13.1 - Office Of The Gm - Water
B130: 13.2 | C130: Office Of The Gm - Sanitation | D130: 13.2 - Office Of The Gm - Sanitation | E130: 13.2 - Office Of The Gm - Sanitation
B131: 13.3 | C131: Water Services Plan And Develp - Water | D131: 13.3 - Water Services Plan And Develp - Water | E131: 13.3 - Water Services Plan And Develp - Water
B132: 13.4 | C132: Water Services Plan And Develp - Sanitat | D132: 13.4 - Water Services Plan And Develp - Sanitat | E132: 13.4 - Water Services Plan And Develp - Sanitat
B133: 13.5 | C133: Water Services Plan And Develp - W Treat | D133: 13.5 - Water Services Plan And Develp - W Treat | E133: 13.5 - Water Services Plan And Develp - W Treat
B134: 13.6 | C134: Water Services Plan And Develp - W Stor | D134: 13.6 - Water Services Plan And Develp - W Stor | E134: 13.6 - Water Services Plan And Develp - W Stor
B135: 13.7 | C135: Water Services Plan And Develp - W Distr | D135: 13.7 - Water Services Plan And Develp - W Distr | E135: 13.7 - Water Services Plan And Develp - W Distr
B136: 13.8 | C136: Contract Management - Water | D136: 13.8 - Contract Management - Water | E136: 13.8 - Contract Management - Water
B137: 13.9 | C137: Contract Management - Sanitation | D137: 13.9 - Contract Management - Sanitation | E137: 13.9 - Contract Management - Sanitation
B138: 13.10 | C138: Contract Management - Water Storage | D138: 13.10 - Contract Management - Water Storage | E138: 13.10 - Contract Management - Water Storage
B139: 13.11 | C139: Water Services Oper & Maint - Water Dist | D139: 13.11 - Water Services Oper & Maint - Water Dist | E139: 13.11 - Water Services Oper & Maint - Water Dist
B140: 13.12 | C140: Water Services Oper & Maint - Water Trea | D140: 13.12 - Water Services Oper & Maint - Water Trea | E140: 13.12 - Water Services Oper & Maint - Water Trea
B141: 13.13 | C141: Water Services Oper & Maint - Waste W Tr | D141: 13.13 - Water Services Oper & Maint - Waste W Tr | E141: 13.13 - Water Services Oper & Maint - Waste W Tr
B142: Vote 14 | C142: Energy
B143: 14.1 | C143: Office Of The Gm - Energy | D143: =CONCATENATE(B143, " - ", C143) -> 14.1 - Office Of The Gm - Energy | E143: 14.1 - Office Of The Gm - Energy
B144: 14.2 | C144: Electricity Plan And Develmnt - Elec | D144: =CONCATENATE(B144, " - ", C144) -> 14.2 - Electricity Plan And Develmnt - Elec | E144: 14.2 - Electricity Plan And Develmnt - Elec
B145: 14.3 | C145: Electricity Plan And Develmnt - Non Elec | D145: =CONCATENATE(B145, " - ", C145) -> 14.3 - Electricity Plan And Develmnt - Non Elec | E145: 14.3 - Electricity Plan And Develmnt - Non Elec
B146: 14.4 | C146: Electricity Maintenance And Operations | D146: =CONCATENATE(B146, " - ", C146) -> 14.4 - Electricity Maintenance And Operations | E146: 14.4 - Electricity Maintenance And Operations
B147: 14.5 | C147: Alternative Energy And Public Lighting | D147: =CONCATENATE(B147, " - ", C147) -> 14.5 - Alternative Energy And Public Lighting | E147: 14.5 - Alternative Energy And Public Lighting
B148: Vote 15 | C148: Other

Sheet Contacts
A1: =muni&" - "&" Contact Information" -> MP326 City of Mbombela - Contact Information
A3: A. GENERAL INFORMATION
A4: Municipality | B4: =muni -> MP326 City of Mbombela | C4: =IF(B4="Choose name from List","Set name on 'Instructions' sheet", "") -> 
A6: Grade | B6: 6 | C6: 1 Grade in terms of the Remuneration of Public Office Bearers Act.
A8: Province | B8: =IF(B4>" ",VLOOKUP(B4,'Lookup and lists'!B29:C307,2, FALSE)," ") -> MP MPUMALANGA
A10: Web Address | B10: www.mbombela.gov.za
A12: e-mail Address | B12: customercare@mbombela.gov.za
A14: B. CONTACT INFORMATION
A15: Postal address:
A16: P.O. Box | B16: 45
A17: City / Town | B17: Mbobmela
A18: Postal Code | B18: 1200
A20: Street address
A21: Building | B21: Civic Centre
A22: Street No. & Name | B22: 1 Nel Street
A23: City / Town | B23: Mbombela
A24: Postal Code | B24: 1200
A26: General Contacts
A27: Telephone number | B27: 013 759 9111
A28: Fax number | B28: 013 759 2070
A30: C. POLITICAL LEADERSHIP
A31: Speaker: | C31: Secretary/PA to the Speaker:
A32: ID Number | C32: ID Number
A33: Title | B33: Mr | C33: Title | D33: Ms
A34: Name | B34: Sipho Siwela | C34: Name | D34: Queen Matsebula
A35: Telephone number | B35: 013 - 759 2257 | C35: Telephone number | D35: 013 759 2258
A36: Cell number | B36: 086 321 4514 | C36: Cell number | D36: 082 554 9709
A37: Fax number | B37: 013-759 -2253 | C37: Fax number | D37: 013 759 2253
A38: E-mail address | B38: Sipho.Siwela@mbombela.gov.za | C38: E-mail address | D38: Queen.Matsebula@mbombela.gov.za
A40: Mayor/Executive Mayor: | C40: Secretary/PA to the Mayor/Executive Mayor:
A41: ID Number | B41: 7510285355088 | C41: ID Number
A42: Title | B42: Mr. | C42: Title | D42: Ms
A43: Name | B43: Sibusiso Mathonsi | C43: Name | D43: Dumisile Mndebele
A44: Telephone number | B44: 013 759 2003 | C44: Telephone number | D44: 013 759 2003
A45: Cell number | B45: 079 676 6222 | C45: Cell number | D45: 079 537 6314
A46: Fax number | B46: 013 759 2253 | C46: Fax number | D46: 013 759 2253
A47: E-mail address | B47: sibusiso.mathonsi@mbombela.gov.za | C47: E-mail address | D47: Dumisile.Mndebele@mbombela.gov.za
A49: Deputy Mayor/Executive Mayor: | C49: Secretary/PA to the Deputy Mayor/Executive Mayor:
A50: ID Number | B50: N/A | C50: ID Number | D50: N/A
A51: Title | B51: N/A | C51: Title | D51: N/A
A52: Name | B52: N/A | C52: Name | D52: N/A
A53: Telephone number | B53: N/A | C53: Telephone number | D53: N/A
A54: Cell number | B54: N/A | C54: Cell number | D54: N/A
A55: Fax number | B55: N/A | C55: Fax number | D55: N/A
A56: E-mail address | B56: N/A | C56: E-mail address | D56: N/A
A58: D. MANAGEMENT LEADERSHIP
A59: Municipal Manager: | C59: Secretary/PA to the Municipal Manager:
A60: ID Number | B60: 7711125460084 | C60: ID Number
A61: Title | B61: Mr | C61: Title | D61: Ms
A62: Name | B62: Wiseman Khumalo | C62: Name | D62: Busi Sithole
A63: Telephone number | B63: 013 759 9060 | C63: Telephone number | D63: 013 759 9328
A64: Cell number | B64: 082 460 1834 | C64: Cell number | D64: 076 416 7829
A65: Fax number | B65: 013 759 9055 | C65: Fax number | D65: 086 488 7815
A66: E-mail address | C66: E-mail address | D66: Busie.Sithole@mbombela.gov.za
A68: Chief Financial Officer | C68: Secretary/PA to the Chief Financial Officer
A69: ID Number | B69: 8210260680084 | C69: ID Number | D69: 8510060524089
A70: Title | B70: Ms. | C70: Title | D70: Ms
A71: Name | B71: Zanele Malaza | C71: Name | D71: Tebogo Kgotse
A72: Telephone number | B72: 013 759 2013 | C72: Telephone number | D72: 013 759 2005
A73: Cell number | B73: 084 912 6912 | C73: Cell number | D73: 082 968 0088
A74: Fax number | B74: 013 759 9055 | C74: Fax number | D74: 013 759 9055
A75: E-mail address | B75: zanele.malaza@mbombela.gov.za | C75: E-mail address | D75: tebogo.kgotse@mbombela.gov.za
A77: Official responsible for submitting financial information | C77: Official responsible for submitting financial information
A78: ID Number | B78: 7811240132087 | C78: ID Number
A79: Title | B79: Ms. | C79: Title
A80: Name | B80: Delight Futhi Sibanyoni | C80: Name
A81: Telephone number | B81: 013 759 9143 | C81: Telephone number
A82: Cell number | B82: 082 049 3394 | C82: Cell number
A83: Fax number | B83: 013 759 9055 | C83: Fax number
A84: E-mail address | B84: delight.sibanyoni@mbombela.gov.za | C84: E-mail address
A85: Official responsible for submitting financial information | C85: Official responsible for submitting financial information
A86: ID Number | B86: 8407185789087 | C86: ID Number
A87: Title | B87: Mr. | C87: Title
A88: Name | B88: Sabelo Dlamini | C88: Name
A89: Telephone number | B89: 013 759 9249 | C89: Telephone number
A90: Cell number | B90: 076 644 8910 | C90: Cell number
A91: Fax number | B91: 013 759 9055 | C91: Fax number
A92: E-mail address | B92: sabelo.dlamini@mbombela.gov.za | C92: E-mail address
A93: Official responsible for submitting financial information | C93: Official responsible for submitting financial information
A94: ID Number | C94: ID Number
A95: Title | C95: Title
A96: Name | C96: Name
A97: Telephone number | C97: Telephone number
A98: Cell number | C98: Cell number
A99: Fax number | C99: Fax number
A100: E-mail address | C100: E-mail address
A101: Official responsible for submitting financial information | C101: Official responsible for submitting financial information
A102: ID Number | C102: ID Number
A103: Title | C103: Title
A104: Name | C104: Name
A105: Telephone number | C105: Telephone number
A106: Cell number | C106: Cell number
A107: Fax number | C107: Fax number
A108: E-mail address | C108: E-mail address
A109: Official responsible for submitting financial information | C109: Official responsible for submitting financial information
A110: ID Number | C110: ID Number
A111: Title | C111: Title
A112: Name | C112: Name
A113: Telephone number | C113: Telephone number
A114: Cell number | C114: Cell number
A115: Fax number | C115: Fax number
A116: E-mail address | C116: E-mail address
A117: Official responsible for submitting financial information | C117: Official responsible for submitting financial information
A118: ID Number | C118: ID Number
A119: Title | C119: Title
A120: Name | C120: Name
A121: Telephone number | C121: Telephone number
A122: Cell number | C122: Cell number
A123: Fax number | C123: Fax number
A124: E-mail address | C124: E-mail address
A125: Official responsible for submitting financial information | C125: Official responsible for submitting financial information
A126: ID Number | C126: ID Number
A127: Title | C127: Title
A128: Name | C128: Name
A129: Telephone number | C129: Telephone number
A130: Cell number | C130: Cell number
A131: Fax number | C131: Fax number
A132: E-mail address | C132: E-mail address
A133: Official responsible for submitting financial information
A134: ID Number
A135: Title
A136: Name
A137: Telephone number
A138: Cell number
A139: Fax number
A140: E-mail address

Sheet A1-Sum
A1: =muni&" - "&Approve1 -> MP326 City of Mbombela - Table A1 Budget Summary
A2: =desc -> Description | B2: =head1b -> 2017/18 | C2: =head1A -> 2018/19 | D2: =Head1 -> 2019/20 | E2: =Head2 -> Current Year 2020/21 | I2: =Head3 -> 2021/22 Medium Term Revenue & Expenditure Framework
A3: R thousands | B3: =Head5 -> Audited Outcome | C3: =Head5 -> Audited Outcome | D3: =Head5 -> Audited Outcome | E3: =Head6 -> Original Budget | F3: =Head7 -> Adjusted Budget | G3: =Head8 -> Full Year Forecast | H3: =Head5b -> Pre-audit outcome | I3: =Head9 -> Budget Year 2021/22 | J3: =Head10 -> Budget Year +1 2022/23 | K3: =Head11 -> Budget Year +2 2023/24
A4: Financial Performance
A5: Property rates | B5: ='A4-FinPerf RE'!C5 -> 466134060.6 | C5: ='A4-FinPerf RE'!D5 -> 631718770.7 | D5: ='A4-FinPerf RE'!E5 -> 651716932.2 | E5: ='A4-FinPerf RE'!F5 -> 680901599 | F5: ='A4-FinPerf RE'!G5 -> 700901599 | G5: ='A4-FinPerf RE'!H5 -> 700901599 | H5: ='A4-FinPerf RE'!I5 -> 540102756 | I5: ='A4-FinPerf RE'!J5 -> 742955695 | J5: ='A4-FinPerf RE'!K5 -> 780103478 | K5: ='A4-FinPerf RE'!L5 -> 819108654
A6: Service charges | B6: =SUM('A4-FinPerf RE'!C6:C9) -> 1088909698 | C6: =SUM('A4-FinPerf RE'!D6:D9) -> 1241828084 | D6: =SUM('A4-FinPerf RE'!E6:E9) -> 1303946246 | E6: =SUM('A4-FinPerf RE'!F6:F9) -> 1470537602 | F6: =SUM('A4-FinPerf RE'!G6:G9) -> 1471111848 | G6: =SUM('A4-FinPerf RE'!H6:H9) -> 1471111848 | H6: =SUM('A4-FinPerf RE'!I6:I9) -> 1471111848 | I6: =SUM('A4-FinPerf RE'!J6:J9) -> 1661488941 | J6: =SUM('A4-FinPerf RE'!K6:K9) -> 1758184841 | K6: =SUM('A4-FinPerf RE'!L6:L9) -> 1860532823
A7: Investment revenue | B7: ='A4-FinPerf RE'!C12 -> 8581381.02 | C7: ='A4-FinPerf RE'!D12 -> 7382508.07 | D7: ='A4-FinPerf RE'!E12 -> 6542281.79 | E7: ='A4-FinPerf RE'!F12 -> 6328720 | F7: ='A4-FinPerf RE'!G12 -> 1828720 | G7: ='A4-FinPerf RE'!H12 -> 1828720 | H7: ='A4-FinPerf RE'!I12 -> 1489369.02 | I7: ='A4-FinPerf RE'!J12 -> 1920156 | J7: ='A4-FinPerf RE'!K12 -> 2016164 | K7: ='A4-FinPerf RE'!L12 -> 2116972
A8: Transfers recognised - operational | B8: ='A4-FinPerf RE'!C18 -> 776203532.7 | C8: ='A4-FinPerf RE'!D18 -> 816078321 | D8: ='A4-FinPerf RE'!E18 -> 890325508 | E8: ='A4-FinPerf RE'!F18 -> 934350000 | F8: ='A4-FinPerf RE'!G18 -> 934350000 | G8: ='A4-FinPerf RE'!H18 -> 934350000 | H8: ='A4-FinPerf RE'!I18 -> 973042017.3 | I8: ='A4-FinPerf RE'!J18 -> 844096000 | J8: ='A4-FinPerf RE'!K18 -> 900385000 | K8: ='A4-FinPerf RE'!L18 -> 909717000
A9: Other own revenue | B9: ='A4-FinPerf RE'!C11+'A4-FinPerf RE'!C13+'A4-FinPerf RE'!C14+'A4-FinPerf RE'!C15+'A4-FinPerf RE'!C16+'A4-FinPerf RE'!C17+'A4-FinPerf RE'!C19+'A4-FinPerf RE'!C20 -> 138129194.8 | C9: ='A4-FinPerf RE'!D11+'A4-FinPerf RE'!D13+'A4-FinPerf RE'!D14+'A4-FinPerf RE'!D15+'A4-FinPerf RE'!D16+'A4-FinPerf RE'!D17+'A4-FinPerf RE'!D19+'A4-FinPerf RE'!D20 -> 148867934.1 | D9: ='A4-FinPerf RE'!E11+'A4-FinPerf RE'!E13+'A4-FinPerf RE'!E14+'A4-FinPerf RE'!E15+'A4-FinPerf RE'!E16+'A4-FinPerf RE'!E17+'A4-FinPerf RE'!E19+'A4-FinPerf RE'!E20 -> 393534587 | E9: ='A4-FinPerf RE'!F11+'A4-FinPerf RE'!F13+'A4-FinPerf RE'!F14+'A4-FinPerf RE'!F15+'A4-FinPerf RE'!F16+'A4-FinPerf RE'!F17+'A4-FinPerf RE'!F19+'A4-FinPerf RE'!F20 -> 121374450 | F9: ='A4-FinPerf RE'!G11+'A4-FinPerf RE'!G13+'A4-FinPerf RE'!G14+'A4-FinPerf RE'!G15+'A4-FinPerf RE'!G16+'A4-FinPerf RE'!G17+'A4-FinPerf RE'!G19+'A4-FinPerf RE'!G20 -> 161274450 | G9: ='A4-FinPerf RE'!H11+'A4-FinPerf RE'!H13+'A4-FinPerf RE'!H14+'A4-FinPerf RE'!H15+'A4-FinPerf RE'!H16+'A4-FinPerf RE'!H17+'A4-FinPerf RE'!H19+'A4-FinPerf RE'!H20 -> 161274450 | H9: ='A4-FinPerf RE'!I11+'A4-FinPerf RE'!I13+'A4-FinPerf RE'!I14+'A4-FinPerf RE'!I15+'A4-FinPerf RE'!I16+'A4-FinPerf RE'!I17+'A4-FinPerf RE'!I19+'A4-FinPerf RE'!I20 -> 67798293.25 | I9: ='A4-FinPerf RE'!J11+'A4-FinPerf RE'!J13+'A4-FinPerf RE'!J14+'A4-FinPerf RE'!J15+'A4-FinPerf RE'!J16+'A4-FinPerf RE'!J17+'A4-FinPerf RE'!J19+'A4-FinPerf RE'!J20 -> 223772873.4 | J9: ='A4-FinPerf RE'!K11+'A4-FinPerf RE'!K13+'A4-FinPerf RE'!K14+'A4-FinPerf RE'!K15+'A4-FinPerf RE'!K16+'A4-FinPerf RE'!K17+'A4-FinPerf RE'!K19+'A4-FinPerf RE'!K20 -> 188761518.8 | K9: ='A4-FinPerf RE'!L11+'A4-FinPerf RE'!L13+'A4-FinPerf RE'!L14+'A4-FinPerf RE'!L15+'A4-FinPerf RE'!L16+'A4-FinPerf RE'!L17+'A4-FinPerf RE'!L19+'A4-FinPerf RE'!L20 -> 198192838.6
A10: ='A4-FinPerf RE'!A21 -> Total Revenue (excluding capital transfers and contributions) | B10: =SUM(B5:B9) -> 2477957868 | C10: 2845875617 | D10: 3246065555 | E10: 3213492371 | F10: 3269466617 | G10: 3269466617 | H10: 3053544284 | I10: 3474233665 | J10: 3629451002 | K10: 3789668288
A11: Employee costs | B11: ='A4-FinPerf RE'!C24 -> 793706291.6 | C11: ='A4-FinPerf RE'!D24 -> 936949435.9 | D11: ='A4-FinPerf RE'!E24 -> 1010445130 | E11: ='A4-FinPerf RE'!F24 -> 1086635464 | F11: ='A4-FinPerf RE'!G24 -> 1085415464 | G11: ='A4-FinPerf RE'!H24 -> 1085415464 | H11: ='A4-FinPerf RE'!I24 -> 793602469.5 | I11: ='A4-FinPerf RE'!J24 -> 1127746657 | J11: ='A4-FinPerf RE'!K24 -> 1184134007 | K11: ='A4-FinPerf RE'!L24 -> 1243340706
A12: Remuneration of councillors | B12: ='A4-FinPerf RE'!C25 -> 38421823.45 | C12: ='A4-FinPerf RE'!D25 -> 39466129.59 | D12: ='A4-FinPerf RE'!E25 -> 58537188.18 | E12: ='A4-FinPerf RE'!F25 -> 63592877 | F12: ='A4-FinPerf RE'!G25 -> 63592877 | G12: ='A4-FinPerf RE'!H25 -> 63592877 | H12: ='A4-FinPerf RE'!I25 -> 44453901.72 | I12: ='A4-FinPerf RE'!J25 -> 63592878 | J12: ='A4-FinPerf RE'!K25 -> 63592878 | K12: ='A4-FinPerf RE'!L25 -> 63592878
A13: Depreciation & asset impairment | B13: ='A4-FinPerf RE'!C27 -> 502874478.3 | C13: ='A4-FinPerf RE'!D27 -> 506580404.9 | D13: ='A4-FinPerf RE'!E27 -> 551510226.8 | E13: ='A4-FinPerf RE'!F27 -> 516566578 | F13: ='A4-FinPerf RE'!G27 -> 499046578 | G13: ='A4-FinPerf RE'!H27 -> 499046578 | H13: ='A4-FinPerf RE'!I27 -> 0 | I13: ='A4-FinPerf RE'!J27 -> 474339944 | J13: ='A4-FinPerf RE'!K27 -> 512122946 | K13: ='A4-FinPerf RE'!L27 -> 521016718
A14: Finance charges | B14: ='A4-FinPerf RE'!C28 -> 66271741.14 | C14: ='A4-FinPerf RE'!D28 -> 90665330.17 | D14: ='A4-FinPerf RE'!E28 -> 74873404.6 | E14: ='A4-FinPerf RE'!F28 -> 27978354 | F14: ='A4-FinPerf RE'!G28 -> 27978354 | G14: ='A4-FinPerf RE'!H28 -> 27978354 | H14: ='A4-FinPerf RE'!I28 -> 1685.42 | I14: ='A4-FinPerf RE'!J28 -> 29377272 | J14: ='A4-FinPerf RE'!K28 -> 30846136 | K14: ='A4-FinPerf RE'!L28 -> 32388441
A15: Inventory consumed and bulk purchases | B15: ='A4-FinPerf RE'!C29+'A4-FinPerf RE'!C30 -> 753527639.3 | C15: ='A4-FinPerf RE'!D29+'A4-FinPerf RE'!D30 -> 796602308.9 | D15: ='A4-FinPerf RE'!E29+'A4-FinPerf RE'!E30 -> 905473971.2 | E15: ='A4-FinPerf RE'!F29+'A4-FinPerf RE'!F30 -> 903797757 | F15: ='A4-FinPerf RE'!G29+'A4-FinPerf RE'!G30 -> 890688946 | G15: ='A4-FinPerf RE'!H29+'A4-FinPerf RE'!H30 -> 890688946 | H15: ='A4-FinPerf RE'!I29+'A4-FinPerf RE'!I30 -> 671520090.4 | I15: ='A4-FinPerf RE'!J29+'A4-FinPerf RE'!J30 -> 965995482.1 | J15: ='A4-FinPerf RE'!K29+'A4-FinPerf RE'!K30 -> 1051675798 | K15: ='A4-FinPerf RE'!L29+'A4-FinPerf RE'!L30 -> 1146418492
A16: Transfers and grants | B16: ='A4-FinPerf RE'!C32 -> 31911683.06 | C16: ='A4-FinPerf RE'!D32 -> 40204638.54 | D16: ='A4-FinPerf RE'!E32 -> 8110441.87 | E16: ='A4-FinPerf RE'!F32 -> 2080000 | F16: ='A4-FinPerf RE'!G32 -> 1049215 | G16: ='A4-FinPerf RE'!H32 -> 1049215 | H16: ='A4-FinPerf RE'!I32 -> 230383.09 | I16: ='A4-FinPerf RE'!J32 -> 1034294 | J16: ='A4-FinPerf RE'!K32 -> 951550 | K16: ='A4-FinPerf RE'!L32 -> 875426
A17: Other expenditure | B17: ='A4-FinPerf RE'!C26+'A4-FinPerf RE'!C31+'A4-FinPerf RE'!C33+'A4-FinPerf RE'!C34 -> 922756093.3 | C17: ='A4-FinPerf RE'!D26+'A4-FinPerf RE'!D31+'A4-FinPerf RE'!D33+'A4-FinPerf RE'!D34 -> 1064698495 | D17: ='A4-FinPerf RE'!E26+'A4-FinPerf RE'!E31+'A4-FinPerf RE'!E33+'A4-FinPerf RE'!E34 -> 1050999795 | E17: ='A4-FinPerf RE'!F26+'A4-FinPerf RE'!F31+'A4-FinPerf RE'!F33+'A4-FinPerf RE'!F34 -> 1018002306 | F17: ='A4-FinPerf RE'!G26+'A4-FinPerf RE'!G31+'A4-FinPerf RE'!G33+'A4-FinPerf RE'!G34 -> 1043113293 | G17: ='A4-FinPerf RE'!H26+'A4-FinPerf RE'!H31+'A4-FinPerf RE'!H33+'A4-FinPerf RE'!H34 -> 1043113293 | H17: ='A4-FinPerf RE'!I26+'A4-FinPerf RE'!I31+'A4-FinPerf RE'!I33+'A4-FinPerf RE'!I34 -> 516658243.8 | I17: ='A4-FinPerf RE'!J26+'A4-FinPerf RE'!J31+'A4-FinPerf RE'!J33+'A4-FinPerf RE'!J34 -> 691791734.2 | J17: ='A4-FinPerf RE'!K26+'A4-FinPerf RE'!K31+'A4-FinPerf RE'!K33+'A4-FinPerf RE'!K34 -> 654552044.3 | K17: ='A4-FinPerf RE'!L26+'A4-FinPerf RE'!L31+'A4-FinPerf RE'!L33+'A4-FinPerf RE'!L34 -> 621517231.4
A18: ='A4-FinPerf RE'!A35 -> Total Expenditure | B18: =SUM(B11:B17) -> 3109469750 | C18: =SUM(C11:C17) -> 3475166743 | D18: 3659950158 | E18: 3618653336 | F18: 3610884727 | G18: 3610884727 | H18: 2026466774 | I18: 3353878261 | J18: 3497875360 | K18: 3629149893
A19: ='A4-FinPerf RE'!A37 -> Surplus/(Deficit) | B19: =B10-B18 -> -631511882.6 | C19: -629291126 | D19: -413884603.1 | E19: -405160965 | F19: -341418110 | G19: -341418110 | H19: 1027077510 | I19: 120355403.7 | J19: 131575642.1 | K19: 160518395
A20: ='A4-FinPerf RE'!A38 -> Transfers and subsidies - capital (monetary allocations) (National / Provincial and District) | B20: ='A4-FinPerf RE'!C38 -> 443779695.2 | C20: ='A4-FinPerf RE'!D38 -> 418601204 | D20: ='A4-FinPerf RE'!E38 -> 460997653 | E20: ='A4-FinPerf RE'!F38 -> 368087000 | F20: ='A4-FinPerf RE'!G38 -> 439839576 | G20: ='A4-FinPerf RE'!H38 -> 439839576 | H20: ='A4-FinPerf RE'!I38 -> 268901551.2 | I20: ='A4-FinPerf RE'!J38 -> 499135000 | J20: ='A4-FinPerf RE'!K38 -> 543361000 | K20: ='A4-FinPerf RE'!L38 -> 577526000
A21: ='A4-FinPerf RE'!A39&" & "&'A4-FinPerf RE'!A40 -> Transfers and subsidies - capital (monetary allocations) (National / Provincial Departmental Agencies, Households, Non-profit Institutions, Private Enterprises, Public Corporatons, Higher Educational Institutions) & Transfers and subsidies - capital (in-kind - all) | B21: ='A4-FinPerf RE'!C39+'A4-FinPerf RE'!C40 -> 3242258.3 | C21: ='A4-FinPerf RE'!D39+'A4-FinPerf RE'!D40 -> 11148490.68 | D21: ='A4-FinPerf RE'!E39+'A4-FinPerf RE'!E40 -> 3462094.21 | E21: ='A4-FinPerf RE'!F39+'A4-FinPerf RE'!F40 -> 0 | F21: ='A4-FinPerf RE'!G39+'A4-FinPerf RE'!G40 -> 0 | G21: ='A4-FinPerf RE'!H39+'A4-FinPerf RE'!H40 -> 0 | H21: ='A4-FinPerf RE'!I39+'A4-FinPerf RE'!I40 -> 0 | I21: ='A4-FinPerf RE'!J39+'A4-FinPerf RE'!J40 -> 0 | J21: ='A4-FinPerf RE'!K39+'A4-FinPerf RE'!K40 -> 0 | K21: ='A4-FinPerf RE'!L39+'A4-FinPerf RE'!L40 -> 0
A22: ='A4-FinPerf RE'!A41 -> Surplus/(Deficit) after capital transfers & contributions | B22: =B19+SUM(B20:B21) -> -184489929.2 | C22: =C19+SUM(C20:C21) -> -199541431.4 | E22: -37073965 | F22: 98421466 | G22: 98421466 | H22: 1295979061 | I22: 619490403.7 | J22: 674936642.1 | K22: 738044395
A23: ='A4-FinPerf RE'!A46 -> Share of surplus/ (deficit) of associate | B23: ='A4-FinPerf RE'!C46 -> 0 | C23: ='A4-FinPerf RE'!D46 -> 0 | D23: ='A4-FinPerf RE'!E46 -> 0 | E23: ='A4-FinPerf RE'!F46 -> 0 | F23: ='A4-FinPerf RE'!G46 -> 0 | G23: ='A4-FinPerf RE'!H46 -> 0 | H23: ='A4-FinPerf RE'!I46 -> 0 | I23: ='A4-FinPerf RE'!J46 -> 0 | J23: ='A4-FinPerf RE'!K46 -> 0 | K23: ='A4-FinPerf RE'!L46 -> 0
A24: ='A4-FinPerf RE'!A47 -> Surplus/(Deficit) for the year | B24: =B22+B23 -> -184489929.2 | C24: =C22+C23 -> -199541431.4 | D24: 0 | E24: -37073965 | F24: 98421466 | G24: 98421466 | H24: 1295979061 | I24: 619490403.7 | J24: 674936642.1 | K24: 738044395
A26: Capital expenditure & funds sources
A27: Capital expenditure | B27: ='A5-Capex'!C63 -> 100122789.9 | C27: ='A5-Capex'!D63 -> 153181006 | D27: ='A5-Capex'!E63 -> 88906842.94 | E27: ='A5-Capex'!F63 -> 410187000 | F27: ='A5-Capex'!G63 -> 549544582 | G27: ='A5-Capex'!H63 -> 549544582 | H27: ='A5-Capex'!I63 -> 314418046.8 | I27: ='A5-Capex'!J63 -> 617205000 | J27: ='A5-Capex'!K63 -> 663861000 | K27: ='A5-Capex'!L63 -> 647826000
A28: Transfers recognised - capital | B28: ='A5-Capex'!C70 -> 87462248.19 | C28: ='A5-Capex'!D70 -> 81736438 | D28: ='A5-Capex'!E70 -> 71920442.94 | E28: ='A5-Capex'!F70 -> 368087000 | F28: ='A5-Capex'!G70 -> 439840127 | G28: ='A5-Capex'!H70 -> 439840127 | H28: ='A5-Capex'!I70 -> 282726955.8 | I28: ='A5-Capex'!J70 -> 499135000 | J28: ='A5-Capex'!K70 -> 543361000 | K28: ='A5-Capex'!L70 -> 577526000
A30: ='A5-Capex'!A72 -> Borrowing | B30: ='A5-Capex'!C72 -> 0 | C30: ='A5-Capex'!D72 -> 0 | D30: ='A5-Capex'!E72 -> 0 | E30: ='A5-Capex'!F72 -> 0 | F30: ='A5-Capex'!G72 -> 0 | G30: ='A5-Capex'!H72 -> 0 | H30: ='A5-Capex'!I72 -> 0 | I30: ='A5-Capex'!J72 -> 0 | J30: ='A5-Capex'!K72 -> 0 | K30: ='A5-Capex'!L72 -> 0
A31: ='A5-Capex'!A73 -> Internally generated funds | B31: ='A5-Capex'!C73 -> 12660541.7 | C31: ='A5-Capex'!D73 -> 71444568 | D31: ='A5-Capex'!E73 -> 16986400 | E31: ='A5-Capex'!F73 -> 42100000 | F31: ='A5-Capex'!G73 -> 109704455 | G31: ='A5-Capex'!H73 -> 109704455 | H31: ='A5-Capex'!I73 -> 31691091.03 | I31: ='A5-Capex'!J73 -> 118070000 | J31: ='A5-Capex'!K73 -> 120500000 | K31: ='A5-Capex'!L73 -> 70300000
A32: Total sources of capital funds | B32: =+B28+B30+B31 -> 100122789.9 | C32: =+C28+C30+C31 -> 153181006 | D32: 88906842.94 | E32: 410187000 | F32: 549544582 | G32: 549544582 | H32: 314418046.8 | I32: 617205000 | J32: 663861000 | K32: 647826000
A34: Financial position
A35: ='A6-FinPos'!A12 -> Total current assets | B35: ='A6-FinPos'!C12 -> 449377593.9 | C35: ='A6-FinPos'!D12 -> 588860450 | D35: ='A6-FinPos'!E12 -> 706789417 | E35: ='A6-FinPos'!F12 -> 755318518 | F35: ='A6-FinPos'!G12 -> 1012746428 | G35: ='A6-FinPos'!H12 -> 1012746428 | H35: ='A6-FinPos'!I12 -> 605010123.4 | I35: ='A6-FinPos'!J12 -> 716185061 | J35: ='A6-FinPos'!K12 -> 718225801 | K35: ='A6-FinPos'!L12 -> 648024492
A36: ='A6-FinPos'!A24 -> Total non current assets | B36: ='A6-FinPos'!C24 -> 7567820244 | C36: ='A6-FinPos'!D24 -> 7578735556 | D36: ='A6-FinPos'!E24 -> 7548588446 | E36: ='A6-FinPos'!F24 -> 7602570732 | F36: ='A6-FinPos'!G24 -> 7730441619 | G36: ='A6-FinPos'!H24 -> 7730441619 | H36: ='A6-FinPos'!I24 -> 7514185256 | I36: ='A6-FinPos'!J24 -> 8528843776 | J36: ='A6-FinPos'!K24 -> 8796209441 | K36: ='A6-FinPos'!L24 -> 8910369789
A37: ='A6-FinPos'!A34 -> Total current liabilities | B37: ='A6-FinPos'!C34 -> 1733241770 | C37: ='A6-FinPos'!D34 -> 2135477503 | D37: ='A6-FinPos'!E34 -> 2203540680 | E37: ='A6-FinPos'!F34 -> 1109415243 | F37: ='A6-FinPos'!G34 -> 1109415243 | G37: ='A6-FinPos'!H34 -> 1109415243 | H37: ='A6-FinPos'!I34 -> 1633406538 | I37: ='A6-FinPos'!J34 -> 739163393 | J37: ='A6-FinPos'!K34 -> 709703080 | K37: ='A6-FinPos'!L34 -> 639359268
A38: ='A6-FinPos'!A39 -> Total non current liabilities | B38: ='A6-FinPos'!C39 -> 595903798.3 | C38: ='A6-FinPos'!D39 -> 618115020 | D38: ='A6-FinPos'!E39 -> 587275424 | E38: ='A6-FinPos'!F39 -> 528816885 | F38: ='A6-FinPos'!G39 -> 528816885 | G38: ='A6-FinPos'!H39 -> 528816885 | H38: ='A6-FinPos'!I39 -> 586528819.4 | I38: ='A6-FinPos'!J39 -> 635238620 | J38: ='A6-FinPos'!K39 -> 541788661 | K38: ='A6-FinPos'!L39 -> 448469834
A39: Community wealth/Equity | B39: ='A6-FinPos'!C48 -> 5688052270 | C39: ='A6-FinPos'!D48 -> 5414003483 | D39: ='A6-FinPos'!E48 -> 5464561759 | E39: ='A6-FinPos'!F48 -> 6719657122 | F39: ='A6-FinPos'!G48 -> 7104955919 | G39: ='A6-FinPos'!H48 -> 7104955919 | H39: ='A6-FinPos'!I48 -> 0 | I39: ='A6-FinPos'!J48 -> 7870626824 | J39: ='A6-FinPos'!K48 -> 8262943501 | K39: ='A6-FinPos'!L48 -> 8470565179
A41: Cash flows
A42: Net cash from (used) operating | B42: ='A7-CFlow'!C17 -> 560280260 | C42: ='A7-CFlow'!D17 -> 503917246 | D42: ='A7-CFlow'!E17 -> 495183536 | E42: ='A7-CFlow'!F17 -> 494803257.1 | F42: ='A7-CFlow'!G17 -> 781032497.1 | G42: ='A7-CFlow'!H17 -> 781032497.1 | H42: ='A7-CFlow'!I17 -> 781032497.1 | I42: ='A7-CFlow'!J17 -> 657855860 | J42: ='A7-CFlow'!K17 -> 672804908 | K42: ='A7-CFlow'!L17 -> 669519112
A43: Net cash from (used) investing | B43: ='A7-CFlow'!C27 -> -481753117 | C43: ='A7-CFlow'!D27 -> -435105887 | D43: ='A7-CFlow'!E27 -> -531749639 | E43: ='A7-CFlow'!F27 -> -410444000 | F43: ='A7-CFlow'!G27 -> -549544581.9 | G43: ='A7-CFlow'!H27 -> -549544581.9 | H43: ='A7-CFlow'!I27 -> 154954978.9 | I43: ='A7-CFlow'!J27 -> -617205000 | J43: ='A7-CFlow'!K27 -> -663861000 | K43: ='A7-CFlow'!L27 -> -647826000
A44: Net cash from (used) financing | B44: ='A7-CFlow'!C36 -> -8488631 | C44: ='A7-CFlow'!D36 -> -36663437 | D44: ='A7-CFlow'!E36 -> -16111049 | E44: ='A7-CFlow'!F36 -> -17514554 | F44: ='A7-CFlow'!G36 -> -17514554 | G44: ='A7-CFlow'!H36 -> -17514554 | H44: ='A7-CFlow'!I36 -> 0 | I44: ='A7-CFlow'!J36 -> 780269 | J44: ='A7-CFlow'!K36 -> 795875 | K44: ='A7-CFlow'!L36 -> 811793
A45: =LEFT('A7-CFlow'!A40,37) -> Cash/cash equivalents at the year end | B45: ='A7-CFlow'!C40 -> 95740638.16 | C45: ='A7-CFlow'!D40 -> 125696817 | D45: ='A7-CFlow'!E40 -> 73019665 | E45: ='A7-CFlow'!F40 -> 215046735.2 | F45: ='A7-CFlow'!G40 -> 286993026.2 | G45: ='A7-CFlow'!H40 -> 286993026.2 | H45: ='A7-CFlow'!I40 -> 935987476 | I45: ='A7-CFlow'!J40 -> 114450794 | J45: ='A7-CFlow'!K40 -> 124190577 | K45: ='A7-CFlow'!L40 -> 146695482
A47: Cash backing/surplus reconciliation
A48: ='A8-ResRecon'!A4 -> Cash and investments available | B48: ='A8-ResRecon'!C8 -> 111284422.4 | C48: ='A8-ResRecon'!D8 -> 125696817 | D48: ='A8-ResRecon'!E8 -> 73019665 | E48: ='A8-ResRecon'!F8 -> 215046736 | F48: ='A8-ResRecon'!G8 -> 286993027 | G48: ='A8-ResRecon'!H8 -> 286993027 | H48: ='A8-ResRecon'!I8 -> 0 | I48: ='A8-ResRecon'!J8 -> 114450794 | J48: ='A8-ResRecon'!K8 -> 124190577 | K48: ='A8-ResRecon'!L8 -> 146695482
A49: ='A8-ResRecon'!A10 -> Application of cash and investments | B49: ='A8-ResRecon'!C18 -> 1212163092 | C49: ='A8-ResRecon'!D18 -> 1529977132 | D49: ='A8-ResRecon'!E18 -> 1487139589 | E49: ='A8-ResRecon'!F18 -> 456316818.1 | F49: ='A8-ResRecon'!G18 -> 272901818.1 | G49: ='A8-ResRecon'!H18 -> 272901818.1 | H49: ='A8-ResRecon'!I18 -> 736090848 | I49: ='A8-ResRecon'!J18 -> 102354000 | J49: ='A8-ResRecon'!K18 -> 79668000 | K49: ='A8-ResRecon'!L18 -> 97739000
A50: Balance - surplus (shortfall) | B50: =B48-B49 -> -1100878670 | C50: =C48-C49 -> -1404280315 | D50: -1414119924 | E50: -241270082.1 | F50: 14091208.92 | G50: 14091208.92 | H50: -736090848 | I50: 12096794 | J50: 44522577 | K50: 48956482
A52: Asset management
A53: Asset register summary (WDV) | B53: ='A9-Asset'!C165 -> 6343684337 | C53: ='A9-Asset'!D165 -> 6469293702 | D53: ='A9-Asset'!E165 -> 6283659278 | E53: ='A9-Asset'!F165 -> 7602570732 | F53: ='A9-Asset'!G165 -> 7741928314 | G53: ='A9-Asset'!H165 -> 7741928314 | H53: ='A9-Asset'!H165 -> 7741928314 | I53: ='A9-Asset'!I165 -> 7936438776 | J53: ='A9-Asset'!J165 -> 8156848441 | K53: ='A9-Asset'!K165 -> 8287043789
A54: ='A9-Asset'!A168 -> Depreciation | B54: ='A9-Asset'!C168 -> 502874478.3 | C54: ='A9-Asset'!D168 -> 506580405 | D54: ='A9-Asset'!E168 -> 551510226.8 | E54: ='A9-Asset'!F168 -> 516566578 | F54: ='A9-Asset'!G168 -> 499046578 | G54: ='A9-Asset'!H168 -> 499046578 | H54: ='A9-Asset'!H168 -> 499046578 | I54: ='A9-Asset'!I168 -> 474339944 | J54: ='A9-Asset'!J168 -> 512122946 | K54: ='A9-Asset'!K168 -> 521016718
A55: Renewal and Upgrading of Existing Assets | B55: ='A9-Asset'!C37+'A9-Asset'!C69 -> 29299261.98 | C55: ='A9-Asset'!D37+'A9-Asset'!D69 -> 32419032.76 | D55: ='A9-Asset'!E37+'A9-Asset'!E69 -> 33041336.26 | E55: ='A9-Asset'!F37+'A9-Asset'!F69 -> 111200000 | F55: ='A9-Asset'!G37+'A9-Asset'!G69 -> 140957885 | G55: ='A9-Asset'!H37+'A9-Asset'!H69 -> 140957885 | H55: ='A9-Asset'!H37+'A9-Asset'!H69 -> 140957885 | I55: ='A9-Asset'!I37+'A9-Asset'!I69 -> 245200000 | J55: ='A9-Asset'!J37+'A9-Asset'!J69 -> 323330000 | K55: ='A9-Asset'!K37+'A9-Asset'!K69 -> 477826000
A56: Repairs and Maintenance | B56: ='A9-Asset'!C169 -> 41568398.73 | C56: ='A9-Asset'!D169 -> 3901890.58 | D56: ='A9-Asset'!E169 -> 14913795.57 | E56: ='A9-Asset'!F169 -> 175388878 | F56: ='A9-Asset'!G169 -> 212797485 | G56: ='A9-Asset'!H169 -> 212797485 | H56: ='A9-Asset'!H169 -> 212797485 | I56: ='A9-Asset'!I169 -> 133019456 | J56: ='A9-Asset'!J169 -> 124268485 | K56: ='A9-Asset'!K169 -> 111394231
A58: Free services
A59: Cost of Free Basic Services provided | B59: ='A10-SerDel'!C60 -> 88240885.79 | C59: ='A10-SerDel'!D60 -> 88213166.59 | D59: ='A10-SerDel'!E60 -> 88213570.54 | E59: ='A10-SerDel'!F60 -> 175556770.5 | F59: ='A10-SerDel'!G60 -> 175556770.5 | G59: ='A10-SerDel'!H60 -> 175556770.5 | H59: ='A10-SerDel'!I60 -> 279839744.8 | I59: ='A10-SerDel'!I60 -> 279839744.8 | J59: ='A10-SerDel'!J60 -> 279195309.6 | K59: ='A10-SerDel'!K60 -> 292539881.8
A60: Revenue cost of free services provided | B60: ='A10-SerDel'!C79 -> 437603544.6 | C60: ='A10-SerDel'!D79 -> 497694384 | D60: ='A10-SerDel'!E79 -> 281568652.5 | E60: ='A10-SerDel'!F79 -> 284349769.7 | F60: ='A10-SerDel'!G79 -> 284349769.7 | G60: ='A10-SerDel'!H79 -> 284349769.7 | H60: ='A10-SerDel'!I79 -> 288365131.7 | I60: ='A10-SerDel'!I79 -> 288365131.7 | J60: ='A10-SerDel'!J79 -> 291912036.7 | K60: ='A10-SerDel'!K79 -> 295636283.7
A61: Households below minimum service level
A62: ='A10-SerDel'!A5 -> Water: | B62: ='A10-SerDel'!C14 -> 36849 | C62: ='A10-SerDel'!D14 -> 36849 | D62: ='A10-SerDel'!E14 -> 36849 | E62: ='A10-SerDel'!F14 -> 36849 | F62: ='A10-SerDel'!G14 -> 36849 | G62: ='A10-SerDel'!H14 -> 36849 | H62: ='A10-SerDel'!I14 -> 36849 | I62: ='A10-SerDel'!I14 -> 36849 | J62: ='A10-SerDel'!J14 -> 36849 | K62: ='A10-SerDel'!K14 -> 36849
A63: ='A10-SerDel'!A16 -> Sanitation/sewerage: | B63: ='A10-SerDel'!C26 -> 17801 | C63: ='A10-SerDel'!D26 -> 17801 | D63: ='A10-SerDel'!E26 -> 17801 | E63: ='A10-SerDel'!F26 -> 17801 | F63: ='A10-SerDel'!G26 -> 17801 | G63: ='A10-SerDel'!H26 -> 17801 | H63: ='A10-SerDel'!I26 -> 17801 | I63: ='A10-SerDel'!I26 -> 17801 | J63: ='A10-SerDel'!J26 -> 17801 | K63: ='A10-SerDel'!K26 -> 17801
A64: ='A10-SerDel'!A28 -> Energy: | B64: ='A10-SerDel'!C35 -> 16071 | C64: ='A10-SerDel'!D35 -> 16071 | D64: ='A10-SerDel'!E35 -> 16071 | E64: ='A10-SerDel'!F35 -> 16071 | F64: ='A10-SerDel'!G35 -> 16071 | G64: ='A10-SerDel'!H35 -> 16071 | H64: ='A10-SerDel'!I35 -> 16071 | I64: ='A10-SerDel'!I35 -> 16071 | J64: ='A10-SerDel'!J35 -> 16071 | K64: ='A10-SerDel'!K35 -> 16071
A65: ='A10-SerDel'!A37 -> Refuse: | B65: ='A10-SerDel'!C45 -> 142109 | C65: ='A10-SerDel'!D45 -> 142109 | D65: ='A10-SerDel'!E45 -> 142109 | E65: ='A10-SerDel'!F45 -> 142109 | F65: ='A10-SerDel'!G45 -> 142109 | G65: ='A10-SerDel'!H45 -> 142109 | H65: ='A10-SerDel'!I45 -> 142109 | I65: ='A10-SerDel'!I45 -> 142109 | J65: ='A10-SerDel'!J45 -> 142109 | K65: ='A10-SerDel'!K45 -> 142109

Sheet A2-FinPerf SC
A1: =muni&" - "&Approve3 -> MP326 City of Mbombela - Table A2 Budgeted Financial Performance (revenue and expenditure by functional classification)
A2: ="Functional Classification "&desc -> Functional Classification Description | B2: =head27 -> Ref | C2: =head1b -> 2017/18 | D2: =head1A -> 2018/19 | E2: =Head1 -> 2019/20 | F2: =Head2 -> Current Year 2020/21 | I2: =Head3 -> 2021/22 Medium Term Revenue & Expenditure Framework
A3: R thousand | B3: 1 | C3: =Head5 -> Audited Outcome | D3: =Head5 -> Audited Outcome | E3: =Head5 -> Audited Outcome | F3: =Head6 -> Original Budget | G3: =Head7 -> Adjusted Budget | H3: =Head8 -> Full Year Forecast | I3: =Head9 -> Budget Year 2021/22 | J3: =Head10 -> Budget Year +1 2022/23 | K3: =Head11 -> Budget Year +2 2023/24
A4: Revenue - Functional
A5: Governance and administration | C5: =SUM(C6:C8) -> 1163393053 | D5: =SUM(D6:D8) -> 1375735961 | E5: 1713528174 | F5: 899149724 | G5: 914649724 | H5: 914649724 | I5: 1677834798 | J5: 1783198538 | K5: 1836664468
A6: Executive and council | C6: =A2A!C6 -> 402813.16 | D6: =A2A!D6 -> 70129.42 | E6: =A2A!E6 -> 1721434.16 | F6: =A2A!F6 -> 1008283 | G6: =A2A!G6 -> 1008283 | H6: =A2A!H6 -> 1008283 | I6: =A2A!I6 -> 1058695 | J6: =A2A!J6 -> 1111631 | K6: =A2A!K6 -> 1167215
A7: Finance and administration | C7: =A2A!C9 -> 1162990240 | D7: =A2A!D9 -> 1375665831 | E7: =A2A!E9 -> 1711806740 | F7: =A2A!F9 -> 898141304 | G7: =A2A!G9 -> 913641304 | H7: =A2A!H9 -> 913641304 | I7: =A2A!I9 -> 1676775959 | J7: =A2A!J9 -> 1782086756 | K7: =A2A!K9 -> 1835497094
A8: Internal audit | C8: =A2A!C23 -> 0 | D8: =A2A!D23 -> 0 | E8: =A2A!E23 -> 0 | F8: =A2A!F23 -> 137 | G8: =A2A!G23 -> 137 | H8: =A2A!H23 -> 137 | I8: =A2A!I23 -> 144 | J8: =A2A!J23 -> 151 | K8: =A2A!K23 -> 159
A9: Community and public safety | C9: =SUM(C10:C14) -> 8342117.55 | D9: =SUM(D10:D14) -> 29471148.2 | E9: 10601229.43 | F9: 10795278 | G9: 9395278 | H9: 9395278 | I9: 9865041 | J9: 10358293 | K9: 10876209
A10: Community and social services | C10: =A2A!C26 -> 1588654.52 | D10: =A2A!D26 -> 12917358.82 | E10: =A2A!E26 -> 1680922.46 | F10: =A2A!F26 -> 1173658 | G10: =A2A!G26 -> 1173658 | H10: =A2A!H26 -> 1173658 | I10: =A2A!I26 -> 1232340 | J10: =A2A!J26 -> 1293958 | K10: =A2A!K26 -> 1358655
A11: Sport and recreation | C11: =A2A!C48 -> 4035992.74 | D11: =A2A!D48 -> 8064439.22 | E11: =A2A!E48 -> 3965663.55 | F11: =A2A!F48 -> 1630332 | G11: =A2A!G48 -> 230332 | H11: =A2A!H48 -> 230332 | I11: =A2A!I48 -> 241848 | J11: =A2A!J48 -> 253940 | K11: =A2A!K48 -> 266638
A12: Public safety | C12: =A2A!C54 -> 2717470.29 | D12: =A2A!D54 -> 8489350.16 | E12: =A2A!E54 -> 4954643.42 | F12: =A2A!F54 -> 7991288 | G12: =A2A!G54 -> 7991288 | H12: =A2A!H54 -> 7991288 | I12: =A2A!I54 -> 8390853 | J12: =A2A!J54 -> 8810395 | K12: =A2A!K54 -> 9250916
A13: Housing | C13: =A2A!C63 -> 0 | D13: =A2A!D63 -> 0 | E13: =A2A!E63 -> 0 | F13: =A2A!F63 -> 0 | G13: =A2A!G63 -> 0 | H13: =A2A!H63 -> 0 | I13: =A2A!I63 -> 0 | J13: =A2A!J63 -> 0 | K13: =A2A!K63 -> 0
A14: Health | C14: =A2A!C66 -> 0 | D14: =A2A!D66 -> 0 | E14: =A2A!E66 -> 0 | F14: =A2A!F66 -> 0 | G14: =A2A!G66 -> 0 | H14: =A2A!H66 -> 0 | I14: =A2A!I66 -> 0 | J14: =A2A!J66 -> 0 | K14: =A2A!K66 -> 0
A15: Economic and environmental services | C15: =SUM(C16:C18) -> 588309662.9 | D15: =SUM(D16:D18) -> 593339706.6 | E15: 644307307.4 | F15: 352716651 | G15: 468469227 | H15: 468469227 | I15: 462918838 | J15: 464912528.7 | K15: 486855096.8
A16: Planning and development | C16: =A2A!C75 -> 543063560 | D16: =A2A!D75 -> 547750670.5 | E16: =A2A!E75 -> 554258154 | F16: =A2A!F75 -> 345052431 | G16: =A2A!G75 -> 416805007 | H16: =A2A!H75 -> 416805007 | I16: =A2A!I75 -> 398236704 | J16: =A2A!J75 -> 396996288 | K16: =A2A!K75 -> 415543051
A17: Road transport | C17: =A2A!C86 -> 45246102.91 | D17: =A2A!D86 -> 45589036.08 | E17: =A2A!E86 -> 90049153.39 | F17: =A2A!F86 -> 7663988 | G17: =A2A!G86 -> 51663988 | H17: =A2A!H86 -> 51663988 | I17: =A2A!I86 -> 64681889.96 | J17: =A2A!J86 -> 67915984.75 | K17: =A2A!K86 -> 71311776.84
A18: Environmental protection | C18: =A2A!C91 -> 0 | D18: =A2A!D91 -> 0 | E18: =A2A!E91 -> 0 | F18: =A2A!F91 -> 232 | G18: =A2A!G91 -> 232 | H18: =A2A!H91 -> 232 | I18: =A2A!I91 -> 244 | J18: =A2A!J91 -> 256 | K18: =A2A!K91 -> 269
A19: Trading services | C19: =SUM(C20:C23) -> 1164934987 | D19: =SUM(D20:D23) -> 1277078497 | E19: 1342088591 | F19: 2318917718 | G19: 2316791964 | H19: 2316791964 | I19: 1822749988 | J19: =SUM(J20:J23) -> 1914342642 | K19: 2032798514
A20: Energy sources | C20: =A2A!C99 -> 912852481.7 | D20: =A2A!D99 -> 1027125680 | E20: =A2A!E99 -> 1083098749 | F20: =A2A!F99 -> 1368516255 | G20: =A2A!G99 -> 1368516255 | H20: =A2A!H99 -> 1368516255 | I20: =A2A!I99 -> 1481262007 | J20: =A2A!J99 -> 1487778913 | K20: =A2A!K99 -> 1570405173
A21: Water management | C21: =A2A!C103 -> 124021986.1 | D21: =A2A!D103 -> 106922117.3 | E21: =A2A!E103 -> 106305171.1 | F21: =A2A!F103 -> 481132162 | G21: =A2A!G103 -> 476432162 | H21: =A2A!H103 -> 476432162 | I21: =A2A!I103 -> 165294869 | J21: =A2A!J103 -> 241560956 | K21: =A2A!K103 -> 268140424
A22: Waste water management | C22: =A2A!C107 -> 27229465.26 | D22: =A2A!D107 -> 21873762.37 | E22: =A2A!E107 -> 22504939.13 | F22: =A2A!F107 -> 191510862 | G22: =A2A!G107 -> 190085108 | H22: =A2A!H107 -> 190085108 | I22: =A2A!I107 -> 25259934 | J22: =A2A!J107 -> 26522936 | K22: =A2A!K107 -> 27849089
A23: Waste management | C23: =A2A!C112 -> 100831054.3 | D23: =A2A!D112 -> 121156936.9 | E23: =A2A!E112 -> 130179732 | F23: =A2A!F112 -> 277758439 | G23: =A2A!G112 -> 281758439 | H23: =A2A!H112 -> 281758439 | I23: =A2A!I112 -> 150933178 | J23: =A2A!J112 -> 158479837 | K23: =A2A!K112 -> 166403828
A24: Other | B24: 4 | C24: =A2A!C117 -> 0 | D24: =A2A!D117 -> 0 | E24: =A2A!E117 -> 0 | F24: =A2A!F117 -> 0 | G24: =A2A!G117 -> 0 | H24: =A2A!H117 -> 0 | I24: =A2A!I117 -> 0 | J24: =A2A!J117 -> 0 | K24: =A2A!K117 -> 0
A25: ="Total "&A4 -> Total Revenue - Functional | B25: 2 | C25: =C5+C9+C15+C19+C24 -> 2924979821 | D25: =D5+D9+D15+D19+D24 -> 3275625312 | E25: =E5+E9+E15+E19+E24 -> 3710525302 | F25: 3581579371 | G25: 3709306193 | H25: 3709306193 | I25: =I5+I9+I15+I19+I24 -> 3973368665 | J25: 4172812002 | K25: 4367194288
A27: Expenditure - Functional
A28: Governance and administration | C28: =SUM(C29:C31) -> 793576634.2 | D28: =SUM(D29:D31) -> 852856628 | E28: 833627175.7 | F28: 675881235 | G28: 724180658 | H28: 724180658 | I28: 641174084 | J28: 640682208 | K28: 645513413
A29: Executive and council | C29: =A2A!C128 -> 191876980.2 | D29: =A2A!D128 -> 129996532.9 | E29: =A2A!E128 -> 145025839.2 | F29: =A2A!F128 -> 138603136 | G29: =A2A!G128 -> 147301478 | H29: =A2A!H128 -> 147301478 | I29: =A2A!I128 -> 145519098 | J29: =A2A!J128 -> 147615787 | K29: =A2A!K128 -> 149917606
A30: Finance and administration | C30: =A2A!C131 -> 597288392.6 | D30: =A2A!D131 -> 711371381.1 | E30: =A2A!E131 -> 675725751.3 | F30: =A2A!F131 -> 526835044 | G30: =A2A!G131 -> 563107125 | H30: =A2A!H131 -> 563107125 | I30: =A2A!I131 -> 482524686 | J30: =A2A!J131 -> 479993855 | K30: =A2A!K131 -> 482548149
A31: Internal audit | C31: =A2A!C145 -> 4411261.38 | D31: =A2A!D145 -> 11488714.03 | E31: =A2A!E145 -> 12875585.24 | F31: =A2A!F145 -> 10443055 | G31: =A2A!G145 -> 13772055 | H31: =A2A!H145 -> 13772055 | I31: =A2A!I145 -> 13130300 | J31: =A2A!J145 -> 13072566 | K31: =A2A!K145 -> 13047658
A32: Community and public safety | C32: =SUM(C33:C37) -> 304351550.2 | D32: =SUM(D33:D37) -> 311769648.3 | E32: 397154980.2 | F32: 308328504 | G32: 316859404 | H32: 316859404 | I32: 304740953 | J32: 313257308 | K32: 323314821
A33: Community and social services | C33: =A2A!C148 -> 44425745.16 | D33: =A2A!D148 -> 45708262.85 | E33: =A2A!E148 -> 74374530.91 | F33: =A2A!F148 -> 50081057 | G33: =A2A!G148 -> 59331272 | H33: =A2A!H148 -> 59331272 | I33: =A2A!I148 -> 53631142 | J33: =A2A!J148 -> 55462773 | K33: =A2A!K148 -> 57428722
A34: Sport and recreation | C34: =A2A!C170 -> 161463902.9 | D34: =A2A!D170 -> 159947728.2 | E34: =A2A!E170 -> 164041862.1 | F34: =A2A!F170 -> 124629439 | G34: =A2A!G170 -> 120739439 | H34: =A2A!H170 -> 120739439 | I34: =A2A!I170 -> 103309175 | J34: =A2A!J170 -> 104811656 | K34: =A2A!K170 -> 107359905
A35: Public safety | C35: =A2A!C176 -> 75117560.74 | D35: =A2A!D176 -> 95596748.68 | E35: =A2A!E176 -> 132431772.1 | F35: =A2A!F176 -> 122752123 | G35: =A2A!G176 -> 126050908 | H35: =A2A!H176 -> 126050908 | I35: =A2A!I176 -> 136014237 | J35: =A2A!J176 -> 140617410 | K35: =A2A!K176 -> 145552188
A36: Housing | C36: =A2A!C185 -> 23344341.42 | D36: =A2A!D185 -> 10516908.62 | E36: =A2A!E185 -> 26306815.09 | F36: =A2A!F185 -> 10865885 | G36: =A2A!G185 -> 10737785 | H36: =A2A!H185 -> 10737785 | I36: =A2A!I185 -> 11786399 | J36: =A2A!J185 -> 12365469 | K36: =A2A!K185 -> 12974006
A37: Health | C37: =A2A!C188 -> 0 | D37: =A2A!D188 -> 0 | E37: =A2A!E188 -> 0 | F37: =A2A!F188 -> 0 | G37: =A2A!G188 -> 0 | H37: =A2A!H188 -> 0 | I37: =A2A!I188 -> 0 | J37: =A2A!J188 -> 0 | K37: =A2A!K188 -> 0
A38: Economic and environmental services | C38: =SUM(C39:C41) -> 514100503.1 | D38: =SUM(D39:D41) -> 561923139.3 | E38: 572112969.7 | F38: 470245381 | G38: 481413089 | H38: 481413089 | I38: 517404380.3 | J38: 569960844.6 | K38: 581294019.8
A39: Planning and development | C39: =A2A!C197 -> 315589636.5 | D39: =A2A!D197 -> 91653896.19 | E39: =A2A!E197 -> 106960822.3 | F39: =A2A!F197 -> 116009339 | G39: =A2A!G197 -> 125628339 | H39: =A2A!H197 -> 125628339 | I39: =A2A!I197 -> 125447758 | J39: =A2A!J197 -> 125487663 | K39: =A2A!K197 -> 129285015
A40: Road transport | C40: =A2A!C208 -> 185238739.3 | D40: =A2A!D208 -> 451577259.8 | E40: =A2A!E208 -> 448741378.5 | F40: =A2A!F208 -> 348417473 | G40: =A2A!G208 -> 340561181 | H40: =A2A!H208 -> 340561181 | I40: =A2A!I208 -> 384121717.3 | J40: =A2A!J208 -> 436682603.6 | K40: =A2A!K208 -> 444243169.8
A41: Environmental protection | C41: =A2A!C213 -> 13272127.24 | D41: =A2A!D213 -> 18691983.27 | E41: =A2A!E213 -> 16410768.88 | F41: =A2A!F213 -> 5818569 | G41: =A2A!G213 -> 15223569 | H41: =A2A!H213 -> 15223569 | I41: =A2A!I213 -> 7834905 | J41: =A2A!J213 -> 7790578 | K41: =A2A!K213 -> 7765835
A42: Trading services | C42: =SUM(C43:C46) -> 1484183833 | D42: =SUM(D43:D46) -> 1734185412 | E42: 1834695310 | F42: =SUM(F43:F46) -> 2142217980 | G42: 2066521340 | H42: 2066521340 | I42: 1864213126 | J42: 1950841918 | K42: =SUM(K43:K46) -> 2059266334
A43: Energy sources | C43: =A2A!C221 -> 793890498.6 | D43: =A2A!D221 -> 909902911.7 | E43: =A2A!E221 -> 934310289 | F43: =A2A!F221 -> 1340909128 | G43: =A2A!G221 -> 1249489196 | H43: =A2A!H221 -> 1249489196 | I43: =A2A!I221 -> 1159110654 | J43: =A2A!J221 -> 1259113624 | K43: =A2A!K221 -> 1368275570
A44: Water management | C44: =A2A!C225 -> 239534878.4 | D44: =A2A!D225 -> 450640388.4 | E44: =A2A!E225 -> 481319329.3 | F44: =A2A!F225 -> 355500305 | G44: =A2A!G225 -> 311860305 | H44: =A2A!H225 -> 311860305 | I44: =A2A!I225 -> 282033285 | J44: =A2A!J225 -> 268065096 | K44: =A2A!K225 -> 272654468
A45: Waste water management | C45: =A2A!C229 -> 141171386.1 | D45: =A2A!D229 -> 25507980.64 | E45: =A2A!E229 -> 38873878.25 | F45: =A2A!F229 -> 117480394 | G45: =A2A!G229 -> 139244686 | H45: =A2A!H229 -> 139244686 | I45: =A2A!I229 -> 124434945 | J45: =A2A!J229 -> 122536071 | K45: =A2A!K229 -> 113610653
A46: Waste management | C46: =A2A!C234 -> 309587069.7 | D46: =A2A!D234 -> 348134131.4 | E46: =A2A!E234 -> 380191813.6 | F46: =A2A!F234 -> 328328153 | G46: =A2A!G234 -> 365927153 | H46: =A2A!H234 -> 365927153 | I46: =A2A!I234 -> 298634242 | J46: =A2A!J234 -> 301127127 | K46: =A2A!K234 -> 304725643
A47: Other | B47: 4 | C47: =A2A!C239 -> 13257229.7 | D47: =A2A!D239 -> 14473591.92 | E47: =A2A!E239 -> 22359722.48 | F47: =A2A!F239 -> 21980236 | G47: =A2A!G239 -> 21910236 | H47: =A2A!H239 -> 21910236 | I47: =A2A!I239 -> 26345718 | J47: =A2A!J239 -> 23133081 | K47: =A2A!K239 -> 19761305
A48: ="Total "&A27 -> Total Expenditure - Functional | B48: 3 | C48: =C28+C32+C38+C42+C47 -> 3109469750 | D48: =D28+D32+D38+D42+D47 -> 3475208420 | E48: =E28+E32+E38+E42+E47 -> 3659950158 | F48: =F28+F32+F38+F42+F47 -> 3618653336 | G48: 3610884727 | H48: 3610884727 | I48: 3353878261 | J48: 3497875360 | K48: 3629149893
A49: =result -> Surplus/(Deficit) for the year | C49: =C25-C48 -> -184489929.1 | D49: =D25-D48 -> -199583107.3 | E49: 50575144.07 | F49: -37073965 | G49: 98421466 | H49: 98421466 | I49: 619490403.7 | J49: 674936642.1 | K49: 738044395
A50: =head27a -> References
A51: 1. Government Finance Statistics Functions and Sub-functions are standardised to assist the compilation of national and international accounts for comparison purposes
A52: 2. Total Revenue by functional classification must reconcile to Total Operating Revenue shown in Budgeted Financial Performance (revenue and expenditure)
A53: 3. Total Expenditure by Functional Classification must reconcile to Total Operating Expenditure shown in Budgeted Financial Performance (revenue and expenditure)
A54: 4. All amounts must be classified under a functional classification . The GFS function 'Other' is only for Abbatoirs, Air Transport, Forestry, Licensing and Regulation, Markets and Tourism - and if used must be supported by footnotes. Nothing else may be placed under 'Other'. Assign associate share to relevant classification.
A57: check oprev balance | C57: =C25-'A4-FinPerf RE'!C59 -> -0.210000515 | D57: =D25-'A4-FinPerf RE'!D59 -> 0.2600002289 | E57: =E25-'A4-FinPerf RE'!E59 -> 0.3099999428 | F57: =F25-'A4-FinPerf RE'!F59 -> 0 | G57: =G25-'A4-FinPerf RE'!G59 -> 0 | H57: =H25-'A4-FinPerf RE'!H59 -> 0 | I57: =I25-'A4-FinPerf RE'!J59 -> 0 | J57: =J25-'A4-FinPerf RE'!K59 -> 0 | K57: =K25-'A4-FinPerf RE'!L59 -> 0
A58: check opexp balance | C58: =C48-'A4-FinPerf RE'!C35 -> -0.210000515 | D58: =D48-'A4-FinPerf RE'!D35 -> 41676.21 | E58: =E48-'A4-FinPerf RE'!E35 -> 0.3100004196 | F58: =F48-'A4-FinPerf RE'!F35 -> 0 | G58: =G48-'A4-FinPerf RE'!G35 -> 0 | H58: =H48-'A4-FinPerf RE'!H35 -> 0 | I58: =I48-'A4-FinPerf RE'!J35 -> 0 | J58: =J48-'A4-FinPerf RE'!K35 -> 0 | K58: =K48-'A4-FinPerf RE'!L35 -> 0

Sheet A2A
A1: =muni&" - "&Approve3 -> MP326 City of Mbombela - Table A2 Budgeted Financial Performance (revenue and expenditure by functional classification)
A2: ="Functional Classification "&desc -> Functional Classification Description | B2: =head27 -> Ref | C2: =head1b -> 2017/18 | D2: =head1A -> 2018/19 | E2: =Head1 -> 2019/20 | F2: =Head2 -> Current Year 2020/21 | I2: =Head3 -> 2021/22 Medium Term Revenue & Expenditure Framework
A3: R thousand | B3: 1 | C3: =Head5 -> Audited Outcome | D3: =Head5 -> Audited Outcome | E3: =Head5 -> Audited Outcome | F3: =Head6 -> Original Budget | G3: =Head7 -> Adjusted Budget | H3: =Head8 -> Full Year Forecast | I3: =Head9 -> Budget Year 2021/22 | J3: =Head10 -> Budget Year +1 2022/23 | K3: =Head11 -> Budget Year +2 2023/24
A4: Revenue - Functional
A5: Municipal governance and administration | C5: =C6+C9+C23 -> 1163393053 | D5: 1375735961 | E5: 1713528174 | F5: 899149724 | G5: 914649724 | H5: 914649724 | I5: 1677834798 | J5: 1783198538 | K5: 1836664468
A6: Executive and council | C6: =SUM(C7:C8) -> 402813.16 | D6: =SUM(D7:D8) -> 70129.42 | E6: 1721434.16 | F6: 1008283 | G6: 1008283 | H6: 1008283 | I6: 1058695 | J6: 1111631 | K6: 1167215
A7: Mayor and Council | C7: -6427.64 | D7: -1742.46 | E7: 1647195.28 | F7: 698545 | G7: 698545 | H7: 698545 | I7: 733471 | J7: 770145 | K7: 808653
A8: Municipal Manager, Town Secretary and Chief Executive | C8: 409240.8 | D8: 71871.88 | E8: 74238.88 | F8: 309738 | G8: 309738 | H8: 309738 | I8: 325224 | J8: 341486 | K8: 358562
A9: Finance and administration | C9: =SUM(C10:C22) -> 1162990240 | D9: 1375665831 | E9: 1711806740 | F9: 898141304 | G9: 913641304 | H9: 913641304 | I9: 1676775959 | J9: 1782086756 | K9: 1835497094
A10: Administrative and Corporate Support | C10: 333371.7 | D10: 338309.6 | E10: 336099.16 | F10: 675776 | G10: 675776 | H10: 675776 | I10: 709564 | J10: 745043 | K10: 782296
A11: Asset Management | C11: 0 | D11: 0 | E11: 0 | F11: 0 | G11: 0 | H11: 0 | I11: 0 | J11: 0 | K11: 0
A12: Finance | C12: 686470031.2 | D12: 741377359.3 | E12: 1054904335 | F12: 210421589 | G12: 205921589 | H12: 205921589 | I12: 926661242 | J12: 994466306 | K12: 1008495618
A13: Fleet Management | C13: 0 | D13: 0 | E13: 0 | F13: 0 | G13: 0 | H13: 0 | I13: 0 | J13: 0 | K13: 0
A14: Human Resources | C14: 1523867.67 | D14: 320829.94 | E14: 31583.5 | F14: 22029 | G14: 22029 | H14: 22029 | I14: 23130 | J14: 24287 | K14: 25501
A15: Information Technology | C15: 0 | D15: 0 | E15: 0 | F15: 0 | G15: 0 | H15: 0 | I15: 0 | J15: 0 | K15: 0
A16: Legal Services | C16: 0 | D16: 0 | E16: 0 | F16: 0 | G16: 0 | H16: 0 | I16: 0 | J16: 0 | K16: 0
A17: Marketing, Customer Relations, Publicity and Media Co-ordination | C17: 0 | D17: 0 | E17: 0 | F17: 0 | G17: 0 | H17: 0 | I17: 0 | J17: 0 | K17: 0
A18: Property Services | C18: 2900177.37 | D18: 1899922.12 | E18: 4816846.56 | F18: 3028568 | G18: 3028568 | H18: 3028568 | I18: 3179998 | J18: 3338995 | K18: 3505946
A19: Risk Management
A20: Security Services | C20: 825.26 | D20: 510 | E20: 900 | F20: 12889 | G20: 12889 | H20: 12889 | I20: 13533 | J20: 14210 | K20: 14921
A21: Supply Chain Management | C21: 0 | D21: 0 | E21: 0 | F21: 0 | G21: 0 | H21: 0 | I21: 0 | J21: 0 | K21: 0
A22: Valuation Service | C22: 471761966.8 | D22: 631728900.3 | E22: 651716975.7 | F22: 683980453 | G22: 703980453 | H22: 703980453 | I22: 746188492 | J22: 783497915 | K22: 822672812
A23: Internal audit | C23: =SUM(C24:C24) -> 0 | D23: 0 | E23: 0 | F23: 137 | G23: 137 | H23: 137 | I23: 144 | J23: 151 | K23: 159
A24: Governance Function | C24: 0 | D24: 0 | E24: 0 | F24: 137 | G24: 137 | H24: 137 | I24: 144 | J24: 151 | K24: 159
A25: Community and public safety | C25: =C26+C48+C54+C63+C66 -> 8342117.55 | D25: 29471148.2 | E25: 10601229.43 | F25: 10795278 | G25: 9395278 | H25: 9395278 | I25: 9865041 | J25: 10358293 | K25: 10876209
A26: Community and social services | C26: =SUM(C27:C47) -> 1588654.52 | D26: =SUM(D27:D47) -> 12917358.82 | E26: 1680922.46 | F26: 1173658 | G26: 1173658 | H26: 1173658 | I26: 1232340 | J26: 1293958 | K26: 1358655
A27: Aged Care
A28: Agricultural
A29: Animal Care and Diseases
A30: Cemeteries, Funeral Parlours and Crematoriums | C30: 703480.39 | D30: 880592.47 | E30: 1039799.8 | F30: 617205 | G30: 617205 | H30: 617205 | I30: 648065 | J30: 680469 | K30: 714491
A31: Child Care Facilities
A32: Community Halls and Facilities | C32: 0 | D32: 0 | E32: 0 | F32: 0 | G32: 0 | H32: 0 | I32: 0 | J32: 0 | K32: 0
A33: Consumer Protection
A34: Cultural Matters | C34: 0 | D34: 0 | E34: 0 | F34: 0 | G34: 0 | H34: 0 | I34: 0 | J34: 0 | K34: 0
A35: Disaster Management | C35: 0 | D35: 0 | E35: 0 | F35: 0 | G35: 0 | H35: 0 | I35: 0 | J35: 0 | K35: 0
A36: Education
A37: Indigenous and Customary Law
A38: Industrial Promotion
A39: Language Policy
A40: Libraries and Archives | C40: 333758.36 | D40: 11478685.89 | E40: 301519.43 | F40: 133335 | G40: 133335 | H40: 133335 | I40: 140001 | J40: 147001 | K40: 154352
A41: Literacy Programmes
A42: Media Services
A43: Museums and Art Galleries | C43: 551415.77 | D43: 558080.46 | E43: 339603.23 | F43: 423118 | G43: 423118 | H43: 423118 | I43: 444274 | J43: 466488 | K43: 489812
A44: Population Development
A45: Provincial Cultural Matters
A46: Theatres
A47: Zoo's
A48: Sport and recreation | C48: =SUM(C49:C53) -> 4035992.74 | D48: =SUM(D49:D53) -> 8064439.22 | E48: 3965663.55 | F48: 1630332 | G48: 230332 | H48: 230332 | I48: 241848 | J48: 253940 | K48: 266638
A49: Beaches and Jetties
A50: Casinos, Racing, Gambling, Wagering
A51: Community Parks (including Nurseries) | C51: 2362.89 | D51: 0 | E51: 0 | F51: 56004 | G51: 56004 | H51: 56004 | I51: 58804 | J51: 61744 | K51: 64832
A52: Recreational Facilities | C52: 257583.26 | D52: 389663.48 | E52: 281291.09 | F52: 109169 | G52: 109169 | H52: 109169 | I52: 114627 | J52: 120358 | K52: 126376
A53: Sports Grounds and Stadiums | C53: 3776046.59 | D53: 7674775.74 | E53: 3684372.46 | F53: 1465159 | G53: 65159 | H53: 65159 | I53: 68417 | J53: 71838 | K53: 75430
A54: Public safety | C54: =SUM(C55:C62) -> 2717470.29 | D54: 8489350.16 | E54: 4954643.42 | F54: 7991288 | G54: 7991288 | H54: 7991288 | I54: 8390853 | J54: 8810395 | K54: 9250916
A55: Civil Defence
A56: Cleansing
A57: Control of Public Nuisances
A58: Fencing and Fences
A59: Fire Fighting and Protection | C59: 213591.99 | D59: 148998 | E59: 65635.58 | F59: 108191 | G59: 108191 | H59: 108191 | I59: 113601 | J59: 119281 | K59: 125245
A60: Licensing and Control of Animals
A61: Police Forces, Traffic and Street Parking Control | C61: 2503878.3 | D61: 8340352.16 | E61: 4889007.84 | F61: 7883097 | G61: 7883097 | H61: 7883097 | I61: 8277252 | J61: 8691114 | K61: 9125671
A62: Pounds
A63: Housing | C63: =SUM(C64:C65) -> 0 | D63: =SUM(D64:D65) -> 0 | E63: 0 | F63: 0 | G63: 0 | H63: 0 | I63: 0 | J63: 0 | K63: 0
A64: Housing | C64: 0 | D64: 0 | E64: 0 | F64: 0 | G64: 0 | H64: 0 | I64: 0 | J64: 0 | K64: 0
A65: Informal Settlements
A66: Health | C66: =SUM(C67:C73) -> 0 | D66: =SUM(D67:D73) -> 0 | E66: 0 | F66: 0 | G66: 0 | H66: 0 | I66: 0 | J66: 0 | K66: 0
A67: Ambulance
A68: Health Services
A69: Laboratory Services
A70: Food Control
A71: Health Surveillance and Prevention of Communicable Diseases including immunizations
A72: Vector Control
A73: Chemical Safety
A74: Economic and environmental services | C74: =C75+C86+C91 -> 588309662.9 | D74: 593339706.6 | E74: 644307307.4 | F74: 352716651 | G74: 468469227 | H74: 468469227 | I74: 462918838 | J74: 464912528.7 | K74: 486855096.8
A75: Planning and development | C75: =SUM(C76:C85) -> 543063560 | D75: =SUM(D76:D85) -> 547750670.5 | E75: 554258154 | F75: 345052431 | G75: 416805007 | H75: 416805007 | I75: 398236704 | J75: 396996288 | K75: 415543051
A76: Billboards
A77: Corporate Wide Strategic Planning (IDPs, LEDs) | C77: 5650460.34 | D77: 8240000 | E77: 5833030 | F77: 4244000 | G77: 4244000 | H77: 4244000 | I77: 7036000 | J77: 0 | K77: 0
A78: Central City Improvement District
A79: Development Facilitation
A80: Economic Development/Planning | C80: 6303.46 | D80: 5850.9 | E80: 50254.36 | F80: 46308 | G80: 46308 | H80: 46308 | I80: 48623 | J80: 51055 | K80: 53607
A81: Regional Planning and Development
A82: Town Planning, Building Regulations and Enforcement, and City Engineer | C82: 10098572.63 | D82: 9941975.62 | E82: 9927208.6 | F82: 6879123 | G82: 6879123 | H82: 6879123 | I82: 7223081 | J82: 7584233 | K82: 7963444
A83: Project Management Unit | C83: 527308223.5 | D83: 529562844 | E83: 538447661 | F83: 333883000 | G83: 405635576 | H83: 405635576 | I83: 383929000 | J83: 389361000 | K83: 407526000
A84: Provincial Planning
A85: Support to Local Municipalities
A86: Road transport | C86: =SUM(C87:C90) -> 45246102.91 | D86: 45589036.08 | E86: 90049153.39 | F86: 7663988 | G86: 51663988 | H86: 51663988 | I86: 64681889.96 | J86: 67915984.75 | K86: 71311776.84
A87: Public Transport | C87: 6790.35 | D87: 4674.81 | E87: 1106.09 | F87: 0 | G87: 0 | H87: 0 | I87: 10434702.96 | J87: 10956437.75 | K87: 11504252.84
A88: Road and Traffic Regulation | C88: 41997054.26 | D88: 45584361.27 | E88: 43052953.09 | F88: 7663988 | G88: 51663988 | H88: 51663988 | I88: 54247187 | J88: 56959547 | K88: 59807524
A89: Roads | C89: 3242258.3 | D89: 0 | E89: 46995094.21 | F89: 0 | G89: 0 | H89: 0 | I89: 0 | J89: 0 | K89: 0
A90: Taxi Ranks
A91: Environmental protection | C91: =SUM(C92:C97) -> 0 | D91: =SUM(D92:D97) -> 0 | E91: 0 | F91: 232 | G91: 232 | H91: 232 | I91: 244 | J91: 256 | K91: 269
A92: Biodiversity and Landscape
A93: Coastal Protection
A94: Indigenous Forests
A95: Nature Conservation
A96: Pollution Control | C96: 0 | D96: 0 | E96: 0 | F96: 232 | G96: 232 | H96: 232 | I96: 244 | J96: 256 | K96: 269
A97: Soil Conservation
A98: Trading services | C98: =C99+C103+C107+C112 -> 1164934987 | D98: =D99+D103+D107+D112 -> 1277078497 | E98: 1342088591 | F98: 2318917718 | G98: 2316791964 | H98: 2316791964 | I98: 1822749988 | J98: 1914342642 | K98: =K99+K103+K107+K112 -> 2032798514
A99: Energy sources | C99: =SUM(C100:C102) -> 912852481.7 | D99: =SUM(D100:D102) -> 1027125680 | E99: 1083098749 | F99: 1368516255 | G99: 1368516255 | H99: 1368516255 | I99: 1481262007 | J99: 1487778913 | K99: 1570405173
A100: Electricity | C100: 877327037.7 | D100: 1000130028 | E100: 1076371110 | F100: 1362216255 | G100: 1362216255 | H100: 1362216255 | I100: 1475262007 | J100: 1479778913 | K100: 1570405173
A101: Street Lighting and Signal Systems | C101: 0 | D101: 0 | E101: 0 | F101: 0 | G101: 0 | H101: 0 | I101: 0 | J101: 0 | K101: 0
A102: Nonelectric Energy | C102: 35525444 | D102: 26995652 | E102: 6727639 | F102: 6300000 | G102: 6300000 | H102: 6300000 | I102: 6000000 | J102: 8000000 | K102: 0
A103: Water management | C103: =SUM(C104:C106) -> 124021986.1 | D103: =SUM(D104:D106) -> 106922117.3 | E103: 106305171.1 | F103: 481132162 | G103: 476432162 | H103: 476432162 | I103: 165294869 | J103: 241560956 | K103: 268140424
A104: Water Treatment | C104: 47193277.45 | D104: 55220877.45 | E104: 53357533.07 | F104: 62883818 | G104: 62883818 | H104: 62883818 | I104: 66656847 | J104: 69989689 | K104: 73489174
A105: Water Distribution | C105: 76828708.65 | D105: 51701239.87 | E105: 52947638.02 | F105: 418248344 | G105: 413548344 | H105: 413548344 | I105: 98638022 | J105: 171571267 | K105: 194651250
A106: Water Storage | C106: 0 | D106: 0 | E106: 0 | F106: 0 | G106: 0 | H106: 0 | I106: 0 | J106: 0 | K106: 0
A107: Waste water management | C107: =SUM(C108:C111) -> 27229465.26 | D107: =SUM(D108:D111) -> 21873762.37 | E107: 22504939.13 | F107: 191510862 | G107: 190085108 | H107: 190085108 | I107: 25259934 | J107: 26522936 | K107: 27849089
A108: Public Toilets
A109: Sewerage | C109: 10529477.92 | D109: 12134886.62 | E109: 12283657.44 | F109: 180136304 | G109: 178710550 | H109: 178710550 | I109: 13202903 | J109: 13863053 | K109: 14556212
A110: Storm Water Management | C110: 0 | D110: 0 | E110: 0 | F110: 0 | G110: 0 | H110: 0 | I110: 0 | J110: 0 | K110: 0
A111: Waste Water Treatment | C111: 16699987.34 | D111: 9738875.75 | E111: 10221281.69 | F111: 11374558 | G111: 11374558 | H111: 11374558 | I111: 12057031 | J111: 12659883 | K111: 13292877
A112: Waste management | C112: =SUM(C113:C116) -> 100831054.3 | D112: =SUM(D113:D116) -> 121156936.9 | E112: 130179732 | F112: 277758439 | G112: 281758439 | H112: 281758439 | I112: 150933178 | J112: 158479837 | K112: 166403828
A113: Recycling
A114: Solid Waste Disposal (Landfill Sites) | C114: 0 | D114: 0 | E114: 0 | F114: 0 | G114: 0 | H114: 0 | I114: 0 | J114: 0 | K114: 0
A115: Solid Waste Removal | C115: 100831054.3 | D115: 121156936.9 | E115: 130179732 | F115: 277758439 | G115: 281758439 | H115: 281758439 | I115: 150933178 | J115: 158479837 | K115: 166403828
A116: Street Cleaning
A117: Other | C117: =SUM(C118:C123) -> 0 | D117: =SUM(D118:D123) -> 0 | E117: 0 | F117: 0 | G117: 0 | H117: 0 | I117: 0 | J117: 0 | K117: 0
A118: Abattoirs
A119: Air Transport
A120: Forestry
A121: Licensing and Regulation | C121: 0 | D121: 0 | E121: 0 | F121: 0 | G121: 0 | H121: 0 | I121: 0 | J121: 0 | K121: 0
A122: Markets
A123: Tourism | C123: 0 | D123: 0 | E123: 0 | F123: 0 | G123: 0 | H123: 0 | I123: 0 | J123: 0 | K123: 0
A124: ="Total "&A4 -> Total Revenue - Functional | B124: 2 | C124: =C5+C25+C74+C98+C117 -> 2924979821 | D124: 3275625312 | E124: 3710525302 | F124: 3581579371 | G124: 3709306193 | H124: 3709306193 | I124: 3973368665 | J124: 4172812002 | K124: 4367194288
A126: Expenditure - Functional
A127: =A5 -> Municipal governance and administration | C127: =C128+C131+C145 -> 793576634.2 | D127: 852856628 | E127: 833627175.7 | F127: 675881235 | G127: 724180658 | H127: 724180658 | I127: 641174084 | J127: 640682208 | K127: 645513413
A128: Executive and council | C128: =SUM(C129:C130) -> 191876980.2 | D128: 129996532.9 | E128: 145025839.2 | F128: 138603136 | G128: 147301478 | H128: 147301478 | I128: 145519098 | J128: 147615787 | K128: 149917606
A129: Mayor and Council | C129: 141636590.2 | D129: 79773942.87 | E129: 95865366.82 | F129: 102823155 | G129: 99777155 | H129: 99777155 | I129: 97805479 | J129: 98791385 | K129: 99862786
A130: Municipal Manager, Town Secretary and Chief Executive | C130: 50240390.05 | D130: 50222590.04 | E130: 49160472.35 | F130: 35779981 | G130: 47524323 | H130: 47524323 | I130: 47713619 | J130: 48824402 | K130: 50054820
A131: Finance and administration | C131: =SUM(C132:C144) -> 597288392.6 | D131: 711371381.1 | E131: 675725751.3 | F131: 526835044 | G131: 563107125 | H131: 563107125 | I131: 482524686 | J131: 479993855 | K131: 482548149
A132: Administrative and Corporate Support | C132: 107222102.4 | D132: 58939768.65 | E132: 69746472.62 | F132: 33487254 | G132: 64864257 | H132: 64864257 | I132: 41240793 | J132: 39382090 | K132: 39412481
A133: Asset Management | C133: 31267208.9 | D133: 32987740.22 | E133: 29606073.5 | F133: 32052401 | G133: 29763401 | H133: 29763401 | I133: 29403530 | J133: 29545251 | K133: 29760479
A134: Finance | C134: 295603493.4 | D134: 342525679.6 | E134: 255931855.1 | F134: 225213517 | G134: 204332906 | H134: 204332906 | I134: 191186955 | J134: 189117218 | K134: 189618275
A135: Fleet Management | C135: 0 | D135: 0 | E135: 0 | F135: 0 | G135: 0 | H135: 0 | I135: 0 | J135: 0 | K135: 0
A136: Human Resources | C136: 78537573.11 | D136: 96560278.5 | E136: 97881733.88 | F136: 78430443 | G136: 80961443 | H136: 80961443 | I136: 57506353 | J136: 58820996 | K136: 60279406
A137: Information Technology | C137: 32058508.98 | D137: 31507319.2 | E137: 34940188.87 | F137: 33781743 | G137: 33271743 | H137: 33271743 | I137: 30591010 | J137: 29921702 | K137: 29328875
A138: Legal Services | C138: 5444090.9 | D138: 9948617.33 | E138: 26882660.28 | F138: 4000707 | G138: 11518707 | H138: 11518707 | I138: 9487557 | J138: 9461784 | K138: 9459729
A139: Marketing, Customer Relations, Publicity and Media Co-ordination | C139: 11695694.58 | D139: 7280467.1 | E139: 11960044.82 | F139: 8737704 | G139: 8221704 | H139: 8221704 | I139: 15553014 | J139: 16253240 | K139: 16992350
A140: Property Services | C140: 15590220.65 | D140: 11683254.47 | E140: 16703821.1 | F140: 9351810 | G140: 9717810 | H140: 9717810 | I140: 10905356 | J140: 11267071 | K140: 11656047
A141: Risk Management | C141: 27133987.26 | D141: 28009231.49 | E141: 23248215.89 | F141: 24069584 | G141: 24314584 | H141: 24314584 | I141: 16266851 | J141: 15867521 | K141: 15508855
A142: Security Services | C142: 61128028.49 | D142: 64681382.38 | E142: 77983756.11 | F142: 45415665 | G142: 57017665 | H142: 57017665 | I142: 43243674 | J142: 41645404 | K142: 40155248
A143: Supply Chain Management | C143: 16236839.38 | D143: 17988352.38 | E143: 20673478.56 | F143: 21471153 | G143: 23369153 | H143: 23369153 | I143: 24829713 | J143: 25913504 | K143: 27059361
A144: Valuation Service | C144: -84629355.48 | D144: 9259289.71 | E144: 10167450.64 | F144: 10823063 | G144: 15753752 | H144: 15753752 | I144: 12309880 | J144: 12798074 | K144: 13317043
A145: Internal audit | C145: =SUM(C146:C146) -> 4411261.38 | D145: 11488714.03 | E145: 12875585.24 | F145: 10443055 | G145: 13772055 | H145: 13772055 | I145: 13130300 | J145: 13072566 | K145: 13047658
A146: Governance Function | C146: 4411261.38 | D146: 11488714.03 | E146: 12875585.24 | F146: 10443055 | G146: 13772055 | H146: 13772055 | I146: 13130300 | J146: 13072566 | K146: 13047658
A147: Community and public safety | C147: =C148+C170+C176+C185+C188 -> 304351550.2 | D147: 311769648.3 | E147: 397154980.2 | F147: 308328504 | G147: 316859404 | H147: 316859404 | I147: 304740953 | J147: 313257308 | K147: 323314821
A148: Community and social services | C148: =SUM(C149:C169) -> 44425745.16 | D148: =SUM(D149:D169) -> 45708262.85 | E148: 74374530.91 | F148: 50081057 | G148: 59331272 | H148: 59331272 | I148: 53631142 | J148: 55462773 | K148: 57428722
A149: Aged Care
A150: Agricultural
A151: Animal Care and Diseases
A152: Cemeteries, Funeral Parlours and Crematoriums | C152: 15709773.59 | D152: 10754958.62 | E152: 24902504.38 | F152: 13029719 | G152: 23314719 | H152: 23314719 | I152: 16646005 | J152: 16730451 | K152: 16856509
A153: Child Care Facilities
A154: Community Halls and Facilities | C154: 7314473.26 | D154: 8170631.68 | E154: 9774171.24 | F154: 10056886 | G154: 10033886 | H154: 10033886 | I154: 11236180 | J154: 11797992 | K154: 12387889
A155: Consumer Protection
A156: Cultural Matters | C156: 89900 | D156: 100000 | E156: 0 | F156: 0 | G156: 0 | H156: 0 | I156: 0 | J156: 0 | K156: 0
A157: Disaster Management | C157: 981574.56 | D157: 1164097.49 | E157: 4698157.46 | F157: 3794269 | G157: 3692484 | H157: 3692484 | I157: 5665532 | J157: 5937742 | K157: 6224367
A158: Education
A159: =A37 -> Indigenous and Customary Law
A160: Industrial Promotion
A161: Language Policy
A162: Libraries and Archives | C162: 15565098.65 | D162: 18450363.21 | E162: 30609268.34 | F162: 19245295 | G162: 19070295 | H162: 19070295 | I162: 17756823 | J162: 18616164 | K162: 19519896
A163: Literacy Programmes
A164: Media Services
A165: Museums and Art Galleries | C165: 4764925.1 | D165: 7068211.85 | E165: 4390429.49 | F165: 3954888 | G165: 3219888 | H165: 3219888 | I165: 2326602 | J165: 2380424 | K165: 2440061
A166: Population Development
A167: Provincial Cultural Matters
A168: Theatres
A169: Zoo's
A170: Sport and recreation | C170: =SUM(C171:C175) -> 161463902.9 | D170: 159947728.2 | E170: 164041862.1 | F170: 124629439 | G170: 120739439 | H170: 120739439 | I170: 103309175 | J170: 104811656 | K170: 107359905
A171: Beaches and Jetties
A172: Casinos, Racing, Gambling, Wagering
A173: Community Parks (including Nurseries) | C173: 67674627.55 | D173: 95531600.14 | E173: 102104786.1 | F173: 75170477 | G173: 68305477 | H173: 68305477 | I173: 58723045 | J173: 61057442 | K173: 63538647
A174: Recreational Facilities | C174: 14919184.29 | D174: 16104278.84 | E174: 18395569.28 | F174: 17606352 | G174: 22211352 | H174: 22211352 | I174: 18321854 | J174: 19028448 | K174: 19780844
A175: Sports Grounds and Stadiums | C175: 78870091.03 | D175: 48311849.21 | E175: 43541506.76 | F175: 31852610 | G175: 30222610 | H175: 30222610 | I175: 26264276 | J175: 24725766 | K175: 24040414
A176: Public safety | C176: =SUM(C177:C184) -> 75117560.74 | D176: 95596748.68 | E176: 132431772.1 | F176: 122752123 | G176: 126050908 | H176: 126050908 | I176: 136014237 | J176: 140617410 | K176: 145552188
A177: Civil Defence
A178: Cleansing
A179: =A57 -> Control of Public Nuisances
A180: Fencing and Fences
A181: Fire Fighting and Protection | C181: 35394631.35 | D181: 43563336.43 | E181: 50359551.19 | F181: 55785168 | G181: 59298953 | H181: 59298953 | I181: 53979093 | J181: 55072306 | K181: 56300465
A182: Licensing and Control of Animals
A183: Police Forces, Traffic and Street Parking Control | C183: 39722929.39 | D183: 52033412.25 | E183: 82072220.87 | F183: 66966955 | G183: 66751955 | H183: 66751955 | I183: 82035144 | J183: 85545104 | K183: 89251723
A184: Pounds
A185: =A63 -> Housing | C185: =SUM(C186:C187) -> 23344341.42 | D185: 10516908.62 | E185: 26306815.09 | F185: 10865885 | G185: 10737785 | H185: 10737785 | I185: 11786399 | J185: 12365469 | K185: 12974006
A186: Housing | C186: 23344341.42 | D186: 10516908.62 | E186: 26306815.09 | F186: 10865885 | G186: 10737785 | H186: 10737785 | I186: 11786399 | J186: 12365469 | K186: 12974006
A187: Informal Settlements
A188: Health | C188: =SUM(C189:C195) -> 0 | D188: =SUM(D189:D195) -> 0 | E188: 0 | F188: 0 | G188: 0 | H188: 0 | I188: 0 | J188: 0 | K188: 0
A189: Ambulance
A190: Health Services
A191: Laboratory Services
A192: Food Control
A193: Health Surveillance and Prevention of Communicable Diseases including immunizations
A194: Vector Control
A195: Chemical Safety
A196: Economic and environmental services | C196: =C197+C208+C213 -> 514100503.1 | D196: 561923139.3 | E196: 572112969.7 | F196: 470245381 | G196: 481413089 | H196: 481413089 | I196: 517404380.3 | J196: 569960844.6 | K196: 581294019.8
A197: Planning and development | C197: =SUM(C198:C207) -> 315589636.5 | D197: =SUM(D198:D207) -> 91653896.19 | E197: 106960822.3 | F197: 116009339 | G197: 125628339 | H197: 125628339 | I197: 125447758 | J197: 125487663 | K197: 129285015
A198: Billboards
A199: Corporate Wide Strategic Planning (IDPs, LEDs) | C199: 21367035.03 | D199: 31220264.97 | E199: 29903124.12 | F199: 30060203 | G199: 30820203 | H199: 30820203 | I199: 31787706 | J199: 32994149 | K199: 34280062
A200: Central City Improvement District
A201: Development Facilitation | C201: 88700.39 | D201: 176856.71 | E201: 406909.48 | F201: 210000 | G201: 60000 | H201: 60000 | I201: 28500 | J201: 27075 | K201: 25722
... 53 more rows

Sheet A3-FinPerf V
A1: =muni&" - "&Approve2 -> MP326 City of Mbombela - Table A3 Budgeted Financial Performance (revenue and expenditure by municipal vote)
A2: =Vdesc -> Vote Description | B2: =head27 -> Ref | C2: =head1b -> 2017/18 | D2: =head1A -> 2018/19 | E2: =Head1 -> 2019/20 | F2: =Head2 -> Current Year 2020/21 | I2: =Head3 -> 2021/22 Medium Term Revenue & Expenditure Framework | L2: =Head4 -> LTFS
A3: R thousand | C3: =Head5 -> Audited Outcome | D3: =Head5 -> Audited Outcome | E3: =Head5 -> Audited Outcome | F3: =Head6 -> Original Budget | G3: =Head7 -> Adjusted Budget | H3: =Head8 -> Full Year Forecast | I3: =Head9 -> Budget Year 2021/22 | J3: =Head10 -> Budget Year +1 2022/23 | K3: =Head11 -> Budget Year +2 2023/24 | L3: =Head12 -> Forecast 2024/25 | M3: =Head13 -> Forecast 2025/26 | N3: =Head14 -> Forecast 2026/27 | O3: =Head15 -> Forecast 2027/28 | P3: =Head16 -> Forecast 2028/29 | Q3: =Head17 -> Forecast 2029/30 | R3: =Head18 -> Forecast 2030/31 | S3: =Head19 -> Forecast 2031/32 | T3: =Head20 -> Forecast 2032/33 | U3: =Head21 -> Forecast 2033/34 | V3: =Head22 -> Forecast 2034/35 | W3: =Head23 -> Forecast 2035/36
A4: Revenue by Vote | B4: 1
A5: =A3A!A5 -> Vote 01 - Council | C5: =A3A!C5 -> -6427.64 | D5: =A3A!D5 -> -1742.46 | E5: =A3A!E5 -> -20569.92 | F5: =A3A!F5 -> 6307 | G5: =A3A!G5 -> 6307 | H5: =A3A!H5 -> 6307 | I5: =A3A!I5 -> 6622 | J5: =A3A!J5 -> 6953 | K5: =A3A!K5 -> 7301
A6: =A3A!A20 -> Vote 02 - Office Of Council | C6: =A3A!C20 -> 0 | D6: =A3A!D20 -> 0 | E6: =A3A!E20 -> 1667765.2 | F6: =A3A!F20 -> 692238 | G6: =A3A!G20 -> 692238 | H6: =A3A!H20 -> 692238 | I6: =A3A!I20 -> 726849 | J6: =A3A!J20 -> 763192 | K6: =A3A!K20 -> 801352
A7: =A3A!A24 -> Vote 03 - Municipal Manager | C7: =A3A!C24 -> 6349396 | D7: =A3A!D24 -> 8149775.54 | E7: =A3A!E24 -> 9225525.76 | F7: =A3A!F24 -> 9803272 | G7: =A3A!G24 -> 7103272 | H7: =A3A!H24 -> 7103272 | I7: =A3A!I24 -> 7507228 | J7: =A3A!J24 -> 7882589 | K7: =A3A!K24 -> 8276721
A8: =A3A!A40 -> Vote 04 - City Planning And Development Department | C8: =A3A!C40 -> 13005053.46 | D8: =A3A!D40 -> 11847748.64 | E8: =A3A!E40 -> 14794309.52 | F8: =A3A!F40 -> 9953999 | G8: =A3A!G40 -> 9953999 | H8: =A3A!H40 -> 9953999 | I8: =A3A!I40 -> 10451702 | J8: =A3A!J40 -> 10974283 | K8: =A3A!K40 -> 11522997
A9: =A3A!A49 -> Vote 05 - Corporate Services Department | C9: =A3A!C49 -> 1857239.37 | D9: =A3A!D49 -> 659139.54 | E9: =A3A!E49 -> 367682.66 | F9: =A3A!F49 -> 697805 | G9: =A3A!G49 -> 697805 | H9: =A3A!H49 -> 697805 | I9: =A3A!I49 -> 732694 | J9: =A3A!J49 -> 769330 | K9: =A3A!K49 -> 807797
A10: =A3A!A56 -> Vote 06 - Strategic Management Services | C10: =A3A!C56 -> 0 | D10: =A3A!D56 -> 0 | E10: =A3A!E56 -> 0 | F10: =A3A!F56 -> 0 | G10: =A3A!G56 -> 0 | H10: =A3A!H56 -> 0 | I10: =A3A!I56 -> 0 | J10: =A3A!J56 -> 0 | K10: =A3A!K56 -> 0
A11: =A3A!A63 -> Vote 07 - Financial Management | C11: =A3A!C63 -> 1158231998 | D11: =A3A!D63 -> 1373106260 | E11: =A3A!E63 -> 1706621311 | F11: =A3A!F63 -> 894402042 | G11: =A3A!G63 -> 909902042 | H11: =A3A!H63 -> 909902042 | I11: =A3A!I63 -> 1672849734 | J11: =A3A!J63 -> 1777964221 | K11: =A3A!K63 -> 1831168430
A12: =A3A!A77 -> Vote 08 - Legal Services | C12: =A3A!C77 -> 0 | D12: =A3A!D77 -> 0 | E12: =A3A!E77 -> 0 | F12: =A3A!F77 -> 0 | G12: =A3A!G77 -> 0 | H12: =A3A!H77 -> 0 | I12: =A3A!I77 -> 0 | J12: =A3A!J77 -> 0 | K12: =A3A!K77 -> 0
A13: =A3A!A79 -> Vote 09 - Regional Centre Coordination | C13: =A3A!C79 -> 0 | D13: =A3A!D79 -> 0 | E13: =A3A!E79 -> 0 | F13: =A3A!F79 -> 0 | G13: =A3A!G79 -> 0 | H13: =A3A!H79 -> 0 | I13: =A3A!I79 -> 0 | J13: =A3A!J79 -> 0 | K13: =A3A!K79 -> 0
A14: =A3A!A85 -> Vote 10 - Community Services | C14: =A3A!C85 -> 106455701.5 | D14: =A3A!D85 -> 142138734.9 | E14: =A3A!E85 -> 135826318 | F14: =A3A!F85 -> 280562429 | G14: =A3A!G85 -> 283162429 | H14: =A3A!H85 -> 283162429 | I14: =A3A!I85 -> 152407366 | J14: =A3A!J85 -> 160027735 | K14: =A3A!K85 -> 168029121
A15: =A3A!A97 -> Vote 11 - Public Works, Roads And Transport | C15: =A3A!C97 -> 536207732.5 | D15: =A3A!D97 -> 537807518.8 | E15: =A3A!E97 -> 591276891.3 | F15: =A3A!F97 -> 338127000 | G15: =A3A!G97 -> 409879576 | H15: =A3A!H97 -> 409879576 | I15: =A3A!I97 -> 390965000 | J15: =A3A!J97 -> 389361000 | K15: =A3A!K97 -> 407526000 | L15: =A5A!#REF! -> 
A16: =A3A!A120 -> Vote 12 - Public Safety | C16: =A3A!C120 -> 44715349.81 | D16: =A3A!D120 -> 54074221.43 | E16: =A3A!E120 -> 48008496.51 | F16: =A3A!F120 -> 15668165 | G16: =A3A!G120 -> 59668165 | H16: =A3A!H120 -> 59668165 | I16: =A3A!I120 -> 62651573 | J16: =A3A!J120 -> 65784152 | K16: =A3A!K120 -> 69073361 | L16: =A5A!#REF! -> 
A17: =A3A!A131 -> Vote 13 - Water And Sanitation | C17: =A3A!C131 -> 145311296.2 | D17: =A3A!D131 -> 120717976 | E17: =A3A!E131 -> 119658823.3 | F17: =A3A!F131 -> 663149859 | G17: =A3A!G131 -> 659724105 | H17: =A3A!H131 -> 659724105 | I17: =A3A!I131 -> 183373187 | J17: =A3A!J131 -> 260543196 | K17: =A3A!K131 -> 288071782 | L17: =A5A!#REF! -> 
A18: =A3A!A145 -> Vote 14 - Energy | C18: =A3A!C145 -> 912852481.7 | D18: =A3A!D145 -> 1027125680 | E18: =A3A!E145 -> 1083098749 | F18: =A3A!F145 -> 1368516255 | G18: =A3A!G145 -> 1368516255 | H18: =A3A!H145 -> 1368516255 | I18: =A3A!I145 -> 1491696710 | J18: =A3A!J145 -> 1498735351 | K18: =A3A!K145 -> 1581909426 | L18: =A5A!#REF! -> 
A19: ='Org structure'!A16 -> Vote 15 - Other | C19: =A3A!C151 -> 0 | D19: =A3A!D151 -> 0 | E19: =A3A!E151 -> 0 | F19: =A3A!F151 -> 0 | G19: =A3A!G151 -> 0 | H19: =A3A!H151 -> 0 | I19: =A3A!I151 -> 0 | J19: =A3A!J151 -> 0 | K19: =A3A!K151 -> 0 | L19: =A5A!#REF! -> 
A20: Total Revenue by Vote | B20: 2 | C20: =SUM(C5:C19) -> 2924979821 | D20: =SUM(D5:D19) -> 3275625312 | E20: 3710525302 | F20: 3581579371 | G20: 3709306193 | H20: 3709306193 | I20: 3973368665 | J20: 4172812002 | K20: 4367194288
A22: Expenditure by Vote to be appropriated | B22: 1
A23: =A3A!A155 -> Vote 01 - Council | C23: =A3A!C155 -> 119544676.2 | D23: =A3A!D155 -> 54494392.73 | E23: =A3A!E155 -> 70286263.92 | F23: =A3A!F155 -> 79385493 | G23: =A3A!G155 -> 77018493 | H23: =A3A!H155 -> 77018493 | I23: =A3A!I155 -> 70850455 | J23: =A3A!J155 -> 70921049 | K23: =A3A!K155 -> 71009752
A24: =A3A!A170 -> Vote 02 - Office Of Council | C24: =A3A!C170 -> 22091914 | D24: =A3A!D170 -> 25279550.14 | E24: =A3A!E170 -> 25579102.9 | F24: =A3A!F170 -> 23437662 | G24: =A3A!G170 -> 22758662 | H24: =A3A!H170 -> 22758662 | I24: =A3A!I170 -> 26955024 | J24: =A3A!J170 -> 27870336 | K24: =A3A!K170 -> 28853034
A25: =A3A!A174 -> Vote 03 - Municipal Manager | C25: =A3A!C174 -> 93259116.5 | D25: =A3A!D174 -> 221688360.2 | E25: =A3A!E174 -> 239424726.2 | F25: =A3A!F174 -> 190073203 | G25: =A3A!G174 -> 207882545 | H25: =A3A!H174 -> 207882545 | I25: =A3A!I174 -> 185134973 | J25: =A3A!J174 -> 180264545 | K25: =A3A!K174 -> 175857299
A26: =A3A!A190 -> Vote 04 - City Planning And Development Department | C26: =A3A!C190 -> 308602834.5 | D26: =A3A!D190 -> 74111340.48 | E26: =A3A!E190 -> 97588291.52 | F26: =A3A!F190 -> 84337949 | G26: =A3A!G190 -> 93774849 | H26: =A3A!H190 -> 93774849 | I26: =A3A!I190 -> 93803919 | J26: =A3A!J190 -> 92407072 | K26: =A3A!K190 -> 94688558
A27: =A3A!A199 -> Vote 05 - Corporate Services Department | C27: =A3A!C199 -> 197740795.6 | D27: =A3A!D199 -> 158055307 | E27: =A3A!E199 -> 166669997.4 | F27: =A3A!F199 -> 129711653 | G27: =A3A!G199 -> 149960656 | H27: =A3A!H199 -> 149960656 | I27: =A3A!I199 -> 111963501 | J27: =A3A!J199 -> 110689594 | K27: =A3A!K199 -> 111480600
A28: =A3A!A206 -> Vote 06 - Strategic Management Services | C28: =A3A!C206 -> 32357379.79 | D28: =A3A!D206 -> 36395117.12 | E28: =A3A!E206 -> 36130338.07 | F28: =A3A!F206 -> 32942190 | G28: =A3A!G206 -> 32490190 | H28: =A3A!H206 -> 32490190 | I28: =A3A!I206 -> 41925662 | J28: =A3A!J206 -> 43648027 | K28: =A3A!K206 -> 45475208
A29: =A3A!A213 -> Vote 07 - Financial Management | C29: =A3A!C213 -> 263221340.2 | D29: =A3A!D213 -> 402761061.9 | E29: =A3A!E213 -> 316393352.7 | F29: =A3A!F213 -> 289560134 | G29: =A3A!G213 -> 273219212 | H29: =A3A!H213 -> 273219212 | I29: =A3A!I213 -> 257730078 | J29: =A3A!J213 -> 257374047 | K29: =A3A!K213 -> 259755158
A30: =A3A!A227 -> Vote 08 - Legal Services | C30: =A3A!C227 -> 5444090.9 | D30: =A3A!D227 -> 9948617.33 | E30: =A3A!E227 -> 26882660.28 | F30: =A3A!F227 -> 4000707 | G30: =A3A!G227 -> 11518707 | H30: =A3A!H227 -> 11518707 | I30: =A3A!I227 -> 9487557 | J30: =A3A!J227 -> 9461784 | K30: =A3A!K227 -> 9459729
A31: =A3A!A229 -> Vote 09 - Regional Centre Coordination | C31: =A3A!C229 -> 20018838.62 | D31: =A3A!D229 -> 28952059.39 | E31: =A3A!E229 -> 35883902.93 | F31: =A3A!F229 -> 15987787 | G31: =A3A!G229 -> 29136787 | H31: =A3A!H229 -> 29136787 | I31: =A3A!I229 -> 17374655 | J31: =A3A!J229 -> 17435194 | K31: =A3A!K229 -> 17540162
A32: =A3A!A235 -> Vote 10 - Community Services | C32: =A3A!C235 -> 465098420.6 | D32: =A3A!D235 -> 510216243.9 | E32: =A3A!E235 -> 551325692.6 | F32: =A3A!F235 -> 456478679 | G32: =A3A!G235 -> 499794679 | H32: =A3A!H235 -> 499794679 | I32: =A3A!I235 -> 409260153 | J32: =A3A!J235 -> 416643693 | K32: =A3A!K235 -> 426196910
A33: =A3A!A247 -> Vote 11 - Public Works, Roads And Transport | C33: =A3A!C247 -> 239037969.6 | D33: =A3A!D247 -> 443126880.3 | E33: =A3A!E247 -> 454112549 | F33: =A3A!F247 -> 442985541 | G33: =A3A!G247 -> 454367541 | H33: =A3A!H247 -> 454367541 | I33: =A3A!I247 -> 405508178 | J33: =A3A!J247 -> 458156776 | K33: =A3A!K247 -> 475083127.8 | L33: =A3A!L248 -> 0
A34: =A3A!A270 -> Vote 12 - Public Safety | C34: =A3A!C270 -> 181813314.1 | D34: =A3A!D270 -> 209689831.9 | E34: =A3A!E270 -> 273672366.2 | F34: =A3A!F270 -> 228174615 | G34: =A3A!G270 -> 242537615 | H34: =A3A!H270 -> 242537615 | I34: =A3A!I270 -> 241481330 | J34: =A3A!J270 -> 247551188 | K34: =A3A!K270 -> 254216577 | L34: =A3A!L271 -> 0
A35: =A3A!A281 -> Vote 13 - Water And Sanitation | C35: =A3A!C281 -> 367348560.8 | D35: =A3A!D281 -> 390586745.6 | E35: =A3A!E281 -> 431690625.3 | F35: =A3A!F281 -> 300668595 | G35: =A3A!G281 -> 266935595 | H35: =A3A!H281 -> 266935595 | I35: =A3A!I281 -> 323292129.7 | J35: =A3A!J281 -> 306338430.6 | K35: =A3A!K281 -> 291258208.1 | L35: =A3A!L282 -> 0
A36: =A3A!A295 -> Vote 14 - Energy | C36: =A3A!C295 -> 793890498.6 | D36: =A3A!D295 -> 909902911.7 | E36: =A3A!E295 -> 934310289 | F36: =A3A!F295 -> 1340909128 | G36: =A3A!G295 -> 1249489196 | H36: =A3A!H295 -> 1249489196 | I36: =A3A!I295 -> 1159110654 | J36: =A3A!J295 -> 1259113624 | K36: =A3A!K295 -> 1368275570 | L36: =A3A!L296 -> 0
A37: ='Org structure'!A16 -> Vote 15 - Other | C37: =A3A!C301 -> 0 | D37: =A3A!D301 -> 0 | E37: =A3A!E301 -> 0 | F37: =A3A!F301 -> 0 | G37: =A3A!G301 -> 0 | H37: =A3A!H301 -> 0 | I37: =A3A!I301 -> 0 | J37: =A3A!J301 -> 0 | K37: =A3A!K301 -> 0 | L37: =A3A!#REF! -> 
A38: Total Expenditure by Vote | B38: 2 | C38: =SUM(C23:C37) -> 3109469750 | D38: =SUM(D23:D37) -> 3475208420 | E38: 3659950158 | F38: 3618653336 | G38: 3610884727 | H38: 3610884727 | I38: 3353878269 | J38: 3497875360 | K38: 3629149893 | L38: =SUM(L23:L29) -> 0 | M38: 0 | N38: 0 | O38: 0 | P38: 0 | Q38: 0 | R38: 0 | S38: 0 | T38: 0 | U38: 0 | V38: 0 | W38: 0
A39: =result -> Surplus/(Deficit) for the year | B39: 2 | C39: =C20-C38 -> -184489929.1 | D39: -199583107.3 | E39: 50575144.07 | F39: -37073965 | G39: 98421466 | H39: 98421466 | I39: 619490396.2 | J39: 674936642.1 | K39: 738044395 | L39: 0 | M39: 0 | N39: 0 | O39: 0 | P39: 0 | Q39: 0 | R39: 0 | S39: 0 | T39: 0 | U39: 0 | V39: 0 | W39: 0
A40: =head27a -> References
A41: 1. Insert 'Vote'; e.g. department, if different to functional classification structure
A42: 2. Must reconcile to Budgeted Financial Performance (revenue and expenditure)
A43: 3. Assign share in 'associate' to relevant Vote
A45: ="check "&A39 -> check Surplus/(Deficit) for the year | C45: =C39-A3A!C304 -> 0 | D45: =D39-A3A!D304 -> 0 | E45: =E39-A3A!E304 -> 0 | F45: =F39-A3A!F304 -> 0 | G45: =G39-A3A!G304 -> 0 | H45: =H39-A3A!H304 -> 0 | I45: =I39-A3A!I304 -> 0 | J45: =J39-A3A!J304 -> 0 | K45: =K39-A3A!K304 -> 0

Sheet A3A
A1: =muni&" - "&Approve2&"A" -> MP326 City of Mbombela - Table A3 Budgeted Financial Performance (revenue and expenditure by municipal vote)A
A2: =Vdesc -> Vote Description | B2: =head27 -> Ref | C2: =head1b -> 2017/18 | D2: =head1A -> 2018/19 | E2: =Head1 -> 2019/20 | F2: =Head2 -> Current Year 2020/21 | I2: =Head3 -> 2021/22 Medium Term Revenue & Expenditure Framework | L2: =Head4 -> LTFS
A3: R thousand | C3: =Head5 -> Audited Outcome | D3: =Head5 -> Audited Outcome | E3: =Head5 -> Audited Outcome | F3: =Head6 -> Original Budget | G3: =Head7 -> Adjusted Budget | H3: =Head8 -> Full Year Forecast | I3: =Head9 -> Budget Year 2021/22 | J3: =Head10 -> Budget Year +1 2022/23 | K3: =Head11 -> Budget Year +2 2023/24 | L3: =Head12 -> Forecast 2024/25 | M3: =Head13 -> Forecast 2025/26 | N3: =Head14 -> Forecast 2026/27 | O3: =Head15 -> Forecast 2027/28 | P3: =Head16 -> Forecast 2028/29 | Q3: =Head17 -> Forecast 2029/30 | R3: =Head18 -> Forecast 2030/31 | S3: =Head19 -> Forecast 2031/32 | T3: =Head20 -> Forecast 2032/33 | U3: =Head21 -> Forecast 2033/34 | V3: =Head22 -> Forecast 2034/35 | W3: =Head23 -> Forecast 2035/36
A4: Revenue by Vote | B4: 1
A5: ='Org structure'!A2 -> Vote 01 - Council | C5: =SUM(C6:C19) -> -6427.64 | D5: -1742.46 | E5: -20569.92 | F5: 6307 | G5: 6307 | H5: 6307 | I5: 6622 | J5: 6953 | K5: 7301
A6: ='Org structure'!E3 -> 01.1 - Office Of The Mayor | C6: 0 | D6: 0 | E6: 0 | F6: 0 | G6: 0 | H6: 0 | I6: 0 | J6: 0 | K6: 0
A7: ='Org structure'!E4 -> 01.2 - Office Of The Chief Whip | C7: -6427.64 | D7: -1742.46 | E7: -20569.92 | F7: 6307 | G7: 6307 | H7: 6307 | I7: 6622 | J7: 6953 | K7: 7301
A8: ='Org structure'!E5 -> 01.3 - Office Of The Speaker | C8: 0 | D8: 0 | E8: 0 | F8: 0 | G8: 0 | H8: 0 | I8: 0 | J8: 0 | K8: 0
A9: ='Org structure'!E6 -> 01.4 - Mayoral Mmc - Budget & Treasury Servic | C9: 0 | D9: 0 | E9: 0 | F9: 0 | G9: 0 | H9: 0 | I9: 0 | J9: 0 | K9: 0
A10: ='Org structure'!E7 -> 01.5 - Mayoral Mmc - Corporate Services | C10: 0 | D10: 0 | E10: 0 | F10: 0 | G10: 0 | H10: 0 | I10: 0 | J10: 0 | K10: 0
A11: ='Org structure'!E8 -> 01.6 - Mmc - City Planning & Development | C11: 0 | D11: 0 | E11: 0 | F11: 0 | G11: 0 | H11: 0 | I11: 0 | J11: 0 | K11: 0
A12: ='Org structure'!E9 -> 01.7 - Mmc - Strategic Management | C12: 0 | D12: 0 | E12: 0 | F12: 0 | G12: 0 | H12: 0 | I12: 0 | J12: 0 | K12: 0
A13: ='Org structure'!E10 -> 01.8 - Mayoral Mmc - Community Services | C13: 0 | D13: 0 | E13: 0 | F13: 0 | G13: 0 | H13: 0 | I13: 0 | J13: 0 | K13: 0
A14: ='Org structure'!E11 -> 01.9 - Mmc - Energy | C14: 0 | D14: 0 | E14: 0 | F14: 0 | G14: 0 | H14: 0 | I14: 0 | J14: 0 | K14: 0
A15: ='Org structure'!E12 -> 01.10 - Mmc - Public Safety | C15: 0 | D15: 0 | E15: 0 | F15: 0 | G15: 0 | H15: 0 | I15: 0 | J15: 0 | K15: 0
A16: ='Org structure'!E13 -> 01.11 - Mmc - Water & Sanitation | C16: 0 | D16: 0 | E16: 0 | F16: 0 | G16: 0 | H16: 0 | I16: 0 | J16: 0 | K16: 0
A17: ='Org structure'!E14 -> 01.12 - Mmc - Public Works & Transport | C17: 0 | D17: 0 | E17: 0 | F17: 0 | G17: 0 | H17: 0 | I17: 0 | J17: 0 | K17: 0
A18: ='Org structure'!E15 -> 01.13 - Mayoral Mmc - Centre Coordination | C18: 0 | D18: 0 | E18: 0 | F18: 0 | G18: 0 | H18: 0 | I18: 0 | J18: 0 | K18: 0
A19: ='Org structure'!E16 -> 01.14 - Mpac (Section 79) | C19: 0 | D19: 0 | E19: 0 | F19: 0 | G19: 0 | H19: 0 | I19: 0 | J19: 0 | K19: 0
A20: ='Org structure'!A3 -> Vote 02 - Office Of Council | C20: =SUM(C21:C23) -> 0 | D20: 0 | E20: 1667765.2 | F20: 692238 | G20: 692238 | H20: 692238 | I20: 726849 | J20: 763192 | K20: 801352
A21: ='Org structure'!E18 -> 02.1 - Office Of The Gm - Office Of Council | C21: 0 | D21: 0 | E21: 0 | F21: 0 | G21: 0 | H21: 0 | I21: 0 | J21: 0 | K21: 0
A22: ='Org structure'!E19 -> 02.2 - Public Stakeholder Participtn Petitions | C22: 0 | D22: 0 | E22: 0 | F22: 0 | G22: 0 | H22: 0 | I22: 0 | J22: 0 | K22: 0
A23: ='Org structure'!E20 -> 02.3 - Council Secretariat | C23: 0 | D23: 0 | E23: 1667765.2 | F23: 692238 | G23: 692238 | H23: 692238 | I23: 726849 | J23: 763192 | K23: 801352
A24: ='Org structure'!A4 -> Vote 03 - Municipal Manager | C24: =SUM(C25:C39) -> 6349396 | D24: 8149775.54 | E24: 9225525.76 | F24: 9803272 | G24: 7103272 | H24: 7103272 | I24: 7507228 | J24: 7882589 | K24: 8276721
A25: ='Org structure'!E22 -> 03.1 - Municipal Manager Administration | C25: 0 | D25: 0 | E25: 0 | F25: 0 | G25: 0 | H25: 0 | I25: 0 | J25: 0 | K25: 0
A26: ='Org structure'!E23 -> 03.2 - Municipal Manager Admin (Waste Man) | C26: 0 | D26: 0 | E26: 0 | F26: 0 | G26: 0 | H26: 0 | I26: 0 | J26: 0 | K26: 0
A27: ='Org structure'!E24 -> 03.3 - Municipal Manager Admin (Electricity) | C27: 0 | D27: 0 | E27: 0 | F27: 0 | G27: 0 | H27: 0 | I27: 0 | J27: 0 | K27: 0
A28: ='Org structure'!E25 -> 03.4 - Municipal Manager Admin (Rural Dev) | C28: 0 | D28: 0 | E28: 0 | F28: 0 | G28: 0 | H28: 0 | I28: 0 | J28: 0 | K28: 0
A29: ='Org structure'!E26 -> 03.5 - Internal Audit | C29: 0 | D29: 0 | E29: 0 | F29: 137 | G29: 137 | H29: 137 | I29: 144 | J29: 151 | K29: 159
A30: ='Org structure'!E27 -> 03.6 - Office Of The Dmm - Aux | C30: 0 | D30: 0 | E30: 0 | F30: 0 | G30: 0 | H30: 0 | I30: 0 | J30: 0 | K30: 0
A31: ='Org structure'!E28 -> 03.7 - Performance And Monitoring | C31: 0 | D31: 0 | E31: 0 | F31: 0 | G31: 0 | H31: 0 | I31: 0 | J31: 0 | K31: 0
A32: ='Org structure'!E29 -> 03.8 - Enterprise Risk Management | C32: 0 | D32: 0 | E32: 0 | F32: 0 | G32: 0 | H32: 0 | I32: 0 | J32: 0 | K32: 0
A33: ='Org structure'!E30 -> 03.9 - Enviromental Management And Planning | C33: 0 | D33: 0 | E33: 0 | F33: 232 | G33: 232 | H33: 232 | I33: 244 | J33: 256 | K33: 269
A34: ='Org structure'!E31 -> 03.10 - Enviromental Man&Plan - Soil Conserv | C34: 0 | D34: 0 | E34: 0 | F34: 0 | G34: 0 | H34: 0 | I34: 0 | J34: 0 | K34: 0
A35: ='Org structure'!E32 -> 03.11 - Enviromental Man&Plan - Nature Cons | C35: 0 | D35: 0 | E35: 0 | F35: 0 | G35: 0 | H35: 0 | I35: 0 | J35: 0 | K35: 0
A36: ='Org structure'!E33 -> 03.12 - Transversal Services | C36: 409240.8 | D36: 71871.88 | E36: 74238.88 | F36: 309738 | G36: 309738 | H36: 309738 | I36: 325224 | J36: 341486 | K36: 358562
A37: ='Org structure'!E34 -> 03.13 - Water Services Compliance Monitoring | C37: 5940155.2 | D37: 8077903.66 | E37: 9151286.88 | F37: 9493165 | G37: 6793165 | H37: 6793165 | I37: 7181616 | J37: 7540696 | K37: 7917731
A38: ='Org structure'!E35 -> 03.14 - Office Dmm - Core Service - Water | C38: 0 | D38: 0 | E38: 0 | F38: 0 | G38: 0 | H38: 0 | I38: 0 | J38: 0 | K38: 0
A39: ='Org structure'!E36 -> 03.15 - Office Dmm - Core Service - Waste Water | C39: 0 | D39: 0 | E39: 0 | F39: 0 | G39: 0 | H39: 0 | I39: 0 | J39: 0 | K39: 0
A40: ='Org structure'!A5 -> Vote 04 - City Planning And Development Department | C40: =SUM(C41:C48) -> 13005053.46 | D40: 11847748.64 | E40: 14794309.52 | F40: 9953999 | G40: 9953999 | H40: 9953999 | I40: 10451702 | J40: 10974283 | K40: 11522997
A41: ='Org structure'!E38 -> 04.1 - Office Of The Gm - Planning | C41: 0 | D41: 0 | E41: 0 | F41: 77874 | G41: 77874 | H41: 77874 | I41: 81768 | J41: 85856 | K41: 90149
A42: ='Org structure'!E39 -> 04.2 - Land Use Management | C42: 10098572.63 | D42: 9941975.62 | E42: 9927208.6 | F42: 6801249 | G42: 6801249 | H42: 6801249 | I42: 7141313 | J42: 7498377 | K42: 7873295
A43: ='Org structure'!E40 -> 04.3 - Local Economic Development | C43: 6303.46 | D43: 5850.9 | E43: 50254.36 | F43: 46308 | G43: 46308 | H43: 46308 | I43: 48623 | J43: 51055 | K43: 53607
A44: ='Org structure'!E41 -> 04.4 - Rural Plan Traditional Affairs & Agric | C44: 0 | D44: 0 | E44: 0 | F44: 0 | G44: 0 | H44: 0 | I44: 0 | J44: 0 | K44: 0
A45: ='Org structure'!E42 -> 04.5 - Human Settlement | C45: 0 | D45: 0 | E45: 0 | F45: 0 | G45: 0 | H45: 0 | I45: 0 | J45: 0 | K45: 0
A46: ='Org structure'!E43 -> 04.6 - Tourism Business Regulations And Gov | C46: 0 | D46: 0 | E46: 0 | F46: 0 | G46: 0 | H46: 0 | I46: 0 | J46: 0 | K46: 0
A47: ='Org structure'!E44 -> 04.7 - Spatial Development Planning | C47: 0 | D47: 0 | E47: 0 | F47: 0 | G47: 0 | H47: 0 | I47: 0 | J47: 0 | K47: 0
A48: ='Org structure'!E45 -> 04.8 - Real Estate Management | C48: 2900177.37 | D48: 1899922.12 | E48: 4816846.56 | F48: 3028568 | G48: 3028568 | H48: 3028568 | I48: 3179998 | J48: 3338995 | K48: 3505946
A49: ='Org structure'!A6 -> Vote 05 - Corporate Services Department | C49: =SUM(C50:C55) -> 1857239.37 | D49: 659139.54 | E49: 367682.66 | F49: 697805 | G49: 697805 | H49: 697805 | I49: 732694 | J49: 769330 | K49: 807797
A50: ='Org structure'!E47 -> 05.1 - Office Of The Gm - Corporate Services | C50: 0 | D50: 0 | E50: 0 | F50: 0 | G50: 0 | H50: 0 | I50: 0 | J50: 0 | K50: 0
A51: ='Org structure'!E48 -> 05.2 - Hr Provision Organ Design & Empl Equity | C51: 1481323.76 | D51: 316941.94 | E51: 0 | F51: 0 | G51: 0 | H51: 0 | I51: 0 | J51: 0 | K51: 0
A52: ='Org structure'!E49 -> 05.3 - Perform Management & Skills Development | C52: 42543.91 | D52: 3888 | E52: 31583.5 | F52: 22029 | G52: 22029 | H52: 22029 | I52: 23130 | J52: 24287 | K52: 25501
A53: ='Org structure'!E50 -> 05.4 - Ohs; Wellness And Employment Relations | C53: 0 | D53: 0 | E53: 0 | F53: 0 | G53: 0 | H53: 0 | I53: 0 | J53: 0 | K53: 0
A54: ='Org structure'!E51 -> 05.5 - Facilities Management | C54: 333371.7 | D54: 338309.6 | E54: 336099.16 | F54: 675776 | G54: 675776 | H54: 675776 | I54: 709564 | J54: 745043 | K54: 782296
A55: ='Org structure'!E52 -> 05.6 - Ict Records Management And Archives | C55: 0 | D55: 0 | E55: 0 | F55: 0 | G55: 0 | H55: 0 | I55: 0 | J55: 0 | K55: 0
A56: ='Org structure'!A7 -> Vote 06 - Strategic Management Services | C56: =SUM(C57:C62) -> 0 | D56: 0 | E56: 0 | F56: 0 | G56: 0 | H56: 0 | I56: 0 | J56: 0 | K56: 0
A57: ='Org structure'!E54 -> 06.1 - Office Of The Gm - Strat Man Services | C57: 0 | D57: 0 | E57: 0 | F57: 0 | G57: 0 | H57: 0 | I57: 0 | J57: 0 | K57: 0
A58: ='Org structure'!E55 -> 06.2 - Idp Coordinat And Policy Formulation | C58: 0 | D58: 0 | E58: 0 | F58: 0 | G58: 0 | H58: 0 | I58: 0 | J58: 0 | K58: 0
A59: ='Org structure'!E56 -> 06.3 - Idp Coordinat And Policy Form - Facilit | C59: 0 | D59: 0 | E59: 0 | F59: 0 | G59: 0 | H59: 0 | I59: 0 | J59: 0 | K59: 0
A60: ='Org structure'!E57 -> 06.4 - Corporate Communication | C60: 0 | D60: 0 | E60: 0 | F60: 0 | G60: 0 | H60: 0 | I60: 0 | J60: 0 | K60: 0
A61: ='Org structure'!E58 -> 06.5 - Mayoral Support | C61: 0 | D61: 0 | E61: 0 | F61: 0 | G61: 0 | H61: 0 | I61: 0 | J61: 0 | K61: 0
A62: ='Org structure'!E59 -> 06.6 - International & Intergovmental Relations | C62: 0 | D62: 0 | E62: 0 | F62: 0 | G62: 0 | H62: 0 | I62: 0 | J62: 0 | K62: 0
A63: ='Org structure'!A8 -> Vote 07 - Financial Management | C63: =SUM(C64:C76) -> 1158231998 | D63: 1373106260 | E63: 1706621311 | F63: 894402042 | G63: 909902042 | H63: 909902042 | I63: 1672849734 | J63: 1777964221 | K63: 1831168430
A64: ='Org structure'!E61 -> 07.1 - Office Of The Cfo | C64: 620801967.8 | D64: 666747109.5 | E64: 738163190.6 | F64: 124937181 | G64: 124937181 | H64: 124937181 | I64: 841627614 | J64: 905180996 | K64: 914746040
A65: ='Org structure'!E62 -> 07.2 - Deputy Cfo - Finance | C65: 0 | D65: 0 | E65: 0 | F65: 0 | G65: 0 | H65: 0 | I65: 0 | J65: 0 | K65: 0
A66: ='Org structure'!E63 -> 07.3 - Deputy Cfo - Marketing | C66: 0 | D66: 0 | E66: 0 | F66: 0 | G66: 0 | H66: 0 | I66: 0 | J66: 0 | K66: 0
A67: ='Org structure'!E64 -> 07.4 - Financial Planning & Budgeting- Finance | C67: 3259903.44 | D67: 6290696.33 | E67: 3844702.19 | F67: 6680104 | G67: 2180104 | H67: 2180104 | I67: 2289110 | J67: 2403564 | K67: 2523742
A68: ='Org structure'!E65 -> 07.5 - Financial Planning & Budgeting - Bud&Tre | C68: 0 | D68: 0 | E68: 0 | F68: 0 | G68: 0 | H68: 0 | I68: 0 | J68: 0 | K68: 0
A69: ='Org structure'!E66 -> 07.6 - Financial Planning & Budgeting - Bud&Tre | C69: 0 | D69: 0 | E69: 0 | F69: 0 | G69: 0 | H69: 0 | I69: 0 | J69: 0 | K69: 0
A70: ='Org structure'!E67 -> 07.7 - Financial Planning & Budgeting - Inform | C70: 0 | D70: 0 | E70: 0 | F70: 0 | G70: 0 | H70: 0 | I70: 0 | J70: 0 | K70: 0
A71: ='Org structure'!E68 -> 07.8 - Assets Management | C71: 0 | D71: 0 | E71: 0 | F71: 0 | G71: 0 | H71: 0 | I71: 0 | J71: 0 | K71: 0
A72: ='Org structure'!E69 -> 07.9 - Revenue Management | C72: 58371908.43 | D72: 66889451.82 | E72: 77464026.87 | F72: 78693348 | G72: 78693348 | H72: 78693348 | I72: 82628014 | J72: 86759417 | K72: 91097390
A73: ='Org structure'!E70 -> 07.10 - Municipal Valuation And Rating | C73: 471761966.8 | D73: 631728900.3 | E73: 651716975.7 | F73: 683980453 | G73: 703980453 | H73: 703980453 | I73: 746188492 | J73: 783497915 | K73: 822672812
A74: ='Org structure'!E71 -> 07.11 - Supply Chain Management | C74: 0 | D74: 0 | E74: 0 | F74: 0 | G74: 0 | H74: 0 | I74: 0 | J74: 0 | K74: 0
A75: ='Org structure'!E72 -> 07.12 - Accounting Services - Finance | C75: 4036251.5 | D75: 1450101.66 | E75: 235432415.4 | F75: 110956 | G75: 110956 | H75: 110956 | I75: 116504 | J75: 122329 | K75: 128446
A76: ='Org structure'!E73 -> 07.13 - Accounting Services - Human Resources | C76: 0 | D76: 0 | E76: 0 | F76: 0 | G76: 0 | H76: 0 | I76: 0 | J76: 0 | K76: 0
A77: ='Org structure'!A9 -> Vote 08 - Legal Services | C77: =SUM(C78:C78) -> 0 | D77: 0 | E77: 0 | F77: 0 | G77: 0 | H77: 0 | I77: 0 | J77: 0 | K77: 0
A78: ='Org structure'!E75 -> 08.1 - Legal Services And Support | C78: 0 | D78: 0 | E78: 0 | F78: 0 | G78: 0 | H78: 0 | I78: 0 | J78: 0 | K78: 0
A79: ='Org structure'!A10 -> Vote 09 - Regional Centre Coordination | C79: =SUM(C80:C84) -> 0 | D79: 0 | E79: 0 | F79: 0 | G79: 0 | H79: 0 | I79: 0 | J79: 0 | K79: 0
A80: ='Org structure'!E77 -> 09.1 - Office Of The Gm - Regional Centre Coord | C80: 0 | D80: 0 | E80: 0 | F80: 0 | G80: 0 | H80: 0 | I80: 0 | J80: 0 | K80: 0
A81: ='Org structure'!E78 -> 09.2 - Regional Centre - Central Region | C81: 0 | D81: 0 | E81: 0 | F81: 0 | G81: 0 | H81: 0 | I81: 0 | J81: 0 | K81: 0
A82: ='Org structure'!E79 -> 09.3 - Regional Centre - Northern Region | C82: 0 | D82: 0 | E82: 0 | F82: 0 | G82: 0 | H82: 0 | I82: 0 | J82: 0 | K82: 0
A83: ='Org structure'!E80 -> 09.4 - Regional Centre - Eastern Region | C83: 0 | D83: 0 | E83: 0 | F83: 0 | G83: 0 | H83: 0 | I83: 0 | J83: 0 | K83: 0
A84: ='Org structure'!E81 -> 09.5 - Regional Centre - Southern Region | C84: 0 | D84: 0 | E84: 0 | F84: 0 | G84: 0 | H84: 0 | I84: 0 | J84: 0 | K84: 0
A85: ='Org structure'!A11 -> Vote 10 - Community Services | C85: =SUM(C86:C96) -> 106455701.5 | D85: 142138734.9 | E85: 135826318 | F85: 280562429 | G85: 283162429 | H85: 283162429 | I85: 152407366 | J85: 160027735 | K85: 168029121
A86: ='Org structure'!E83 -> 10.1 - Office Of The Gm - Communicty Services | C86: 0 | D86: 0 | E86: 0 | F86: 0 | G86: 0 | H86: 0 | I86: 0 | J86: 0 | K86: 0
A87: ='Org structure'!E84 -> 10.2 - Solid Waste - Removal | C87: 100831054.3 | D87: 121156936.9 | E87: 130179732 | F87: 277758439 | G87: 281758439 | H87: 281758439 | I87: 150933178 | J87: 158479837 | K87: 166403828
A88: ='Org structure'!E85 -> 10.3 - Solid Waste - Landfill | C88: 0 | D88: 0 | E88: 0 | F88: 0 | G88: 0 | H88: 0 | I88: 0 | J88: 0 | K88: 0
A89: ='Org structure'!E86 -> 10.4 - Sports Recreation & Heritage - Sports | C89: 3776046.59 | D89: 7674775.74 | E89: 3684372.46 | F89: 1465159 | G89: 65159 | H89: 65159 | I89: 68417 | J89: 71838 | K89: 75430
A90: ='Org structure'!E87 -> 10.5 - Sports Recreation & Heritage - Recrea | C90: 257583.26 | D90: 389663.48 | E90: 281291.09 | F90: 109169 | G90: 109169 | H90: 109169 | I90: 114627 | J90: 120358 | K90: 126376
A91: ='Org structure'!E88 -> 10.6 - Sports Recreation & Heritage - Galary | C91: 551415.77 | D91: 558080.46 | E91: 339603.23 | F91: 423118 | G91: 423118 | H91: 423118 | I91: 444274 | J91: 466488 | K91: 489812
A92: ='Org structure'!E89 -> 10.7 - Sports Recreation & Heritage - Halls | C92: 0 | D92: 0 | E92: 0 | F92: 0 | G92: 0 | H92: 0 | I92: 0 | J92: 0 | K92: 0
A93: ='Org structure'!E90 -> 10.8 - Sports Recreation & Heritage - Library | C93: 333758.36 | D93: 11478685.89 | E93: 301519.43 | F93: 133335 | G93: 133335 | H93: 133335 | I93: 140001 | J93: 147001 | K93: 154352
A94: ='Org structure'!E91 -> 10.9 - Sports Recreation & Heritage - Cultural | C94: 0 | D94: 0 | E94: 0 | F94: 0 | G94: 0 | H94: 0 | I94: 0 | J94: 0 | K94: 0
A95: ='Org structure'!E92 -> 10.10 - Parks And Cemetaries - Parks | C95: 2362.89 | D95: 0 | E95: 0 | F95: 56004 | G95: 56004 | H95: 56004 | I95: 58804 | J95: 61744 | K95: 64832
A96: ='Org structure'!E93 -> 10.11 - Parks And Cemetaries - Cemetaries | C96: 703480.39 | D96: 880592.47 | E96: 1039799.8 | F96: 617205 | G96: 617205 | H96: 617205 | I96: 648065 | J96: 680469 | K96: 714491
A97: ='Org structure'!A12 -> Vote 11 - Public Works, Roads And Transport | C97: =SUM(C98:C119) -> 536207732.5 | D97: 537807518.8 | E97: 591276891.3 | F97: 338127000 | G97: 409879576 | H97: 409879576 | I97: 390965000 | J97: 389361000 | K97: 407526000
A98: ='Org structure'!E95 -> 11.1 - Office Of The Gm - Roads | C98: 0 | D98: 0 | E98: 0 | F98: 0 | G98: 0 | H98: 0 | I98: 0 | J98: 0 | K98: 0
A99: ='Org structure'!E96 -> 11.2 - Office Of The Gm - Stormwater | C99: 0 | D99: 0 | E99: 0 | F99: 0 | G99: 0 | H99: 0 | I99: 0 | J99: 0 | K99: 0
A100: ='Org structure'!E97 -> 11.3 - Roads And Stormwater - Roads | C100: 3242258.3 | D100: 0 | E100: 3462094.21 | F100: 0 | G100: 0 | H100: 0 | I100: 0 | J100: 0 | K100: 0
A101: ='Org structure'!E98 -> 11.4 - Roads And Stormwater - Stormwater | C101: 0 | D101: 0 | E101: 0 | F101: 0 | G101: 0 | H101: 0 | I101: 0 | J101: 0 | K101: 0
A102: ='Org structure'!E99 -> 11.5 - Roads And Stormwater - Signal | C102: 0 | D102: 0 | E102: 0 | F102: 0 | G102: 0 | H102: 0 | I102: 0 | J102: 0 | K102: 0
A103: ='Org structure'!E100 -> 11.6 - Public Transport Operations - Transport | C103: 6790.35 | D103: 4674.81 | E103: 1106.09 | F103: 0 | G103: 0 | H103: 0 | I103: 0 | J103: 0 | K103: 0
A104: ='Org structure'!E101 -> 11.7 - Project Implementation Unit | C104: 527308223.5 | D104: 529562844 | E104: 538447661 | F104: 333883000 | G104: 405635576 | H104: 405635576 | I104: 383929000 | J104: 389361000 | K104: 407526000
A105: ='Org structure'!E102 -> 11.8 - Project Implementation Unit - Roads | C105: 0 | D105: 0 | E105: 43533000 | F105: 0 | G105: 0 | H105: 0 | I105: 0 | J105: 0 | K105: 0
A106: ='Org structure'!E103 -> 11.9 - Project Implementation Unit - S Water | C106: 0 | D106: 0 | E106: 0 | F106: 0 | G106: 0 | H106: 0 | I106: 0 | J106: 0 | K106: 0
A107: ='Org structure'!E104 -> 11.10 - Project Implementation Unit - P Transprt | C107: 0 | D107: 0 | E107: 0 | F107: 0 | G107: 0 | H107: 0 | I107: 0 | J107: 0 | K107: 0
A108: ='Org structure'!E105 -> 11.11 - Project Implementation Unit - Sports | C108: 0 | D108: 0 | E108: 0 | F108: 0 | G108: 0 | H108: 0 | I108: 0 | J108: 0 | K108: 0
A109: ='Org structure'!E106 -> 11.12 - Project Implementation Unit - Sewer | C109: 0 | D109: 0 | E109: 0 | F109: 0 | G109: 0 | H109: 0 | I109: 0 | J109: 0 | K109: 0
A110: ='Org structure'!E107 -> 11.13 - Project Implementation Unit - Halls | C110: 0 | D110: 0 | E110: 0 | F110: 0 | G110: 0 | H110: 0 | I110: 0 | J110: 0 | K110: 0
A111: ='Org structure'!E108 -> 11.14 - Project Implementation Unit - Landfill | C111: 0 | D111: 0 | E111: 0 | F111: 0 | G111: 0 | H111: 0 | I111: 0 | J111: 0 | K111: 0
A112: ='Org structure'!E109 -> 11.15 - Project Implementation Unit - Nc Roads | C112: 0 | D112: 0 | E112: 0 | F112: 0 | G112: 0 | H112: 0 | I112: 0 | J112: 0 | K112: 0
A113: ='Org structure'!E110 -> 11.16 - Project Implementation Unit - St Lights | C113: 0 | D113: 0 | E113: 0 | F113: 0 | G113: 0 | H113: 0 | I113: 0 | J113: 0 | K113: 0
A114: ='Org structure'!E111 -> 11.17 - Project Implementation Unit - Fleet | C114: 0 | D114: 0 | E114: 0 | F114: 0 | G114: 0 | H114: 0 | I114: 0 | J114: 0 | K114: 0
A115: ='Org structure'!E112 -> 11.18 - Project Implementation Unit - S Waste | C115: 0 | D115: 0 | E115: 0 | F115: 0 | G115: 0 | H115: 0 | I115: 0 | J115: 0 | K115: 0
A116: ='Org structure'!E113 -> 11.19 - Project Implementation Unit - Parks | C116: 0 | D116: 0 | E116: 0 | F116: 0 | G116: 0 | H116: 0 | I116: 0 | J116: 0 | K116: 0
A117: ='Org structure'!E114 -> 11.20 - Project Implementation Unit - Water Dist | C117: 0 | D117: 0 | E117: 0 | F117: 0 | G117: 0 | H117: 0 | I117: 0 | J117: 0 | K117: 0
A118: ='Org structure'!E115 -> 11.21 - Project Implementation Unit - Water Trt | C118: 0 | D118: 0 | E118: 0 | F118: 0 | G118: 0 | H118: 0 | I118: 0 | J118: 0 | K118: 0
A119: ='Org structure'!E116 -> 11.22 - Expanded Public Works Programme | C119: 5650460.34 | D119: 8240000 | E119: 5833030 | F119: 4244000 | G119: 4244000 | H119: 4244000 | I119: 7036000 | J119: 0 | K119: 0
A120: ='Org structure'!A13 -> Vote 12 - Public Safety | C120: =SUM(C121:C130) -> 44715349.81 | D120: 54074221.43 | E120: 48008496.51 | F120: 15668165 | G120: 59668165 | H120: 59668165 | I120: 62651573 | J120: 65784152 | K120: 69073361
A121: ='Org structure'!E118 -> 12.1 - Office Of The Gm - Public Safety | C121: 0 | D121: 0 | E121: 0 | F121: 0 | G121: 0 | H121: 0 | I121: 0 | J121: 0 | K121: 0
A122: ='Org structure'!E119 -> 12.2 - Law Enforce And Security Serv - Traffic | C122: 100168.36 | D122: 5656.56 | E122: 0 | F122: 0 | G122: 0 | H122: 0 | I122: 0 | J122: 0 | K122: 0
A123: ='Org structure'!E120 -> 12.3 - Law Enforce And Security Serv - Traffic | C123: 2403709.94 | D123: 3966458.52 | E123: 300 | F123: 59620 | G123: 59620 | H123: 59620 | I123: 62601 | J123: 65731 | K123: 69018
A124: ='Org structure'!E121 -> 12.4 - Law Enforce And Security Serv - Lic&Regu | C124: 0 | D124: 0 | E124: 0 | F124: 0 | G124: 0 | H124: 0 | I124: 0 | J124: 0 | K124: 0
A125: ='Org structure'!E122 -> 12.5 - Law Enforce And Security Serv - Security | C125: 825.26 | D125: 510 | E125: 900 | F125: 12889 | G125: 12889 | H125: 12889 | I125: 13533 | J125: 14210 | K125: 14921
A126: ='Org structure'!E123 -> 12.6 - Licencing And Traffic Services | C126: 41997054.26 | D126: 45584361.27 | E126: 43052953.09 | F126: 7663988 | G126: 51663988 | H126: 51663988 | I126: 54247187 | J126: 56959547 | K126: 59807524
A127: ='Org structure'!E124 -> 12.7 - Traffic Services | C127: 0 | D127: 4251738.95 | E127: 4888707.84 | F127: 7823477 | G127: 7823477 | H127: 7823477 | I127: 8214651 | J127: 8625383 | K127: 9056653
A128: ='Org structure'!E125 -> 12.8 - Traffic Services | C128: 0 | D128: 116498.13 | E128: 0 | F128: 0 | G128: 0 | H128: 0 | I128: 0 | J128: 0 | K128: 0
A129: ='Org structure'!E126 -> 12.9 - Disaster Management - Fire And Protect | C129: 213591.99 | D129: 148998 | E129: 65635.58 | F129: 108191 | G129: 108191 | H129: 108191 | I129: 113601 | J129: 119281 | K129: 125245
A130: ='Org structure'!E127 -> 12.10 - Disaster Management - Disaster Man | C130: 0 | D130: 0 | E130: 0 | F130: 0 | G130: 0 | H130: 0 | I130: 0 | J130: 0 | K130: 0
A131: ='Org structure'!A14 -> Vote 13 - Water And Sanitation | C131: =SUM(C132:C144) -> 145311296.2 | D131: 120717976 | E131: 119658823.3 | F131: 663149859 | G131: 659724105 | H131: 659724105 | I131: 183373187 | J131: 260543196 | K131: 288071782
A132: ='Org structure'!E129 -> 13.1 - Office Of The Gm - Water | C132: 0 | D132: 0 | E132: 0 | F132: 0 | G132: 0 | H132: 0 | I132: 0 | J132: 0 | K132: 0
A133: ='Org structure'!E130 -> 13.2 - Office Of The Gm - Sanitation | C133: 0 | D133: 0 | E133: 0 | F133: 0 | G133: 0 | H133: 0 | I133: 0 | J133: 0 | K133: 0
A134: ='Org structure'!E131 -> 13.3 - Water Services Plan And Develp - Water | C134: 29273000 | D134: -459080.79 | E134: 0 | F134: 0 | G134: 0 | H134: 0 | I134: 0 | J134: 0 | K134: 0
A135: ='Org structure'!E132 -> 13.4 - Water Services Plan And Develp - Sanitat | C135: 0 | D135: 0 | E135: 0 | F135: 0 | G135: 0 | H135: 0 | I135: 0 | J135: 0 | K135: 0
A136: ='Org structure'!E133 -> 13.5 - Water Services Plan And Develp - W Treat | C136: 0 | D136: 0 | E136: 0 | F136: 0 | G136: 0 | H136: 0 | I136: 0 | J136: 0 | K136: 0
A137: ='Org structure'!E134 -> 13.6 - Water Services Plan And Develp - W Stor | C137: 0 | D137: 0 | E137: 0 | F137: 0 | G137: 0 | H137: 0 | I137: 0 | J137: 0 | K137: 0
A138: ='Org structure'!E135 -> 13.7 - Water Services Plan And Develp - W Distr | C138: 0 | D138: 0 | E138: 0 | F138: 0 | G138: 0 | H138: 0 | I138: 0 | J138: 0 | K138: 0
A139: ='Org structure'!E136 -> 13.8 - Contract Management - Water | C139: 41615553.45 | D139: 44082417 | E139: 43796351.14 | F139: 408755179 | G139: 406755179 | H139: 406755179 | I139: 91456406 | J139: 164030571 | K139: 186733519
A140: ='Org structure'!E137 -> 13.9 - Contract Management - Sanitation | C140: 10529477.92 | D140: 12134886.62 | E140: 12283657.44 | F140: 180136304 | G140: 178710550 | H140: 178710550 | I140: 13202903 | J140: 13863053 | K140: 14556212
A141: ='Org structure'!E138 -> 13.10 - Contract Management - Water Storage | C141: 0 | D141: 0 | E141: 0 | F141: 0 | G141: 0 | H141: 0 | I141: 0 | J141: 0 | K141: 0
A142: ='Org structure'!E139 -> 13.11 - Water Services Oper & Maint - Water Dist | C142: 0 | D142: 0 | E142: 0 | F142: 0 | G142: 0 | H142: 0 | I142: 0 | J142: 0 | K142: 0
A143: ='Org structure'!E140 -> 13.12 - Water Services Oper & Maint - Water Trea | C143: 47193277.45 | D143: 55220877.45 | E143: 53357533.07 | F143: 62883818 | G143: 62883818 | H143: 62883818 | I143: 66656847 | J143: 69989689 | K143: 73489174
A144: ='Org structure'!E141 -> 13.13 - Water Services Oper & Maint - Waste W Tr | C144: 16699987.34 | D144: 9738875.75 | E144: 10221281.69 | F144: 11374558 | G144: 11374558 | H144: 11374558 | I144: 12057031 | J144: 12659883 | K144: 13292877
A145: ='Org structure'!A15 -> Vote 14 - Energy | C145: =SUM(C146:C150) -> 912852481.7 | D145: 1027125680 | E145: 1083098749 | F145: 1368516255 | G145: 1368516255 | H145: 1368516255 | I145: 1491696710 | J145: 1498735351 | K145: 1581909426
A146: ='Org structure'!E143 -> 14.1 - Office Of The Gm - Energy | C146: 0 | D146: 0 | E146: 0 | F146: 0 | G146: 0 | H146: 0 | I146: 44000000 | J146: 0 | K146: 0
A147: ='Org structure'!E144 -> 14.2 - Electricity Plan And Develmnt - Elec | C147: 0 | D147: 0 | E147: 0 | F147: 0 | G147: 0 | H147: 0 | I147: 10434702.96 | J147: 10956437.75 | K147: 11504252.84
A148: ='Org structure'!E145 -> 14.3 - Electricity Plan And Develmnt - Non Elec | C148: 35525444 | D148: 26995652 | E148: 6727639 | F148: 6300000 | G148: 6300000 | H148: 6300000 | I148: 6000000 | J148: 8000000 | K148: 0
A149: ='Org structure'!E146 -> 14.4 - Electricity Maintenance And Operations | C149: 877327037.7 | D149: 1000130028 | E149: 1076371110 | F149: 1362216255 | G149: 1362216255 | H149: 1362216255 | I149: 1431262007 | J149: 1479778913 | K149: 1570405173
A150: ='Org structure'!E147 -> 14.5 - Alternative Energy And Public Lighting | C150: 0 | D150: 0 | E150: 0 | F150: 0 | G150: 0 | H150: 0 | I150: 0 | J150: 0 | K150: 0
A151: ='Org structure'!A16 -> Vote 15 - Other | C151: 0 | D151: 0 | E151: 0 | F151: 0 | G151: 0 | H151: 0 | I151: 0 | J151: 0 | K151: 0
A152: Total Revenue by Vote | B152: 2 | C152: =C5+C20+C24+C40+C49+C56+C63+C77+C79+C85+C97+C120+C131+C145+C151 -> 2924979821 | D152: 3275625312 | E152: 3710525302 | F152: 3581579371 | G152: 3709306193 | H152: 3709306193 | I152: 3973368665 | J152: 4172812002 | K152: 4367194288 | L152: =SUM(L70:L76) -> 0 | M152: 0 | N152: 0 | O152: 0 | P152: 0 | Q152: 0 | R152: 0 | S152: 0 | T152: 0 | U152: 0 | V152: 0 | W152: 0
A154: Expenditure by Vote | B154: 1
A155: ='Org structure'!A2 -> Vote 01 - Council | C155: =SUM(C156:C169) -> 119544676.2 | D155: 54494392.73 | E155: 70286263.92 | F155: 79385493 | G155: 77018493 | H155: 77018493 | I155: 70850455 | J155: 70921049 | K155: 71009752
A156: ='Org structure'!E3 -> 01.1 - Office Of The Mayor | C156: 71303463.61 | D156: 6150185.87 | E156: 4860987.36 | F156: 6140340 | G156: 5795340 | H156: 5795340 | I156: 2202706 | J156: 2177535 | K156: 2153617
A157: ='Org structure'!E4 -> 01.2 - Office Of The Chief Whip | C157: 3891303.58 | D157: 4399065.66 | E157: 3596416.85 | F157: 4319700 | G157: 4284700 | H157: 4284700 | I157: 4299783 | J157: 4381374 | K157: 4470545
A158: ='Org structure'!E5 -> 01.3 - Office Of The Speaker | C158: 3777864.41 | D158: 3135723.5 | E158: 4172762.17 | F158: 3813739 | G158: 2456739 | H158: 2456739 | I158: 2585667 | J158: 2523730 | K158: 2464892
A159: ='Org structure'!E6 -> 01.4 - Mayoral Mmc - Budget & Treasury Servic | C159: 628730.1 | D159: 589562.88 | E159: 288494.34 | F159: 569604 | G159: 524604 | H159: 524604 | I159: 59850 | J159: 56860 | K159: 54016
A160: ='Org structure'!E7 -> 01.5 - Mayoral Mmc - Corporate Services | C160: 167828.18 | D160: 19616.45 | E160: 1123295.1 | F160: 967417 | G160: 917417 | H160: 917417 | I160: 1336271 | J160: 1333044 | K160: 1329974
A161: ='Org structure'!E8 -> 01.6 - Mmc - City Planning & Development | C161: 509217.87 | D161: 505147.43 | E161: 285802.75 | F161: 562224 | G161: 512224 | H161: 512224 | I161: 31350 | J161: 29784 | K161: 28294
A162: ='Org structure'!E9 -> 01.7 - Mmc - Strategic Management | C162: 1167918.82 | D162: 1249875.5 | E162: 1369855.89 | F162: 1534438 | G162: 1469438 | H162: 1469438 | I162: 1312521 | J162: 1310480 | K162: 1308539
A163: ='Org structure'!E10 -> 01.8 - Mayoral Mmc - Community Services | C163: 1313570.48 | D163: 1299101.09 | E163: 593292.3 | F163: 795213 | G163: 730213 | H163: 730213 | I163: 651819 | J163: 680327 | K163: 710462
A164: ='Org structure'!E11 -> 01.9 - Mmc - Energy | C164: 979160.79 | D164: 721184.71 | E164: 52761.36 | F164: 123000 | G164: 68000 | H164: 68000 | I164: 50350 | J164: 47834 | K164: 45442
A165: ='Org structure'!E12 -> 01.10 - Mmc - Public Safety | C165: 1213316.12 | D165: 1244319.62 | E165: 1360191.7 | F165: 1523089 | G165: 1468089 | H165: 1468089 | I165: 1312521 | J165: 1310480 | K165: 1308539
A166: ='Org structure'!E13 -> 01.11 - Mmc - Water & Sanitation | C166: 1249694.59 | D166: 1340578.71 | E166: 1383825.36 | F166: 1570624 | G166: 1505624 | H166: 1505624 | I166: 1312521 | J166: 1310480 | K166: 1308539
A167: ='Org structure'!E14 -> 01.12 - Mmc - Public Works & Transport | C167: 3694103.79 | D167: 3476994.77 | E167: 4441305.7 | F167: 3906376 | G167: 3841376 | H167: 3841376 | I167: 5084758 | J167: 5082717 | K167: 5080776
A168: ='Org structure'!E15 -> 01.13 - Mayoral Mmc - Centre Coordination | C168: 1203900.37 | D168: 1268670.73 | E168: 1903538.43 | F168: 1655900 | G168: 1615900 | H168: 1615900 | I168: 2690789 | J168: 2758896 | K168: 2830550
A169: ='Org structure'!E16 -> 01.14 - Mpac (Section 79) | C169: 28444603.48 | D169: 29094365.81 | E169: 44853734.61 | F169: 51903829 | G169: 51828829 | H169: 51828829 | I169: 47919549 | J169: 47917508 | K169: 47915567
A170: ='Org structure'!A3 -> Vote 02 - Office Of Council | C170: =SUM(C171:C173) -> 22091914 | D170: 25279550.14 | E170: 25579102.9 | F170: 23437662 | G170: 22758662 | H170: 22758662 | I170: 26955024 | J170: 27870336 | K170: 28853034
A171: ='Org structure'!E18 -> 02.1 - Office Of The Gm - Office Of Council | C171: 2176943.1 | D171: 3165798.66 | E171: 1719254.52 | F171: 167640 | G171: 42640 | H171: 42640 | I171: 1947514 | J171: 2044890 | K171: 2147134
A172: ='Org structure'!E19 -> 02.2 - Public Stakeholder Participtn Petitions | C172: 14897378.97 | D172: 15969621.9 | E172: 16552277.78 | F172: 16170422 | G172: 15480422 | H172: 15480422 | I172: 15867861 | J172: 16253230 | K172: 16678267
A173: ='Org structure'!E20 -> 02.3 - Council Secretariat | C173: 5017591.93 | D173: 6144129.58 | E173: 7307570.6 | F173: 7099600 | G173: 7235600 | H173: 7235600 | I173: 9139649 | J173: 9572216 | K173: 10027633
A174: ='Org structure'!A4 -> Vote 03 - Municipal Manager | C174: =SUM(C175:C189) -> 93259116.5 | D174: 221688360.2 | E174: 239424726.2 | F174: 190073203 | G174: 207882545 | H174: 207882545 | I174: 185134973 | J174: 180264545 | K174: 175857299
A175: ='Org structure'!E22 -> 03.1 - Municipal Manager Administration | C175: 25364113.36 | D175: 21764320.88 | E175: 21320686.93 | F175: 7900561 | G175: 21825903 | H175: 21825903 | I175: 16303224 | J175: 15886610 | K175: 15510755
A176: ='Org structure'!E23 -> 03.2 - Municipal Manager Admin (Waste Man) | C176: 0 | D176: 0 | E176: 0 | F176: 0 | G176: 0 | H176: 0 | I176: 0 | J176: 0 | K176: 0
A177: ='Org structure'!E24 -> 03.3 - Municipal Manager Admin (Electricity) | C177: 0 | D177: 0 | E177: 0 | F177: 0 | G177: 0 | H177: 0 | I177: 0 | J177: 0 | K177: 0
A178: ='Org structure'!E25 -> 03.4 - Municipal Manager Admin (Rural Dev) | C178: 0 | D178: 0 | E178: 0 | F178: 0 | G178: 0 | H178: 0 | I178: 0 | J178: 0 | K178: 0
A179: ='Org structure'!E26 -> 03.5 - Internal Audit | C179: 4411261.38 | D179: 11488714.03 | E179: 12875585.24 | F179: 10443055 | G179: 13772055 | H179: 13772055 | I179: 13130300 | J179: 13072566 | K179: 13047658
A180: ='Org structure'!E27 -> 03.6 - Office Of The Dmm - Aux | C180: 1777554.79 | D180: 2820548.76 | E180: 3407850.03 | F180: 1868516 | G180: 1257516 | H180: 1257516 | I180: 3079971 | J180: 3233968 | K180: 3395670
A181: ='Org structure'!E28 -> 03.7 - Performance And Monitoring | C181: 3558064.61 | D181: 4085664.41 | E181: 5417196.24 | F181: 5802800 | G181: 5697800 | H181: 5697800 | I181: 6467364 | J181: 6785980 | K181: 7120767
A182: ='Org structure'!E29 -> 03.8 - Enterprise Risk Management | C182: 27133987.26 | D182: 28009231.49 | E182: 23248215.89 | F182: 24069584 | G182: 24314584 | H182: 24314584 | I182: 16266851 | J182: 15867521 | K182: 15508855
A183: ='Org structure'!E30 -> 03.9 - Enviromental Management And Planning | C183: 12769633.24 | D183: 18262300.73 | E183: 14906893.88 | F183: 5258569 | G183: 14223569 | H183: 14223569 | I183: 6884905 | J183: 6888078 | K183: 6908460
A184: ='Org structure'!E31 -> 03.10 - Enviromental Man&Plan - Soil Conserv | C184: 0 | D184: 0 | E184: 0 | F184: 0 | G184: 0 | H184: 0 | I184: 0 | J184: 0 | K184: 0
A185: ='Org structure'!E32 -> 03.11 - Enviromental Man&Plan - Nature Cons | C185: 502494 | D185: 429682.54 | E185: 1503875 | F185: 560000 | G185: 1000000 | H185: 1000000 | I185: 950000 | J185: 902500 | K185: 857375
A186: ='Org structure'!E33 -> 03.12 - Transversal Services | C186: 9229496.7 | D186: 10852100.82 | E186: 10254517.06 | F186: 11028118 | G186: 10799118 | H186: 10799118 | I186: 11386261 | J186: 11922906 | K186: 12488359
A187: ='Org structure'!E34 -> 03.13 - Water Services Compliance Monitoring | C187: 6525823.58 | D187: 7396282.15 | E187: 7933503.91 | F187: 5519634 | G187: 7379634 | H187: 7379634 | I187: 6334984 | J187: 6376233 | K187: 6433320
A188: ='Org structure'!E35 -> 03.14 - Office Dmm - Core Service - Water | C188: 1986687.58 | D188: 76620368.44 | E188: 78760513.04 | F188: 76978206 | G188: 66968206 | H188: 66968206 | I188: 65719161 | J188: 62646829 | K188: 59738793
A189: ='Org structure'!E36 -> 03.15 - Office Dmm - Core Service - Waste Water | C189: 0 | D189: 39959146 | E189: 59795888.99 | F189: 40644160 | G189: 40644160 | H189: 40644160 | I189: 38611952 | J189: 36681354 | K189: 34847287
A190: ='Org structure'!A5 -> Vote 04 - City Planning And Development Department | C190: =SUM(C191:C198) -> 308602834.5 | D190: 74111340.48 | E190: 97588291.52 | F190: 84337949 | G190: 93774849 | H190: 93774849 | I190: 93803919 | J190: 92407072 | K190: 94688558
A191: ='Org structure'!E38 -> 04.1 - Office Of The Gm - Planning | C191: 6161083.85 | D191: 6083398.57 | E191: 5952705.92 | F191: 6424478 | G191: 14928478 | H191: 14928478 | I191: 7874203 | J191: 7715441 | K191: 7576363
A192: ='Org structure'!E39 -> 04.2 - Land Use Management | C192: 27701742.35 | D192: 31955753.52 | E192: 28534859.58 | F192: 39603583 | G192: 39183583 | H192: 39183583 | I192: 37103405 | J192: 37677979 | K192: 38345309
A193: ='Org structure'!E40 -> 04.3 - Local Economic Development | C193: 6959601.5 | D193: 8040685.03 | E193: 7238344.59 | F193: 7723443 | G193: 8848443 | H193: 8848443 | I193: 8824480 | J193: 9069805 | K193: 9339648
A194: ='Org structure'!E41 -> 04.4 - Rural Plan Traditional Affairs & Agric | C194: 800593.64 | D194: 250621.58 | E194: 288027 | F194: 315000 | G194: 500000 | H194: 500000 | I194: 475000 | J194: 451250 | K194: 428688
A195: ='Org structure'!E42 -> 04.5 - Human Settlement | C195: 23344341.42 | D195: 10516908.62 | E195: 26306815.09 | F195: 10865885 | G195: 10737785 | H195: 10737785 | I195: 11786399 | J195: 12365469 | K195: 12974006
A196: ='Org structure'!E43 -> 04.6 - Tourism Business Regulations And Gov | C196: 2250970.33 | D196: 1817357.62 | E196: 3672594.02 | F196: 3556573 | G196: 3496573 | H196: 3496573 | I196: 4469014 | J196: 4690091 | K196: 4922338
A197: ='Org structure'!E44 -> 04.7 - Spatial Development Planning | C197: 225794280.8 | D197: 3763361.07 | E197: 8891124.22 | F197: 6497177 | G197: 6362177 | H197: 6362177 | I197: 12366062 | J197: 9169966 | K197: 9446159
A198: ='Org structure'!E45 -> 04.8 - Real Estate Management | C198: 15590220.65 | D198: 11683254.47 | E198: 16703821.1 | F198: 9351810 | G198: 9717810 | H198: 9717810 | I198: 10905356 | J198: 11267071 | K198: 11656047
A199: ='Org structure'!A6 -> Vote 05 - Corporate Services Department | C199: =SUM(C200:C205) -> 197740795.6 | D199: 158055307 | E199: 166669997.4 | F199: 129711653 | G199: 149960656 | H199: 149960656 | I199: 111963501 | J199: 110689594 | K199: 111480600
A200: ='Org structure'!E47 -> 05.1 - Office Of The Gm - Corporate Services | C200: 3157455.66 | D200: 3046626.83 | E200: 4117515.94 | F200: 198381 | G200: 62381 | H200: 62381 | I200: 1881582 | J200: 1975662 | K200: 2074445
A201: ='Org structure'!E48 -> 05.2 - Hr Provision Organ Design & Empl Equity | C201: 52844906.24 | D201: 55808520.23 | E201: 57241674.37 | F201: 45017499 | G201: 44661499 | H201: 44661499 | I201: 20010897 | J201: 20787243 | K201: 21613616
... 108 more rows

Sheet A4-FinPerf RE
A1: =muni&" - "&Approve4 -> MP326 City of Mbombela - Table A4 Budgeted Financial Performance (revenue and expenditure)
A2: =desc -> Description | B2: =head27 -> Ref | C2: =head1b -> 2017/18 | D2: =head1A -> 2018/19 | E2: =Head1 -> 2019/20 | F2: =Head2 -> Current Year 2020/21 | J2: =Head3 -> 2021/22 Medium Term Revenue & Expenditure Framework | M2: =Head4 -> LTFS
A3: R thousand | B3: 1 | C3: =Head5 -> Audited Outcome | D3: =Head5 -> Audited Outcome | E3: =Head5 -> Audited Outcome | F3: =Head6 -> Original Budget | G3: =Head7 -> Adjusted Budget | H3: =Head8 -> Full Year Forecast | I3: =Head5b -> Pre-audit outcome | J3: =Head9 -> Budget Year 2021/22 | K3: =Head10 -> Budget Year +1 2022/23 | L3: =Head11 -> Budget Year +2 2023/24 | M3: =Head12 -> Forecast 2024/25 | N3: =Head13 -> Forecast 2025/26 | O3: =Head14 -> Forecast 2026/27 | P3: =Head15 -> Forecast 2027/28 | Q3: =Head16 -> Forecast 2028/29 | R3: =Head17 -> Forecast 2029/30 | S3: =Head18 -> Forecast 2030/31 | T3: =Head19 -> Forecast 2031/32 | U3: =Head20 -> Forecast 2032/33 | V3: =Head21 -> Forecast 2033/34 | W3: =Head22 -> Forecast 2034/35 | X3: =Head23 -> Forecast 2035/36
A4: Revenue By Source
A5: Property rates | B5: 2 | C5: ='SA1'!C9 -> 466134060.6 | D5: ='SA1'!D9 -> 631718770.7 | E5: ='SA1'!E9 -> 651716932.2 | F5: ='SA1'!F9 -> 680901599 | G5: ='SA1'!G9 -> 700901599 | H5: ='SA1'!H9 -> 700901599 | I5: ='SA1'!I9 -> 540102756 | J5: ='SA1'!J9 -> 742955695 | K5: ='SA1'!K9 -> 780103478 | L5: ='SA1'!L9 -> 819108654
A6: Service charges - electricity revenue | B6: 2 | C6: ='SA1'!C15 -> 866205931.4 | D6: ='SA1'!D15 -> 995105521.4 | E6: ='SA1'!E15 -> 1048364433 | F6: ='SA1'!F15 -> 1188712238 | G6: ='SA1'!G15 -> 1188712238 | H6: ='SA1'!H15 -> 1188712238 | I6: ='SA1'!I15 -> 1188712238 | J6: ='SA1'!J15 -> 1362145354 | K6: ='SA1'!K15 -> 1443874075 | L6: ='SA1'!L15 -> 1530506519
A7: Service charges - water revenue | B7: 2 | C7: ='SA1'!C21 -> 94755698.66 | D7: ='SA1'!D21 -> 103692358.4 | E7: ='SA1'!E21 -> 102897572.1 | F7: ='SA1'!F21 -> 118180195 | G7: ='SA1'!G21 -> 116180195 | H7: ='SA1'!H21 -> 116180195 | I7: ='SA1'!I21 -> 116180195 | J7: ='SA1'!J21 -> 123151006.7 | K7: ='SA1'!K21 -> 129308557 | L7: ='SA1'!L21 -> 135773984.9
A8: Service charges - sanitation revenue | B8: 2 | C8: ='SA1'!C27 -> 27221550.4 | D8: ='SA1'!D27 -> 21873266.85 | E8: ='SA1'!E27 -> 22504508.78 | F8: ='SA1'!F27 -> 25255378 | G8: ='SA1'!G27 -> 23829624 | H8: ='SA1'!H27 -> 23829624 | I8: ='SA1'!I27 -> 23829624 | J8: ='SA1'!J27 -> 25259401.44 | K8: ='SA1'!K27 -> 26522371.51 | L8: ='SA1'!L27 -> 27848490.09
A9: Service charges - refuse revenue | B9: 2 | C9: ='SA1'!C34 -> 100726517.9 | D9: ='SA1'!D34 -> 121156936.9 | E9: ='SA1'!E34 -> 130179732 | F9: ='SA1'!F34 -> 138389791 | G9: ='SA1'!G34 -> 142389791 | H9: ='SA1'!H34 -> 142389791 | I9: ='SA1'!I34 -> 142389791 | J9: ='SA1'!J34 -> 150933178.5 | K9: ='SA1'!K34 -> 158479837.4 | L9: ='SA1'!L34 -> 166403829.3
A11: Rental of facilities and equipment | C11: 9878091.96 | D11: 11676379.71 | E11: 9510077.1 | F11: 8971531 | G11: 3871531 | H11: 3871531 | I11: 3597989.79 | J11: 4065106 | K11: 4268362 | L11: 4481781
A12: Interest earned - external investments | C12: 8581381.02 | D12: 7382508.07 | E12: 6542281.79 | F12: 6328720 | G12: 1828720 | H12: 1828720 | I12: 1489369.02 | J12: 1920156 | K12: 2016164 | L12: 2116972
A13: Interest earned - outstanding debtors | C13: 42909472.76 | D13: 27028465.21 | E13: 43765840.8 | F13: 39585531 | G13: 39585531 | H13: 39585531 | I13: 29918384.8 | J13: 41564807 | K13: 43643050 | L13: 45825203
A14: Dividends received
A15: Fines, penalties and forfeits | C15: 6629399.67 | D15: 10321425.96 | E15: 14400813.11 | F15: 8585175 | G15: 8585175 | H15: 8585175 | I15: 2178117.57 | J15: 9014433 | K15: 9465156 | L15: 9938415
A16: Licences and permits | C16: 3196601.9 | D16: 3261335.94 | E16: 2992773 | F16: 6631360 | G16: 6631360 | H16: 6631360 | I16: 20530.88 | J16: 6962928 | K16: 7311075 | L16: 7676628
A17: Agency services | C17: 38796083.55 | D17: 42316543.65 | E17: 40108579.79 | F17: 0 | G17: 45000000 | H17: 45000000 | I17: 0 | J17: 47250000 | K17: 49612500 | L17: 52093125
A18: Transfers and subsidies | C18: 776203532.7 | D18: 816078321 | E18: 890325508 | F18: 934350000 | G18: 934350000 | H18: 934350000 | I18: 973042017.3 | J18: 844096000 | K18: 900385000 | L18: 909717000
A19: Other revenue | B19: 2 | C19: ='SA1'!C49 -> 36719544.97 | D19: ='SA1'!D49 -> 54263783.65 | E19: ='SA1'!E49 -> 282756503.2 | F19: ='SA1'!F49 -> 57600853 | G19: ='SA1'!G49 -> 57600853 | H19: ='SA1'!H49 -> 57600853 | I19: ='SA1'!I49 -> 32083270.21 | J19: ='SA1'!J49 -> 114915599.4 | K19: ='SA1'!K49 -> 74461375.82 | L19: ='SA1'!L49 -> 78177686.61
A20: Gains | C20: 0 | D20: 0 | E20: 0 | F20: 0 | G20: 0 | H20: 0 | I20: 0 | J20: 0 | K20: 0 | L20: 0
A21: Total Revenue (excluding capital transfers and contributions) | C21: =SUM(C5:C9)+SUM(C11:C20) -> 2477957868 | D21: =SUM(D5:D9)+SUM(D11:D20) -> 2845875617 | E21: 3246065555 | F21: 3213492371 | G21: 3269466617 | H21: 3269466617 | I21: 3053544284 | J21: 3474233665 | K21: 3629451002 | L21: 3789668288 | M21: =SUM(M5:M20) -> 0 | N21: 0 | O21: 0 | P21: 0 | Q21: 0 | R21: 0 | S21: 0 | T21: 0 | U21: 0 | V21: 0 | W21: 0 | X21: 0
A23: Expenditure By Type
A24: Employee related costs | B24: 2 | C24: ='SA1'!C67 -> 793706291.6 | D24: ='SA1'!D67 -> 936949435.9 | E24: ='SA1'!E67 -> 1010445130 | F24: ='SA1'!F67 -> 1086635464 | G24: ='SA1'!G67 -> 1085415464 | H24: ='SA1'!H67 -> 1085415464 | I24: ='SA1'!I67 -> 793602469.5 | J24: ='SA1'!J67 -> 1127746657 | K24: ='SA1'!K67 -> 1184134007 | L24: ='SA1'!L67 -> 1243340706
A25: Remuneration of councillors | C25: 38421823.45 | D25: 39466129.59 | E25: 58537188.18 | F25: 63592877 | G25: 63592877 | H25: 63592877 | I25: 44453901.72 | J25: 63592878 | K25: 63592878 | L25: 63592878
A26: Debt impairment | B26: 3 | C26: 160305282 | D26: 192919861.7 | E26: 113891498.6 | F26: 430287840 | G26: 339576910 | H26: 339576910 | I26: 0 | J26: 120222232 | K26: 126914416 | L26: 133982074
A27: Depreciation & asset impairment | B27: 2 | C27: ='SA1'!C83 -> 502874478.3 | D27: ='SA1'!D83 -> 506580404.9 | E27: ='SA1'!E83 -> 551510226.8 | F27: ='SA1'!F83 -> 516566578 | G27: ='SA1'!G83 -> 499046578 | H27: ='SA1'!H83 -> 499046578 | I27: ='SA1'!I83 -> 0 | J27: ='SA1'!J83 -> 474339944 | K27: ='SA1'!K83 -> 512122946 | L27: ='SA1'!L83 -> 521016718
A28: Finance charges | C28: 66271741.14 | D28: 90665330.17 | E28: 74873404.6 | F28: 27978354 | G28: 27978354 | H28: 27978354 | I28: 1685.42 | J28: 29377272 | K28: 30846136 | L28: 32388441
A29: Bulk purchases - electricity | B29: 2 | C29: ='SA1'!C88 -> 666785960.4 | D29: ='SA1'!D88 -> 708306997.5 | E29: ='SA1'!E88 -> 799439582.6 | F29: ='SA1'!F88 -> 813791132 | G29: ='SA1'!G88 -> 801198132 | H29: ='SA1'!H88 -> 801198132 | I29: ='SA1'!I88 -> 649314052.6 | J29: ='SA1'!J88 -> 870000000 | K29: ='SA1'!K88 -> 957000000 | L29: ='SA1'!L88 -> 1052700000
A30: Inventory consumed | B30: 8 | C30: ='SA1'!C169 -> 86741678.94 | D30: ='SA1'!D169 -> 88295311.32 | E30: ='SA1'!E169 -> 106034388.6 | F30: ='SA1'!F169 -> 90006625 | G30: ='SA1'!G169 -> 89490814 | H30: ='SA1'!H169 -> 89490814 | I30: ='SA1'!I169 -> 22206037.81 | J30: ='SA1'!J169 -> 95995482.11 | K30: ='SA1'!K169 -> 94675798.36 | L30: ='SA1'!L169 -> 93718492.48
A31: Contracted services | C31: ='SA1'!C127 -> 518854042.2 | D31: ='SA1'!D127 -> 627515357.5 | E31: ='SA1'!E127 -> 684173397 | F31: ='SA1'!F127 -> 425294466 | G31: ='SA1'!G127 -> 541964675 | H31: ='SA1'!H127 -> 541964675 | I31: ='SA1'!I127 -> 372323296.4 | J31: ='SA1'!J127 -> 446722095.2 | K31: ='SA1'!K127 -> 408212591.7 | L31: ='SA1'!L127 -> 374081372.6
A32: Transfers and subsidies | C32: ='SA1'!C93 -> 31911683.06 | D32: ='SA1'!D93 -> 40204638.54 | E32: ='SA1'!E93 -> 8110441.87 | F32: ='SA1'!F93 -> 2080000 | G32: ='SA1'!G93 -> 1049215 | H32: ='SA1'!H93 -> 1049215 | I32: ='SA1'!I93 -> 230383.09 | J32: ='SA1'!J93 -> 1034294 | K32: ='SA1'!K93 -> 951550 | L32: ='SA1'!L93 -> 875426
A33: Other expenditure | B33: 4, 5 | C33: ='SA1'!C157 -> 240049265.9 | D33: ='SA1'!D157 -> 244058871.1 | E33: ='SA1'!E157 -> 251440319.6 | F33: ='SA1'!F157 -> 162420000 | G33: ='SA1'!G157 -> 161571708 | H33: ='SA1'!H157 -> 161571708 | I33: ='SA1'!I157 -> 144334947.4 | J33: ='SA1'!J157 -> 124847407 | K33: ='SA1'!K157 -> 119425036.6 | L33: ='SA1'!L157 -> 113453784.8
A34: Losses | C34: 3547503.18 | D34: 204405.14 | E34: 1494579.58 | F34: 0 | G34: 0 | H34: 0 | I34: 0 | J34: 0 | K34: 0 | L34: 0
A35: Total Expenditure | C35: =SUM(C24:C34) -> 3109469750 | D35: =SUM(D24:D34) -> 3475166743 | E35: 3659950158 | F35: 3618653336 | G35: 3610884727 | H35: 3610884727 | I35: 2026466774 | J35: 3353878261 | K35: 3497875360 | L35: 3629149893 | M35: =SUM(M24:M34) -> 0 | N35: 0 | O35: 0 | P35: 0 | Q35: 0 | R35: 0 | S35: 0 | T35: 0 | U35: 0 | V35: 0 | W35: 0 | X35: 0
A37: Surplus/(Deficit) | C37: =C21-C35 -> -631511882.6 | D37: -629291126 | E37: -413884603.1 | F37: -405160965 | G37: -341418110 | H37: -341418110 | I37: 1027077510 | J37: 120355403.7 | K37: 131575642.1 | L37: 160518395 | M37: =M21+M35 -> 0 | N37: 0 | O37: 0 | P37: 0 | Q37: 0 | R37: 0 | S37: 0 | T37: 0 | U37: 0 | V37: 0 | W37: 0 | X37: 0
A38: Transfers and subsidies - capital (monetary allocations) (National / Provincial and District) | C38: 443779695.2 | D38: 418601204 | E38: 460997653 | F38: 368087000 | G38: 439839576 | H38: 439839576 | I38: 268901551.2 | J38: 499135000 | K38: 543361000 | L38: 577526000
A39: Transfers and subsidies - capital (monetary allocations) (National / Provincial Departmental Agencies, Households, Non-profit Institutions, Private Enterprises, Public Corporatons, Higher Educational Institutions) | B39: 6 | C39: 0 | D39: 0 | E39: 0 | F39: 0 | G39: 0 | H39: 0 | I39: 0 | J39: 0 | K39: 0 | L39: 0
A40: Transfers and subsidies - capital (in-kind - all) | C40: 3242258.3 | D40: 11148490.68 | E40: 3462094.21 | F40: 0 | G40: 0 | H40: 0 | I40: 0 | J40: 0 | K40: 0 | L40: 0
A41: Surplus/(Deficit) after capital transfers & contributions | C41: =SUM(C37:C40) -> -184489929.1 | D41: -199541431.4 | E41: 50575144.07 | F41: -37073965 | G41: 98421466 | H41: 98421466 | I41: 1295979061 | J41: 619490403.7 | K41: 674936642.1 | L41: 738044395
A42: Taxation
A43: Surplus/(Deficit) after taxation | C43: =C41-C42 -> -184489929.1 | D43: -199541431.4 | E43: 50575144.07 | F43: -37073965 | G43: 98421466 | H43: 98421466 | I43: 1295979061 | J43: 619490403.7 | K43: 674936642.1 | L43: 738044395
A44: Attributable to minorities
A45: Surplus/(Deficit) attributable to municipality | C45: =SUM(C43:C44) -> -184489929.1 | D45: -199541431.4 | E45: 50575144.07 | F45: -37073965 | G45: 98421466 | H45: 98421466 | I45: 1295979061 | J45: 619490403.7 | K45: 674936642.1 | L45: 738044395
A46: Share of surplus/ (deficit) of associate | B46: 7
A47: =result -> Surplus/(Deficit) for the year | C47: =SUM(C45:C46) -> -184489929.1 | D47: -199541431.4 | E47: 50575144.07 | F47: -37073965 | G47: 98421466 | H47: 98421466 | I47: 1295979061 | J47: 619490403.7 | K47: 674936642.1 | L47: 738044395 | M47: =M25+M46 -> 0 | N47: 0 | O47: 0 | P47: 0 | Q47: 0 | R47: 0 | S47: 0 | T47: 0 | U47: 0 | V47: 0 | W47: 0 | X47: 0
A48: =head27a -> References
A49: 1. Classifications are revenue sources and expenditure type
A50: 2. Detail to be provided in Table SA1
A51: 3. Previously described as 'bad or doubtful debts' - amounts shown should reflect the change in the provision for debt impairment
A52: 4. Expenditure type components previously shown under repairs and maintenance should be allocated back to the originating expenditure group/item; e.g. employee costs
A53: 5. Repairs & maintenance detailed in Table A9 and Table SA34c
A54: 6. Contributions are funds provided by external organisations to assist with infrastructure development; e.g. developer contributions (detail to be provided in Table SA1)
A55: 7. Equity method ( Includes Joint Ventures)
A56: 8. All materials not part of 'bulk' e.g road making materials, pipe, cable etc.
A57: check balance | C57: =C45-'A3-FinPerf V'!C39 -> 2.384185791e-07 | D57: =D45-'A3-FinPerf V'!D39 -> 41675.95 | E57: =E45-'A3-FinPerf V'!E39 -> 0 | F57: =F45-'A3-FinPerf V'!F39 -> 0 | G57: =G45-'A3-FinPerf V'!G39 -> 0 | H57: =H45-'A3-FinPerf V'!H39 -> 0 | J57: =J45-'A3-FinPerf V'!I39 -> 7.439369678 | K57: =K45-'A3-FinPerf V'!J39 -> 0 | L57: =L45-'A3-FinPerf V'!K39 -> 0
A59: Total revenue | C59: =C21+SUM(C38:C40) -> 2924979821 | D59: 3275625312 | E59: 3710525302 | F59: 3581579371 | G59: 3709306193 | H59: 3709306193 | I59: 3322445835 | J59: 3973368665 | K59: 4172812002 | L59: 4367194288

Sheet A5-Capex
A2: =Vdesc -> Vote Description | B2: =head27 -> Ref | C2: =head1b -> 2017/18 | D2: =head1A -> 2018/19 | E2: =Head1 -> 2019/20 | F2: =Head2 -> Current Year 2020/21 | J2: =Head3 -> 2021/22 Medium Term Revenue & Expenditure Framework
A3: R thousand | B3: 1 | C3: =Head5 -> Audited Outcome | D3: =Head5 -> Audited Outcome | E3: =Head5 -> Audited Outcome | F3: =Head6 -> Original Budget | G3: =Head7 -> Adjusted Budget | H3: =Head8 -> Full Year Forecast | I3: =Head5b -> Pre-audit outcome | J3: =Head9 -> Budget Year 2021/22 | K3: =Head10 -> Budget Year +1 2022/23 | L3: =Head11 -> Budget Year +2 2023/24
A4: Capital expenditure - Vote
A5: Multi-year expenditure to be appropriated | B5: 2
A6: =A5A!A6 -> Vote 01 - Council | C6: =A5A!C6 -> 0 | D6: =A5A!D6 -> 0 | E6: =A5A!E6 -> 0 | F6: =A5A!F6 -> 0 | G6: =A5A!G6 -> 0 | H6: =A5A!H6 -> 0 | I6: =A5A!I6 -> 0 | J6: =A5A!J6 -> 0 | K6: =A5A!K6 -> 0 | L6: =A5A!L6 -> 0
A7: =A5A!A21 -> Vote 02 - Office Of Council | C7: =A5A!C21 -> 0 | D7: =A5A!D21 -> 0 | E7: =A5A!E21 -> 0 | F7: =A5A!F21 -> 0 | G7: =A5A!G21 -> 0 | H7: =A5A!H21 -> 0 | I7: =A5A!I21 -> 0 | J7: =A5A!J21 -> 0 | K7: =A5A!K21 -> 0 | L7: =A5A!L21 -> 0
A8: =A5A!A25 -> Vote 03 - Municipal Manager | C8: =A5A!C25 -> 0 | D8: =A5A!D25 -> 0 | E8: =A5A!E25 -> 0 | F8: =A5A!F25 -> 0 | G8: =A5A!G25 -> 0 | H8: =A5A!H25 -> 0 | I8: =A5A!I25 -> 0 | J8: =A5A!J25 -> 0 | K8: =A5A!K25 -> 0 | L8: =A5A!L25 -> 0
A9: =A5A!A41 -> Vote 04 - City Planning And Development Department | C9: =A5A!C41 -> -6675208 | D9: =A5A!D41 -> 746170.04 | E9: =A5A!E41 -> 340498.15 | F9: =A5A!F41 -> 4600000 | G9: =A5A!G41 -> 0 | H9: =A5A!H41 -> 0 | I9: =A5A!I41 -> 0 | J9: =A5A!J41 -> 200000 | K9: =A5A!K41 -> 500000 | L9: =A5A!L41 -> 3500000
A10: =A5A!A50 -> Vote 05 - Corporate Services Department | C10: =A5A!C50 -> 1720782.2 | D10: =A5A!D50 -> 955232.11 | E10: =A5A!E50 -> 2370010.22 | F10: =A5A!F50 -> 3100000 | G10: =A5A!G50 -> 7615385 | H10: =A5A!H50 -> 7615385 | I10: =A5A!I50 -> 2357776.65 | J10: =A5A!J50 -> 2970000 | K10: =A5A!K50 -> 2000000 | L10: =A5A!L50 -> 0
A11: =A5A!A57 -> Vote 06 - Strategic Management Services | C11: =A5A!C57 -> 0 | D11: =A5A!D57 -> 0 | E11: =A5A!E57 -> 0 | F11: =A5A!F57 -> 0 | G11: =A5A!G57 -> 0 | H11: =A5A!H57 -> 0 | I11: =A5A!I57 -> 0 | J11: =A5A!J57 -> 0 | K11: =A5A!K57 -> 0 | L11: =A5A!L57 -> 0
A12: =A5A!A64 -> Vote 07 - Financial Management | C12: =A5A!C64 -> 6007282.29 | D12: =A5A!D64 -> 1700781.3 | E12: =A5A!E64 -> 736246.31 | F12: =A5A!F64 -> 2000000 | G12: =A5A!G64 -> 5601310 | H12: =A5A!H64 -> 5601310 | I12: =A5A!I64 -> 1275140.24 | J12: =A5A!J64 -> 2500000 | K12: =A5A!K64 -> 9500000 | L12: =A5A!L64 -> 10500000
A13: =A5A!A78 -> Vote 08 - Legal Services | C13: =A5A!C78 -> 0 | D13: =A5A!D78 -> 0 | E13: =A5A!E78 -> 0 | F13: =A5A!F78 -> 0 | G13: =A5A!G78 -> 0 | H13: =A5A!H78 -> 0 | I13: =A5A!I78 -> 0 | J13: =A5A!J78 -> 0 | K13: =A5A!K78 -> 0 | L13: =A5A!L78 -> 0
A14: =A5A!A80 -> Vote 09 - Regional Centre Coordination | C14: =A5A!C80 -> 0 | D14: =A5A!D80 -> 0 | E14: =A5A!E80 -> 0 | F14: =A5A!F80 -> 0 | G14: =A5A!G80 -> 0 | H14: =A5A!H80 -> 0 | I14: =A5A!I80 -> 0 | J14: =A5A!J80 -> 0 | K14: =A5A!K80 -> 0 | L14: =A5A!L80 -> 0
A15: =A5A!A86 -> Vote 10 - Community Services | C15: =A5A!C86 -> 0 | D15: =A5A!D86 -> 0 | E15: =A5A!E86 -> 0 | F15: =A5A!F86 -> 5500000 | G15: =A5A!G86 -> 10247496 | H15: =A5A!H86 -> 10247496 | I15: =A5A!I86 -> 5796234.65 | J15: =A5A!J86 -> 3800000 | K15: =A5A!K86 -> 800000 | L15: =A5A!L86 -> 800000
A16: =A5A!A98 -> Vote 11 - Public Works, Roads And Transport | C16: =A5A!C98 -> 37917995.74 | D16: =A5A!D98 -> 105529545.3 | E16: =A5A!E98 -> 50975789.95 | F16: =A5A!F98 -> 274683000 | G16: =A5A!G98 -> 323905320 | H16: =A5A!H98 -> 323905320 | I16: =A5A!I98 -> 183730299.8 | J16: =A5A!J98 -> 307929000 | K16: =A5A!K98 -> 255331000 | L16: =A5A!L98 -> 213026000
A17: =A5A!A121 -> Vote 12 - Public Safety | C17: =A5A!C121 -> 0 | D17: =A5A!D121 -> 0 | E17: =A5A!E121 -> 0 | F17: =A5A!F121 -> 0 | G17: =A5A!G121 -> 0 | H17: =A5A!H121 -> 0 | I17: =A5A!I121 -> 0 | J17: =A5A!J121 -> 0 | K17: =A5A!K121 -> 0 | L17: =A5A!L121 -> 0
A18: =A5A!A132 -> Vote 13 - Water And Sanitation | C18: =A5A!C132 -> 39883032.04 | D18: =A5A!D132 -> 25173507.84 | E18: =A5A!E132 -> 11352989.55 | F18: =A5A!F132 -> 69200000 | G18: =A5A!G132 -> 104721389 | H18: =A5A!H132 -> 104721389 | I18: =A5A!I132 -> 51514960.5 | J18: =A5A!J132 -> 135300000 | K18: =A5A!K132 -> 244530000 | L18: =A5A!L132 -> 316000000
A19: =A5A!A146 -> Vote 14 - Energy | C19: =A5A!C146 -> 19551287.82 | D19: =A5A!D146 -> 601201.06 | E19: =A5A!E146 -> 14518459.16 | F19: =A5A!F146 -> 49704000 | G19: =A5A!G146 -> 77862000 | H19: =A5A!H146 -> 77862000 | I19: =A5A!I146 -> 62963154.37 | J19: =A5A!J146 -> 123206000 | K19: =A5A!K146 -> 73500000 | L19: =A5A!L146 -> 76500000
A20: ='Org structure'!A16 -> Vote 15 - Other | C20: =A5A!C152 -> 0 | D20: =A5A!D152 -> 0 | E20: =A5A!E152 -> 0 | F20: =A5A!F152 -> 0 | G20: =A5A!G152 -> 0 | H20: =A5A!H152 -> 0 | I20: =A5A!I152 -> 0 | J20: =A5A!J152 -> 0 | K20: =A5A!K152 -> 0 | L20: =A5A!L152 -> 0
A21: Capital multi-year expenditure sub-total | B21: 7 | C21: =SUM(C6:C20) -> 98405172.09 | D21: =SUM(D6:D20) -> 134706437.7 | E21: 80293993.34 | F21: 408787000 | G21: 529952900 | H21: =SUM(H6:H20) -> 529952900 | I21: 307637566.2 | J21: 575905000 | K21: 586161000 | L21: 620326000
A23: Single-year expenditure to be appropriated | B23: 2
A24: =A5A!A157 -> Vote 01 - Council | C24: =A5A!C157 -> 0 | D24: =A5A!D157 -> 0 | E24: =A5A!E157 -> 0 | F24: =A5A!F157 -> 0 | G24: =A5A!G157 -> 0 | H24: =A5A!H157 -> 0 | I24: =A5A!I157 -> 0 | J24: =A5A!J157 -> 0 | K24: =A5A!K157 -> 0 | L24: =A5A!L157 -> 0
A25: =A5A!A172 -> Vote 02 - Office Of Council | C25: =A5A!C172 -> 0 | D25: =A5A!D172 -> 0 | E25: =A5A!E172 -> 164828.71 | F25: =A5A!F172 -> 0 | G25: =A5A!G172 -> 0 | H25: =A5A!H172 -> 0 | I25: =A5A!I172 -> 0 | J25: =A5A!J172 -> 0 | K25: =A5A!K172 -> 0 | L25: =A5A!L172 -> 0
A26: =A5A!A176 -> Vote 03 - Municipal Manager | C26: =A5A!C176 -> 0 | D26: =A5A!D176 -> 0 | E26: =A5A!E176 -> 0 | F26: =A5A!F176 -> 0 | G26: =A5A!G176 -> 0 | H26: =A5A!H176 -> 0 | I26: =A5A!I176 -> 0 | J26: =A5A!J176 -> 0 | K26: =A5A!K176 -> 0 | L26: =A5A!L176 -> 0
A27: =A5A!A192 -> Vote 04 - City Planning And Development Department | C27: =A5A!C192 -> 0 | D27: =A5A!D192 -> 0 | E27: =A5A!E192 -> 0 | F27: =A5A!F192 -> 0 | G27: =A5A!G192 -> 0 | H27: =A5A!H192 -> 0 | I27: =A5A!I192 -> 0 | J27: =A5A!J192 -> 11500000 | K27: =A5A!K192 -> 0 | L27: =A5A!L192 -> 0
A28: =A5A!A201 -> Vote 05 - Corporate Services Department | C28: =A5A!C201 -> 0 | D28: =A5A!D201 -> 0 | E28: =A5A!E201 -> 2407462.63 | F28: =A5A!F201 -> 0 | G28: =A5A!G201 -> 0 | H28: =A5A!H201 -> 0 | I28: =A5A!I201 -> 0 | J28: =A5A!J201 -> 2000000 | K28: =A5A!K201 -> 48000000 | L28: =A5A!L201 -> 0
A29: =A5A!A208 -> Vote 06 - Strategic Management Services | C29: =A5A!C208 -> 306075.87 | D29: =A5A!D208 -> 0 | E29: =A5A!E208 -> 0 | F29: =A5A!F208 -> 0 | G29: =A5A!G208 -> 0 | H29: =A5A!H208 -> 0 | I29: =A5A!I208 -> 0 | J29: =A5A!J208 -> 0 | K29: =A5A!K208 -> 0 | L29: =A5A!L208 -> 0
A30: =A5A!A215 -> Vote 07 - Financial Management | C30: =A5A!C215 -> 0 | D30: =A5A!D215 -> 15469831.52 | E30: =A5A!E215 -> 700000 | F30: =A5A!F215 -> 0 | G30: =A5A!G215 -> 1539485 | H30: =A5A!H215 -> 1539485 | I30: =A5A!I215 -> 1033277.2 | J30: =A5A!J215 -> 0 | K30: =A5A!K215 -> 0 | L30: =A5A!L215 -> 0
A31: =A5A!A229 -> Vote 08 - Legal Services | C31: =A5A!C229 -> 0 | D31: =A5A!D229 -> 0 | E31: =A5A!E229 -> 0 | F31: =A5A!F229 -> 0 | G31: =A5A!G229 -> 0 | H31: =A5A!H229 -> 0 | I31: =A5A!I229 -> 0 | J31: =A5A!J229 -> 0 | K31: =A5A!K229 -> 0 | L31: =A5A!L229 -> 0
A32: =A5A!A231 -> Vote 09 - Regional Centre Coordination | C32: =A5A!C231 -> 163462.2 | D32: =A5A!D231 -> 404304.68 | E32: =A5A!E231 -> 794047.62 | F32: =A5A!F231 -> 400000 | G32: =A5A!G231 -> 347197 | H32: =A5A!H231 -> 347197 | I32: =A5A!I231 -> 347197 | J32: =A5A!J231 -> 0 | K32: =A5A!K231 -> 0 | L32: =A5A!L231 -> 0
A33: =A5A!A237 -> Vote 10 - Community Services | C33: =A5A!C237 -> 914746.73 | D33: =A5A!D237 -> 2600432.13 | E33: =A5A!E237 -> 373902.14 | F33: =A5A!F237 -> 0 | G33: =A5A!G237 -> 14505000 | H33: =A5A!H237 -> 14505000 | I33: =A5A!I237 -> 5400006.4 | J33: =A5A!J237 -> 0 | K33: =A5A!K237 -> 3700000 | L33: =A5A!L237 -> 3000000
A34: =A5A!A249 -> Vote 11 - Public Works, Roads And Transport | C34: =A5A!C249 -> 0 | D34: =A5A!D249 -> 0 | E34: =A5A!E249 -> 0 | F34: =A5A!F249 -> 0 | G34: =A5A!G249 -> 0 | H34: =A5A!H249 -> 0 | I34: =A5A!I249 -> 0 | J34: =A5A!J249 -> 1500000 | K34: =A5A!K249 -> 0 | L34: =A5A!L249 -> 0
A35: =A5A!A272 -> Vote 12 - Public Safety | C35: =A5A!C272 -> 333333 | D35: =A5A!D272 -> 0 | E35: =A5A!E272 -> 4172608.5 | F35: =A5A!F272 -> 1000000 | G35: =A5A!G272 -> 3200000 | H35: =A5A!H272 -> 3200000 | I35: =A5A!I272 -> 0 | J35: =A5A!J272 -> 1500000 | K35: =A5A!K272 -> 1500000 | L35: =A5A!L272 -> 0
A36: =A5A!A283 -> Vote 13 - Water And Sanitation | C36: =A5A!C283 -> 0 | D36: =A5A!D283 -> 0 | E36: =A5A!E283 -> 0 | F36: =A5A!F283 -> 0 | G36: =A5A!G283 -> 0 | H36: =A5A!H283 -> 0 | I36: =A5A!I283 -> 0 | J36: =A5A!J283 -> 24800000 | K36: =A5A!K283 -> 24500000 | L36: =A5A!L283 -> 24500000
A37: =A5A!A297 -> Vote 14 - Energy | C37: =A5A!C297 -> 0 | D37: =A5A!D297 -> 0 | E37: =A5A!E297 -> 0 | F37: =A5A!F297 -> 0 | G37: =A5A!G297 -> 0 | H37: =A5A!H297 -> 0 | I37: =A5A!I297 -> 0 | J37: =A5A!J297 -> 0 | K37: =A5A!K297 -> 0 | L37: =A5A!L297 -> 0
A38: ='Org structure'!A16 -> Vote 15 - Other | C38: =A5A!C303 -> 0 | D38: =A5A!D303 -> 0 | E38: =A5A!E303 -> 0 | F38: =A5A!F303 -> 0 | G38: =A5A!G303 -> 0 | H38: =A5A!H303 -> 0 | I38: =A5A!I303 -> 0 | J38: =A5A!J303 -> 0 | K38: =A5A!K303 -> 0 | L38: =A5A!L303 -> 0
A39: Capital single-year expenditure sub-total | C39: =SUM(C24:C38) -> 1717617.8 | D39: =SUM(D24:D38) -> 18474568.33 | E39: 8612849.6 | F39: 1400000 | G39: 19591682 | H39: 19591682 | I39: 6780480.6 | J39: 41300000 | K39: 77700000 | L39: 27500000
A40: Total Capital Expenditure - Vote | C40: =C39+C21 -> 100122789.9 | D40: =D39+D21 -> 153181006 | E40: 88906842.94 | F40: 410187000 | G40: 549544582 | H40: 549544582 | I40: 314418046.8 | J40: 617205000 | K40: 663861000 | L40: 647826000
A42: Capital Expenditure - Functional
A43: Governance and administration | C43: =SUM(C44:C46) -> 8197602.56 | D43: =SUM(D44:D46) -> 18530149.61 | E43: 7172595.49 | F43: 5500000 | G43: 15703377 | H43: 15703377 | I43: 5013391.09 | J43: 17470000 | K43: 59500000 | L43: 10500000
A44: Executive and council | C44: 0 | D44: 0 | E44: 164828.71 | F44: 0 | G44: 0 | H44: 0 | I44: 0 | J44: 0 | K44: 0 | L44: 0
A45: Finance and administration | C45: 8197602.56 | D45: 18530149.61 | E45: 7007766.78 | F45: 5500000 | G45: 15703377 | H45: 15703377 | I45: 5013391.09 | J45: 17470000 | K45: 59500000 | L45: 10500000
A46: Internal audit
A47: Community and public safety | C47: =SUM(C48:C52) -> 1248079.73 | D47: =SUM(D48:D52) -> 1843932.13 | E47: 9692511.07 | F47: 30000000 | G47: 52421327 | H47: 52421327 | I47: 24096646.86 | J47: 18650000 | K47: 22500000 | L47: 3800000
A48: Community and social services | C48: 280821.37 | D48: 404922.01 | E48: 9318608.93 | F48: 20000000 | G48: 41368831 | H48: 41368831 | I48: 21493497.66 | J48: 6650000 | K48: 11000000 | L48: 3800000
A49: Sport and recreation | C49: 672078.75 | D49: 1439010.12 | E49: 373902.14 | F49: 9000000 | G49: 10052496 | H49: 10052496 | I49: 2603149.2 | J49: 10500000 | K49: 10000000 | L49: 0
A50: Public safety | C50: 295179.61 | D50: 0 | E50: 0 | F50: 1000000 | G50: 1000000 | H50: 1000000 | I50: 0 | J50: 1500000 | K50: 1500000 | L50: 0
A51: Housing | C51: 0 | D51: 0 | E51: 0 | F51: 0 | G51: 0 | H51: 0 | I51: 0 | J51: 0 | K51: 0 | L51: 0
A52: Health
A53: Economic and environmental services | C53: =SUM(C54:C56) -> 29196822.16 | D53: =SUM(D54:D56) -> 92019460.52 | E53: 45829789.39 | F53: 223133000 | G53: 231286489 | H53: 231286489 | I53: 125186441 | J53: 274079000 | K53: 227331000 | L53: 191526000
A54: Planning and development | C54: -6675208 | D54: 0 | E54: 1174808.54 | F54: 101650000 | G54: 70392844 | H54: 70392844 | I54: 39988349.74 | J54: 89550000 | K54: 103500000 | L54: 23500000
A55: Road transport | C55: 35872030.16 | D55: 92019460.52 | E55: 44654980.85 | F55: 121483000 | G55: 160893645 | H55: 160893645 | I55: 85198091.23 | J55: 184529000 | K55: 123831000 | L55: 168026000
A56: Environmental protection
A57: Trading services | C57: =SUM(C58:C61) -> 61480285.44 | D57: =SUM(D58:D61) -> 40041293.68 | E57: 25871448.71 | F57: 151554000 | G57: 250133389 | H57: 250133389 | I57: 160121567.9 | J57: 307006000 | K57: 354530000 | L57: 442000000
A58: Energy sources | C58: 19551287.82 | D58: 601201.06 | E58: 14518459.16 | F58: 49704000 | G58: 77862000 | H58: 77862000 | I58: 62963154.37 | J58: 123206000 | K58: 73500000 | L58: 76500000
A59: Water management | C59: 38483368.04 | D59: 19873401.36 | E59: 1086439.28 | F59: 71200000 | G59: 105149000 | H59: 105149000 | I59: 55942187.55 | J59: 146900000 | K59: 226500000 | L59: 264500000
A60: Waste water management | C60: 3445629.58 | D60: 18810191.26 | E60: 10266550.27 | F60: 30000000 | G60: 66372389 | H60: 66372389 | I60: 41216225.98 | J60: 36700000 | K60: 53530000 | L60: 91000000
A61: Waste management | C61: 0 | D61: 756500 | E61: 0 | F61: 650000 | G61: 750000 | H61: 750000 | I61: 0 | J61: 200000 | K61: 1000000 | L61: 10000000
A62: Other | C62: 0 | D62: 746170.04 | E62: 340498.28 | F62: 0 | G62: 0 | H62: 0 | I62: 0 | J62: 0 | K62: 0 | L62: 0
A63: Total Capital Expenditure - Functional | B63: 3 | C63: =C43+C47+C53+C57+C62 -> 100122789.9 | D63: =D43+D47+D53+D57+D62 -> 153181006 | E63: 88906842.94 | F63: 410187000 | G63: 549544582 | H63: 549544582 | I63: 314418046.8 | J63: 617205000 | K63: 663861000 | L63: =L43+L47+L53+L57+L62 -> 647826000
A65: Funded by:
A66: National Government | C66: 87462248.19 | D66: 81736438 | E66: 71920442.94 | F66: 361787000 | G66: 433540127 | H66: 433540127 | I66: 277594364.5 | J66: 493135000 | K66: 535361000 | L66: 577526000
A67: Provincial Government
A68: District Municipality
A69: ='A4-FinPerf RE'!A39 -> Transfers and subsidies - capital (monetary allocations) (National / Provincial Departmental Agencies, Households, Non-profit Institutions, Private Enterprises, Public Corporatons, Higher Educational Institutions) | C69: 0 | D69: 0 | E69: 0 | F69: 6300000 | G69: 6300000 | H69: 6300000 | I69: 5132591.26 | J69: 6000000 | K69: 8000000 | L69: 0
A70: Transfers recognised - capital | B70: 4 | C70: =SUM(C66:C69) -> 87462248.19 | D70: 81736438 | E70: 71920442.94 | F70: 368087000 | G70: 439840127 | H70: 439840127 | I70: 282726955.8 | J70: 499135000 | K70: 543361000 | L70: 577526000
A72: Borrowing | B72: 6 | C72: 0 | D72: 0
A73: Internally generated funds | C73: 12660541.7 | D73: 71444568 | E73: 16986400 | F73: 42100000 | G73: 109704455 | H73: 109704455 | I73: 31691091.03 | J73: 118070000 | K73: 120500000 | L73: 70300000
A74: Total Capital Funding | B74: 7 | C74: =+C70+C72+C73 -> 100122789.9 | D74: =+D70+D72+D73 -> 153181006 | E74: 88906842.94 | F74: 410187000 | G74: 549544582 | H74: 549544582 | I74: 314418046.8 | J74: 617205000 | K74: 663861000 | L74: 647826000
A75: =head27a -> References
A76: 1. Municipalities may choose to appropriate for capital expenditure for three years or for one year (if one year appropriation projected expenditure required for yr2 and yr3).
A77: 2. Include capital component of PPP unitary payment. Note that capital transfers are only appropriated to municipalities for the budget year
A78: 3. Capital expenditure by functional classification must reconcile to the appropriations by vote
A79: 4. Must reconcile to supporting table SA20 and to Budgeted Financial Performance (revenue and expenditure)
A81: 6. Include finance leases and PPP capital funding component of unitary payment - total borrowing/repayments to reconcile to changes in Table SA17
A82: 7. Total Capital Funding must balance with Total Capital Expenditure
A83: 8. Include any capitalised interest (MFMA section 46) as part of relevant capital budget
A85: check balance | C85: =IF((C63-C74)=0,0,"Unbalanced") -> 0 | D85: =IF((D63-D74)=0,0,"Unbalanced") -> Unbalanced | E85: 0 | F85: 0 | G85: 0 | H85: 0 | I85: 0 | J85: 0 | K85: 0 | L85: 0

Sheet A5A
A1: =muni&" - "&Approve5 -> MP326 City of Mbombela - Table A5 Budgeted Capital Expenditure by vote, functional classification and funding
A2: =Vdesc -> Vote Description | B2: =head27 -> Ref | C2: =head1b -> 2017/18 | D2: =head1A -> 2018/19 | E2: =Head1 -> 2019/20 | F2: =Head2 -> Current Year 2020/21 | J2: =Head3 -> 2021/22 Medium Term Revenue & Expenditure Framework | N2: ="Multi-year appropriation for "&Head9& " in the "&Head2A&" Annual Budget" -> Multi-year appropriation for Budget Year 2021/22 in the 2020/21 Annual Budget | R2: ="Multi-year appropriation for "&RIGHT(Head10,7)& " in the "&Head2A&" Annual Budget" -> Multi-year appropriation for 2022/23 in the 2020/21 Annual Budget | V2: New multi-year appropriations (funds for new and existing projects)
A3: R thousand | B3: 1 | C3: =Head5 -> Audited Outcome | D3: =Head5 -> Audited Outcome | E3: =Head5 -> Audited Outcome | F3: =Head6 -> Original Budget | G3: =Head7 -> Adjusted Budget | H3: =Head8 -> Full Year Forecast | I3: =Head5b -> Pre-audit outcome | J3: =Head9 -> Budget Year 2021/22 | K3: =Head10 -> Budget Year +1 2022/23 | L3: =Head11 -> Budget Year +2 2023/24 | N3: ="Appropriation for "&RIGHT(Head9,7) -> Appropriation for 2021/22 | O3: ="Adjustments in "&Head2A -> Adjustments in 2020/21 | P3: ="Downward adjustments for "&RIGHT(Head9,7) -> Downward adjustments for 2021/22 | Q3: Appropriation carried forward | R3: ="Appropriation for "&RIGHT(Head9,7) -> Appropriation for 2021/22 | S3: ="Adjustments in "&Head2A -> Adjustments in 2020/21 | T3: ="Downward adjustments for "&RIGHT(Head9,7) -> Downward adjustments for 2021/22 | U3: Appropriation carried forward | V3: =Head9 -> Budget Year 2021/22 | W3: =Head10 -> Budget Year +1 2022/23 | X3: =Head11 -> Budget Year +2 2023/24
A4: Capital expenditure - Municipal Vote
A5: Multi-year expenditure appropriation | B5: 2
A6: ='Org structure'!A2 -> Vote 01 - Council | C6: =SUM(C7:C20) -> 0 | D6: 0 | E6: 0 | F6: 0 | G6: 0 | H6: 0 | I6: 0 | J6: 0 | K6: 0 | L6: 0 | N6: =SUM(N7:N20) -> 0 | O6: 0 | P6: 0 | Q6: 0 | R6: 0 | S6: 0 | T6: 0 | U6: 0 | V6: 0 | W6: 0 | X6: 0
A7: ='Org structure'!E3 -> 01.1 - Office Of The Mayor | C7: 0 | D7: 0 | E7: 0 | F7: 0 | G7: 0 | H7: 0 | I7: 0 | J7: =Q7+V7 -> 0 | K7: =U7+W7 -> 0 | L7: =X7 -> 0 | N7: 0 | O7: 0 | P7: 0 | Q7: =SUM(N7:P7) -> 0 | R7: 0 | S7: 0 | T7: 0 | U7: =SUM(R7:T7) -> 0 | V7: 0 | W7: 0 | X7: 0
A8: ='Org structure'!E4 -> 01.2 - Office Of The Chief Whip | C8: 0 | D8: 0 | E8: 0 | F8: 0 | G8: 0 | H8: 0 | I8: 0 | J8: 0 | K8: 0 | L8: 0 | N8: 0 | O8: 0 | P8: 0 | Q8: 0 | R8: 0 | S8: 0 | T8: 0 | U8: 0 | V8: 0 | W8: 0 | X8: 0
A9: ='Org structure'!E5 -> 01.3 - Office Of The Speaker | C9: 0 | D9: 0 | E9: 0 | F9: 0 | G9: 0 | H9: 0 | I9: 0 | J9: 0 | K9: 0 | L9: 0 | N9: 0 | O9: 0 | P9: 0 | Q9: 0 | R9: 0 | S9: 0 | T9: 0 | U9: 0 | V9: 0 | W9: 0 | X9: 0
A10: ='Org structure'!E6 -> 01.4 - Mayoral Mmc - Budget & Treasury Servic | C10: 0 | D10: 0 | E10: 0 | F10: 0 | G10: 0 | H10: 0 | I10: 0 | J10: 0 | K10: 0 | L10: 0 | N10: 0 | O10: 0 | P10: 0 | Q10: 0 | R10: 0 | S10: 0 | T10: 0 | U10: 0 | V10: 0 | W10: 0 | X10: 0
A11: ='Org structure'!E7 -> 01.5 - Mayoral Mmc - Corporate Services | C11: 0 | D11: 0 | E11: 0 | F11: 0 | G11: 0 | H11: 0 | I11: 0 | J11: 0 | K11: 0 | L11: 0 | N11: 0 | O11: 0 | P11: 0 | Q11: 0 | R11: 0 | S11: 0 | T11: 0 | U11: 0 | V11: 0 | W11: 0 | X11: 0
A12: ='Org structure'!E8 -> 01.6 - Mmc - City Planning & Development | C12: 0 | D12: 0 | E12: 0 | F12: 0 | G12: 0 | H12: 0 | I12: 0 | J12: 0 | K12: 0 | L12: 0 | N12: 0 | O12: 0 | P12: 0 | Q12: 0 | R12: 0 | S12: 0 | T12: 0 | U12: 0 | V12: 0 | W12: 0 | X12: 0
A13: ='Org structure'!E9 -> 01.7 - Mmc - Strategic Management | C13: 0 | D13: 0 | E13: 0 | F13: 0 | G13: 0 | H13: 0 | I13: 0 | J13: 0 | K13: 0 | L13: 0 | N13: 0 | O13: 0 | P13: 0 | Q13: 0 | R13: 0 | S13: 0 | T13: 0 | U13: 0 | V13: 0 | W13: 0 | X13: 0
A14: ='Org structure'!E10 -> 01.8 - Mayoral Mmc - Community Services | C14: 0 | D14: 0 | E14: 0 | F14: 0 | G14: 0 | H14: 0 | I14: 0 | J14: 0 | K14: 0 | L14: 0 | N14: 0 | O14: 0 | P14: 0 | Q14: 0 | R14: 0 | S14: 0 | T14: 0 | U14: 0 | V14: 0 | W14: 0 | X14: 0
A15: ='Org structure'!E11 -> 01.9 - Mmc - Energy | C15: 0 | D15: 0 | E15: 0 | F15: 0 | G15: 0 | H15: 0 | I15: 0 | J15: 0 | K15: 0 | L15: 0 | N15: 0 | O15: 0 | P15: 0 | Q15: 0 | R15: 0 | S15: 0 | T15: 0 | U15: 0 | V15: 0 | W15: 0 | X15: 0
A16: ='Org structure'!E12 -> 01.10 - Mmc - Public Safety | C16: 0 | D16: 0 | E16: 0 | F16: 0 | G16: 0 | H16: 0 | I16: 0 | J16: 0 | K16: 0 | L16: 0 | N16: 0 | O16: 0 | P16: 0 | Q16: 0 | R16: 0 | S16: 0 | T16: 0 | U16: 0 | V16: 0 | W16: 0 | X16: 0
A17: ='Org structure'!E13 -> 01.11 - Mmc - Water & Sanitation | C17: 0 | D17: 0 | E17: 0 | F17: 0 | G17: 0 | H17: 0 | I17: 0 | J17: 0 | K17: 0 | L17: 0 | N17: 0 | O17: 0 | P17: 0 | Q17: 0 | R17: 0 | S17: 0 | T17: 0 | U17: 0 | V17: 0 | W17: 0 | X17: 0
A18: ='Org structure'!E14 -> 01.12 - Mmc - Public Works & Transport | C18: 0 | D18: 0 | E18: 0 | F18: 0 | G18: 0 | H18: 0 | I18: 0 | J18: 0 | K18: 0 | L18: 0 | N18: 0 | O18: 0 | P18: 0 | Q18: 0 | R18: 0 | S18: 0 | T18: 0 | U18: 0 | V18: 0 | W18: 0 | X18: 0
A19: ='Org structure'!E15 -> 01.13 - Mayoral Mmc - Centre Coordination | C19: 0 | D19: 0 | E19: 0 | F19: 0 | G19: 0 | H19: 0 | I19: 0 | J19: 0 | K19: 0 | L19: 0 | N19: 0 | O19: 0 | P19: 0 | Q19: 0 | R19: 0 | S19: 0 | T19: 0 | U19: 0 | V19: 0 | W19: 0 | X19: 0
A20: ='Org structure'!E16 -> 01.14 - Mpac (Section 79) | C20: 0 | D20: 0 | E20: 0 | F20: 0 | G20: 0 | H20: 0 | I20: 0 | J20: 0 | K20: 0 | L20: 0 | N20: 0 | O20: 0 | P20: 0 | Q20: 0 | R20: 0 | S20: 0 | T20: 0 | U20: 0 | V20: 0 | W20: 0 | X20: 0
A21: ='Org structure'!A3 -> Vote 02 - Office Of Council | C21: =SUM(C22:C24) -> 0 | D21: 0 | E21: 0 | F21: 0 | G21: 0 | H21: 0 | I21: 0 | J21: 0 | K21: 0 | L21: 0 | N21: =SUM(N22:N24) -> 0 | O21: 0 | P21: 0 | Q21: 0 | R21: 0 | S21: 0 | T21: 0 | U21: 0 | V21: 0 | W21: 0 | X21: 0
A22: ='Org structure'!E18 -> 02.1 - Office Of The Gm - Office Of Council | C22: 0 | D22: 0 | E22: 0 | F22: 0 | G22: 0 | H22: 0 | I22: 0 | J22: =Q22+V22 -> 0 | K22: =U22+W22 -> 0 | L22: =X22 -> 0 | N22: 0 | O22: 0 | P22: 0 | Q22: =SUM(N22:P22) -> 0 | R22: 0 | S22: 0 | T22: 0 | U22: =SUM(R22:T22) -> 0 | V22: 0 | W22: 0 | X22: 0
A23: ='Org structure'!E19 -> 02.2 - Public Stakeholder Participtn Petitions | C23: 0 | D23: 0 | E23: 0 | F23: 0 | G23: 0 | H23: 0 | I23: 0 | J23: =Q23+V23 -> 0 | K23: =U23+W23 -> 0 | L23: =X23 -> 0 | N23: 0 | O23: 0 | P23: 0 | Q23: =SUM(N23:P23) -> 0 | R23: 0 | S23: 0 | T23: 0 | U23: =SUM(R23:T23) -> 0 | V23: 0 | W23: 0 | X23: 0
A24: ='Org structure'!E20 -> 02.3 - Council Secretariat | C24: 0 | D24: 0 | E24: 0 | F24: 0 | G24: 0 | H24: 0 | I24: 0 | J24: =Q24+V24 -> 0 | K24: =U24+W24 -> 0 | L24: =X24 -> 0 | N24: 0 | O24: 0 | P24: 0 | Q24: =SUM(N24:P24) -> 0 | R24: 0 | S24: 0 | T24: 0 | U24: =SUM(R24:T24) -> 0 | V24: 0 | W24: 0 | X24: 0
A25: ='Org structure'!A4 -> Vote 03 - Municipal Manager | C25: =SUM(C26:C40) -> 0 | D25: 0 | E25: 0 | F25: 0 | G25: 0 | H25: 0 | I25: 0 | J25: 0 | K25: 0 | L25: 0 | N25: =SUM(N26:N40) -> 0 | O25: 0 | P25: 0 | Q25: 0 | R25: 0 | S25: 0 | T25: 0 | U25: 0 | V25: 0 | W25: 0 | X25: 0
A26: ='Org structure'!E22 -> 03.1 - Municipal Manager Administration | C26: 0 | D26: 0 | E26: 0 | F26: 0 | G26: 0 | H26: 0 | I26: 0 | J26: =Q26+V26 -> 0 | K26: =U26+W26 -> 0 | L26: =X26 -> 0 | N26: 0 | O26: 0 | P26: 0 | Q26: =SUM(N26:P26) -> 0 | R26: 0 | S26: 0 | T26: 0 | U26: =SUM(R26:T26) -> 0 | V26: 0 | W26: 0 | X26: 0
A27: ='Org structure'!E23 -> 03.2 - Municipal Manager Admin (Waste Man) | C27: 0 | D27: 0 | E27: 0 | F27: 0 | G27: 0 | H27: 0 | I27: 0 | J27: 0 | K27: 0 | L27: 0 | N27: 0 | O27: 0 | P27: 0 | Q27: 0 | R27: 0 | S27: 0 | T27: 0 | U27: 0 | V27: 0 | W27: 0 | X27: 0
A28: ='Org structure'!E24 -> 03.3 - Municipal Manager Admin (Electricity) | C28: 0 | D28: 0 | E28: 0 | F28: 0 | G28: 0 | H28: 0 | I28: 0 | J28: 0 | K28: 0 | L28: 0 | N28: 0 | O28: 0 | P28: 0 | Q28: 0 | R28: 0 | S28: 0 | T28: 0 | U28: 0 | V28: 0 | W28: 0 | X28: 0
A29: ='Org structure'!E25 -> 03.4 - Municipal Manager Admin (Rural Dev) | C29: 0 | D29: 0 | E29: 0 | F29: 0 | G29: 0 | H29: 0 | I29: 0 | J29: 0 | K29: 0 | L29: 0 | N29: 0 | O29: 0 | P29: 0 | Q29: 0 | R29: 0 | S29: 0 | T29: 0 | U29: 0 | V29: 0 | W29: 0 | X29: 0
A30: ='Org structure'!E26 -> 03.5 - Internal Audit | C30: 0 | D30: 0 | E30: 0 | F30: 0 | G30: 0 | H30: 0 | I30: 0 | J30: 0 | K30: 0 | L30: 0 | N30: 0 | O30: 0 | P30: 0 | Q30: 0 | R30: 0 | S30: 0 | T30: 0 | U30: 0 | V30: 0 | W30: 0 | X30: 0
A31: ='Org structure'!E27 -> 03.6 - Office Of The Dmm - Aux | C31: 0 | D31: 0 | E31: 0 | F31: 0 | G31: 0 | H31: 0 | I31: 0 | J31: 0 | K31: 0 | L31: 0 | N31: 0 | O31: 0 | P31: 0 | Q31: 0 | R31: 0 | S31: 0 | T31: 0 | U31: 0 | V31: 0 | W31: 0 | X31: 0
A32: ='Org structure'!E28 -> 03.7 - Performance And Monitoring | C32: 0 | D32: 0 | E32: 0 | F32: 0 | G32: 0 | H32: 0 | I32: 0 | J32: 0 | K32: 0 | L32: 0 | N32: 0 | O32: 0 | P32: 0 | Q32: 0 | R32: 0 | S32: 0 | T32: 0 | U32: 0 | V32: 0 | W32: 0 | X32: 0
A33: ='Org structure'!E29 -> 03.8 - Enterprise Risk Management | C33: 0 | D33: 0 | E33: 0 | F33: 0 | G33: 0 | H33: 0 | I33: 0 | J33: 0 | K33: 0 | L33: 0 | N33: 0 | O33: 0 | P33: 0 | Q33: 0 | R33: 0 | S33: 0 | T33: 0 | U33: 0 | V33: 0 | W33: 0 | X33: 0
A34: ='Org structure'!E30 -> 03.9 - Enviromental Management And Planning | C34: 0 | D34: 0 | E34: 0 | F34: 0 | G34: 0 | H34: 0 | I34: 0 | J34: 0 | K34: 0 | L34: 0 | N34: 0 | O34: 0 | P34: 0 | Q34: 0 | R34: 0 | S34: 0 | T34: 0 | U34: 0 | V34: 0 | W34: 0 | X34: 0
A35: ='Org structure'!E31 -> 03.10 - Enviromental Man&Plan - Soil Conserv | C35: 0 | D35: 0 | E35: 0 | F35: 0 | G35: 0 | H35: 0 | I35: 0 | J35: 0 | K35: 0 | L35: 0 | N35: 0 | O35: 0 | P35: 0 | Q35: 0 | R35: 0 | S35: 0 | T35: 0 | U35: 0 | V35: 0 | W35: 0 | X35: 0
A36: ='Org structure'!E32 -> 03.11 - Enviromental Man&Plan - Nature Cons | C36: 0 | D36: 0 | E36: 0 | F36: 0 | G36: 0 | H36: 0 | I36: 0 | J36: 0 | K36: 0 | L36: 0 | N36: 0 | O36: 0 | P36: 0 | Q36: 0 | R36: 0 | S36: 0 | T36: 0 | U36: 0 | V36: 0 | W36: 0 | X36: 0
A37: ='Org structure'!E33 -> 03.12 - Transversal Services | C37: 0 | D37: 0 | E37: 0 | F37: 0 | G37: 0 | H37: 0 | I37: 0 | J37: 0 | K37: 0 | L37: 0 | N37: 0 | O37: 0 | P37: 0 | Q37: 0 | R37: 0 | S37: 0 | T37: 0 | U37: 0 | V37: 0 | W37: 0 | X37: 0
A38: ='Org structure'!E34 -> 03.13 - Water Services Compliance Monitoring | C38: 0 | D38: 0 | E38: 0 | F38: 0 | G38: 0 | H38: 0 | I38: 0 | J38: 0 | K38: 0 | L38: 0 | N38: 0 | O38: 0 | P38: 0 | Q38: 0 | R38: 0 | S38: 0 | T38: 0 | U38: 0 | V38: 0 | W38: 0 | X38: 0
A39: ='Org structure'!E35 -> 03.14 - Office Dmm - Core Service - Water | C39: 0 | D39: 0 | E39: 0 | F39: 0 | G39: 0 | H39: 0 | I39: 0 | J39: 0 | K39: 0 | L39: 0 | N39: 0 | O39: 0 | P39: 0 | Q39: 0 | R39: 0 | S39: 0 | T39: 0 | U39: 0 | V39: 0 | W39: 0 | X39: 0
A40: ='Org structure'!E36 -> 03.15 - Office Dmm - Core Service - Waste Water | C40: 0 | D40: 0 | E40: 0 | F40: 0 | G40: 0 | H40: 0 | I40: 0 | J40: 0 | K40: 0 | L40: 0 | N40: 0 | O40: 0 | P40: 0 | Q40: 0 | R40: 0 | S40: 0 | T40: 0 | U40: 0 | V40: 0 | W40: 0 | X40: 0
A41: ='Org structure'!A5 -> Vote 04 - City Planning And Development Department | C41: =SUM(C42:C49) -> -6675208 | D41: 746170.04 | E41: 340498.15 | F41: 4600000 | G41: 0 | H41: 0 | I41: 0 | J41: 200000 | K41: 500000 | L41: 3500000 | N41: =SUM(N42:N49) -> 200000 | O41: 0 | P41: 0 | Q41: 200000 | R41: 500000 | S41: 0 | T41: 0 | U41: 500000 | V41: 0 | W41: 0 | X41: 3500000
A42: ='Org structure'!E38 -> 04.1 - Office Of The Gm - Planning | C42: 0 | D42: 0 | E42: 0 | F42: 0 | G42: 0 | H42: 0 | I42: 0 | J42: =Q42+V42 -> 0 | K42: =U42+W42 -> 0 | L42: =X42 -> 0 | N42: 0 | O42: 0 | P42: 0 | Q42: =SUM(N42:P42) -> 0 | R42: 0 | S42: 0 | T42: 0 | U42: =SUM(R42:T42) -> 0 | V42: 0 | W42: 0 | X42: 0
A43: ='Org structure'!E39 -> 04.2 - Land Use Management | C43: 0 | D43: 0 | E43: 0 | F43: 0 | G43: 0 | H43: 0 | I43: 0 | J43: 0 | K43: 0 | L43: 0 | N43: 0 | O43: 0 | P43: 0 | Q43: 0 | R43: 0 | S43: 0 | T43: 0 | U43: 0 | V43: 0 | W43: 0 | X43: 0
A44: ='Org structure'!E40 -> 04.3 - Local Economic Development | C44: 0 | D44: 0 | E44: 0 | F44: 2100000 | G44: 0 | H44: 0 | I44: 0 | J44: 200000 | K44: 500000 | L44: 3500000 | N44: 200000 | O44: 0 | P44: 0 | Q44: 200000 | R44: 500000 | S44: 0 | T44: 0 | U44: 500000 | V44: 0 | W44: 0 | X44: 3500000
A45: ='Org structure'!E41 -> 04.4 - Rural Plan Traditional Affairs & Agric | C45: 21800 | D45: 0 | E45: 0 | F45: 2500000 | G45: 0 | H45: 0 | I45: 0 | J45: 0 | K45: 0 | L45: 0 | N45: 0 | O45: 0 | P45: 0 | Q45: 0 | R45: 0 | S45: 0 | T45: 0 | U45: 0 | V45: 0 | W45: 0 | X45: 0
A46: ='Org structure'!E42 -> 04.5 - Human Settlement | C46: 0 | D46: 0 | E46: 0 | F46: 0 | G46: 0 | H46: 0 | I46: 0 | J46: 0 | K46: 0 | L46: 0 | N46: 0 | O46: 0 | P46: 0 | Q46: 0 | R46: 0 | S46: 0 | T46: 0 | U46: 0 | V46: 0 | W46: 0 | X46: 0
A47: ='Org structure'!E43 -> 04.6 - Tourism Business Regulations And Gov | C47: 0 | D47: 746170.04 | E47: 340498.28 | F47: 0 | G47: 0 | H47: 0 | I47: 0 | J47: 0 | K47: 0 | L47: 0 | N47: 0 | O47: 0 | P47: 0 | Q47: 0 | R47: 0 | S47: 0 | T47: 0 | U47: 0 | V47: 0 | W47: 0 | X47: 0
A48: ='Org structure'!E44 -> 04.7 - Spatial Development Planning | C48: -6697008 | D48: 0 | E48: -0.13 | F48: 0 | G48: 0 | H48: 0 | I48: 0 | J48: 0 | K48: 0 | L48: 0 | N48: 0 | O48: 0 | P48: 0 | Q48: 0 | R48: 0 | S48: 0 | T48: 0 | U48: 0 | V48: 0 | W48: 0 | X48: 0
A49: ='Org structure'!E45 -> 04.8 - Real Estate Management | C49: 0 | D49: 0 | E49: 0 | F49: 0 | G49: 0 | H49: 0 | I49: 0 | J49: 0 | K49: 0 | L49: 0 | N49: 0 | O49: 0 | P49: 0 | Q49: 0 | R49: 0 | S49: 0 | T49: 0 | U49: 0 | V49: 0 | W49: 0 | X49: 0
A50: ='Org structure'!A6 -> Vote 05 - Corporate Services Department | C50: =SUM(C51:C56) -> 1720782.2 | D50: 955232.11 | E50: 2370010.22 | F50: 3100000 | G50: 7615385 | H50: 7615385 | I50: 2357776.65 | J50: 2970000 | K50: 2000000 | L50: 0 | N50: =SUM(N51:N56) -> 2970000 | O50: 0 | P50: 0 | Q50: 2970000 | R50: 2000000 | S50: 0 | T50: 0 | U50: 2000000 | V50: 0 | W50: 0 | X50: 0
A51: ='Org structure'!E47 -> 05.1 - Office Of The Gm - Corporate Services | C51: 0 | D51: 0 | E51: 0 | F51: 0 | G51: 0 | H51: 0 | I51: 0 | J51: =Q51+V51 -> 0 | K51: =U51+W51 -> 0 | L51: =X51 -> 0 | N51: 0 | O51: 0 | P51: 0 | Q51: =SUM(N51:P51) -> 0 | R51: 0 | S51: 0 | T51: 0 | U51: =SUM(R51:T51) -> 0 | V51: 0 | W51: 0 | X51: 0
A52: ='Org structure'!E48 -> 05.2 - Hr Provision Organ Design & Empl Equity | C52: 0 | D52: 0 | E52: 0 | F52: 0 | G52: 0 | H52: 0 | I52: 0 | J52: 0 | K52: 0 | L52: 0 | N52: 0 | O52: 0 | P52: 0 | Q52: 0 | R52: 0 | S52: 0 | T52: 0 | U52: 0 | V52: 0 | W52: 0 | X52: 0
A53: ='Org structure'!E49 -> 05.3 - Perform Management & Skills Development | C53: 0 | D53: 0 | E53: 0 | F53: 0 | G53: 0 | H53: 0 | I53: 0 | J53: 0 | K53: 0 | L53: 0 | N53: 0 | O53: 0 | P53: 0 | Q53: 0 | R53: 0 | S53: 0 | T53: 0 | U53: 0 | V53: 0 | W53: 0 | X53: 0
A54: ='Org structure'!E50 -> 05.4 - Ohs; Wellness And Employment Relations | C54: 0 | D54: 15305.79 | E54: 0 | F54: 0 | G54: 0 | H54: 0 | I54: 0 | J54: 0 | K54: 0 | L54: 0 | N54: 0 | O54: 0 | P54: 0 | Q54: 0 | R54: 0 | S54: 0 | T54: 0 | U54: 0 | V54: 0 | W54: 0 | X54: 0
A55: ='Org structure'!E51 -> 05.5 - Facilities Management | C55: 1225345.46 | D55: 0 | E55: 0 | F55: 0 | G55: 0 | H55: 0 | I55: 0 | J55: 0 | K55: 0 | L55: 0 | N55: 0 | O55: 0 | P55: 0 | Q55: 0 | R55: 0 | S55: 0 | T55: 0 | U55: 0 | V55: 0 | W55: 0 | X55: 0
A56: ='Org structure'!E52 -> 05.6 - Ict Records Management And Archives | C56: 495436.74 | D56: 939926.32 | E56: 2370010.22 | F56: 3100000 | G56: 7615385 | H56: 7615385 | I56: 2357776.65 | J56: 2970000 | K56: 2000000 | L56: 0 | N56: 2970000 | O56: 0 | P56: 0 | Q56: 2970000 | R56: 2000000 | S56: 0 | T56: 0 | U56: 2000000 | V56: 0 | W56: 0 | X56: 0
A57: ='Org structure'!A7 -> Vote 06 - Strategic Management Services | C57: =SUM(C58:C63) -> 0 | D57: 0 | E57: 0 | F57: 0 | G57: 0 | H57: 0 | I57: 0 | J57: 0 | K57: 0 | L57: 0 | N57: =SUM(N58:N63) -> 0 | O57: 0 | P57: 0 | Q57: 0 | R57: 0 | S57: 0 | T57: 0 | U57: 0 | V57: 0 | W57: 0 | X57: 0
A58: ='Org structure'!E54 -> 06.1 - Office Of The Gm - Strat Man Services | C58: 0 | D58: 0 | E58: 0 | F58: 0 | G58: 0 | H58: 0 | I58: 0 | J58: =Q58+V58 -> 0 | K58: =U58+W58 -> 0 | L58: =X58 -> 0 | N58: 0 | O58: 0 | P58: 0 | Q58: =SUM(N58:P58) -> 0 | R58: 0 | S58: 0 | T58: 0 | U58: =SUM(R58:T58) -> 0 | V58: 0 | W58: 0 | X58: 0
A59: ='Org structure'!E55 -> 06.2 - Idp Coordinat And Policy Formulation | C59: 0 | D59: 0 | E59: 0 | F59: 0 | G59: 0 | H59: 0 | I59: 0 | J59: 0 | K59: 0 | L59: 0 | N59: 0 | O59: 0 | P59: 0 | Q59: 0 | R59: 0 | S59: 0 | T59: 0 | U59: 0 | V59: 0 | W59: 0 | X59: 0
A60: ='Org structure'!E56 -> 06.3 - Idp Coordinat And Policy Form - Facilit | C60: 0 | D60: 0 | E60: 0 | F60: 0 | G60: 0 | H60: 0 | I60: 0 | J60: 0 | K60: 0 | L60: 0 | N60: 0 | O60: 0 | P60: 0 | Q60: 0 | R60: 0 | S60: 0 | T60: 0 | U60: 0 | V60: 0 | W60: 0 | X60: 0
A61: ='Org structure'!E57 -> 06.4 - Corporate Communication | C61: 0 | D61: 0 | E61: 0 | F61: 0 | G61: 0 | H61: 0 | I61: 0 | J61: 0 | K61: 0 | L61: 0 | N61: 0 | O61: 0 | P61: 0 | Q61: 0 | R61: 0 | S61: 0 | T61: 0 | U61: 0 | V61: 0 | W61: 0 | X61: 0
A62: ='Org structure'!E58 -> 06.5 - Mayoral Support | C62: 0 | D62: 0 | E62: 0 | F62: 0 | G62: 0 | H62: 0 | I62: 0 | J62: 0 | K62: 0 | L62: 0 | N62: 0 | O62: 0 | P62: 0 | Q62: 0 | R62: 0 | S62: 0 | T62: 0 | U62: 0 | V62: 0 | W62: 0 | X62: 0
A63: ='Org structure'!E59 -> 06.6 - International & Intergovmental Relations | C63: 0 | D63: 0 | E63: 0 | F63: 0 | G63: 0 | H63: 0 | I63: 0 | J63: 0 | K63: 0 | L63: 0 | N63: 0 | O63: 0 | P63: 0 | Q63: 0 | R63: 0 | S63: 0 | T63: 0 | U63: 0 | V63: 0 | W63: 0 | X63: 0
A64: ='Org structure'!A8 -> Vote 07 - Financial Management | C64: =SUM(C65:C77) -> 6007282.29 | D64: 1700781.3 | E64: 736246.31 | F64: 2000000 | G64: 5601310 | H64: 5601310 | I64: 1275140.24 | J64: 2500000 | K64: 9500000 | L64: 10500000 | N64: =SUM(N65:N77) -> 2500000 | O64: 0 | P64: 0 | Q64: 2500000 | R64: 9500000 | S64: 0 | T64: 0 | U64: 9500000 | V64: 0 | W64: 0 | X64: 10500000
A65: ='Org structure'!E61 -> 07.1 - Office Of The Cfo | C65: 1669113.37 | D65: 1700781.3 | E65: 736246.31 | F65: 2000000 | G65: 1441310 | H65: 1441310 | I65: 1275140.24 | J65: =Q65+V65 -> 500000 | K65: =U65+W65 -> 500000 | L65: =X65 -> 500000 | N65: 500000 | O65: 0 | P65: 0 | Q65: =SUM(N65:P65) -> 500000 | R65: 500000 | S65: 0 | T65: 0 | U65: =SUM(R65:T65) -> 500000 | V65: 0 | W65: 0 | X65: 500000
A66: ='Org structure'!E62 -> 07.2 - Deputy Cfo - Finance | C66: 0 | D66: 0 | E66: 0 | F66: 0 | G66: 0 | H66: 0 | I66: 0 | J66: 0 | K66: 0 | L66: 0 | N66: 0 | O66: 0 | P66: 0 | Q66: 0 | R66: 0 | S66: 0 | T66: 0 | U66: 0 | V66: 0 | W66: 0 | X66: 0
A67: ='Org structure'!E63 -> 07.3 - Deputy Cfo - Marketing | C67: 0 | D67: 0 | E67: 0 | F67: 0 | G67: 0 | H67: 0 | I67: 0 | J67: 0 | K67: 0 | L67: 0 | N67: 0 | O67: 0 | P67: 0 | Q67: 0 | R67: 0 | S67: 0 | T67: 0 | U67: 0 | V67: 0 | W67: 0 | X67: 0
A68: ='Org structure'!E64 -> 07.4 - Financial Planning & Budgeting- Finance | C68: 0 | D68: 0 | E68: 0 | F68: 0 | G68: 0 | H68: 0 | I68: 0 | J68: 0 | K68: 0 | L68: 0 | N68: 0 | O68: 0 | P68: 0 | Q68: 0 | R68: 0 | S68: 0 | T68: 0 | U68: 0 | V68: 0 | W68: 0 | X68: 0
A69: ='Org structure'!E65 -> 07.5 - Financial Planning & Budgeting - Bud&Tre | C69: 0 | D69: 0 | E69: 0 | F69: 0 | G69: 0 | H69: 0 | I69: 0 | J69: 0 | K69: 0 | L69: 0 | N69: 0 | O69: 0 | P69: 0 | Q69: 0 | R69: 0 | S69: 0 | T69: 0 | U69: 0 | V69: 0 | W69: 0 | X69: 0
A70: ='Org structure'!E66 -> 07.6 - Financial Planning & Budgeting - Bud&Tre | C70: 0 | D70: 0 | E70: 0 | F70: 0 | G70: 0 | H70: 0 | I70: 0 | J70: 0 | K70: 0 | L70: 0 | N70: 0 | O70: 0 | P70: 0 | Q70: 0 | R70: 0 | S70: 0 | T70: 0 | U70: 0 | V70: 0 | W70: 0 | X70: 0
A71: ='Org structure'!E67 -> 07.7 - Financial Planning & Budgeting - Inform | C71: 0 | D71: 0 | E71: 0 | F71: 0 | G71: 0 | H71: 0 | I71: 0 | J71: 0 | K71: 0 | L71: 0 | N71: 0 | O71: 0 | P71: 0 | Q71: 0 | R71: 0 | S71: 0 | T71: 0 | U71: 0 | V71: 0 | W71: 0 | X71: 0
A72: ='Org structure'!E68 -> 07.8 - Assets Management | C72: 4338168.92 | D72: 0 | E72: 0 | F72: 0 | G72: 3000000 | H72: 3000000 | I72: 0 | J72: 0 | K72: 8000000 | L72: 10000000 | N72: 0 | O72: 0 | P72: 0 | Q72: 0 | R72: 8000000 | S72: 0 | T72: 0 | U72: 8000000 | V72: 0 | W72: 0 | X72: 10000000
A73: ='Org structure'!E69 -> 07.9 - Revenue Management | C73: 0 | D73: 0 | E73: 0 | F73: 0 | G73: 0 | H73: 0 | I73: 0 | J73: 0 | K73: 0 | L73: 0 | N73: 0 | O73: 0 | P73: 0 | Q73: 0 | R73: 0 | S73: 0 | T73: 0 | U73: 0 | V73: 0 | W73: 0 | X73: 0
A74: ='Org structure'!E70 -> 07.10 - Municipal Valuation And Rating | C74: 0 | D74: 0 | E74: 0 | F74: 0 | G74: 1160000 | H74: 1160000 | I74: 0 | J74: 2000000 | K74: 1000000 | L74: 0 | N74: 2000000 | O74: 0 | P74: 0 | Q74: 2000000 | R74: 1000000 | S74: 0 | T74: 0 | U74: 1000000 | V74: 0 | W74: 0 | X74: 0
A75: ='Org structure'!E71 -> 07.11 - Supply Chain Management | C75: 0 | D75: 0 | E75: 0 | F75: 0 | G75: 0 | H75: 0 | I75: 0 | J75: 0 | K75: 0 | L75: 0 | N75: 0 | O75: 0 | P75: 0 | Q75: 0 | R75: 0 | S75: 0 | T75: 0 | U75: 0 | V75: 0 | W75: 0 | X75: 0
A76: ='Org structure'!E72 -> 07.12 - Accounting Services - Finance | C76: 0 | D76: 0 | E76: 0 | F76: 0 | G76: 0 | H76: 0 | I76: 0 | J76: 0 | K76: 0 | L76: 0 | N76: 0 | O76: 0 | P76: 0 | Q76: 0 | R76: 0 | S76: 0 | T76: 0 | U76: 0 | V76: 0 | W76: 0 | X76: 0
A77: ='Org structure'!E73 -> 07.13 - Accounting Services - Human Resources | C77: 0 | D77: 0 | E77: 0 | F77: 0 | G77: 0 | H77: 0 | I77: 0 | J77: 0 | K77: 0 | L77: 0 | N77: 0 | O77: 0 | P77: 0 | Q77: 0 | R77: 0 | S77: 0 | T77: 0 | U77: 0 | V77: 0 | W77: 0 | X77: 0
A78: ='Org structure'!A9 -> Vote 08 - Legal Services | C78: =SUM(C79:C79) -> 0 | D78: 0 | E78: 0 | F78: 0 | G78: 0 | H78: 0 | I78: 0 | J78: 0 | K78: 0 | L78: 0 | N78: =SUM(N79:N79) -> 0 | O78: 0 | P78: 0 | Q78: 0 | R78: 0 | S78: 0 | T78: 0 | U78: 0 | V78: 0 | W78: 0 | X78: 0
A79: ='Org structure'!E75 -> 08.1 - Legal Services And Support | C79: 0 | D79: 0 | E79: 0 | F79: 0 | G79: 0 | H79: 0 | I79: 0 | J79: =Q79+V79 -> 0 | K79: =U79+W79 -> 0 | L79: =X79 -> 0 | N79: 0 | O79: 0 | P79: 0 | Q79: =SUM(N79:P79) -> 0 | R79: 0 | S79: 0 | T79: 0 | U79: =SUM(R79:T79) -> 0 | V79: 0 | W79: 0 | X79: 0
A80: ='Org structure'!A10 -> Vote 09 - Regional Centre Coordination | C80: =SUM(C81:C85) -> 0 | D80: 0 | E80: 0 | F80: 0 | G80: 0 | H80: 0 | I80: 0 | J80: 0 | K80: 0 | L80: 0 | N80: =SUM(N81:N85) -> 0 | O80: 0 | P80: 0 | Q80: 0 | R80: 0 | S80: 0 | T80: 0 | U80: 0 | V80: 0 | W80: 0 | X80: 0
A81: ='Org structure'!E77 -> 09.1 - Office Of The Gm - Regional Centre Coord | C81: 0 | D81: 0 | E81: 0 | F81: 0 | G81: 0 | H81: 0 | I81: 0 | J81: =Q81+V81 -> 0 | K81: =U81+W81 -> 0 | L81: =X81 -> 0 | N81: 0 | O81: 0 | P81: 0 | Q81: =SUM(N81:P81) -> 0 | R81: 0 | S81: 0 | T81: 0 | U81: =SUM(R81:T81) -> 0 | V81: 0 | W81: 0 | X81: 0
A82: ='Org structure'!E78 -> 09.2 - Regional Centre - Central Region | C82: 0 | D82: 0 | E82: 0 | F82: 0 | G82: 0 | H82: 0 | I82: 0 | J82: =Q82+V82 -> 0 | K82: =U82+W82 -> 0 | L82: =X82 -> 0 | N82: 0 | O82: 0 | P82: 0 | Q82: =SUM(N82:P82) -> 0 | R82: 0 | S82: 0 | T82: 0 | U82: =SUM(R82:T82) -> 0 | V82: 0 | W82: 0 | X82: 0
A83: ='Org structure'!E79 -> 09.3 - Regional Centre - Northern Region | C83: 0 | D83: 0 | E83: 0 | F83: 0 | G83: 0 | H83: 0 | I83: 0 | J83: =Q83+V83 -> 0 | K83: =U83+W83 -> 0 | L83: =X83 -> 0 | N83: 0 | O83: 0 | P83: 0 | Q83: =SUM(N83:P83) -> 0 | R83: 0 | S83: 0 | T83: 0 | U83: =SUM(R83:T83) -> 0 | V83: 0 | W83: 0 | X83: 0
A84: ='Org structure'!E80 -> 09.4 - Regional Centre - Eastern Region | C84: 0 | D84: 0 | E84: 0 | F84: 0 | G84: 0 | H84: 0 | I84: 0 | J84: =Q84+V84 -> 0 | K84: =U84+W84 -> 0 | L84: =X84 -> 0 | N84: 0 | O84: 0 | P84: 0 | Q84: =SUM(N84:P84) -> 0 | R84: 0 | S84: 0 | T84: 0 | U84: =SUM(R84:T84) -> 0 | V84: 0 | W84: 0 | X84: 0
A85: ='Org structure'!E81 -> 09.5 - Regional Centre - Southern Region | C85: 0 | D85: 0 | E85: 0 | F85: 0 | G85: 0 | H85: 0 | I85: 0 | J85: =Q85+V85 -> 0 | K85: =U85+W85 -> 0 | L85: =X85 -> 0 | N85: 0 | O85: 0 | P85: 0 | Q85: =SUM(N85:P85) -> 0 | R85: 0 | S85: 0 | T85: 0 | U85: =SUM(R85:T85) -> 0 | V85: 0 | W85: 0 | X85: 0
A86: ='Org structure'!A11 -> Vote 10 - Community Services | C86: =SUM(C87:C97) -> 0 | D86: 0 | E86: 0 | F86: 5500000 | G86: 10247496 | H86: 10247496 | I86: 5796234.65 | J86: 3800000 | K86: 800000 | L86: 800000 | N86: =SUM(N87:N97) -> 3800000 | O86: 0 | P86: 0 | Q86: 3800000 | R86: 800000 | S86: 0 | T86: 0 | U86: 800000 | V86: 0 | W86: 0 | X86: 800000
A87: ='Org structure'!E83 -> 10.1 - Office Of The Gm - Communicty Services | C87: 0 | D87: 0 | E87: 0 | F87: 0 | G87: 0 | H87: 0 | I87: 0 | J87: =Q87+V87 -> 0 | K87: =U87+W87 -> 0 | L87: =X87 -> 0 | N87: 0 | O87: 0 | P87: 0 | Q87: =SUM(N87:P87) -> 0 | R87: 0 | S87: 0 | T87: 0 | U87: =SUM(R87:T87) -> 0 | V87: 0 | W87: 0 | X87: 0
A88: ='Org structure'!E84 -> 10.2 - Solid Waste - Removal | C88: 0 | D88: 0 | E88: 0 | F88: 0 | G88: 0 | H88: 0 | I88: 0 | J88: 0 | K88: 0 | L88: 0 | N88: 0 | O88: 0 | P88: 0 | Q88: 0 | R88: 0 | S88: 0 | T88: 0 | U88: 0 | V88: 0 | W88: 0 | X88: 0
A89: ='Org structure'!E85 -> 10.3 - Solid Waste - Landfill | C89: 0 | D89: 0 | E89: 0 | F89: 0 | G89: 0 | H89: 0 | I89: 0 | J89: 0 | K89: 0 | L89: 0 | N89: 0 | O89: 0 | P89: 0 | Q89: 0 | R89: 0 | S89: 0 | T89: 0 | U89: 0 | V89: 0 | W89: 0 | X89: 0
A90: ='Org structure'!E86 -> 10.4 - Sports Recreation & Heritage - Sports | C90: 0 | D90: 0 | E90: 0 | F90: 0 | G90: 0 | H90: 0 | I90: 0 | J90: 3000000 | K90: 0 | L90: 0 | N90: 3000000 | O90: 0 | P90: 0 | Q90: 3000000 | R90: 0 | S90: 0 | T90: 0 | U90: 0 | V90: 0 | W90: 0 | X90: 0
A91: ='Org structure'!E87 -> 10.5 - Sports Recreation & Heritage - Recrea | C91: 0 | D91: 0 | E91: 0 | F91: 1000000 | G91: 4247496 | H91: 4247496 | I91: 866796.75 | J91: 0 | K91: 0 | L91: 0 | N91: 0 | O91: 0 | P91: 0 | Q91: 0 | R91: 0 | S91: 0 | T91: 0 | U91: 0 | V91: 0 | W91: 0 | X91: 0
A92: ='Org structure'!E88 -> 10.6 - Sports Recreation & Heritage - Galary | C92: 0 | D92: 0 | E92: 0 | F92: 0 | G92: 0 | H92: 0 | I92: 0 | J92: 0 | K92: 0 | L92: 0 | N92: 0 | O92: 0 | P92: 0 | Q92: 0 | R92: 0 | S92: 0 | T92: 0 | U92: 0 | V92: 0 | W92: 0 | X92: 0
A93: ='Org structure'!E89 -> 10.7 - Sports Recreation & Heritage - Halls | C93: 0 | D93: 0 | E93: 0 | F93: 0 | G93: 0 | H93: 0 | I93: 0 | J93: 0 | K93: 0 | L93: 0 | N93: 0 | O93: 0 | P93: 0 | Q93: 0 | R93: 0 | S93: 0 | T93: 0 | U93: 0 | V93: 0 | W93: 0 | X93: 0
A94: ='Org structure'!E90 -> 10.8 - Sports Recreation & Heritage - Library | C94: 0 | D94: 0 | E94: 0 | F94: 0 | G94: 0 | H94: 0 | I94: 0 | J94: 0 | K94: 0 | L94: 0 | N94: 0 | O94: 0 | P94: 0 | Q94: 0 | R94: 0 | S94: 0 | T94: 0 | U94: 0 | V94: 0 | W94: 0 | X94: 0
A95: ='Org structure'!E91 -> 10.9 - Sports Recreation & Heritage - Cultural | C95: 0 | D95: 0 | E95: 0 | F95: 0 | G95: 0 | H95: 0 | I95: 0 | J95: 0 | K95: 0 | L95: 0 | N95: 0 | O95: 0 | P95: 0 | Q95: 0 | R95: 0 | S95: 0 | T95: 0 | U95: 0 | V95: 0 | W95: 0 | X95: 0
A96: ='Org structure'!E92 -> 10.10 - Parks And Cemetaries - Parks | C96: 0 | D96: 0 | E96: 0 | F96: 0 | G96: 0 | H96: 0 | I96: 0 | J96: 0 | K96: 0 | L96: 0 | N96: 0 | O96: 0 | P96: 0 | Q96: 0 | R96: 0 | S96: 0 | T96: 0 | U96: 0 | V96: 0 | W96: 0 | X96: 0
A97: ='Org structure'!E93 -> 10.11 - Parks And Cemetaries - Cemetaries | C97: 0 | D97: 0 | E97: 0 | F97: 4500000 | G97: 6000000 | H97: 6000000 | I97: 4929437.9 | J97: 800000 | K97: 800000 | L97: 800000 | N97: 800000 | O97: 0 | P97: 0 | Q97: 800000 | R97: 800000 | S97: 0 | T97: 0 | U97: 800000 | V97: 0 | W97: 0 | X97: 800000
A98: ='Org structure'!A12 -> Vote 11 - Public Works, Roads And Transport | C98: =SUM(C99:C120) -> 37917995.74 | D98: 105529545.3 | E98: 50975789.95 | F98: 274683000 | G98: 323905320 | H98: 323905320 | I98: 183730299.8 | J98: 307929000 | K98: 255331000 | L98: 213026000 | N98: =SUM(N99:N120) -> 307929000 | O98: 0 | P98: 0 | Q98: 307929000 | R98: 255331000 | S98: 0 | T98: 0 | U98: 255331000 | V98: 0 | W98: 0 | X98: 213026000
A99: ='Org structure'!E95 -> 11.1 - Office Of The Gm - Roads | C99: 0 | D99: 0 | E99: 0 | F99: 0 | G99: 0 | H99: 0 | I99: 0 | J99: =Q99+V99 -> 0 | K99: =U99+W99 -> 0 | L99: =X99 -> 0 | N99: 0 | O99: 0 | P99: 0 | Q99: =SUM(N99:P99) -> 0 | R99: 0 | S99: 0 | T99: 0 | U99: =SUM(R99:T99) -> 0 | V99: 0 | W99: 0 | X99: 0
A100: ='Org structure'!E96 -> 11.2 - Office Of The Gm - Stormwater | C100: 0 | D100: 0 | E100: 0 | F100: 0 | G100: 0 | H100: 0 | I100: 0 | J100: 0 | K100: 0 | L100: 0 | N100: 0 | O100: 0 | P100: 0 | Q100: 0 | R100: 0 | S100: 0 | T100: 0 | U100: 0 | V100: 0 | W100: 0 | X100: 0
A101: ='Org structure'!E97 -> 11.3 - Roads And Stormwater - Roads | C101: 375458.74 | D101: 93729.12 | E101: 0 | F101: 0 | G101: 36208906 | H101: 36208906 | I101: 29908161.3 | J101: 0 | K101: 0 | L101: 0 | N101: 0 | O101: 0 | P101: 0 | Q101: 0 | R101: 0 | S101: 0 | T101: 0 | U101: 0 | V101: 0 | W101: 0 | X101: 0
A102: ='Org structure'!E98 -> 11.4 - Roads And Stormwater - Stormwater | C102: 995297.67 | D102: 0 | E102: 0 | F102: 0 | G102: 0 | H102: 0 | I102: 0 | J102: 0 | K102: 0 | L102: 0 | N102: 0 | O102: 0 | P102: 0 | Q102: 0 | R102: 0 | S102: 0 | T102: 0 | U102: 0 | V102: 0 | W102: 0 | X102: 0
A103: ='Org structure'!E99 -> 11.5 - Roads And Stormwater - Signal | C103: 0 | D103: 0 | E103: 0 | F103: 0 | G103: 0 | H103: 0 | I103: 0 | J103: 0 | K103: 0 | L103: 0 | N103: 0 | O103: 0 | P103: 0 | Q103: 0 | R103: 0 | S103: 0 | T103: 0 | U103: 0 | V103: 0 | W103: 0 | X103: 0
A104: ='Org structure'!E100 -> 11.6 - Public Transport Operations - Transport | C104: 0 | D104: 0 | E104: 0 | F104: 0 | G104: 30504898 | H104: 30504898 | I104: 8834103.04 | J104: 0 | K104: 0 | L104: 0 | N104: 0 | O104: 0 | P104: 0 | Q104: 0 | R104: 0 | S104: 0 | T104: 0 | U104: 0 | V104: 0 | W104: 0 | X104: 0
A105: ='Org structure'!E101 -> 11.7 - Project Implementation Unit | C105: 0 | D105: 0 | E105: 1174808.67 | F105: 97050000 | G105: 70392844 | H105: 70392844 | I105: 39988349.74 | J105: 87850000 | K105: 103000000 | L105: 20000000 | N105: 87850000 | O105: 0 | P105: 0 | Q105: 87850000 | R105: 103000000 | S105: 0 | T105: 0 | U105: 103000000 | V105: 0 | W105: 0 | X105: 20000000
A106: ='Org structure'!E102 -> 11.8 - Project Implementation Unit - Roads | C106: 35496571.42 | D106: 91925731.4 | E106: 35995950.46 | F106: 121483000 | G106: 94179841 | H106: 94179841 | I106: 46455826.89 | J106: 183029000 | K106: 123831000 | L106: 168026000 | N106: 183029000 | O106: 0 | P106: 0 | Q106: 183029000 | R106: 123831000 | S106: 0 | T106: 0 | U106: 123831000 | V106: 0 | W106: 0 | X106: 168026000
A107: ='Org structure'!E103 -> 11.9 - Project Implementation Unit - S Water | C107: 1050667.91 | D107: 13510084.78 | E107: 0 | F107: 7000000 | G107: 15000000 | H107: 15000000 | I107: 9353635.34 | J107: 11000000 | K107: 0 | L107: 0 | N107: 11000000 | O107: 0 | P107: 0 | Q107: 11000000 | R107: 0 | S107: 0 | T107: 0 | U107: 0 | V107: 0 | W107: 0 | X107: 0
A108: ='Org structure'!E104 -> 11.10 - Project Implementation Unit - P Transprt | C108: 0 | D108: 0 | E108: 8659030.39 | F108: 0 | G108: 0 | H108: 0 | I108: 0 | J108: 0 | K108: 0 | L108: 0 | N108: 0 | O108: 0 | P108: 0 | Q108: 0 | R108: 0 | S108: 0 | T108: 0 | U108: 0 | V108: 0 | W108: 0 | X108: 0
A109: ='Org structure'!E105 -> 11.11 - Project Implementation Unit - Sports | C109: 0 | D109: 0 | E109: 0 | F109: 8000000 | G109: 500000 | H109: 500000 | I109: 0 | J109: 7500000 | K109: 10000000 | L109: 0 | N109: 7500000 | O109: 0 | P109: 0 | Q109: 7500000 | R109: 10000000 | S109: 0 | T109: 0 | U109: 10000000 | V109: 0 | W109: 0 | X109: 0
A110: ='Org structure'!E106 -> 11.12 - Project Implementation Unit - Sewer | C110: 0 | D110: 0 | E110: 0 | F110: 10000000 | G110: 31800000 | H110: 31800000 | I110: 24483058.06 | J110: 12500000 | K110: 11000000 | L110: 15000000 | N110: 12500000 | O110: 0 | P110: 0 | Q110: 12500000 | R110: 11000000 | S110: 0 | T110: 0 | U110: 11000000 | V110: 0 | W110: 0 | X110: 15000000
A111: ='Org structure'!E107 -> 11.13 - Project Implementation Unit - Halls | C111: 0 | D111: 0 | E111: 5146000.43 | F111: 15500000 | G111: 25318831 | H111: 25318831 | I111: 12900405.81 | J111: 5850000 | K111: 6500000 | L111: 0 | N111: 5850000 | O111: 0 | P111: 0 | Q111: 5850000 | R111: 6500000 | S111: 0 | T111: 0 | U111: 6500000 | V111: 0 | W111: 0 | X111: 0
A112: ='Org structure'!E108 -> 11.14 - Project Implementation Unit - Landfill | C112: 0 | D112: 0 | E112: 0 | F112: 650000 | G112: 0 | H112: 0 | I112: 0 | J112: 200000 | K112: 1000000 | L112: 10000000 | N112: 200000 | O112: 0 | P112: 0 | Q112: 200000 | R112: 1000000 | S112: 0 | T112: 0 | U112: 1000000 | V112: 0 | W112: 0 | X112: 10000000
A113: ='Org structure'!E109 -> 11.15 - Project Implementation Unit - Nc Roads | C113: 0 | D113: 0 | E113: 0 | F113: 0 | G113: 0 | H113: 0 | I113: 0 | J113: 0 | K113: 0 | L113: 0 | N113: 0 | O113: 0 | P113: 0 | Q113: 0 | R113: 0 | S113: 0 | T113: 0 | U113: 0 | V113: 0 | W113: 0 | X113: 0
A114: ='Org structure'!E110 -> 11.16 - Project Implementation Unit - St Lights | C114: 0 | D114: 0 | E114: 0 | F114: 0 | G114: 0 | H114: 0 | I114: 0 | J114: 0 | K114: 0 | L114: 0 | N114: 0 | O114: 0 | P114: 0 | Q114: 0 | R114: 0 | S114: 0 | T114: 0 | U114: 0 | V114: 0 | W114: 0 | X114: 0
A115: ='Org structure'!E111 -> 11.17 - Project Implementation Unit - Fleet | C115: 0 | D115: 0 | E115: 0 | F115: 0 | G115: 0 | H115: 0 | I115: 0 | J115: 0 | K115: 0 | L115: 0 | N115: 0 | O115: 0 | P115: 0 | Q115: 0 | R115: 0 | S115: 0 | T115: 0 | U115: 0 | V115: 0 | W115: 0 | X115: 0
A116: ='Org structure'!E112 -> 11.18 - Project Implementation Unit - S Waste | C116: 0 | D116: 0 | E116: 0 | F116: 0 | G116: 0 | H116: 0 | I116: 0 | J116: 0 | K116: 0 | L116: 0 | N116: 0 | O116: 0 | P116: 0 | Q116: 0 | R116: 0 | S116: 0 | T116: 0 | U116: 0 | V116: 0 | W116: 0 | X116: 0
A117: ='Org structure'!E113 -> 11.19 - Project Implementation Unit - Parks | C117: 0 | D117: 0 | E117: 0 | F117: 0 | G117: 0 | H117: 0 | I117: 0 | J117: 0 | K117: 0 | L117: 0 | N117: 0 | O117: 0 | P117: 0 | Q117: 0 | R117: 0 | S117: 0 | T117: 0 | U117: 0 | V117: 0 | W117: 0 | X117: 0
A118: ='Org structure'!E114 -> 11.20 - Project Implementation Unit - Water Dist | C118: 0 | D118: 0 | E118: 0 | F118: 0 | G118: 0 | H118: 0 | I118: 0 | J118: 0 | K118: 0 | L118: 0 | N118: 0 | O118: 0 | P118: 0 | Q118: 0 | R118: 0 | S118: 0 | T118: 0 | U118: 0 | V118: 0 | W118: 0 | X118: 0
A119: ='Org structure'!E115 -> 11.21 - Project Implementation Unit - Water Trt | C119: 0 | D119: 0 | E119: 0 | F119: 15000000 | G119: 20000000 | H119: 20000000 | I119: 11806759.63 | J119: 0 | K119: 0 | L119: 0 | N119: 0 | O119: 0 | P119: 0 | Q119: 0 | R119: 0 | S119: 0 | T119: 0 | U119: 0 | V119: 0 | W119: 0 | X119: 0
A120: ='Org structure'!E116 -> 11.22 - Expanded Public Works Programme | C120: 0 | D120: 0 | E120: 0 | F120: 0 | G120: 0 | H120: 0 | I120: 0 | J120: 0 | K120: 0 | L120: 0 | N120: 0 | O120: 0 | P120: 0 | Q120: 0 | R120: 0 | S120: 0 | T120: 0 | U120: 0 | V120: 0 | W120: 0 | X120: 0
A121: ='Org structure'!A13 -> Vote 12 - Public Safety | C121: =SUM(C122:C131) -> 0 | D121: 0 | E121: 0 | F121: 0 | G121: 0 | H121: 0 | I121: 0 | J121: 0 | K121: 0 | L121: 0 | N121: =SUM(N122:N131) -> 0 | O121: 0 | P121: 0 | Q121: 0 | R121: 0 | S121: 0 | T121: 0 | U121: 0 | V121: 0 | W121: 0 | X121: 0
A122: ='Org structure'!E118 -> 12.1 - Office Of The Gm - Public Safety | C122: 0 | D122: 0 | E122: 0 | F122: 0 | G122: 0 | H122: 0 | I122: 0 | J122: =Q122+V122 -> 0 | K122: =U122+W122 -> 0 | L122: =X122 -> 0 | N122: 0 | O122: 0 | P122: 0 | Q122: =SUM(N122:P122) -> 0 | R122: 0 | S122: 0 | T122: 0 | U122: =SUM(R122:T122) -> 0 | V122: 0 | W122: 0 | X122: 0
A123: ='Org structure'!E119 -> 12.2 - Law Enforce And Security Serv - Traffic | C123: 0 | D123: 0 | E123: 0 | F123: 0 | G123: 0 | H123: 0 | I123: 0 | J123: 0 | K123: 0 | L123: 0 | N123: 0 | O123: 0 | P123: 0 | Q123: 0 | R123: 0 | S123: 0 | T123: 0 | U123: 0 | V123: 0 | W123: 0 | X123: 0
A124: ='Org structure'!E120 -> 12.3 - Law Enforce And Security Serv - Traffic | C124: 0 | D124: 0 | E124: 0 | F124: 0 | G124: 0 | H124: 0 | I124: 0 | J124: 0 | K124: 0 | L124: 0 | N124: 0 | O124: 0 | P124: 0 | Q124: 0 | R124: 0 | S124: 0 | T124: 0 | U124: 0 | V124: 0 | W124: 0 | X124: 0
A125: ='Org structure'!E121 -> 12.4 - Law Enforce And Security Serv - Lic&Regu | C125: 0 | D125: 0 | E125: 0 | F125: 0 | G125: 0 | H125: 0 | I125: 0 | J125: 0 | K125: 0 | L125: 0 | N125: 0 | O125: 0 | P125: 0 | Q125: 0 | R125: 0 | S125: 0 | T125: 0 | U125: 0 | V125: 0 | W125: 0 | X125: 0
A126: ='Org structure'!E122 -> 12.5 - Law Enforce And Security Serv - Security | C126: 0 | D126: 0 | E126: 0 | F126: 0 | G126: 0 | H126: 0 | I126: 0 | J126: 0 | K126: 0 | L126: 0 | N126: 0 | O126: 0 | P126: 0 | Q126: 0 | R126: 0 | S126: 0 | T126: 0 | U126: 0 | V126: 0 | W126: 0 | X126: 0
A127: ='Org structure'!E123 -> 12.6 - Licencing And Traffic Services | C127: 0 | D127: 0 | E127: 0 | F127: 0 | G127: 0 | H127: 0 | I127: 0 | J127: 0 | K127: 0 | L127: 0 | N127: 0 | O127: 0 | P127: 0 | Q127: 0 | R127: 0 | S127: 0 | T127: 0 | U127: 0 | V127: 0 | W127: 0 | X127: 0
A128: ='Org structure'!E124 -> 12.7 - Traffic Services | C128: 0 | D128: 0 | E128: 0 | F128: 0 | G128: 0 | H128: 0 | I128: 0 | J128: 0 | K128: 0 | L128: 0 | N128: 0 | O128: 0 | P128: 0 | Q128: 0 | R128: 0 | S128: 0 | T128: 0 | U128: 0 | V128: 0 | W128: 0 | X128: 0
A129: ='Org structure'!E125 -> 12.8 - Traffic Services | C129: 0 | D129: 0 | E129: 0 | F129: 0 | G129: 0 | H129: 0 | I129: 0 | J129: 0 | K129: 0 | L129: 0 | N129: 0 | O129: 0 | P129: 0 | Q129: 0 | R129: 0 | S129: 0 | T129: 0 | U129: 0 | V129: 0 | W129: 0 | X129: 0
A130: ='Org structure'!E126 -> 12.9 - Disaster Management - Fire And Protect | C130: 0 | D130: 0 | E130: 0 | F130: 0 | G130: 0 | H130: 0 | I130: 0 | J130: 0 | K130: 0 | L130: 0 | N130: 0 | O130: 0 | P130: 0 | Q130: 0 | R130: 0 | S130: 0 | T130: 0 | U130: 0 | V130: 0 | W130: 0 | X130: 0
A131: ='Org structure'!E127 -> 12.10 - Disaster Management - Disaster Man | C131: 0 | D131: 0 | E131: 0 | F131: 0 | G131: 0 | H131: 0 | I131: 0 | J131: 0 | K131: 0 | L131: 0 | N131: 0 | O131: 0 | P131: 0 | Q131: 0 | R131: 0 | S131: 0 | T131: 0 | U131: 0 | V131: 0 | W131: 0 | X131: 0
A132: ='Org structure'!A14 -> Vote 13 - Water And Sanitation | C132: =SUM(C133:C145) -> 39883032.04 | D132: 25173507.84 | E132: 11352989.55 | F132: 69200000 | G132: 104721389 | H132: 104721389 | I132: 51514960.5 | J132: 135300000 | K132: 244530000 | L132: 316000000 | N132: =SUM(N133:N145) -> 135300000 | O132: 0 | P132: 0 | Q132: 135300000 | R132: 244530000 | S132: 0 | T132: 0 | U132: 244530000 | V132: 0 | W132: 0 | X132: 316000000
A133: ='Org structure'!E129 -> 13.1 - Office Of The Gm - Water | C133: 0 | D133: 0 | E133: 1086439.28 | F133: 0 | G133: 0 | H133: 0 | I133: 0 | J133: =Q133+V133 -> 0 | K133: =U133+W133 -> 0 | L133: =X133 -> 0 | N133: 0 | O133: 0 | P133: 0 | Q133: =SUM(N133:P133) -> 0 | R133: 0 | S133: 0 | T133: 0 | U133: =SUM(R133:T133) -> 0 | V133: 0 | W133: 0 | X133: 0
A134: ='Org structure'!E130 -> 13.2 - Office Of The Gm - Sanitation | C134: 0 | D134: 0 | E134: 0 | F134: 0 | G134: 0 | H134: 0 | I134: 0 | J134: 0 | K134: 0 | L134: 0 | N134: 0 | O134: 0 | P134: 0 | Q134: 0 | R134: 0 | S134: 0 | T134: 0 | U134: 0 | V134: 0 | W134: 0 | X134: 0
A135: ='Org structure'!E131 -> 13.3 - Water Services Plan And Develp - Water | C135: 12775308.67 | D135: 16672554.64 | E135: 0 | F135: 37000000 | G135: 22200000 | H135: 22200000 | I135: 11776589.73 | J135: 75600000 | K135: 157000000 | L135: 170000000 | N135: 75600000 | O135: 0 | P135: 0 | Q135: 75600000 | R135: 157000000 | S135: 0 | T135: 0 | U135: 157000000 | V135: 0 | W135: 0 | X135: 170000000
A136: ='Org structure'!E132 -> 13.4 - Water Services Plan And Develp - Sanitat | C136: 0 | D136: 0 | E136: 0 | F136: 0 | G136: 0 | H136: 0 | I136: 0 | J136: 0 | K136: 0 | L136: 0 | N136: 0 | O136: 0 | P136: 0 | Q136: 0 | R136: 0 | S136: 0 | T136: 0 | U136: 0 | V136: 0 | W136: 0 | X136: 0
A137: ='Org structure'!E133 -> 13.5 - Water Services Plan And Develp - W Treat | C137: 15346789.57 | D137: 0 | E137: 0 | F137: 100000 | G137: 0 | H137: 0 | I137: 0 | J137: 2000000 | K137: 18000000 | L137: 50000000 | N137: 2000000 | O137: 0 | P137: 0 | Q137: 2000000 | R137: 18000000 | S137: 0 | T137: 0 | U137: 18000000 | V137: 0 | W137: 0 | X137: 50000000
A138: ='Org structure'!E134 -> 13.6 - Water Services Plan And Develp - W Stor | C138: 6277978.88 | D138: 0 | E138: 0 | F138: 3000000 | G138: 1000000 | H138: 1000000 | I138: 0 | J138: 0 | K138: 7000000 | L138: 0 | N138: 0 | O138: 0 | P138: 0 | Q138: 0 | R138: 7000000 | S138: 0 | T138: 0 | U138: 7000000 | V138: 0 | W138: 0 | X138: 0
A139: ='Org structure'!E135 -> 13.7 - Water Services Plan And Develp - W Distr | C139: 0 | D139: 0 | E139: 0 | F139: 0 | G139: 0 | H139: 0 | I139: 0 | J139: 0 | K139: 0 | L139: 0 | N139: 0 | O139: 0 | P139: 0 | Q139: 0 | R139: 0 | S139: 0 | T139: 0 | U139: 0 | V139: 0 | W139: 0 | X139: 0
A140: ='Org structure'!E136 -> 13.8 - Contract Management - Water | C140: 2360602.84 | D140: 3200846.72 | E140: 0 | F140: 10100000 | G140: 31623261 | H140: 31623261 | I140: 18518730.16 | J140: 12500000 | K140: 0 | L140: 0 | N140: 12500000 | O140: 0 | P140: 0 | Q140: 12500000 | R140: 0 | S140: 0 | T140: 0 | U140: 0 | V140: 0 | W140: 0 | X140: 0
A141: ='Org structure'!E137 -> 13.9 - Contract Management - Sanitation | C141: 1399664 | D141: 5300106.48 | E141: 5267293.87 | F141: 4000000 | G141: 11168625 | H141: 11168625 | I141: 0 | J141: 10200000 | K141: 17530000 | L141: 26000000 | N141: 10200000 | O141: 0 | P141: 0 | Q141: 10200000 | R141: 17530000 | S141: 0 | T141: 0 | U141: 17530000 | V141: 0 | W141: 0 | X141: 26000000
A142: ='Org structure'!E138 -> 13.10 - Contract Management - Water Storage | C142: 0 | D142: 0 | E142: 0 | F142: 0 | G142: 0 | H142: 0 | I142: 0 | J142: 0 | K142: 0 | L142: 0 | N142: 0 | O142: 0 | P142: 0 | Q142: 0 | R142: 0 | S142: 0 | T142: 0 | U142: 0 | V142: 0 | W142: 0 | X142: 0
A143: ='Org structure'!E139 -> 13.11 - Water Services Oper & Maint - Water Dist | C143: 0 | D143: 0 | E143: 0 | F143: 0 | G143: 0 | H143: 0 | I143: 0 | J143: 0 | K143: 0 | L143: 0 | N143: 0 | O143: 0 | P143: 0 | Q143: 0 | R143: 0 | S143: 0 | T143: 0 | U143: 0 | V143: 0 | W143: 0 | X143: 0
A144: ='Org structure'!E140 -> 13.12 - Water Services Oper & Maint - Water Trea | C144: 1722688.08 | D144: 0 | E144: 0 | F144: 6000000 | G144: 30325739 | H144: 30325739 | I144: 13840108.03 | J144: 32000000 | K144: 20000000 | L144: 20000000 | N144: 32000000 | O144: 0 | P144: 0 | Q144: 32000000 | R144: 20000000 | S144: 0 | T144: 0 | U144: 20000000 | V144: 0 | W144: 0 | X144: 20000000
A145: ='Org structure'!E141 -> 13.13 - Water Services Oper & Maint - Waste W Tr | C145: 0 | D145: 0 | E145: 4999256.4 | F145: 9000000 | G145: 8403764 | H145: 8403764 | I145: 7379532.58 | J145: 3000000 | K145: 25000000 | L145: 50000000 | N145: 3000000 | O145: 0 | P145: 0 | Q145: 3000000 | R145: 25000000 | S145: 0 | T145: 0 | U145: 25000000 | V145: 0 | W145: 0 | X145: 50000000
A146: ='Org structure'!A15 -> Vote 14 - Energy | C146: =SUM(C147:C151) -> 19551287.82 | D146: 601201.06 | E146: 14518459.16 | F146: 49704000 | G146: 77862000 | H146: 77862000 | I146: 62963154.37 | J146: 123206000 | K146: 73500000 | L146: 76500000 | N146: =SUM(N147:N151) -> 123206000 | O146: 0 | P146: 0 | Q146: 123206000 | R146: 73500000 | S146: 0 | T146: 0 | U146: 73500000 | V146: 0 | W146: 0 | X146: 76500000
A147: ='Org structure'!E143 -> 14.1 - Office Of The Gm - Energy | C147: 0 | D147: 0 | E147: 0 | F147: 0 | G147: 0 | H147: 0 | I147: 0 | J147: =Q147+V147 -> 0 | K147: =U147+W147 -> 0 | L147: =X147 -> 0 | N147: 0 | O147: 0 | P147: 0 | Q147: =SUM(N147:P147) -> 0 | R147: 0 | S147: 0 | T147: 0 | U147: =SUM(R147:T147) -> 0 | V147: 0 | W147: 0 | X147: 0
A148: ='Org structure'!E144 -> 14.2 - Electricity Plan And Develmnt - Elec | C148: 19551287.82 | D148: 0 | E148: 0 | F148: 13572200 | G148: 15708200 | H148: 15708200 | I148: 7486869.97 | J148: =Q148+V148 -> 36600000 | K148: =U148+W148 -> 34500000 | L148: =X148 -> 31500000 | N148: 36600000 | O148: 0 | P148: 0 | Q148: =SUM(N148:P148) -> 36600000 | R148: 34500000 | S148: 0 | T148: 0 | U148: =SUM(R148:T148) -> 34500000 | V148: 0 | W148: 0 | X148: 31500000
A149: ='Org structure'!E145 -> 14.3 - Electricity Plan And Develmnt - Non Elec | C149: 0 | D149: 0 | E149: 0 | F149: 0 | G149: 0 | H149: 0 | I149: 0 | J149: =Q149+V149 -> 0 | K149: =U149+W149 -> 0 | L149: =X149 -> 0 | N149: 0 | O149: 0 | P149: 0 | Q149: =SUM(N149:P149) -> 0 | R149: 0 | S149: 0 | T149: 0 | U149: =SUM(R149:T149) -> 0 | V149: 0 | W149: 0 | X149: 0
A150: ='Org structure'!E146 -> 14.4 - Electricity Maintenance And Operations | C150: 0 | D150: 0 | E150: 7923308.71 | F150: 20331800 | G150: 20331800 | H150: 20331800 | I150: 16298686.42 | J150: =Q150+V150 -> 57106000 | K150: =U150+W150 -> 31000000 | L150: =X150 -> 40000000 | N150: 57106000 | O150: 0 | P150: 0 | Q150: =SUM(N150:P150) -> 57106000 | R150: 31000000 | S150: 0 | T150: 0 | U150: =SUM(R150:T150) -> 31000000 | V150: 0 | W150: 0 | X150: 40000000
A151: ='Org structure'!E147 -> 14.5 - Alternative Energy And Public Lighting | C151: 0 | D151: 601201.06 | E151: 6595150.45 | F151: 15800000 | G151: 41822000 | H151: 41822000 | I151: 39177597.98 | J151: =Q151+V151 -> 29500000 | K151: =U151+W151 -> 8000000 | L151: =X151 -> 5000000 | N151: 29500000 | O151: 0 | P151: 0 | Q151: =SUM(N151:P151) -> 29500000 | R151: 8000000 | S151: 0 | T151: 0 | U151: =SUM(R151:T151) -> 8000000 | V151: 0 | W151: 0 | X151: 5000000
A152: ='Org structure'!A16 -> Vote 15 - Other | C152: 0 | D152: 0 | E152: 0 | F152: 0 | G152: 0 | H152: 0 | I152: 0 | J152: 0 | K152: 0 | L152: 0 | N152: 0 | O152: 0 | P152: 0 | Q152: 0 | R152: 0 | S152: 0 | T152: 0 | U152: 0 | V152: 0 | W152: 0
A153: Capital multi-year expenditure sub-total | C153: =C6+C21+C25+C41+C50+C57+C64+C78+C80+C86+C98+C121+C132+C146+C152 -> 98405172.09 | D153: 134706437.7 | E153: 80293993.34 | F153: 408787000 | G153: 529952900 | H153: 529952900 | I153: 307637566.2 | J153: 575905000 | K153: 586161000 | L153: 620326000 | N153: =N6+N21+N25+N41+N50+N57+N64+N78+N80+N86+N98+N121+N132+N146+N152 -> 575905000 | O153: 0 | P153: 0 | Q153: 575905000 | R153: 586161000 | S153: 0 | T153: 0 | U153: 586161000 | V153: 0 | W153: 0
A155: Capital expenditure - Municipal Vote
A156: Single-year expenditure appropriation | B156: 2
A157: ='Org structure'!A2 -> Vote 01 - Council | C157: =SUM(C158:C171) -> 0 | D157: 0 | E157: 0 | F157: 0 | G157: 0 | H157: 0 | I157: 0 | J157: 0 | K157: 0 | L157: 0
A158: ='Org structure'!E3 -> 01.1 - Office Of The Mayor | C158: 0 | D158: 0 | E158: 0 | F158: 0 | G158: 0 | H158: 0 | I158: 0 | J158: 0 | K158: 0 | L158: 0
A159: ='Org structure'!E4 -> 01.2 - Office Of The Chief Whip | C159: 0 | D159: 0 | E159: 0 | F159: 0 | G159: 0 | H159: 0 | I159: 0 | J159: 0 | K159: 0 | L159: 0
A160: ='Org structure'!E5 -> 01.3 - Office Of The Speaker | C160: 0 | D160: 0 | E160: 0 | F160: 0 | G160: 0 | H160: 0 | I160: 0 | J160: 0 | K160: 0 | L160: 0
A161: ='Org structure'!E6 -> 01.4 - Mayoral Mmc - Budget & Treasury Servic | C161: 0 | D161: 0 | E161: 0 | F161: 0 | G161: 0 | H161: 0 | I161: 0 | J161: 0 | K161: 0 | L161: 0
A162: ='Org structure'!E7 -> 01.5 - Mayoral Mmc - Corporate Services | C162: 0 | D162: 0 | E162: 0 | F162: 0 | G162: 0 | H162: 0 | I162: 0 | J162: 0 | K162: 0 | L162: 0
A163: ='Org structure'!E8 -> 01.6 - Mmc - City Planning & Development | C163: 0 | D163: 0 | E163: 0 | F163: 0 | G163: 0 | H163: 0 | I163: 0 | J163: 0 | K163: 0 | L163: 0
A164: ='Org structure'!E9 -> 01.7 - Mmc - Strategic Management | C164: 0 | D164: 0 | E164: 0 | F164: 0 | G164: 0 | H164: 0 | I164: 0 | J164: 0 | K164: 0 | L164: 0
A165: ='Org structure'!E10 -> 01.8 - Mayoral Mmc - Community Services | C165: 0 | D165: 0 | E165: 0 | F165: 0 | G165: 0 | H165: 0 | I165: 0 | J165: 0 | K165: 0 | L165: 0
A166: ='Org structure'!E11 -> 01.9 - Mmc - Energy | C166: 0 | D166: 0 | E166: 0 | F166: 0 | G166: 0 | H166: 0 | I166: 0 | J166: 0 | K166: 0 | L166: 0
A167: ='Org structure'!E12 -> 01.10 - Mmc - Public Safety | C167: 0 | D167: 0 | E167: 0 | F167: 0 | G167: 0 | H167: 0 | I167: 0 | J167: 0 | K167: 0 | L167: 0
A168: ='Org structure'!E13 -> 01.11 - Mmc - Water & Sanitation | C168: 0 | D168: 0 | E168: 0 | F168: 0 | G168: 0 | H168: 0 | I168: 0 | J168: 0 | K168: 0 | L168: 0
A169: ='Org structure'!E14 -> 01.12 - Mmc - Public Works & Transport | C169: 0 | D169: 0 | E169: 0 | F169: 0 | G169: 0 | H169: 0 | I169: 0 | J169: 0 | K169: 0 | L169: 0
A170: ='Org structure'!E15 -> 01.13 - Mayoral Mmc - Centre Coordination | C170: 0 | D170: 0 | E170: 0 | F170: 0 | G170: 0 | H170: 0 | I170: 0 | J170: 0 | K170: 0 | L170: 0
A171: ='Org structure'!E16 -> 01.14 - Mpac (Section 79) | C171: 0 | D171: 0 | E171: 0 | F171: 0 | G171: 0 | H171: 0 | I171: 0 | J171: 0 | K171: 0 | L171: 0
A172: ='Org structure'!A3 -> Vote 02 - Office Of Council | C172: =SUM(C173:C175) -> 0 | D172: 0 | E172: 164828.71 | F172: 0 | G172: 0 | H172: 0 | I172: 0 | J172: 0 | K172: 0 | L172: 0
A173: ='Org structure'!E18 -> 02.1 - Office Of The Gm - Office Of Council | C173: 0 | D173: 0 | E173: 0 | F173: 0 | G173: 0 | H173: 0 | I173: 0 | J173: 0 | K173: 0 | L173: 0
A174: ='Org structure'!E19 -> 02.2 - Public Stakeholder Participtn Petitions | C174: 0 | D174: 0 | E174: 0 | F174: 0 | G174: 0 | H174: 0 | I174: 0 | J174: 0 | K174: 0 | L174: 0
A175: ='Org structure'!E20 -> 02.3 - Council Secretariat | C175: 0 | D175: 0 | E175: 164828.71 | F175: 0 | G175: 0 | H175: 0 | I175: 0 | J175: 0 | K175: 0 | L175: 0
A176: ='Org structure'!A4 -> Vote 03 - Municipal Manager | C176: =SUM(C177:C191) -> 0 | D176: 0 | E176: 0 | F176: 0 | G176: 0 | H176: 0 | I176: 0 | J176: 0 | K176: 0 | L176: 0
A177: ='Org structure'!E22 -> 03.1 - Municipal Manager Administration | C177: 0 | D177: 0 | E177: 0 | F177: 0 | G177: 0 | H177: 0 | I177: 0 | J177: 0 | K177: 0 | L177: 0
A178: ='Org structure'!E23 -> 03.2 - Municipal Manager Admin (Waste Man) | C178: 0 | D178: 0 | E178: 0 | F178: 0 | G178: 0 | H178: 0 | I178: 0 | J178: 0 | K178: 0 | L178: 0
A179: ='Org structure'!E24 -> 03.3 - Municipal Manager Admin (Electricity) | C179: 0 | D179: 0 | E179: 0 | F179: 0 | G179: 0 | H179: 0 | I179: 0 | J179: 0 | K179: 0 | L179: 0
A180: ='Org structure'!E25 -> 03.4 - Municipal Manager Admin (Rural Dev) | C180: 0 | D180: 0 | E180: 0 | F180: 0 | G180: 0 | H180: 0 | I180: 0 | J180: 0 | K180: 0 | L180: 0
A181: ='Org structure'!E26 -> 03.5 - Internal Audit | C181: 0 | D181: 0 | E181: 0 | F181: 0 | G181: 0 | H181: 0 | I181: 0 | J181: 0 | K181: 0 | L181: 0
A182: ='Org structure'!E27 -> 03.6 - Office Of The Dmm - Aux | C182: 0 | D182: 0 | E182: 0 | F182: 0 | G182: 0 | H182: 0 | I182: 0 | J182: 0 | K182: 0 | L182: 0
A183: ='Org structure'!E28 -> 03.7 - Performance And Monitoring | C183: 0 | D183: 0 | E183: 0 | F183: 0 | G183: 0 | H183: 0 | I183: 0 | J183: 0 | K183: 0 | L183: 0
A184: ='Org structure'!E29 -> 03.8 - Enterprise Risk Management | C184: 0 | D184: 0 | E184: 0 | F184: 0 | G184: 0 | H184: 0 | I184: 0 | J184: 0 | K184: 0 | L184: 0
A185: ='Org structure'!E30 -> 03.9 - Enviromental Management And Planning | C185: 0 | D185: 0 | E185: 0 | F185: 0 | G185: 0 | H185: 0 | I185: 0 | J185: 0 | K185: 0 | L185: 0
A186: ='Org structure'!E31 -> 03.10 - Enviromental Man&Plan - Soil Conserv | C186: 0 | D186: 0 | E186: 0 | F186: 0 | G186: 0 | H186: 0 | I186: 0 | J186: 0 | K186: 0 | L186: 0
A187: ='Org structure'!E32 -> 03.11 - Enviromental Man&Plan - Nature Cons | C187: 0 | D187: 0 | E187: 0 | F187: 0 | G187: 0 | H187: 0 | I187: 0 | J187: 0 | K187: 0 | L187: 0
A188: ='Org structure'!E33 -> 03.12 - Transversal Services | C188: 0 | D188: 0 | E188: 0 | F188: 0 | G188: 0 | H188: 0 | I188: 0 | J188: 0 | K188: 0 | L188: 0
A189: ='Org structure'!E34 -> 03.13 - Water Services Compliance Monitoring | C189: 0 | D189: 0 | E189: 0 | F189: 0 | G189: 0 | H189: 0 | I189: 0 | J189: 0 | K189: 0 | L189: 0
A190: ='Org structure'!E35 -> 03.14 - Office Dmm - Core Service - Water | C190: 0 | D190: 0 | E190: 0 | F190: 0 | G190: 0 | H190: 0 | I190: 0 | J190: 0 | K190: 0 | L190: 0
A191: ='Org structure'!E36 -> 03.15 - Office Dmm - Core Service - Waste Water | C191: 0 | D191: 0 | E191: 0 | F191: 0 | G191: 0 | H191: 0 | I191: 0 | J191: 0 | K191: 0 | L191: 0
A192: ='Org structure'!A5 -> Vote 04 - City Planning And Development Department | C192: =SUM(C193:C200) -> 0 | D192: 0 | E192: 0 | F192: 0 | G192: 0 | H192: 0 | I192: 0 | J192: 11500000 | K192: 0 | L192: 0
A193: ='Org structure'!E38 -> 04.1 - Office Of The Gm - Planning | C193: 0 | D193: 0 | E193: 0 | F193: 0 | G193: 0 | H193: 0 | I193: 0 | J193: 0 | K193: 0 | L193: 0
A194: ='Org structure'!E39 -> 04.2 - Land Use Management | C194: 0 | D194: 0 | E194: 0 | F194: 0 | G194: 0 | H194: 0 | I194: 0 | J194: 0 | K194: 0 | L194: 0
A195: ='Org structure'!E40 -> 04.3 - Local Economic Development | C195: 0 | D195: 0 | E195: 0 | F195: 0 | G195: 0 | H195: 0 | I195: 0 | J195: 0 | K195: 0 | L195: 0
A196: ='Org structure'!E41 -> 04.4 - Rural Plan Traditional Affairs & Agric | C196: 0 | D196: 0 | E196: 0 | F196: 0 | G196: 0 | H196: 0 | I196: 0 | J196: 1500000 | K196: 0 | L196: 0
A197: ='Org structure'!E42 -> 04.5 - Human Settlement | C197: 0 | D197: 0 | E197: 0 | F197: 0 | G197: 0 | H197: 0 | I197: 0 | J197: 0 | K197: 0 | L197: 0
A198: ='Org structure'!E43 -> 04.6 - Tourism Business Regulations And Gov | C198: 0 | D198: 0 | E198: 0 | F198: 0 | G198: 0 | H198: 0 | I198: 0 | J198: 0 | K198: 0 | L198: 0
A199: ='Org structure'!E44 -> 04.7 - Spatial Development Planning | C199: 0 | D199: 0 | E199: 0 | F199: 0 | G199: 0 | H199: 0 | I199: 0 | J199: 0 | K199: 0 | L199: 0
A200: ='Org structure'!E45 -> 04.8 - Real Estate Management | C200: 0 | D200: 0 | E200: 0 | F200: 0 | G200: 0 | H200: 0 | I200: 0 | J200: 10000000 | K200: 0 | L200: 0
A201: ='Org structure'!A6 -> Vote 05 - Corporate Services Department | C201: =SUM(C202:C207) -> 0 | D201: 0 | E201: 2407462.63 | F201: 0 | G201: 0 | H201: 0 | I201: 0 | J201: 2000000 | K201: 48000000 | L201: 0
... 104 more rows

Sheet A6-FinPos
A1: =muni&" - "&Approve6 -> MP326 City of Mbombela - Table A6 Budgeted Financial Position
A2: =desc -> Description | B2: =head27 -> Ref | C2: =head1b -> 2017/18 | D2: =head1A -> 2018/19 | E2: =Head1 -> 2019/20 | F2: =Head2 -> Current Year 2020/21 | J2: =Head3 -> 2021/22 Medium Term Revenue & Expenditure Framework
A3: R thousand | C3: =Head5 -> Audited Outcome | D3: =Head5 -> Audited Outcome | E3: =Head5 -> Audited Outcome | F3: =Head6 -> Original Budget | G3: =Head7 -> Adjusted Budget | H3: =Head8 -> Full Year Forecast | I3: =Head5b -> Pre-audit outcome | J3: =Head9 -> Budget Year 2021/22 | K3: =Head10 -> Budget Year +1 2022/23 | L3: =Head11 -> Budget Year +2 2023/24
A4: ASSETS
A5: Current assets
A6: Cash | C6: 83670587.32 | D6: 125696817 | E6: 73019665 | F6: 215046736 | G6: 286993027 | H6: 286993027 | I6: 0 | J6: ='A7-CFlow'!J40 -> 114450794 | K6: ='A7-CFlow'!K40 -> 124190577 | L6: ='A7-CFlow'!L40 -> 146695482
A7: Call investment deposits | B7: 1 | C7: 9216191.72 | D7: 0 | E7: 0 | F7: 0 | G7: 0 | H7: 0 | I7: 0 | J7: 0 | K7: 0 | L7: 0
A8: Consumer debtors | B8: 1 | C8: ='SA3'!C14 -> 258610416.2 | D8: ='SA3'!D14 -> 281390422 | E8: ='SA3'!E14 -> 439756885 | F8: ='SA3'!F14 -> 286473948 | G8: ='SA3'!G14 -> 471955567 | H8: ='SA3'!H14 -> 471955567 | I8: ='SA3'!I14 -> 614330090.6 | J8: ='SA3'!J14 -> 340058954 | K8: ='SA3'!K14 -> 336431708 | L8: ='SA3'!L14 -> 340907481
A9: Other debtors | C9: 78284169.25 | D9: 154479361 | E9: 158522100 | F9: 228627574 | G9: 228627574 | H9: 228627574 | I9: 0 | J9: 236410158 | K9: 232338361 | L9: 135156374
A10: Current portion of long-term receivables | C10: 495343.62 | D10: 149186 | E10: 430746 | F10: 4744765 | G10: 4744765 | H10: 4744765 | I10: 0 | J10: 4839660 | K10: 4839660 | L10: 4839660
A11: Inventory | B11: 2 | C11: ='SA3'!C115 -> 19100885.77 | D11: ='SA3'!D115 -> 27144664 | E11: ='SA3'!E115 -> 35060021 | F11: ='SA3'!F115 -> 20425495 | G11: ='SA3'!G115 -> 20425495 | H11: ='SA3'!H115 -> 20425495 | I11: ='SA3'!I115 -> -9319967.21 | J11: ='SA3'!J115 -> 20425495 | K11: ='SA3'!K115 -> 20425495 | L11: ='SA3'!L115 -> 20425495
A12: Total current assets | C12: =SUM(C6:C11) -> 449377593.9 | D12: 588860450 | E12: 706789417 | F12: 755318518 | G12: 1012746428 | H12: 1012746428 | I12: 605010123.4 | J12: 716185061 | K12: 718225801 | L12: 648024492
A14: Non current assets
A15: Long-term receivables | C15: 3792810.1 | D15: 2531548 | E15: 2585925 | F15: 0 | G15: 0 | H15: 0 | I15: 0 | J15: 0 | K15: 0 | L15: 0
A16: Investments | C16: 18397643.36 | D16: 0 | E16: 0 | F16: 0 | G16: 0 | H16: 0 | I16: 0 | J16: 0 | K16: 0 | L16: 0
A17: Investment property | C17: 332430881.2 | D17: 330446369 | E17: 328136959 | F17: 330446369 | G17: 330446369 | H17: 330446369 | I17: 0 | J17: 337055296 | K17: 343796402 | L17: 350672330
A18: Investment in Associate | D18: 0 | F18: 0 | G18: 0 | H18: 0
A19: Property, plant and equipment | B19: 3 | C19: ='SA3'!C121 -> 7195800137 | D19: ='SA3'!D121 -> 7227949724 | E19: ='SA3'!E121 -> 7201095786 | F19: ='SA3'!F121 -> 7251216548 | G19: ='SA3'!G121 -> 7370412050 | H19: ='SA3'!H121 -> 7370412050 | I19: ='SA3'!I121 -> 7514185256 | J19: ='SA3'!J121 -> 8163538548 | K19: ='SA3'!K121 -> 8419753548 | L19: ='SA3'!L121 -> 8527604778
A21: Biological | D21: 0 | E21: 0
A22: Intangible | C22: 15096802.76 | D22: 15505845 | E22: 14467706 | F22: 18605845 | G22: 27281230 | H22: 27281230 | I22: 0 | J22: 25947962 | K22: 30357521 | L22: 29744672
A23: Other non-current assets | C23: 2301969.68 | D23: 2302070 | E23: 2302070 | F23: 2301970 | G23: 2301970 | H23: 2301970 | I23: 0 | J23: 2301970 | K23: 2301970 | L23: 2348009
A24: Total non current assets | C24: =SUM(C15:C19)+SUM(C21:C23) -> 7567820244 | D24: =SUM(D15:D19)+SUM(D21:D23) -> 7578735556 | E24: 7548588446 | F24: 7602570732 | G24: 7730441619 | H24: 7730441619 | I24: 7514185256 | J24: 8528843776 | K24: 8796209441 | L24: 8910369789
A25: TOTAL ASSETS | C25: =C12+C24 -> 8017197838 | D25: =D12+D24 -> 8167596006 | E25: =E12+E24 -> 8255377863 | F25: =F12+F24 -> 8357889250 | G25: 8743188047 | H25: 8743188047 | I25: 8119195380 | J25: 9245028837 | K25: 9514435242 | L25: 9558394281
A27: LIABILITIES
A28: Current liabilities
A29: Bank overdraft | B29: 1 | C29: 0 | D29: 0 | E29: 0 | F29: 0 | G29: 0 | H29: 0 | I29: 0 | J29: 0 | K29: 0 | L29: 0
A30: Borrowing | B30: 4 | C30: ='SA3'!C127 -> 62976081.28 | D30: ='SA3'!D127 -> 53200621 | E30: ='SA3'!E127 -> 57408514 | F30: ='SA3'!F127 -> 41167953 | G30: ='SA3'!G127 -> 41167953 | H30: ='SA3'!H127 -> 41167953 | I30: ='SA3'!I127 -> 57408513.6 | J30: ='SA3'!J127 -> 19551158 | K30: ='SA3'!K127 -> 18698600 | L30: ='SA3'!L127 -> 16934698
A31: Consumer deposits | C31: 36920033.18 | D31: 40282191 | E31: 42874702 | F31: 39013474 | G31: 39013474 | H31: 39013474 | I31: 0 | J31: 39793743 | K31: 40589618 | L31: 41401411
A32: Trade and other payables | B32: 4 | C32: ='SA3'!C134 -> 1601401004 | D32: ='SA3'!D134 -> 2028971827 | E32: ='SA3'!E134 -> 2088324589 | F32: ='SA3'!F134 -> 1000000000 | G32: ='SA3'!G134 -> 1000000000 | H32: ='SA3'!H134 -> 1000000000 | I32: ='SA3'!I134 -> 1575998024 | J32: ='SA3'!J134 -> 650000000 | K32: ='SA3'!K134 -> 620000000 | L32: ='SA3'!L134 -> 550000000
A33: Provisions | C33: 31944651.17 | D33: 13022864 | E33: 14932875 | F33: 29233816 | G33: 29233816 | H33: 29233816 | I33: 0 | J33: 29818492 | K33: 30414862 | L33: 31023159
A34: Total current liabilities | C34: =SUM(C29:C33) -> 1733241770 | D34: 2135477503 | E34: 2203540680 | F34: 1109415243 | G34: 1109415243 | H34: 1109415243 | I34: 1633406538 | J34: 739163393 | K34: 709703080 | L34: 639359268
A36: Non current liabilities
A37: Borrowing | C37: ='SA3'!C139 -> 243420445.9 | D37: ='SA3'!D139 -> 213180419 | E37: ='SA3'!E139 -> 195845025 | F37: ='SA3'!F139 -> 207730129 | G37: ='SA3'!G139 -> 207730129 | H37: ='SA3'!H139 -> 207730129 | I37: ='SA3'!I139 -> 195945209.1 | J37: ='SA3'!J139 -> 327508491 | K37: ='SA3'!K139 -> 334058661 | L37: ='SA3'!L139 -> 340739834
A38: Provisions | C38: ='SA3'!C146 -> 352483352.4 | D38: ='SA3'!D146 -> 404934601 | E38: ='SA3'!E146 -> 391430399 | F38: ='SA3'!F146 -> 321086756 | G38: ='SA3'!G146 -> 321086756 | H38: ='SA3'!H146 -> 321086756 | I38: ='SA3'!I146 -> 390583610.3 | J38: ='SA3'!J146 -> 307730129 | K38: ='SA3'!K146 -> 207730000 | L38: ='SA3'!L146 -> 107730000
A39: Total non current liabilities | C39: =SUM(C37:C38) -> 595903798.3 | D39: =SUM(D37:D38) -> 618115020 | E39: =SUM(E37:E38) -> 587275424 | F39: =SUM(F37:F38) -> 528816885 | G39: 528816885 | H39: 528816885 | I39: 586528819.4 | J39: 635238620 | K39: =SUM(K37:K38) -> 541788661 | L39: 448469834
A40: TOTAL LIABILITIES | C40: =C34+C39 -> 2329145568 | D40: =D34+D39 -> 2753592523 | E40: =E34+E39 -> 2790816104 | F40: =F34+F39 -> 1638232128 | G40: 1638232128 | H40: 1638232128 | I40: 2219935358 | J40: 1374402013 | K40: =K34+K39 -> 1251491741 | L40: 1087829102
A42: NET ASSETS | B42: 5 | C42: =C25-C40 -> 5688052270 | D42: 5414003483 | E42: 5464561759 | F42: 6719657122 | G42: 7104955919 | H42: 7104955919 | I42: 5899260022 | J42: 7870626824 | K42: 8262943501 | L42: 8470565179
A44: COMMUNITY WEALTH/EQUITY
A45: Accumulated Surplus/(Deficit) | C45: 5688052270 | D45: 5414003483 | E45: 5464561759 | F45: 6719657122 | G45: 7104955919 | H45: 7104955919 | I45: 0 | J45: =J42 -> 7870626824 | K45: =K42 -> 8262943501 | L45: =L42 -> 8470565179
A46: Reserves | B46: 4 | C46: ='SA3'!C165 -> 0 | D46: ='SA3'!D165 -> 0 | E46: ='SA3'!E165 -> 0 | F46: ='SA3'!F165 -> 0 | G46: ='SA3'!G165 -> 0 | H46: ='SA3'!H165 -> 0 | I46: ='SA3'!I165 -> 0 | J46: ='SA3'!J165 -> 0 | K46: ='SA3'!K165 -> 0 | L46: ='SA3'!L165 -> 0
A48: TOTAL COMMUNITY WEALTH/EQUITY | B48: 5 | C48: =SUM(C45:C46) -> 5688052270 | D48: =SUM(D45:D46) -> 5414003483 | E48: 5464561759 | F48: 6719657122 | G48: 7104955919 | H48: 7104955919 | I48: 0 | J48: 7870626824 | K48: 8262943501 | L48: 8470565179
A49: =head27a -> References
A50: 1. Detail to be provided in Table SA3
A51: 2. Include completed low cost housing to be transferred to beneficiaries within 12 months
A52: 3. Include 'Construction-work-in-progress' (disclosed separately in annual financial statements)
A53: 4. Detail to be provided in Table SA3. Includes reserves to be funded by statute.
A54: 5. Net assets must balance with Total Community Wealth/Equity
A55: check balance | C55: =IF((C42-C48)=0,0,"Unbalanced") -> 0 | D55: =IF((D42-D48)=0,0,"Unbalanced") -> 0 | E55: 0 | F55: 0 | G55: 0 | H55: 0 | I55: Unbalanced | J55: 0 | K55: 0 | L55: 0

Sheet A7-CFlow
A1: =muni&" - "&Approve7 -> MP326 City of Mbombela - Table A7 Budgeted Cash Flows
A2: =desc -> Description | B2: =head27 -> Ref | C2: =head1b -> 2017/18 | D2: =head1A -> 2018/19 | E2: =Head1 -> 2019/20 | F2: =Head2 -> Current Year 2020/21 | J2: =Head3 -> 2021/22 Medium Term Revenue & Expenditure Framework
A3: R thousand | C3: =Head5 -> Audited Outcome | D3: =Head5 -> Audited Outcome | E3: =Head5 -> Audited Outcome | F3: =Head6 -> Original Budget | G3: =Head7 -> Adjusted Budget | H3: =Head8 -> Full Year Forecast | I3: =Head5b -> Pre-audit outcome | J3: =Head9 -> Budget Year 2021/22 | K3: =Head10 -> Budget Year +1 2022/23 | L3: =Head11 -> Budget Year +2 2023/24
A4: CASH FLOW FROM OPERATING ACTIVITIES
A5: Receipts
A6: Property rates | C6: 436144725 | D6: 606606825 | E6: 649860556 | F6: 544721279.2 | G6: 595766359.1 | H6: 595766359.1 | I6: 595766359.1 | J6: ='SA30'!N5 -> 705807910 | K6: ='SA30'!O5 -> 741098306 | L6: ='SA30'!P5 -> 778153221
A7: Service charges | C7: 878388666 | D7: 984333026 | E7: 1076174547 | F7: 1208098508 | G7: 1284092772 | H7: 1284092772 | I7: 1284092772 | J7: ='SA30'!N6+'SA30'!N7+'SA30'!N8+'SA30'!N9 -> 1630326624 | K7: ='SA30'!O6+'SA30'!O7+'SA30'!O8+'SA30'!O9 -> 1724783335 | L7: ='SA30'!P6+'SA30'!P7+'SA30'!P8+'SA30'!P9 -> 1811239312
A8: Other revenue | C8: 188404264 | D8: 129498049 | E8: 123484043 | F8: 65431134.74 | G8: 103435581.4 | H8: 103435581.4 | I8: 103435581.4 | J8: ='SA30'!N11+'SA30'!N15+'SA30'!N16+'SA30'!N17+'SA30'!N19 -> 160672100 | K8: ='SA30'!O11+'SA30'!O15+'SA30'!O16+'SA30'!O17+'SA30'!O19 -> 124815704 | L8: ='SA30'!P11+'SA30'!P15+'SA30'!P16+'SA30'!P17+'SA30'!P19 -> 144550067
A9: Transfers and Subsidies - Operational | B9: 1 | C9: 570018845 | D9: 711372022 | E9: 860496490 | F9: 934350000 | G9: 940650000 | H9: 940650000 | I9: 940650000 | J9: ='SA30'!N18 -> 850096000 | K9: ='SA30'!O18 -> 908385000 | L9: ='SA30'!P18 -> 909717000
A10: Transfers and Subsidies - Capital | B10: 1 | C10: 633201891 | D10: 462555061 | E10: 460997653 | F10: 368087000 | G10: 361787000 | H10: 361787000 | I10: 361787000 | J10: ='SA30'!N23 -> 493135000 | K10: ='SA30'!O23 -> 535361000 | L10: ='SA30'!P23 -> 577526000
A11: Interest | C11: 52506867 | D11: 34410973 | E11: 6542282 | F11: 45914252.52 | G11: 41414251 | H11: 41414251 | I11: 41414251 | J11: ='SA30'!N12+'SA30'!N13 -> 0 | K11: ='SA30'!O12+'SA30'!O13 -> 0 | L11: ='SA30'!P12+'SA30'!P13 -> 0
A12: Dividends | C12: 0 | F12: 0 | G12: 0 | H12: 0 | I12: 0 | J12: ='SA30'!N14 -> 0 | K12: ='SA30'!O14 -> 0 | L12: ='SA30'!P14 -> 0
A13: Payments
A14: Suppliers and employees | C14: -2103325455 | D14: -2288007111 | E14: -2589465579 | F14: -2641740566 | G14: -2517205115 | H14: -2517205115 | I14: -2517205115 | J14: =-('SA30'!N35+'SA30'!N36+'SA30'!N38+'SA30'!N39+'SA30'!N40+'SA30'!N41+'SA30'!N44+'SA30'!N50) -> -3152804502 | K14: =-('SA30'!O35+'SA30'!O36+'SA30'!O38+'SA30'!O39+'SA30'!O40+'SA30'!O41+'SA30'!O44+'SA30'!O50) -> -3330792302 | L14: =-('SA30'!P35+'SA30'!P36+'SA30'!P38+'SA30'!P39+'SA30'!P40+'SA30'!P41+'SA30'!P44+'SA30'!P50) -> -3519278046
A15: Finance charges | C15: -63147860 | D15: -90179903 | E15: -76248310 | F15: -27978351.44 | G15: -27978351.44 | H15: -27978351.44 | I15: -27978351.44 | J15: =-('SA30'!N37) -> -29377272 | K15: =-('SA30'!O37) -> -30846135 | L15: =-('SA30'!P37) -> -32388442
A16: Transfers and Grants | B16: 1 | C16: -31911683 | D16: -46671696 | E16: -16658146 | F16: -2080000 | G16: -930000 | H16: -930000 | I16: -930000 | J16: =-('SA30'!N42+'SA30'!N43) -> 0 | K16: =-('SA30'!O42+'SA30'!O43) -> 0 | L16: =-('SA30'!P42+'SA30'!P43) -> 0
A17: NET CASH FROM/(USED) OPERATING ACTIVITIES | C17: =SUM(C6:C12)+SUM(C14:C16) -> 560280260 | D17: 503917246 | E17: 495183536 | F17: 494803257.1 | G17: 781032497.1 | H17: 781032497.1 | I17: 781032497.1 | J17: 657855860 | K17: 672804908 | L17: 669519112
A19: CASH FLOWS FROM INVESTING ACTIVITIES
A20: Receipts
A21: Proceeds on disposal of PPE | C21: 958298 | D21: 267666 | J21: ='SA30'!N24+'SA30'!N25 -> 0 | K21: ='SA30'!O24+'SA30'!O25 -> 0 | L21: ='SA30'!P24+'SA30'!P25 -> 0
C22: 0 | D22: 0
A23: Decrease (increase) in non-current receivables | C23: -1137499 | D23: 1870455 | E23: 0 | F23: 0 | G23: 0 | H23: 0 | I23: -575774.56 | J23: ='SA30'!N30 -> 0 | K23: ='SA30'!O30 -> 0 | L23: ='SA30'!P30 -> 0
A24: Decrease (increase) in non-current investments | C24: -600828 | D24: 18397543 | E24: 0 | F24: 0 | G24: 0 | H24: 0 | I24: 0 | J24: ='SA30'!N31 -> 0 | K24: ='SA30'!O31 -> 0 | L24: ='SA30'!P31 -> 0
A25: Payments
A26: Capital assets | C26: -480973088 | D26: -455641551 | E26: -531749639 | F26: -410444000 | G26: -549544581.9 | H26: -549544581.9 | I26: 155530753.5 | J26: =-('SA30'!N48) -> -617205000 | K26: =-('SA30'!O48) -> -663861000 | L26: =-('SA30'!P48) -> -647826000
A27: NET CASH FROM/(USED) INVESTING ACTIVITIES | C27: =+C21+C23+C24+C26 -> -481753117 | D27: =+D21+D23+D24+D26 -> -435105887 | E27: -531749639 | F27: -410444000 | G27: -549544581.9 | H27: -549544581.9 | I27: 154954978.9 | J27: -617205000 | K27: -663861000 | L27: -647826000
A29: CASH FLOWS FROM FINANCING ACTIVITIES
A30: Receipts
A31: Short term loans | J31: ='SA30'!N26 -> 0 | K31: ='SA30'!O26 -> 0 | L31: ='SA30'!P26 -> 0
A32: Borrowing long term/refinancing | C32: 0 | D32: 0 | E32: 0 | F32: 0 | G32: 0 | H32: 0 | I32: 0 | J32: ='SA30'!N27 -> 0 | K32: ='SA30'!O27 -> 0 | L32: ='SA30'!P27 -> 0
A33: Increase (decrease) in consumer deposits | C33: 0 | D33: 0 | E33: 0 | F33: 0 | G33: 0 | H33: 0 | I33: 0 | J33: ='SA30'!N28 -> 780269 | K33: ='SA30'!O28 -> 795875 | L33: ='SA30'!P28 -> 811793
A34: Payments
A35: Repayment of borrowing | C35: -8488631 | D35: -36663437 | E35: -16111049 | F35: -17514554 | G35: -17514554 | H35: -17514554 | I35: 0 | J35: =-('SA30'!N49) -> 0 | K35: =-('SA30'!O49) -> 0 | L35: =-('SA30'!P49) -> 0
A36: NET CASH FROM/(USED) FINANCING ACTIVITIES | C36: =SUM(C31:C33)+C35 -> -8488631 | D36: =SUM(D31:D33)+D35 -> -36663437 | E36: -16111049 | F36: -17514554 | G36: -17514554 | H36: -17514554 | I36: 0 | J36: 780269 | K36: 795875 | L36: 811793
A38: NET INCREASE/ (DECREASE) IN CASH HELD | C38: =C17+C27+C36 -> 70038512 | D38: =D17+D27+D36 -> 32147922 | E38: -52677152 | F38: 66844703.08 | G38: 213973361.2 | H38: 213973361.2 | I38: 935987476 | J38: 41431129 | K38: 9739783 | L38: 22504905
A39: Cash/cash equivalents at the year begin: | B39: 2 | C39: 25702126.16 | D39: 93548895 | E39: 125696817 | F39: 148202032.1 | G39: 73019665 | H39: 73019665 | I39: 0 | J39: ='SA30'!N54 -> 73019665 | K39: =J40 -> 114450794 | L39: =K40 -> 124190577
A40: Cash/cash equivalents at the year end: | B40: 2 | C40: =C38+C39 -> 95740638.16 | D40: =D38+D39 -> 125696817 | E40: =E38+E39 -> 73019665 | F40: =F38+F39 -> 215046735.2 | G40: 286993026.2 | H40: 286993026.2 | I40: 935987476 | J40: 114450794 | K40: 124190577 | L40: 146695482
A41: =head27a -> References
A42: 1. Local/District municipalities to include transfers from/to District/Local Municipalities
A43: 2. Cash equivalents includes investments with maturities of 3 months or less
A44: 3. The MTREF is populated directly from SA30.
A45: Total receipts | C45: =SUM(C6:C12)+SUM(C21:C23) -> 2758486057 | D45: 2930914077 | E45: 3177555571 | F45: 3166602174 | G45: 3327145963 | H45: 3327145963 | I45: 3326570189 | J45: 3840037634 | K45: 4034443345 | L45: 4221185600
A46: Total payments | C46: =SUM(C14:C16)+C26 -> -2679358086 | D46: =SUM(D14:D16)+D26 -> -2880500261 | E46: -3214121674 | F46: -3082242917 | G46: -3095658048 | H46: -3095658048 | I46: -2390582713 | J46: -3799386774 | K46: -4025499437 | L46: -4199492488
C47: =C45+C46 -> 79127971 | D47: =D45+D46 -> 50413816 | E47: -36566103 | F47: 84359257.08 | G47: 231487915.2 | H47: 231487915.2 | I47: 935987476 | J47: 40650860 | K47: 8943908 | L47: 21693112
A48: Borrowings & investments & c.deposits | C48: =C24+C32+C33 -> -600828 | D48: =D24+D32+D33 -> 18397543 | E48: 0 | F48: 0 | G48: 0 | H48: 0 | I48: 0 | J48: 780269 | K48: 795875 | L48: 811793
A49: =A35 -> Repayment of borrowing | C49: =C35 -> -8488631 | D49: =D35 -> -36663437 | E49: -16111049 | F49: -17514554 | G49: -17514554 | H49: -17514554 | I49: =I35 -> 0 | J49: 0 | K49: 0 | L49: 0
C50: =C47+C48+C49 -> 70038512 | D50: =D47+D48+D49 -> 32147922 | E50: -52677152 | F50: 66844703.08 | G50: 213973361.2 | H50: 213973361.2 | I50: 935987476 | J50: 41431129 | K50: 9739783 | L50: 22504905
C51: =C38-C50 -> 0 | D51: 0 | E51: 0 | F51: 0 | G51: 0 | H51: 0 | I51: 0 | J51: 0 | K51: 0 | L51: 0

Sheet A8-ResRecon
A1: =muni&" - "&Approve8 -> MP326 City of Mbombela - Table A8 Cash backed reserves/accumulated surplus reconciliation
A2: =desc -> Description | B2: =head27 -> Ref | C2: =head1b -> 2017/18 | D2: =head1A -> 2018/19 | E2: =Head1 -> 2019/20 | F2: =Head2 -> Current Year 2020/21 | J2: =Head3 -> 2021/22 Medium Term Revenue & Expenditure Framework
A3: R thousand | C3: =Head5 -> Audited Outcome | D3: =Head5 -> Audited Outcome | E3: =Head5 -> Audited Outcome | F3: =Head6 -> Original Budget | G3: =Head7 -> Adjusted Budget | H3: =Head8 -> Full Year Forecast | I3: =Head5b -> Pre-audit outcome | J3: =Head9 -> Budget Year 2021/22 | K3: =Head10 -> Budget Year +1 2022/23 | L3: =Head11 -> Budget Year +2 2023/24
A4: Cash and investments available
A5: =LEFT('A7-CFlow'!A40,37) -> Cash/cash equivalents at the year end | B5: 1 | C5: ='A7-CFlow'!C40 -> 95740638.16 | D5: ='A7-CFlow'!D40 -> 125696817 | E5: ='A7-CFlow'!E40 -> 73019665 | F5: ='A7-CFlow'!F40 -> 215046735.2 | G5: ='A7-CFlow'!G40 -> 286993026.2 | H5: ='A7-CFlow'!H40 -> 286993026.2 | I5: ='A7-CFlow'!I40 -> 935987476 | J5: ='A7-CFlow'!J40 -> 114450794 | K5: ='A7-CFlow'!K40 -> 124190577 | L5: ='A7-CFlow'!L40 -> 146695482
A6: Other current investments > 90 days | C6: ='A6-FinPos'!C6+'A6-FinPos'!C7-'A6-FinPos'!C29-'A8-ResRecon'!C5 -> -2853859.12 | D6: ='A6-FinPos'!D6+'A6-FinPos'!D7-'A6-FinPos'!D29-'A8-ResRecon'!D5 -> 0 | E6: ='A6-FinPos'!E6+'A6-FinPos'!E7-'A6-FinPos'!E29-'A8-ResRecon'!E5 -> 0 | F6: ='A6-FinPos'!F6+'A6-FinPos'!F7-'A6-FinPos'!F29-'A8-ResRecon'!F5 -> 0.7836846113 | G6: ='A6-FinPos'!G6+'A6-FinPos'!G7-'A6-FinPos'!G29-'A8-ResRecon'!G5 -> 0.7845792174 | H6: ='A6-FinPos'!H6+'A6-FinPos'!H7-'A6-FinPos'!H29-'A8-ResRecon'!H5 -> 0.7845792174 | I6: ='A6-FinPos'!I6+'A6-FinPos'!I7-'A6-FinPos'!I29-'A8-ResRecon'!I5 -> -935987476 | J6: ='A6-FinPos'!J6+'A6-FinPos'!J7-'A6-FinPos'!J29-'A8-ResRecon'!J5 -> 0 | K6: ='A6-FinPos'!K6+'A6-FinPos'!K7-'A6-FinPos'!K29-'A8-ResRecon'!K5 -> 0 | L6: ='A6-FinPos'!L6+'A6-FinPos'!L7-'A6-FinPos'!L29-'A8-ResRecon'!L5 -> 0
A7: ='A6-FinPos'!A14&" - "&'A6-FinPos'!A16 -> Non current assets - Investments | B7: 1 | C7: ='A6-FinPos'!C16 -> 18397643.36 | D7: ='A6-FinPos'!D16 -> 0 | E7: ='A6-FinPos'!E16 -> 0 | F7: ='A6-FinPos'!F16 -> 0 | G7: ='A6-FinPos'!G16 -> 0 | H7: ='A6-FinPos'!H16 -> 0 | I7: ='A6-FinPos'!I16 -> 0 | J7: ='A6-FinPos'!J16 -> 0 | K7: ='A6-FinPos'!K16 -> 0 | L7: ='A6-FinPos'!L16 -> 0
A8: Cash and investments available: | C8: =SUM(C5:C7) -> 111284422.4 | D8: =SUM(D5:D7) -> 125696817 | E8: 73019665 | F8: 215046736 | G8: 286993027 | H8: 286993027 | I8: 0 | J8: 114450794 | K8: 124190577 | L8: 146695482
A10: Application of cash and investments
A11: ='SA3'!A132 -> Unspent conditional transfers | C11: ='SA3'!C132 -> 0 | D11: ='SA3'!D132 -> 101912901 | E11: ='SA3'!E132 -> 72083882 | F11: ='SA3'!F132 -> 0 | G11: ='SA3'!G132 -> 0 | H11: ='SA3'!H132 -> 0 | I11: ='SA3'!I132 -> 168230289.9 | J11: ='SA3'!J132 -> 0 | K11: ='SA3'!K132 -> 0 | L11: ='SA3'!L132 -> 0
A12: Unspent borrowing | C12: ='SA17'!C67 -> 0 | D12: ='SA17'!D67 -> 0 | E12: ='SA17'!E67 -> 0 | F12: ='SA17'!F67 -> 0 | G12: ='SA17'!G67 -> 0 | H12: ='SA17'!H67 -> 0 | J12: ='SA17'!I67 -> 0 | K12: ='SA17'!J67 -> 0 | L12: ='SA17'!K67 -> 0
A13: Statutory requirements | B13: 2 | C13: -86827912 | D13: -126053694.8 | E13: -128125000 | F13: -131602181.9 | G13: -131602181.9 | H13: -131602181.9 | I13: -131602181.9 | J13: 0 | K13: 0 | L13: 0
A14: Other working capital requirements | B14: 3 | C14: =-C32 -> 1298991004 | D14: =-D32 -> 1554117926 | E14: 1543180707 | F14: =-F32 -> 587919000 | G14: 404504000 | H14: 404504000 | I14: 699462740 | J14: 102354000 | K14: 79668000 | L14: 97739000
A15: Other provisions
A16: Long term investments committed | B16: 4 | C16: =C42 -> 0 | D16: =D42 -> 0 | E16: 0 | F16: 0 | G16: 0 | H16: 0 | I16: 0 | J16: 0 | K16: 0 | L16: 0
A17: Reserves to be backed by cash/investments | B17: 5 | C17: =SUM(C44:C48) -> 0 | D17: 0 | E17: 0 | F17: 0 | G17: 0 | H17: 0 | I17: 0 | J17: 0 | K17: 0 | L17: 0
A18: ="Total "&A10&":" -> Total Application of cash and investments: | C18: =SUM(C11:C17) -> 1212163092 | D18: =SUM(D11:D17) -> 1529977132 | E18: 1487139589 | F18: 456316818.1 | G18: 272901818.1 | H18: 272901818.1 | I18: 736090848 | J18: 102354000 | K18: 79668000 | L18: 97739000
A19: Surplus(shortfall) | C19: =C8-C18 -> -1100878670 | D19: =D8-D18 -> -1404280315 | E19: -1414119924 | F19: -241270082.1 | G19: 14091208.92 | H19: 14091208.92 | I19: -736090848 | J19: 12096794 | K19: 44522577 | L19: 48956482
A20: =head27a -> References
A21: 1. Must reconcile with Budgeted Cash Flows
A22: 2. For example: VAT, taxation
A23: 3. Council approval for policy required - include sufficient working capital (e.g. allowing for a % of current debtors > 90 days as uncollectable)
A24: 4. For example: sinking fund requirements for borrowing
A25: 5. Council approval required for each reserve created and basis of cash backing of reserves
A28: Other working capital requirements
A29: Debtors | C29: =IF(ISERROR(ROUND(C35*C36,-3)),0,(ROUND(C35*C36,-3))) -> 302410000 | D29: =IF(ISERROR(ROUND(D35*D36,-3)),0,(ROUND(D35*D36,-3))) -> 372941000 | E29: 473060000 | F29: 412081000 | G29: 595496000 | H29: 595496000 | I29: 586046000 | J29: 547646000 | K29: 540332000 | L29: 452261000
A31: Creditors due | C31: ='SA3'!C130+'SA3'!C131 -> 1601401004 | D31: ='SA3'!D130+'SA3'!D131 -> 1927058926 | E31: ='SA3'!E130+'SA3'!E131 -> 2016240707 | F31: ='SA3'!F130+'SA3'!F131 -> 1000000000 | G31: ='SA3'!G130+'SA3'!G131 -> 1000000000 | H31: ='SA3'!H130+'SA3'!H131 -> 1000000000 | I31: ='SA3'!I130+'SA3'!I131 -> 1285508740 | J31: ='SA3'!J130+'SA3'!J131 -> 650000000 | K31: ='SA3'!K130+'SA3'!K131 -> 620000000 | L31: ='SA3'!L130+'SA3'!L131 -> 550000000
A32: Total | C32: =C29-C31 -> -1298991004 | D32: =D29-D31 -> -1554117926 | E32: -1543180707 | F32: -587919000 | G32: -404504000 | H32: -404504000 | I32: -699462740 | J32: -102354000 | K32: -79668000 | L32: -97739000
A34: Debtors collection assumptions
A35: Balance outstanding - debtors | C35: ='A6-FinPos'!C8+'A6-FinPos'!C9+'A6-FinPos'!C15 -> 340687395.6 | D35: ='A6-FinPos'!D8+'A6-FinPos'!D9+'A6-FinPos'!D15 -> 438401331 | E35: ='A6-FinPos'!E8+'A6-FinPos'!E9+'A6-FinPos'!E15 -> 600864910 | F35: ='A6-FinPos'!F8+'A6-FinPos'!F9+'A6-FinPos'!F15 -> 515101522 | G35: ='A6-FinPos'!G8+'A6-FinPos'!G9+'A6-FinPos'!G15 -> 700583141 | H35: ='A6-FinPos'!H8+'A6-FinPos'!H9+'A6-FinPos'!H15 -> 700583141 | I35: ='A6-FinPos'!I8+'A6-FinPos'!I9+'A6-FinPos'!I15 -> 614330090.6 | J35: ='A6-FinPos'!J8+'A6-FinPos'!J9+'A6-FinPos'!J15 -> 576469112 | K35: ='A6-FinPos'!K8+'A6-FinPos'!K9+'A6-FinPos'!K15 -> 568770069 | L35: ='A6-FinPos'!L8+'A6-FinPos'!L9+'A6-FinPos'!L15 -> 476063855
A36: Estimate of debtors collection rate | C36: =IF(ISERROR('SA10'!D10),0,('SA10'!D10)) -> 0.8876456782 | D36: =IF(ISERROR('SA10'!E10),0,('SA10'!E10)) -> 0.850684988 | E36: =IF(ISERROR('SA10'!F10),0,('SA10'!F10)) -> 0.787298189 | F36: =IF(ISERROR('SA10'!G10),0,('SA10'!G10)) -> 0.8000000003 | G36: =IF(ISERROR('SA10'!H10),0,('SA10'!H10)) -> 0.85 | H36: =IF(ISERROR('SA10'!I10),0,('SA10'!I10)) -> 0.85 | I36: =IF(ISERROR('SA10'!J10),0,('SA10'!J10)) -> 0.9539597927 | J36: =IF(ISERROR('SA10'!K10),0,('SA10'!K10)) -> 0.9500000002 | K36: =IF(ISERROR('SA10'!L10),0,('SA10'!L10)) -> 0.9499999997 | L36: =IF(ISERROR('SA10'!M10),0,('SA10'!M10)) -> 0.95
K39: `
A40: =A16 -> Long term investments committed
A41: Balance (Insert description; eg sinking fund)
C42: =SUM(C41:C41) -> 0 | D42: 0 | E42: 0 | F42: 0 | G42: 0 | H42: 0 | I42: 0 | J42: 0 | K42: 0 | L42: 0
A43: =A17 -> Reserves to be backed by cash/investments
A44: ='SA3'!A160 -> Housing Development Fund | C44: ='SA3'!C160 -> 0 | D44: ='SA3'!D160 -> 0 | E44: ='SA3'!E160 -> 0 | F44: ='SA3'!F160 -> 0 | G44: ='SA3'!G160 -> 0 | H44: ='SA3'!H160 -> 0 | I44: ='SA3'!I160 -> 0 | J44: ='SA3'!J160 -> 0 | K44: ='SA3'!K160 -> 0 | L44: ='SA3'!L160 -> 0
A45: ='SA3'!A161 -> Capital replacement | C45: ='SA3'!C161 -> 0 | D45: ='SA3'!D161 -> 0 | E45: ='SA3'!E161 -> 0 | F45: ='SA3'!F161 -> 0 | G45: ='SA3'!G161 -> 0 | H45: ='SA3'!H161 -> 0 | I45: ='SA3'!I161 -> 0 | J45: ='SA3'!J161 -> 0 | K45: ='SA3'!K161 -> 0 | L45: ='SA3'!L161 -> 0
A46: ='SA3'!A162 -> Self-insurance | C46: ='SA3'!C162 -> 0 | D46: ='SA3'!D162 -> 0 | E46: ='SA3'!E162 -> 0 | F46: ='SA3'!F162 -> 0 | G46: ='SA3'!G162 -> 0 | H46: ='SA3'!H162 -> 0 | I46: ='SA3'!I162 -> 0 | J46: ='SA3'!J162 -> 0 | K46: ='SA3'!K162 -> 0 | L46: ='SA3'!L162 -> 0
A47: ='SA3'!A163 -> Other reserves | C47: ='SA3'!C163 -> 0 | D47: ='SA3'!D163 -> 0 | E47: ='SA3'!E163 -> 0 | F47: ='SA3'!F163 -> 0 | G47: ='SA3'!G163 -> 0 | H47: ='SA3'!H163 -> 0 | I47: ='SA3'!I163 -> 0 | J47: ='SA3'!J163 -> 0 | K47: ='SA3'!K163 -> 0 | L47: ='SA3'!L163 -> 0
A48: ='SA3'!A164 -> Revaluation | C48: ='SA3'!C164 -> 0 | D48: ='SA3'!D164 -> 0 | E48: ='SA3'!E164 -> 0 | F48: ='SA3'!F164 -> 0 | G48: ='SA3'!G164 -> 0 | H48: ='SA3'!H164 -> 0 | I48: ='SA3'!I164 -> 0 | J48: ='SA3'!J164 -> 0 | K48: ='SA3'!K164 -> 0 | L48: ='SA3'!L164 -> 0
C49: =SUM(C44:C48) -> 0 | D49: 0 | E49: 0 | F49: 0 | G49: 0 | H49: 0 | I49: 0 | J49: 0 | K49: 0 | L49: 0

Sheet A9-Asset
A1: =muni&" - "&Approve9 -> MP326 City of Mbombela - Table A9 Asset Management
A2: =desc -> Description | B2: =head27 -> Ref | C2: =head1b -> 2017/18 | D2: =head1A -> 2018/19 | E2: =Head1 -> 2019/20 | F2: =Head2 -> Current Year 2020/21 | I2: =Head3 -> 2021/22 Medium Term Revenue & Expenditure Framework
A3: R thousand | C3: =Head5 -> Audited Outcome | D3: =Head5 -> Audited Outcome | E3: =Head5 -> Audited Outcome | F3: =Head6 -> Original Budget | G3: =Head7 -> Adjusted Budget | H3: =Head8 -> Full Year Forecast | I3: =Head9 -> Budget Year 2021/22 | J3: =Head10 -> Budget Year +1 2022/23 | K3: =Head11 -> Budget Year +2 2023/24
A4: CAPITAL EXPENDITURE
A5: Total New Assets | B5: 1 | C5: =C15+C18+C19+C22+C25+C26+SUM(C29:C35) -> 70823527.91 | D5: =D15+D18+D19+D22+D25+D26+SUM(D29:D35) -> 120761973.2 | E5: 55865506.68 | F5: 298987000 | G5: 408586697 | H5: 408586697 | I5: 372005000 | J5: 340531000 | K5: 170000000
A6: Roads Infrastructure | C6: =SA34a!C7 -> 34691553.51 | D6: =SA34a!D7 -> 66980998.15 | E6: =SA34a!E7 -> 12788453.18 | F6: =SA34a!F7 -> 163183000 | G6: =SA34a!G7 -> 164967729 | H6: =SA34a!H7 -> 164967729 | I6: =SA34a!I7 -> 155929000 | J6: =SA34a!J7 -> 134831000 | K6: =SA34a!K7 -> 45000000
A7: Storm water Infrastructure | C7: =SA34a!C12 -> 1050667.91 | D7: =SA34a!D12 -> 13510084.78 | E7: =SA34a!E12 -> 0 | F7: =SA34a!F12 -> 7000000 | G7: =SA34a!G12 -> 15000000 | H7: =SA34a!H12 -> 15000000 | I7: =SA34a!I12 -> 11000000 | J7: =SA34a!J12 -> 0 | K7: =SA34a!K12 -> 0
A8: Electrical Infrastructure | C8: =SA34a!C16 -> 19551287.82 | D8: =SA34a!D16 -> 601201.06 | E8: =SA34a!E16 -> 14518459.16 | F8: =SA34a!F16 -> 37404000 | G8: =SA34a!G16 -> 67252000 | H8: =SA34a!H16 -> 67252000 | I8: =SA34a!I16 -> 107206000 | J8: =SA34a!J16 -> 45500000 | K8: =SA34a!K16 -> 46500000
A9: Water Supply Infrastructure | C9: =SA34a!C26 -> 2499370.84 | D9: =SA34a!D26 -> 17699208.33 | E9: =SA34a!E26 -> 11352989.55 | F9: =SA34a!F26 -> 41600000 | G9: =SA34a!G26 -> 57340000 | H9: =SA34a!H26 -> 57340000 | I9: =SA34a!I26 -> 39500000 | J9: =SA34a!J26 -> 40000000 | K9: =SA34a!K26 -> 30000000
A10: Sanitation Infrastructure | C10: =SA34a!C37 -> 2805952.08 | D10: =SA34a!D37 -> 0 | E10: =SA34a!E37 -> 0 | F10: =SA34a!F37 -> 12000000 | G10: =SA34a!G37 -> 37908696 | H10: =SA34a!H37 -> 37908696 | I10: =SA34a!I37 -> 27500000 | J10: =SA34a!J37 -> 32000000 | K10: =SA34a!K37 -> 25000000
A11: Solid Waste Infrastructure | C11: =SA34a!C44 -> 0 | D11: =SA34a!D44 -> 7290819.48 | E11: =SA34a!E44 -> 0 | F11: =SA34a!F44 -> 650000 | G11: =SA34a!G44 -> 0 | H11: =SA34a!H44 -> 0 | I11: =SA34a!I44 -> 200000 | J11: =SA34a!J44 -> 1000000 | K11: =SA34a!K44 -> 10000000
